Workbook

Sheet सामान्य जानकारी
C3: सत्र 2024-25 हेतु कक्षा 06 व 07 के लिए रिजल्ट शीट | L3: सम्पूर्ण जानकारी के लिए विडियो लिंक
C4: निदेशालय बीकानेर द्वारा जारी आदेश का सारांश
C5: 1. स्थानीय परीक्षा में प्रत्येक विषय की सैद्धांतिक परीक्षा हेतु प्रथम टेस्ट , द्वितीय टेस्ट ,तृतीय टेस्ट , अर्द्ध वार्षिक परीक्षा व वार्षिक परीक्षा हेतु निम्नोक्त अंक निर्धारित रहेंगे - | L5: https://youtu.be/DTkEt_kdP74
C6: इसके अंतर्गत नियमित विद्यार्थियों के लिए विद्यालय द्वारा लिए गए प्रथम परख (10 अक), द्वितीय परख (10 अंक) , तृतीय परख (10 अंक) व अर्द्धवार्षिक परीक्षा (70 अंक) और वार्षिक परीक्षा (100 अंक) आदि के कुल 200 अंक होंगे। | K6: UPDATE On | M6: https://youtu.be/KH69Y_uPILw
C7: समाजोपयोगी उत्पादन कार्य एवं समाज सेवा , शारीरिक एवं स्वास्थ्य शिक्षा तथा कला शिक्षा विषयों मे विद्यालय द्वारा करवाए गए शिक्षण कार्य / प्रोजेक्ट वर्क / गृहकार्य पुस्तिका के आधार पर मूल्यांकन ग्रेडिंग में देनी है I | K7: 2025-04-16
C8: विषय कोड | D8: विषय | E8: सामयिक परख | F8: अर्द्धवार्षिक कुल पूर्णांक | G8: वार्षिक कुल पूर्णांक | L8: यह एक्सेल फाइल कॉपीराइट एक्ट के अंतर्गत है , आप इसके साथ किसी भी प्रकार की छेड़छाड़ नहीं कर सकते है I अगर कोई इस एक्सेल फाइल के साथ छेड़छाड़ या नक़ल या कॉपी करता है , तो उसके खिलाफ़ क़ानूनी कार्यवाही की जायेगी I
C9: 1 | D9: हिन्दी | E9: 10 + 10 + 10 | F9: 50 + 20 = 70 | G9: 70 + 30 = 100
C10: 2 | D10: अंग्रेजी | E10: 10 + 10 + 10 | F10: 50 + 20 = 70 | G10: 70 + 30 = 100
C11: 7 | D11: विज्ञान | E11: 10 + 10 + 10 | F11: 50 + 20 = 70 | G11: 70 + 30 = 100
C12: 8 | D12: सामाजिक विज्ञान | E12: 10 + 10 + 10 | F12: 50 + 20 = 70 | G12: 70 + 30 = 100
C13: 9 | D13: गणित | E13: 10 + 10 + 10 | F13: 50 + 20 = 70 | G13: 70 + 30 = 100
C14: 71 | D14: संस्कृत | E14: 10 + 10 + 10 तृतीय भाषा (कोई एक) | F14: 50 + 20 + 70 | G14: 70 + 30 = 100
C15: 72 | D15: उर्दू
C16: 73 | D16: गुजराती | L16: नोट :- यह एक्सेल फाइल कम सॉफ्टवेयर निःशुल्क है I शिक्षक साथियों के सम्मान में यह फ्री में उपलब्ध करवाया जा रहा है I
C17: 74 | D17: सिंधी
C18: 75 | D18: पंजाबी
C19: 95 | D19: संस्कृतम | E19: केवल संस्कृत विधालयों हेतु
D20: निम्नोक्त तीनों विषयों के कुल पूर्णांक
C21: 81 | D21: समाजोपयोगी उत्पादन कार्य एवं समाज सेवा | F21: 100 | G21: ए/बी/सी/डी/ई ग्रेडिंग देनी है (A/B/C/D/E Grade)
C22: 82 | D22: शारीरिक एवं स्वास्थ्य शिक्षा | F22: 100 | L22: यह रिजल्ट शीट एक्सेल सॉफ्टवेयर आपको www.rajguruji.com , www.rajsevak.com , www.rajgyan.co.in , www.rajteachers.com , www.shalasugum.com , www.ashwinikumar.com पर मिल जाएगी I इसके अलावा आप गूगल पर heeralal jat लिखकर सर्च करेंगे , तो भी यह एक्सेल शीट मिल जाएगी I
C23: 83 | D23: कला शिक्षा | F23: 100
D24: सभी 6 मुख्य विषयों मे ग्रेडिंग देने का आधार तथा
D25: समाजोपयोगी उत्पादन कार्य एवं समाज सेवा , शारीरिक एवं स्वास्थ्य शिक्षा , तथा कला शिक्षा विषयों मे ग्रेडिंग देने का आधार Main 6 Subject Other Subject
D26: अंको का प्रतिशत | E26: ग्रेड | F26: अंको का प्रतिशत | G26: ग्रेड
D27: 86 से 100 प्रतिशत तक | E27: A ग्रेड | F27: 91 से 100 प्रतिशत तक | G27: A+ ग्रेड
D28: 71 से 85 प्रतिशत तक | E28: B ग्रेड | F28: 76 से 90 प्रतिशत तक | G28: A ग्रेड
D29: 51 से 70 प्रतिशत तक | E29: C ग्रेड | F29: 61 से 75 प्रतिशत तक | G29: B ग्रेड
D30: 31 से 50 प्रतिशत तक | E30: D ग्रेड | F30: 41 से 60 प्रतिशत तक | G30: C ग्रेड
D31: 0 से 30 प्रतिशत तक | E31: E ग्रेड | F31: 0 से 40 प्रतिशत तक | G31: D ग्रेड
C33: वैसे यह शीट उपरोक्त अनुसार ही बड़ी सावधानी से बनाई गई हैI फिर भी त्रुटि के लिए निर्माणकर्ता ज़िमेदार नहीं होगा I अतः अंतिम रूप से तैयार होने पर अपने स्तर पर जरुर चेक कर लेवे I | L33: https://youtu.be/DTkEt_kdP74
C36: Password of This Result Sheet :- Resultsheet2025
F37: (सामान्य जानकारी , master sheet & Marksheet पर try नहीं करें )
C38: प्रोग्राम निर्माणकर्ता
C39: हीरालाल जाट
C40: वरिष्ठ अध्यापक , महात्मा गाँधी राजकीय विद्यालय बर , पाली
C41: स्थाई पता :- चंडावल नगर , तह. - सोजत , जिला - पाली
C42: https://youtube.com/c/Heeralaljat
C43: परम पूज्य गुरुदेव वासुदेव जी महाराज
C44: सम्पूर्ण जानकारी के लिए विडियो लिंक
C45: https://youtu.be/DTkEt_kdP74

Sheet Master sheet
O4: =IF(#REF!="","",#REF!) -> 
O5: =IF(#REF!="","",#REF!) -> 
C6: School Recognition (विद्यालय मान्यता क्रमांक) :- | D6: शिक्षा/पाली/1995/2001 | F6: 1 | G6: =IF($D$11="Hindi","हिंदी","Hindi") -> हिंदी | H6: Heeralal Jat | O6: =IF(#REF!="","",#REF!) -> 
C7: Name of School (In English) :- | D7: Mahatma Gandhi Government School (English Medium) Bar, Pali | F7: 2 | G7: =IF($D$11="Hindi","अंग्रेजी","English") -> अंग्रेजी | H7: Mamta lawaniya | O7: =IF(#REF!="","",#REF!) -> 
C8: Name of School (In Hindi) :- | D8: महात्मा गाँधी राजकीय विद्यालय (अंग्रेजी माध्यम) बर, पाली | F8: 3 | G8: =IF($D$11="Hindi","तृतीय भाषा","Third Language") -> तृतीय भाषा | H8: Suresh kumar | O8: =IF(#REF!="","",#REF!) -> 
C9: Exam Nodel & Collection Centre Name :- | D9: G.S.S.S. BAR | F9: 4 | G9: =IF($D$11="Hindi","गणित","Maths") -> गणित | H9: yogendra | O9: =IF(#REF!="","",#REF!) -> 
C10: Date of result declaration :- | D10: 2024-05-16 | F10: 5 | G10: =IF($D$11="Hindi","विज्ञान","Science") -> विज्ञान | H10: Rakesh Kumar | O10: =IF(#REF!="","",#REF!) -> 
C11: Medium :- | D11: Hindi | F11: 6 | G11: =IF($D$11="Hindi","सामाजिक विज्ञान","Social Science") -> सामाजिक विज्ञान | H11: Sharad Sharma | O11: =IF(#REF!="","",#REF!) -> 
C12: School E-MAIL :- | D12: mggsbar@gmail.com | F12: 7 | G12: Computer | H12: Sampat Raj
C13: Session :- | D13: 2024-2025 | F13: 8 | G13: G.K. | H13: Pushpendra
C14: Principal Name :- | D14: USHA PALIYA | G14: =IF(D11="Hindi","कक्षा 6 के कक्षाध्यापक","6th Class Teacher") -> कक्षा 6 के कक्षाध्यापक | H14: Prakash Chand | O14: =IF(#REF!="","",#REF!) -> 
C15: Principal Mobile No. :- | D15: 9828765219 | O15: =IF(#REF!="","",#REF!) -> 
C16: Exam Incharge :- | D16: Suresh Chand | O16: =IF(#REF!="","",#REF!) -> 
C17: Result Checker :- | D17: Heeralal Jat | F17: 1 | G17: =IF($D$11="Hindi","हिंदी","Hindi") -> हिंदी | H17: Radheshyam | O17: =IF(#REF!="","",#REF!) -> 
C18: Result Maker :- | D18: Yogesh | F18: 2 | G18: =IF($D$11="Hindi","अंग्रेजी","English") -> अंग्रेजी | H18: Mamta lawaniya | O18: =IF(#REF!="","",#REF!) -> 
F19: 3 | G19: =IF($D$11="Hindi","तृतीय भाषा","Third Language") -> तृतीय भाषा | H19: Suresh kumar | O19: =IF(#REF!="","",#REF!) -> 
F20: 4 | G20: =IF($D$11="Hindi","गणित","Maths") -> गणित | H20: yogendra | O20: =IF(#REF!="","",#REF!) -> 
F21: 5 | G21: =IF($D$11="Hindi","विज्ञान","Science") -> विज्ञान | H21: Prakash Chand | O21: =IF(#REF!="","",#REF!) -> 
C22: इस शीट पर वर्क करने हेतु व सहायता हेतु विडियो लिंक | F22: 6 | G22: =IF($D$11="Hindi","सामाजिक विज्ञान","Social Science") -> सामाजिक विज्ञान | H22: Sharad Sharma | O22: =IF(#REF!="","",#REF!) -> 
F23: 7 | G23: Computer | H23: Pradip Singh
F24: 8 | G24: G.K. | H24: Manoj Kumar
G25: =IF(D11="Hindi","कक्षा 7 के कक्षाध्यापक","7th Class Teacher") -> कक्षा 7 के कक्षाध्यापक | H25: Mamta lawaniya | O25: =IF(#REF!="","",#REF!) -> 
O26: =IF(#REF!="","",#REF!) -> 
C27: https://youtu.be/DTkEt_kdP74 | E27: 1 | O27: =IF(#REF!="","",#REF!) -> 
D28: Presented By :- | O28: =IF(#REF!="","",#REF!) -> 
C29: नोट :- यह एक्सेल फाइल कम सॉफ्टवेयर निःशुल्क है I शिक्षक साथियों के सम्मान में यह सॉफ्टवेयर फ्री में उपलब्ध करवाया जा रहा है I | D29: HEERA LAL JAT Sr. Teacher | G29: 1 | O29: =IF(#REF!="","",#REF!) -> 
D30: MGGS BAR (PALI) | O30: =IF(#REF!="","",#REF!) -> 
D31: V./P. - CHANDAWAL NAGAR , SOJAT (PALI) | O31: =IF(#REF!="","",#REF!) -> 
D32: Whats App No. 09001884272 | O32: =IF(#REF!="","",#REF!) -> 
C33: परम पूज्य गुरुदेव | D33: heeralaljatchandawal@gmail.com | O33: =IF(#REF!="","",#REF!) -> 
O34: =IF(#REF!="","",#REF!) -> 
O35: =IF(#REF!="","",#REF!) -> 
O36: =IF(#REF!="","",#REF!) -> 
O37: =IF(#REF!="","",#REF!) -> 
O38: =IF(#REF!="","",#REF!) -> 
O39: =IF(#REF!="","",#REF!) -> 
O40: =IF(#REF!="","",#REF!) -> 
O41: =IF(#REF!="","",#REF!) -> 
O42: =IF(#REF!="","",#REF!) -> 
O43: =IF(#REF!="","",#REF!) -> 
O44: =IF(#REF!="","",#REF!) -> 
O45: =IF(#REF!="","",#REF!) -> 
O46: =IF(#REF!="","",#REF!) -> 
O47: =IF(#REF!="","",#REF!) -> 
O48: =IF(#REF!="","",#REF!) -> 
O49: =IF(#REF!="","",#REF!) -> 
O50: =IF(#REF!="","",#REF!) -> 
O51: =IF(#REF!="","",#REF!) -> 
O52: =IF(#REF!="","",#REF!) -> 
O53: =IF(#REF!="","",#REF!) -> 
O54: =IF(#REF!="","",#REF!) -> 
O55: =IF(#REF!="","",#REF!) -> 
O56: =IF(#REF!="","",#REF!) -> 
O57: =IF(#REF!="","",#REF!) -> 
O58: =IF(#REF!="","",#REF!) -> 
O59: =IF(#REF!="","",#REF!) -> 
O60: =IF(#REF!="","",#REF!) -> 
O61: =IF(#REF!="","",#REF!) -> 
O62: =IF(#REF!="","",#REF!) -> 
O63: =IF(#REF!="","",#REF!) -> 

Sheet Marks Entry 6th
A1: =IF('Master sheet'!D11="Hindi",'Master sheet'!D8,'Master sheet'!D7) -> महात्मा गाँधी राजकीय विद्यालय (अंग्रेजी माध्यम) बर, पाली | S1: This Sheet Password :- Resultsheet2024 | AF1: =IF('Master sheet'!$D$11="Hindi","तृतीय भाषा के लिए प्रत्येक कॉलम (सेल में) विद्यार्थी से सम्बंधित तृतीय भाषा को सलेक्ट करें I","For Third Language, Select the third language related to the student in each column") -> तृतीय भाषा के लिए प्रत्येक कॉलम (सेल में) विद्यार्थी से सम्बंधित तृतीय भाषा को सलेक्ट करें I | BU1: ए/बी/सी/डी/ई ग्रेडिंग देनी है (A/B/C/D/E Grade) | CJ1: =IF('Master sheet'!$D$11="Hindi","अतिरिक्त विषय ","Extra Subject") -> अतिरिक्त विषय
A2: =IF('Master sheet'!D11="Hindi","रिजल्ट वर्कशीट","RESULT WORKSHEET") -> रिजल्ट वर्कशीट | I2: =IF('Master sheet'!D13="","",'Master sheet'!D13) -> 2024-2025
A3: =IF('Master sheet'!D11="Hindi","विद्यार्थी की सामान्य जानकारी","General Information of Students") -> विद्यार्थी की सामान्य जानकारी | I3: =IF('Master sheet'!D11="Hindi","कक्षा :-","CLASS :- ") -> कक्षा :- | J3: 6 | L3: =IF('Master sheet'!$D$11="Hindi","हिंदी","Hindi") -> हिंदी | P3: =UPPER('Master sheet'!H6) -> HEERALAL JAT | V3: =IF('Master sheet'!$D$11="Hindi","अंग्रेजी","English") -> अंग्रेजी | Z3: =UPPER('Master sheet'!H7) -> MAMTA LAWANIYA | AF3: =IF('Master sheet'!$D$11="Hindi","तृतीय भाषा का चयन करें I","Select The Third Language") -> तृतीय भाषा का चयन करें I | AG3: =IF('Master sheet'!$D$11="Hindi","तृतीय भाषा","Third Language") -> तृतीय भाषा | AJ3: =UPPER('Master sheet'!H8) -> SURESH KUMAR | AQ3: =IF('Master sheet'!$D$11="Hindi","गणित","Maths") -> गणित | AU3: =UPPER('Master sheet'!H9) -> YOGENDRA | BA3: =IF('Master sheet'!$D$11="Hindi","विज्ञान","Science") -> विज्ञान | BE3: =UPPER('Master sheet'!H10) -> RAKESH KUMAR | BK3: =IF('Master sheet'!$D$11="Hindi","सामाजिक विज्ञान","Social Science") -> सामाजिक विज्ञान | BO3: =UPPER('Master sheet'!H11) -> SHARAD SHARMA | BU3: =IF('Master sheet'!$D$11="Hindi","कार्यानुभव","WORK EXP.") -> कार्यानुभव | BZ3: =IF('Master sheet'!$D$11="Hindi","कला शिक्षा","ART EDU.") -> कला शिक्षा | CE3: =IF('Master sheet'!$D$11="Hindi","स्वा. एवं शा. शिक्षा","HE.&PH. EDU.") -> स्वा. एवं शा. शिक्षा | CJ3: =UPPER('Master sheet'!G12) -> COMPUTER | CL3: =UPPER('Master sheet'!G13) -> G.K. | CN3: =IF('Master sheet'!$D$11="Hindi","उपस्थिति","Attendance") -> उपस्थिति
A4: =IF('Master sheet'!D11="Hindi","क्र. स.","Sr. No. ") -> क्र. स. | B4: =IF('Master sheet'!D11="Hindi","कक्षा","CLASS ") -> कक्षा | C4: =IF('Master sheet'!D11="Hindi","सेक्शन","Section ") -> सेक्शन | D4: =IF('Master sheet'!D11="Hindi","प्रवेशांक","SR. NO.") -> प्रवेशांक | E4: =IF('Master sheet'!D11="Hindi","जन्म दिनांक","Date of Birth") -> जन्म दिनांक | F4: =IF('Master sheet'!D11="Hindi","विद्यार्थी का नाम","Student's Name") -> विद्यार्थी का नाम | G4: =IF('Master sheet'!D11="Hindi","पिता का नाम","Father's Name") -> पिता का नाम | H4: =IF('Master sheet'!D11="Hindi","माता का नाम ","Mother's Name") -> माता का नाम | I4: =IF('Master sheet'!D11="Hindi","कक्षा रोल न. ","Class Roll No.") -> कक्षा रोल न. | J4: =IF('Master sheet'!D11="Hindi","लिंग ","Gender") -> लिंग | K4: =IF('Master sheet'!D11="Hindi","वर्ग ","Category") -> वर्ग | L4: =IF('Master sheet'!$D$11="Hindi","प्रथम परख ","First Test") -> प्रथम परख | N4: =IF('Master sheet'!$D$11="Hindi","द्वितीय परख","Second Test") -> द्वितीय परख | P4: =IF('Master sheet'!$D$11="Hindi","तृतीय परख","Third Test") -> तृतीय परख | R4: =IF('Master sheet'!$D$11="Hindi","अर्द्धवार्षिक","Half Yearly") -> अर्द्धवार्षिक | T4: =IF('Master sheet'!$D$11="Hindi","वार्षिक","Yearly") -> वार्षिक | V4: =IF('Master sheet'!$D$11="Hindi","प्रथम परख ","First Test") -> प्रथम परख | X4: =IF('Master sheet'!$D$11="Hindi","द्वितीय परख","Second Test") -> द्वितीय परख | Z4: =IF('Master sheet'!$D$11="Hindi","तृतीय परख","Third Test") -> तृतीय परख | AB4: =IF('Master sheet'!$D$11="Hindi","अर्द्धवार्षिक","Half Yearly") -> अर्द्धवार्षिक | AD4: =IF('Master sheet'!$D$11="Hindi","वार्षिक","Yearly") -> वार्षिक | AG4: =IF('Master sheet'!$D$11="Hindi","प्रथम परख ","First Test") -> प्रथम परख | AI4: =IF('Master sheet'!$D$11="Hindi","द्वितीय परख","Second Test") -> द्वितीय परख | AK4: =IF('Master sheet'!$D$11="Hindi","तृतीय परख","Third Test") -> तृतीय परख | AM4: =IF('Master sheet'!$D$11="Hindi","अर्द्धवार्षिक","Half Yearly") -> अर्द्धवार्षिक | AO4: =IF('Master sheet'!$D$11="Hindi","वार्षिक","Yearly") -> वार्षिक | AQ4: =IF('Master sheet'!$D$11="Hindi","प्रथम परख ","First Test") -> प्रथम परख | AS4: =IF('Master sheet'!$D$11="Hindi","द्वितीय परख","Second Test") -> द्वितीय परख | AU4: =IF('Master sheet'!$D$11="Hindi","तृतीय परख","Third Test") -> तृतीय परख | AW4: =IF('Master sheet'!$D$11="Hindi","अर्द्धवार्षिक","Half Yearly") -> अर्द्धवार्षिक | AY4: =IF('Master sheet'!$D$11="Hindi","वार्षिक","Yearly") -> वार्षिक | BA4: =IF('Master sheet'!$D$11="Hindi","प्रथम परख ","First Test") -> प्रथम परख | BC4: =IF('Master sheet'!$D$11="Hindi","द्वितीय परख","Second Test") -> द्वितीय परख | BE4: =IF('Master sheet'!$D$11="Hindi","तृतीय परख","Third Test") -> तृतीय परख | BG4: =IF('Master sheet'!$D$11="Hindi","अर्द्धवार्षिक","Half Yearly") -> अर्द्धवार्षिक | BI4: =IF('Master sheet'!$D$11="Hindi","वार्षिक","Yearly") -> वार्षिक | BK4: =IF('Master sheet'!$D$11="Hindi","प्रथम परख ","First Test") -> प्रथम परख | BM4: =IF('Master sheet'!$D$11="Hindi","द्वितीय परख","Second Test") -> द्वितीय परख | BO4: =IF('Master sheet'!$D$11="Hindi","तृतीय परख","Third Test") -> तृतीय परख | BQ4: =IF('Master sheet'!$D$11="Hindi","अर्द्धवार्षिक","Half Yearly") -> अर्द्धवार्षिक | BS4: =IF('Master sheet'!$D$11="Hindi","वार्षिक","Yearly") -> वार्षिक | BU4: Yogendra | BZ4: Prakash chand | CE4: Lalit Kumar | CJ4: =UPPER('Master sheet'!H12) -> SAMPAT RAJ | CL4: =UPPER('Master sheet'!H13) -> PUSHPENDRA | CN4: =IF('Master sheet'!$D$11="Hindi","कुल कार्य दिवस","Total Meeting") -> कुल कार्य दिवस | CO4: =IF('Master sheet'!$D$11="Hindi","कुल उपस्थिति","Total Attendance") -> कुल उपस्थिति
L5: =IF('Master sheet'!$D$11="Hindi","लिखित परीक्षा","Written") -> लिखित परीक्षा | M5: =IF('Master sheet'!$D$11="Hindi","गतिविधि, मौखिक, प्रोजेक्ट, प्रायोगिक","Act, Oral, Project, Prac.") -> गतिविधि, मौखिक, प्रोजेक्ट, प्रायोगिक | N5: =IF('Master sheet'!$D$11="Hindi","लिखित परीक्षा","Written") -> लिखित परीक्षा | O5: =IF('Master sheet'!$D$11="Hindi","गतिविधि, मौखिक, प्रोजेक्ट, प्रायोगिक","Act, Oral, Project, Prac.") -> गतिविधि, मौखिक, प्रोजेक्ट, प्रायोगिक | P5: =IF('Master sheet'!$D$11="Hindi","लिखित परीक्षा","Written") -> लिखित परीक्षा | Q5: =IF('Master sheet'!$D$11="Hindi","गतिविधि, मौखिक, प्रोजेक्ट, प्रायोगिक","Act, Oral, Project, Prac.") -> गतिविधि, मौखिक, प्रोजेक्ट, प्रायोगिक | R5: =IF('Master sheet'!$D$11="Hindi","लिखित परीक्षा","Written") -> लिखित परीक्षा | S5: =IF('Master sheet'!$D$11="Hindi","गतिविधि, मौखिक, प्रोजेक्ट, प्रायोगिक","Act, Oral, Project, Prac.") -> गतिविधि, मौखिक, प्रोजेक्ट, प्रायोगिक | T5: =IF('Master sheet'!$D$11="Hindi","लिखित परीक्षा","Written") -> लिखित परीक्षा | U5: =IF('Master sheet'!$D$11="Hindi","गतिविधि, मौखिक, प्रोजेक्ट, प्रायोगिक","Act, Oral, Project, Prac.") -> गतिविधि, मौखिक, प्रोजेक्ट, प्रायोगिक | V5: =IF('Master sheet'!$D$11="Hindi","लिखित परीक्षा","Written") -> लिखित परीक्षा | W5: =IF('Master sheet'!$D$11="Hindi","गतिविधि, मौखिक, प्रोजेक्ट, प्रायोगिक","Act, Oral, Project, Prac.") -> गतिविधि, मौखिक, प्रोजेक्ट, प्रायोगिक | X5: =IF('Master sheet'!$D$11="Hindi","लिखित परीक्षा","Written") -> लिखित परीक्षा | Y5: =IF('Master sheet'!$D$11="Hindi","गतिविधि, मौखिक, प्रोजेक्ट, प्रायोगिक","Act, Oral, Project, Prac.") -> गतिविधि, मौखिक, प्रोजेक्ट, प्रायोगिक | Z5: =IF('Master sheet'!$D$11="Hindi","लिखित परीक्षा","Written") -> लिखित परीक्षा | AA5: =IF('Master sheet'!$D$11="Hindi","गतिविधि, मौखिक, प्रोजेक्ट, प्रायोगिक","Act, Oral, Project, Prac.") -> गतिविधि, मौखिक, प्रोजेक्ट, प्रायोगिक | AB5: =IF('Master sheet'!$D$11="Hindi","लिखित परीक्षा","Written") -> लिखित परीक्षा | AC5: =IF('Master sheet'!$D$11="Hindi","गतिविधि, मौखिक, प्रोजेक्ट, प्रायोगिक","Act, Oral, Project, Prac.") -> गतिविधि, मौखिक, प्रोजेक्ट, प्रायोगिक | AD5: =IF('Master sheet'!$D$11="Hindi","लिखित परीक्षा","Written") -> लिखित परीक्षा | AE5: =IF('Master sheet'!$D$11="Hindi","गतिविधि, मौखिक, प्रोजेक्ट, प्रायोगिक","Act, Oral, Project, Prac.") -> गतिविधि, मौखिक, प्रोजेक्ट, प्रायोगिक | AG5: =IF('Master sheet'!$D$11="Hindi","लिखित परीक्षा","Written") -> लिखित परीक्षा | AH5: =IF('Master sheet'!$D$11="Hindi","गतिविधि, मौखिक, प्रोजेक्ट, प्रायोगिक","Act, Oral, Project, Prac.") -> गतिविधि, मौखिक, प्रोजेक्ट, प्रायोगिक | AI5: =IF('Master sheet'!$D$11="Hindi","लिखित परीक्षा","Written") -> लिखित परीक्षा | AJ5: =IF('Master sheet'!$D$11="Hindi","गतिविधि, मौखिक, प्रोजेक्ट, प्रायोगिक","Act, Oral, Project, Prac.") -> गतिविधि, मौखिक, प्रोजेक्ट, प्रायोगिक | AK5: =IF('Master sheet'!$D$11="Hindi","लिखित परीक्षा","Written") -> लिखित परीक्षा | AL5: =IF('Master sheet'!$D$11="Hindi","गतिविधि, मौखिक, प्रोजेक्ट, प्रायोगिक","Act, Oral, Project, Prac.") -> गतिविधि, मौखिक, प्रोजेक्ट, प्रायोगिक | AM5: =IF('Master sheet'!$D$11="Hindi","लिखित परीक्षा","Written") -> लिखित परीक्षा | AN5: =IF('Master sheet'!$D$11="Hindi","गतिविधि, मौखिक, प्रोजेक्ट, प्रायोगिक","Act, Oral, Project, Prac.") -> गतिविधि, मौखिक, प्रोजेक्ट, प्रायोगिक | AO5: =IF('Master sheet'!$D$11="Hindi","लिखित परीक्षा","Written") -> लिखित परीक्षा | AP5: =IF('Master sheet'!$D$11="Hindi","गतिविधि, मौखिक, प्रोजेक्ट, प्रायोगिक","Act, Oral, Project, Prac.") -> गतिविधि, मौखिक, प्रोजेक्ट, प्रायोगिक | AQ5: =IF('Master sheet'!$D$11="Hindi","लिखित परीक्षा","Written") -> लिखित परीक्षा | AR5: =IF('Master sheet'!$D$11="Hindi","गतिविधि, मौखिक, प्रोजेक्ट, प्रायोगिक","Act, Oral, Project, Prac.") -> गतिविधि, मौखिक, प्रोजेक्ट, प्रायोगिक | AS5: =IF('Master sheet'!$D$11="Hindi","लिखित परीक्षा","Written") -> लिखित परीक्षा | AT5: =IF('Master sheet'!$D$11="Hindi","गतिविधि, मौखिक, प्रोजेक्ट, प्रायोगिक","Act, Oral, Project, Prac.") -> गतिविधि, मौखिक, प्रोजेक्ट, प्रायोगिक | AU5: =IF('Master sheet'!$D$11="Hindi","लिखित परीक्षा","Written") -> लिखित परीक्षा | AV5: =IF('Master sheet'!$D$11="Hindi","गतिविधि, मौखिक, प्रोजेक्ट, प्रायोगिक","Act, Oral, Project, Prac.") -> गतिविधि, मौखिक, प्रोजेक्ट, प्रायोगिक | AW5: =IF('Master sheet'!$D$11="Hindi","लिखित परीक्षा","Written") -> लिखित परीक्षा | AX5: =IF('Master sheet'!$D$11="Hindi","गतिविधि, मौखिक, प्रोजेक्ट, प्रायोगिक","Act, Oral, Project, Prac.") -> गतिविधि, मौखिक, प्रोजेक्ट, प्रायोगिक | AY5: =IF('Master sheet'!$D$11="Hindi","लिखित परीक्षा","Written") -> लिखित परीक्षा | AZ5: =IF('Master sheet'!$D$11="Hindi","गतिविधि, मौखिक, प्रोजेक्ट, प्रायोगिक","Act, Oral, Project, Prac.") -> गतिविधि, मौखिक, प्रोजेक्ट, प्रायोगिक | BA5: =IF('Master sheet'!$D$11="Hindi","लिखित परीक्षा","Written") -> लिखित परीक्षा | BB5: =IF('Master sheet'!$D$11="Hindi","गतिविधि, मौखिक, प्रोजेक्ट, प्रायोगिक","Act, Oral, Project, Prac.") -> गतिविधि, मौखिक, प्रोजेक्ट, प्रायोगिक | BC5: =IF('Master sheet'!$D$11="Hindi","लिखित परीक्षा","Written") -> लिखित परीक्षा | BD5: =IF('Master sheet'!$D$11="Hindi","गतिविधि, मौखिक, प्रोजेक्ट, प्रायोगिक","Act, Oral, Project, Prac.") -> गतिविधि, मौखिक, प्रोजेक्ट, प्रायोगिक | BE5: =IF('Master sheet'!$D$11="Hindi","लिखित परीक्षा","Written") -> लिखित परीक्षा | BF5: =IF('Master sheet'!$D$11="Hindi","गतिविधि, मौखिक, प्रोजेक्ट, प्रायोगिक","Act, Oral, Project, Prac.") -> गतिविधि, मौखिक, प्रोजेक्ट, प्रायोगिक | BG5: =IF('Master sheet'!$D$11="Hindi","लिखित परीक्षा","Written") -> लिखित परीक्षा | BH5: =IF('Master sheet'!$D$11="Hindi","गतिविधि, मौखिक, प्रोजेक्ट, प्रायोगिक","Act, Oral, Project, Prac.") -> गतिविधि, मौखिक, प्रोजेक्ट, प्रायोगिक | BI5: =IF('Master sheet'!$D$11="Hindi","लिखित परीक्षा","Written") -> लिखित परीक्षा | BJ5: =IF('Master sheet'!$D$11="Hindi","गतिविधि, मौखिक, प्रोजेक्ट, प्रायोगिक","Act, Oral, Project, Prac.") -> गतिविधि, मौखिक, प्रोजेक्ट, प्रायोगिक | BK5: =IF('Master sheet'!$D$11="Hindi","लिखित परीक्षा","Written") -> लिखित परीक्षा | BL5: =IF('Master sheet'!$D$11="Hindi","गतिविधि, मौखिक, प्रोजेक्ट, प्रायोगिक","Act, Oral, Project, Prac.") -> गतिविधि, मौखिक, प्रोजेक्ट, प्रायोगिक | BM5: =IF('Master sheet'!$D$11="Hindi","लिखित परीक्षा","Written") -> लिखित परीक्षा | BN5: =IF('Master sheet'!$D$11="Hindi","गतिविधि, मौखिक, प्रोजेक्ट, प्रायोगिक","Act, Oral, Project, Prac.") -> गतिविधि, मौखिक, प्रोजेक्ट, प्रायोगिक | BO5: =IF('Master sheet'!$D$11="Hindi","लिखित परीक्षा","Written") -> लिखित परीक्षा | BP5: =IF('Master sheet'!$D$11="Hindi","गतिविधि, मौखिक, प्रोजेक्ट, प्रायोगिक","Act, Oral, Project, Prac.") -> गतिविधि, मौखिक, प्रोजेक्ट, प्रायोगिक | BQ5: =IF('Master sheet'!$D$11="Hindi","लिखित परीक्षा","Written") -> लिखित परीक्षा | BR5: =IF('Master sheet'!$D$11="Hindi","गतिविधि, मौखिक, प्रोजेक्ट, प्रायोगिक","Act, Oral, Project, Prac.") -> गतिविधि, मौखिक, प्रोजेक्ट, प्रायोगिक | BS5: =IF('Master sheet'!$D$11="Hindi","लिखित परीक्षा","Written") -> लिखित परीक्षा | BT5: =IF('Master sheet'!$D$11="Hindi","गतिविधि, मौखिक, प्रोजेक्ट, प्रायोगिक","Act, Oral, Project, Prac.") -> गतिविधि, मौखिक, प्रोजेक्ट, प्रायोगिक | BU5: =IF('Master sheet'!$D$11="Hindi","प्रथम मूल्यांकन","1st Assessment") -> प्रथम मूल्यांकन | BV5: =IF('Master sheet'!$D$11="Hindi","द्वितीय मूल्यांकन","2nd Assessment") -> द्वितीय मूल्यांकन | BW5: =IF('Master sheet'!$D$11="Hindi","तृतीय मूल्यांकन","3rd Assessment") -> तृतीय मूल्यांकन | BX5: =IF('Master sheet'!$D$11="Hindi","चतुर्थ मूल्यांकन","4th Assessment") -> चतुर्थ मूल्यांकन | BY5: =IF('Master sheet'!$D$11="Hindi","पंचम मूल्यांकन","5th Assessment") -> पंचम मूल्यांकन | BZ5: =IF('Master sheet'!$D$11="Hindi","प्रथम मूल्यांकन","1st Assessment") -> प्रथम मूल्यांकन | CA5: =IF('Master sheet'!$D$11="Hindi","द्वितीय मूल्यांकन","2nd Assessment") -> द्वितीय मूल्यांकन | CB5: =IF('Master sheet'!$D$11="Hindi","तृतीय मूल्यांकन","3rd Assessment") -> तृतीय मूल्यांकन | CC5: =IF('Master sheet'!$D$11="Hindi","चतुर्थ मूल्यांकन","4th Assessment") -> चतुर्थ मूल्यांकन | CD5: =IF('Master sheet'!$D$11="Hindi","पंचम मूल्यांकन","5th Assessment") -> पंचम मूल्यांकन | CE5: =IF('Master sheet'!$D$11="Hindi","प्रथम मूल्यांकन","1st Assessment") -> प्रथम मूल्यांकन | CF5: =IF('Master sheet'!$D$11="Hindi","द्वितीय मूल्यांकन","2nd Assessment") -> द्वितीय मूल्यांकन | CG5: =IF('Master sheet'!$D$11="Hindi","तृतीय मूल्यांकन","3rd Assessment") -> तृतीय मूल्यांकन | CH5: =IF('Master sheet'!$D$11="Hindi","चतुर्थ मूल्यांकन","4th Assessment") -> चतुर्थ मूल्यांकन | CI5: =IF('Master sheet'!$D$11="Hindi","पंचम मूल्यांकन","5th Assessment") -> पंचम मूल्यांकन | CJ5: =IF('Master sheet'!$D$11="Hindi","अर्द्धवार्षिक","Half Yearly") -> अर्द्धवार्षिक | CK5: =IF('Master sheet'!$D$11="Hindi","वार्षिक","Yearly") -> वार्षिक | CL5: =IF('Master sheet'!$D$11="Hindi","अर्द्धवार्षिक","Half Yearly") -> अर्द्धवार्षिक | CM5: =IF('Master sheet'!$D$11="Hindi","वार्षिक","Yearly") -> वार्षिक
L6: 5 | M6: 5 | N6: 5 | O6: 5 | P6: 5 | Q6: 5 | R6: 50 | S6: 20 | T6: 70 | U6: 30 | V6: 5 | W6: 5 | X6: 5 | Y6: 5 | Z6: 5 | AA6: 5 | AB6: 50 | AC6: 20 | AD6: 70 | AE6: 30 | AG6: 5 | AH6: 5 | AI6: 5 | AJ6: 5 | AK6: 5 | AL6: 5 | AM6: 50 | AN6: 20 | AO6: 70 | AP6: 30 | AQ6: 5 | AR6: 5 | AS6: 5 | AT6: 5 | AU6: 5 | AV6: 5 | AW6: 50 | AX6: 20 | AY6: 70 | AZ6: 30 | BA6: 5 | BB6: 5 | BC6: 5 | BD6: 5 | BE6: 5 | BF6: 5 | BG6: 50 | BH6: 20 | BI6: 70 | BJ6: 30 | BK6: 5 | BL6: 5 | BM6: 5 | BN6: 5 | BO6: 5 | BP6: 5 | BQ6: 50 | BR6: 20 | BS6: 70 | BT6: 30 | BU6: 20 | BV6: 20 | BW6: 20 | BX6: 20 | BY6: 20 | BZ6: 20 | CA6: 20 | CB6: 20 | CC6: 20 | CD6: 20 | CE6: 20 | CF6: 20 | CG6: 20 | CH6: 20 | CI6: 20 | CJ6: 50 | CK6: 50 | CL6: 50 | CM6: 50 | CN6: 350 | CQ6: परम पूज्य गुरूदेव वासुदेव जी महाराज
A7: 1 | B7: 6 | C7: A | D7: 936 | E7: 2014-10-28 | F7: AAKIFA BANO | G7: SHABBIR MOHAMMAD | H7: HEENA KOUSER | I7: 601 | J7: F | K7: OBC | L7: 4 | M7: 4 | N7: 4 | O7: 4 | P7: 4 | Q7: 4 | R7: 39 | S7: 10 | T7: 56 | U7: 25 | V7: 1 | W7: 2 | X7: 4 | Y7: 3 | Z7: 4 | AA7: 4 | AB7: 39 | AC7: 11 | AD7: 50 | AE7: 10 | AF7: संस्कृत (71) | AG7: 2 | AH7: 3 | AI7: 4 | AJ7: 5 | AK7: 5 | AL7: 5 | AM7: 10 | AN7: 21 | AO7: 16 | AP7: 10 | AQ7: 3 | AR7: 3 | AS7: 3 | AT7: 3 | AU7: 3 | AV7: 3 | AW7: 31 | AX7: 10 | AY7: 31 | AZ7: 4 | BA7: 5 | BB7: 5 | BC7: 5 | BD7: 5 | BE7: 5 | BF7: 3 | BG7: 22 | BH7: 8 | BI7: 45 | BJ7: 4 | BK7: 2 | BL7: 2 | BM7: 2 | BN7: 2 | BO7: 5 | BP7: 5 | BQ7: 10 | BR7: 10 | BS7: 62 | BT7: 17 | BU7: 15 | BV7: 18 | BW7: 17 | BX7: 19 | BY7: 16 | BZ7: 11 | CA7: 20 | CB7: 16 | CC7: 14 | CD7: 20 | CE7: 19 | CF7: 18 | CG7: 17 | CH7: 16 | CI7: 20 | CJ7: 45 | CK7: 36 | CL7: 45 | CM7: 41 | CN7: 220 | CO7: 170
A8: 2 | B8: 6 | C8: A | D8: 944 | E8: 2015-01-01 | F8: ANUJ GIRI | G8: BHAGWAT GIRI | H8: KANTA DEVI | I8: 602 | J8: M | K8: OBC | L8: 3 | M8: 3 | N8: 3 | O8: 4 | P8: 4 | Q8: 4 | R8: 37 | S8: 11 | T8: 57 | U8: 22 | V8: 2 | W8: 2 | X8: 4 | Y8: 3 | Z8: 3 | AA8: 3 | AB8: 37 | AC8: 12 | AD8: 37 | AE8: 9 | AF8: संस्कृत (71) | AG8: AB | AH8: AB | AI8: 5 | AJ8: 5 | AK8: 5 | AL8: 5 | AM8: 12 | AN8: 41 | AO8: 25 | AP8: 9 | AQ8: 4 | AR8: 4 | AS8: 4 | AT8: 4 | AU8: 5 | AV8: 5 | AW8: 31 | AX8: 11 | AY8: 31 | AZ8: 4 | BA8: 3 | BB8: 3 | BC8: 3 | BD8: 3 | BE8: 3 | BF8: 5 | BG8: 14 | BH8: 9 | BI8: 14 | BJ8: 4 | BK8: 4 | BL8: 4 | BM8: 4 | BN8: 4 | BO8: 4 | BP8: 3 | BQ8: 35 | BR8: 11 | BS8: 66 | BT8: 18 | BU8: 19 | BV8: 18 | BW8: 17 | BX8: 19 | BY8: 16 | BZ8: 11 | CA8: 19 | CB8: 16 | CC8: 15 | CD8: 20 | CE8: 19 | CF8: 18 | CG8: 17 | CH8: 16 | CI8: 20 | CJ8: 30 | CK8: 32 | CL8: 40 | CM8: 41 | CN8: 220 | CO8: 168 | CQ8: https://youtu.be/SrOW86gd-HE
A9: 3 | B9: 6 | C9: A | D9: 934 | E9: 2015-12-10 | F9: ARMAN HUSSAIN | G9: AARIF HUSSAIN | H9: SALMA BANO | I9: 603 | J9: M | K9: OBC | L9: 3 | M9: 3 | N9: 3 | O9: 4 | P9: 4 | Q9: 4 | R9: 37 | S9: 11 | T9: 57 | U9: 22 | V9: 3 | W9: 2 | X9: 5 | Y9: 3 | Z9: 3 | AA9: 3 | AB9: 40 | AC9: 11 | AD9: 37 | AE9: 8 | AF9: उर्दू (72) | AG9: 3 | AH9: 3 | AI9: 5 | AJ9: 5 | AK9: 5 | AL9: 5 | AM9: 11 | AN9: 55 | AO9: 30 | AP9: 8 | AQ9: 4 | AR9: 4 | AS9: 4 | AT9: 4 | AU9: 5 | AV9: 5 | AW9: 31 | AX9: 12 | AY9: 55 | AZ9: 8 | BA9: 3 | BB9: 3 | BC9: 3 | BD9: 3 | BE9: 3 | BF9: 5 | BG9: 23 | BH9: 10 | BI9: 58 | BJ9: 18 | BK9: 4 | BL9: 4 | BM9: 4 | BN9: 4 | BO9: 4 | BP9: 3 | BQ9: 35 | BR9: 12 | BS9: 66 | BT9: 18 | BU9: 19 | BV9: 18 | BW9: 17 | BX9: 19 | BY9: 15 | BZ9: 11 | CA9: 19 | CB9: 16 | CC9: 15 | CD9: 20 | CE9: 19 | CF9: 18 | CG9: 17 | CH9: 16 | CI9: 20 | CJ9: 41 | CK9: 42 | CL9: 43 | CM9: 44 | CN9: 360 | CO9: 160
A10: 4 | B10: 6 | C10: A | D10: 926 | E10: 2016-05-01 | F10: ARMAN SHAH | G10: JAKIR SHAH | H10: HEENA BANU | I10: 604 | J10: M | K10: OBC | L10: 3 | M10: 3 | N10: 3 | O10: 4 | P10: 4 | Q10: 4 | R10: 37 | S10: 11 | T10: 57 | U10: 22 | V10: 4 | W10: 2 | X10: AB | Y10: 3 | Z10: 3 | AA10: 3 | AB10: 41 | AC10: 10 | AD10: 37 | AE10: 7 | AF10: गुजराती (73) | AG10: 3 | AH10: 3 | AI10: 5 | AJ10: 5 | AK10: 5 | AL10: 5 | AM10: 11 | AN10: 55 | AO10: 36 | AP10: 6 | AQ10: 4 | AR10: 4 | AS10: 4 | AT10: 4 | AU10: 5 | AV10: 5 | AW10: 31 | AX10: 10 | AY10: 55 | AZ10: 8 | BA10: 3 | BB10: 3 | BC10: 3 | BD10: 3 | BE10: 3 | BF10: 5 | BG10: 25 | BH10: 11 | BI10: 58 | BJ10: 17 | BK10: 4 | BL10: 4 | BM10: 4 | BN10: 4 | BO10: 4 | BP10: 3 | BQ10: 35 | BR10: 10 | BS10: 66 | BT10: 18 | BU10: 19 | BV10: 18 | BW10: 17 | BX10: 19 | BY10: 14 | BZ10: 11 | CA10: 19 | CB10: 16 | CC10: 15 | CD10: 18 | CE10: 19 | CF10: 18 | CG10: 17 | CH10: 16 | CI10: 20 | CJ10: 48 | CK10: 47 | CL10: 46 | CM10: 45 | CN10: 220 | CO10: 188 | CQ10: Presented By :-
A11: 5 | B11: 6 | C11: A | D11: 951 | E11: 25-08-2015 | F11: BHAVYANSH SINGH CHOUHAN | G11: AJIT SINGH | H11: MEENA | I11: 605 | J11: M | K11: GEN | L11: 3 | M11: 3 | N11: 3 | O11: 4 | P11: 4 | Q11: 4 | R11: 37 | S11: 11 | T11: 57 | U11: 22 | V11: 5 | W11: 5 | X11: 4 | Y11: 3 | Z11: 3 | AA11: 3 | AB11: 40 | AC11: 10 | AD11: 37 | AE11: 6 | AF11: सिंधी (74) | AG11: ML | AH11: 3 | AI11: 5 | AJ11: 5 | AK11: 5 | AL11: 5 | AM11: 10 | AN11: 55 | AO11: 39 | AP11: 8 | AQ11: 4 | AR11: 4 | AS11: 4 | AT11: 4 | AU11: 5 | AV11: 5 | AW11: 31 | AX11: 8 | AY11: 55 | AZ11: 8 | BA11: 3 | BB11: 3 | BC11: 3 | BD11: 3 | BE11: 3 | BF11: 5 | BG11: 26 | BH11: 11 | BI11: 58 | BJ11: 16 | BK11: 4 | BL11: 4 | BM11: 4 | BN11: 4 | BO11: 4 | BP11: 3 | BQ11: 35 | BR11: 10 | BS11: 66 | BT11: 18 | BU11: 19 | BV11: 18 | BW11: 17 | BX11: 19 | BY11: 20 | BZ11: 11 | CA11: 19 | CB11: 16 | CC11: 15 | CD11: 18 | CE11: 19 | CF11: 18 | CG11: 17 | CH11: 16 | CI11: 20 | CJ11: 31 | CK11: 32 | CL11: 33 | CM11: 34 | CN11: 330 | CO11: 320
A12: 6 | B12: 6 | C12: A | D12: 939 | E12: 16-06-2014 | F12: BHUMIKA BAGRI | G12: MUKESH BAGRI | H12: SEEMA BAGRI | I12: 606 | J12: F | K12: OBC | L12: 3 | M12: 3 | N12: 3 | O12: 4 | P12: 4 | Q12: 4 | R12: 37 | S12: 11 | T12: 57 | U12: 22 | V12: 4 | W12: 5 | X12: 4 | Y12: 5 | Z12: 3 | AA12: 3 | AB12: 33 | AC12: 11 | AD12: 37 | AE12: 9 | AF12: पंजाबी (75) | AG12: 4 | AH12: 3 | AI12: 5 | AJ12: 5 | AK12: 5 | AL12: 5 | AM12: 10 | AN12: 55 | AO12: 40 | AP12: 8 | AQ12: 4 | AR12: 4 | AS12: 4 | AT12: 4 | AU12: 5 | AV12: 5 | AW12: 31 | AX12: 9 | AY12: 55 | AZ12: 8 | BA12: 3 | BB12: 3 | BC12: 3 | BD12: 3 | BE12: 3 | BF12: 5 | BG12: 28 | BH12: 11 | BI12: 58 | BJ12: 16 | BK12: 4 | BL12: 4 | BM12: 4 | BN12: 4 | BO12: 4 | BP12: 3 | BQ12: 35 | BR12: 10 | BS12: 66 | BT12: 18 | BU12: 19 | BV12: 18 | BW12: 17 | BX12: 19 | BY12: 20 | BZ12: 12 | CA12: 19 | CB12: 16 | CC12: 15 | CD12: 18 | CE12: 19 | CF12: 18 | CG12: 17 | CH12: 16 | CI12: 20 | CQ12: HEERA LAL JAT
A13: 7 | B13: 6 | C13: A | D13: 942 | E13: 28-09-2015 | F13: DAKSH PRAJAPAT | G13: PRAKASH PRAJAPAT | H13: REKHA PRAJAPATI | I13: 607 | J13: M | K13: OBC | L13: 3 | M13: 3 | N13: 3 | O13: 4 | P13: 4 | Q13: 4 | R13: 37 | S13: 11 | T13: 57 | U13: 22 | V13: 4 | W13: 4 | X13: 4 | Y13: 4 | Z13: 4 | AA13: 4 | AB13: 36 | AC13: 12 | AD13: 57 | AE13: 27 | AF13: संस्कृत (71) | AG13: 4 | AH13: 3 | AI13: 5 | AJ13: 5 | AK13: 5 | AL13: 5 | AM13: 10 | AN13: 55 | AO13: 45 | AP13: 8 | AQ13: 4 | AR13: 4 | AS13: 4 | AT13: 4 | AU13: 5 | AV13: 5 | AW13: 31 | AX13: 10 | AY13: 55 | AZ13: 8 | BA13: 3 | BB13: 3 | BC13: 3 | BD13: 3 | BE13: 3 | BF13: 5 | BG13: 27 | BH13: 11 | BI13: 58 | BJ13: 16 | BK13: 4 | BL13: 4 | BM13: 4 | BN13: 4 | BO13: 4 | BP13: 3 | BQ13: 35 | BR13: 10 | BS13: 66 | BT13: 18 | BU13: 19 | BV13: 18 | BW13: 17 | BX13: 19 | BY13: 18 | BZ13: 13 | CA13: 19 | CB13: 16 | CC13: 15 | CD13: 18 | CE13: 19 | CF13: 18 | CG13: 17 | CH13: 16 | CI13: 20
A14: 8 | B14: 6 | C14: A | D14: 925 | E14: 26-10-2015 | F14: DIVYA BAGRI | G14: MUKESH | H14: SEEMA | I14: 608 | J14: F | K14: OBC | L14: 3 | M14: 3 | N14: 3 | O14: 4 | P14: 4 | Q14: 4 | R14: 37 | S14: 11 | T14: 57 | U14: 22 | V14: 4 | W14: 4 | X14: 4 | Y14: 4 | Z14: 4 | AA14: 4 | AB14: 8 | AC14: 10 | AD14: 37 | AE14: 7 | AF14: संस्कृत (71) | AG14: 4 | AH14: 3 | AI14: 5 | AJ14: 5 | AK14: 5 | AL14: 5 | AM14: 10 | AN14: 55 | AO14: 65 | AP14: 8 | AQ14: 4 | AR14: 4 | AS14: 4 | AT14: 4 | AU14: 5 | AV14: 5 | AW14: 31 | AX14: 11 | AY14: 55 | AZ14: 8 | BA14: 3 | BB14: 3 | BC14: 3 | BD14: 3 | BE14: 3 | BF14: 5 | BG14: 29 | BH14: 11 | BI14: 58 | BJ14: 16 | BK14: 4 | BL14: 4 | BM14: 4 | BN14: 4 | BO14: 4 | BP14: 3 | BQ14: 35 | BR14: 10 | BS14: 66 | BT14: 18 | BU14: 19 | BV14: 18 | BW14: 17 | BX14: 19 | BY14: 19 | BZ14: 13 | CA14: 19 | CB14: 16 | CC14: 15 | CD14: 18 | CE14: 19 | CF14: 18 | CG14: 17 | CH14: 16 | CI14: 20 | CQ14: Sr. Teacher at MGGS BAR (PALI)
A15: 9 | B15: 6 | C15: A | D15: 952 | E15: 2015-02-12 | F15: DUSHYANT DAYAMA | G15: BASANT KUMAR DAYAMA | H15: PUSHPA DAYAMA | I15: 609 | J15: M | K15: SC | L15: 3 | M15: 3 | N15: 3 | O15: 4 | P15: 4 | Q15: 4 | R15: 37 | S15: 11 | T15: 57 | U15: 22 | V15: 4 | W15: 4 | X15: 4 | Y15: 4 | Z15: 4 | AA15: 4 | AB15: 9 | AC15: 9 | AD15: 37 | AE15: 9 | AF15: संस्कृत (71) | AG15: 4 | AH15: 3 | AI15: 5 | AJ15: 5 | AK15: 5 | AL15: 5 | AM15: 10 | AN15: 55 | AO15: 64 | AP15: 8 | AQ15: 4 | AR15: 4 | AS15: 4 | AT15: 4 | AU15: 5 | AV15: 5 | AW15: 31 | AX15: 9 | AY15: 55 | AZ15: 8 | BA15: 3 | BB15: 3 | BC15: 3 | BD15: 3 | BE15: 3 | BF15: 5 | BG15: 30 | BH15: 11 | BI15: 58 | BJ15: 16 | BK15: 4 | BL15: 4 | BM15: 4 | BN15: 4 | BO15: 4 | BP15: 3 | BQ15: 35 | BR15: 10 | BS15: 66 | BT15: 18 | BU15: 19 | BV15: 18 | BW15: 17 | BX15: 19 | BY15: 19 | BZ15: 14 | CA15: 19 | CB15: 16 | CC15: 15 | CD15: 18 | CE15: 19 | CF15: 18 | CG15: 17 | CH15: 16 | CI15: 20
A16: 10 | B16: 6 | C16: A | D16: 931 | E16: 23-10-2015 | F16: GUNEET CHOUHAN | G16: KAILASH CHOUHAN | H16: PUSHPA DEVI | I16: 610 | J16: M | K16: OBC | L16: 3 | M16: 3 | N16: 3 | O16: 4 | P16: 4 | Q16: 4 | R16: 37 | S16: 11 | T16: 57 | U16: 22 | V16: 4 | W16: 4 | X16: 4 | Y16: 4 | Z16: 4 | AA16: 4 | AB16: 10 | AC16: 8 | AD16: 45 | AE16: 8 | AF16: संस्कृत (71) | AG16: 4 | AH16: 3 | AI16: 5 | AJ16: 5 | AK16: 5 | AL16: 5 | AM16: 10 | AN16: 55 | AO16: 58 | AP16: 8 | AQ16: 4 | AR16: 4 | AS16: 4 | AT16: 4 | AU16: 5 | AV16: 5 | AW16: ML | AX16: 9 | AY16: 55 | AZ16: 8 | BA16: 3 | BB16: 3 | BC16: 3 | BD16: 3 | BE16: 3 | BF16: 5 | BG16: 32 | BH16: 11 | BI16: 58 | BJ16: 16 | BK16: 4 | BL16: 4 | BM16: 4 | BN16: 4 | BO16: 4 | BP16: 3 | BQ16: 35 | BR16: 10 | BS16: 66 | BT16: 18 | BU16: 19 | BV16: 18 | BW16: 17 | BX16: 19 | BY16: 19 | BZ16: 15 | CA16: 19 | CB16: 16 | CC16: 15 | CD16: 18 | CE16: 19 | CF16: 18 | CG16: 17 | CH16: 16 | CI16: 20 | CQ16: V./P. - CHANDAWAL NAGAR , SOJAT (PALI)
A17: 11 | B17: 6 | C17: A | D17: 932 | E17: 2015-11-11 | F17: रमेश चन्द्र | G17: दिनेश चन्द्र | H17: चंद्रा | I17: 611 | J17: M | K17: GEN | L17: 3 | M17: 3 | N17: 3 | O17: 4 | P17: 4 | Q17: 4 | R17: 37 | S17: 11 | T17: 57 | U17: 22 | V17: 4 | W17: 4 | X17: 4 | Y17: 4 | Z17: 4 | AA17: 4 | AB17: 11 | AC17: 9 | AD17: 46 | AE17: 7 | AF17: संस्कृत (71) | AG17: 4 | AH17: 3 | AI17: 5 | AJ17: 5 | AK17: 5 | AL17: 5 | AM17: 10 | AN17: 55 | AO17: 54 | AP17: 9 | AQ17: 4 | AR17: 4 | AS17: 4 | AT17: 4 | AU17: 5 | AV17: 5 | AW17: AB | AX17: 9 | AY17: 55 | AZ17: 8 | BA17: 3 | BB17: 3 | BC17: 3 | BD17: 3 | BE17: 3 | BF17: 5 | BG17: 25 | BH17: 11 | BI17: 58 | BJ17: 16 | BK17: 4 | BL17: 4 | BM17: 4 | BN17: 4 | BO17: 4 | BP17: 3 | BQ17: 35 | BR17: 9 | BS17: 66 | BT17: 18 | BU17: 19 | BV17: 18 | BW17: 17 | BX17: 19 | BY17: 19 | BZ17: 15 | CA17: 19 | CB17: 16 | CC17: 15 | CD17: 18 | CE17: 19 | CF17: 18 | CG17: 17 | CH17: 16 | CI17: 20
A18: 12 | B18: 6 | C18: A | D18: 933 | E18: 2015-10-10 | F18: राहुल | G18: रोहित | H18: मोहिनी | I18: 612 | J18: M | K18: OBC | L18: 3 | M18: 3 | N18: 3 | O18: 4 | P18: 4 | Q18: 4 | R18: 37 | S18: 11 | T18: 57 | U18: 22 | V18: 4 | W18: 4 | X18: 4 | Y18: 4 | Z18: 4 | AA18: 4 | AB18: 19 | AC18: 10 | AD18: 47 | AE18: 10 | AF18: संस्कृत (71) | AG18: 4 | AH18: 3 | AI18: 5 | AJ18: 5 | AK18: 5 | AL18: 5 | AM18: 10 | AN18: 55 | AO18: 59 | AP18: 10 | AQ18: 4 | AR18: 4 | AS18: 4 | AT18: 4 | AU18: 5 | AV18: 5 | AW18: 30 | AX18: 9 | AY18: 55 | AZ18: 8 | BA18: 3 | BB18: 3 | BC18: 3 | BD18: 3 | BE18: 3 | BF18: 5 | BG18: 29 | BH18: 11 | BI18: 58 | BJ18: 16 | BK18: 4 | BL18: 4 | BM18: 4 | BN18: 4 | BO18: 4 | BP18: 3 | BQ18: 35 | BR18: 8 | BS18: 66 | BT18: 18 | BU18: 19 | BV18: 18 | BW18: 17 | BX18: 19 | BY18: 19 | BZ18: 15 | CA18: 19 | CB18: 16 | CC18: 15 | CD18: 18 | CE18: 19 | CF18: 18 | CG18: 17 | CH18: 16 | CI18: 20
A19: 13 | B19: 6 | C19: A | D19: 905 | E19: 2016-01-01 | F19: ram | G19: shyam | H19: sita | I19: NSO | J19: M | K19: SC | L19: 3 | M19: 3 | N19: 3 | O19: 4 | P19: 4 | Q19: 4 | R19: 37 | S19: 11 | T19: 57 | U19: 22 | V19: 4 | W19: 4 | X19: 4 | Y19: 4 | Z19: 4 | AA19: 4 | AB19: 18 | AC19: 9 | AD19: 48 | AE19: 9 | AF19: संस्कृत (71) | AG19: 4 | AH19: 3 | AI19: 5 | AJ19: 5 | AK19: 5 | AL19: 5 | AM19: 10 | AN19: 55 | AO19: 54 | AP19: 8 | AQ19: 4 | AR19: 4 | AS19: 4 | AT19: 4 | AU19: 5 | AV19: 5 | AW19: 31 | AX19: 9 | AY19: 55 | AZ19: 8 | BA19: 3 | BB19: 3 | BC19: 3 | BD19: 3 | BE19: 3 | BF19: 5 | BG19: 28 | BH19: 11 | BI19: 58 | BJ19: 16 | BK19: 4 | BL19: 4 | BM19: 4 | BN19: 4 | BO19: 4 | BP19: 3 | BQ19: 35 | BR19: 8 | BS19: 66 | BT19: 18 | BU19: 19 | BV19: 18 | BW19: 17 | BX19: 19 | BY19: 19 | BZ19: 15 | CA19: 19 | CB19: 16 | CC19: 15 | CD19: 18 | CE19: 19 | CF19: 18 | CG19: 17 | CH19: 16 | CI19: 20
A20: 14 | L20: 3 | M20: 3 | N20: 3 | O20: 4 | P20: 4 | Q20: 4 | R20: 37 | S20: 11 | T20: 57 | U20: 22 | V20: 4 | W20: 4 | X20: 4 | Y20: 4 | Z20: 4 | AA20: 4 | AB20: 25 | AC20: 8 | AD20: 49 | AE20: 8 | AF20: संस्कृत (71) | AG20: 4 | AH20: 3 | AI20: 5 | AJ20: 5 | AK20: 5 | AL20: 5 | AM20: 10 | AN20: 55 | AO20: 52 | AP20: 9 | AQ20: 4 | AR20: 4 | AS20: 4 | AT20: 4 | AU20: 5 | AV20: 5 | AW20: 32 | AX20: 9 | AY20: 55 | AZ20: 8 | BA20: 3 | BB20: 3 | BC20: 3 | BD20: 3 | BE20: 3 | BF20: 5 | BG20: 27 | BH20: 12 | BI20: 58 | BJ20: 16 | BK20: 4 | BL20: 4 | BM20: 4 | BN20: 4 | BO20: 4 | BP20: 3 | BQ20: 35 | BR20: 10 | BS20: 66 | BT20: 18
A21: 15 | L21: 3 | M21: 3 | N21: 3 | O21: 4 | P21: 4 | Q21: 4 | R21: 37 | S21: 11 | T21: 57 | U21: 22 | V21: 4 | W21: 4 | X21: 4 | Y21: 4 | Z21: 4 | AA21: 4 | AB21: 26 | AC21: 9 | AD21: 54 | AE21: 9 | AF21: संस्कृत (71) | AG21: 4 | AH21: 3 | AI21: 5 | AJ21: 5 | AK21: 5 | AL21: 5 | AM21: 12 | AN21: 55 | AO21: 56 | AP21: 9 | AQ21: 4 | AR21: 4 | AS21: 4 | AT21: 4 | AU21: 5 | AV21: 5 | AW21: 36 | AX21: 9 | AY21: 55 | AZ21: 8 | BA21: 3 | BB21: 3 | BC21: 3 | BD21: 3 | BE21: 3 | BF21: 5 | BG21: 24 | BH21: 12 | BI21: 58 | BJ21: 16 | BK21: 4 | BL21: 4 | BM21: 4 | BN21: 4 | BO21: 4 | BP21: 3 | BQ21: 35 | BR21: 12 | BS21: 66 | BT21: 18
A22: 16 | L22: 3 | M22: 3 | N22: 3 | O22: 4 | P22: 4 | Q22: 4 | R22: 37 | S22: 11 | T22: 57 | U22: 22 | V22: 4 | W22: 4 | X22: 4 | Y22: 4 | Z22: 4 | AA22: 4 | AB22: 28 | AC22: 9 | AD22: 56 | AE22: 8 | AF22: संस्कृत (71) | AG22: 4 | AH22: 3 | AI22: 5 | AJ22: 5 | AK22: 5 | AL22: 5 | AM22: 10 | AN22: 55 | AO22: 54 | AP22: 9 | AQ22: 4 | AR22: 4 | AS22: 4 | AT22: 4 | AU22: 5 | AV22: 5 | AW22: 39 | AX22: 9 | AY22: 55 | AZ22: 8 | BA22: 3 | BB22: 3 | BC22: 3 | BD22: 3 | BE22: 3 | BF22: 5 | BG22: 21 | BH22: 12 | BI22: 58 | BJ22: 16 | BK22: 4 | BL22: 4 | BM22: 4 | BN22: 4 | BO22: 4 | BP22: 3 | BQ22: 35 | BR22: 10 | BS22: 66 | BT22: 18
A23: 17 | L23: 3 | M23: 3 | N23: 3 | O23: 4 | P23: 4 | Q23: 4 | R23: 37 | S23: 11 | T23: 57 | U23: 22 | V23: 4 | W23: 4 | X23: 4 | Y23: 4 | Z23: 4 | AA23: 4 | AB23: 29 | AC23: 9 | AD23: 58 | AE23: 9 | AF23: संस्कृत (71) | AG23: 4 | AH23: 3 | AI23: 5 | AJ23: 5 | AK23: 5 | AL23: 5 | AM23: 10 | AN23: 55 | AO23: 54 | AP23: 9 | AQ23: 4 | AR23: 4 | AS23: 4 | AT23: 4 | AU23: 5 | AV23: 5 | AW23: 38 | AX23: 9 | AY23: 55 | AZ23: 8 | BA23: 3 | BB23: 3 | BC23: 3 | BD23: 3 | BE23: 3 | BF23: 5 | BG23: 32 | BH23: 12 | BI23: 58 | BJ23: 16 | BK23: 4 | BL23: 4 | BM23: 4 | BN23: 4 | BO23: 4 | BP23: 3 | BQ23: 35 | BR23: 10 | BS23: 66 | BT23: 18
A24: 18 | L24: 3 | M24: 3 | N24: 3 | O24: 4 | P24: 4 | Q24: 4 | R24: 37 | S24: 11 | T24: 57 | U24: 22 | V24: 4 | W24: 4 | X24: 4 | Y24: 4 | Z24: 4 | AA24: 4 | AB24: 27 | AC24: 9 | AD24: 59 | AE24: 8 | AF24: संस्कृत (71) | AG24: 4 | AH24: 3 | AI24: 5 | AJ24: 5 | AK24: 5 | AL24: 5 | AM24: 9 | AN24: 55 | AO24: 45 | AP24: 9 | AQ24: 4 | AR24: 4 | AS24: 4 | AT24: 4 | AU24: 5 | AV24: 5 | AW24: 37 | AX24: 8 | AY24: 55 | AZ24: 8 | BA24: 3 | BB24: 3 | BC24: 3 | BD24: 3 | BE24: 3 | BF24: 5 | BG24: 30 | BH24: 12 | BI24: 58 | BJ24: 16 | BK24: 4 | BL24: 4 | BM24: 4 | BN24: 4 | BO24: 4 | BP24: 3 | BQ24: 35 | BR24: 11 | BS24: 62 | BT24: 18
A25: 19 | L25: 3 | M25: 3 | N25: 3 | O25: 4 | P25: 4 | Q25: 4 | R25: 37 | S25: 11 | T25: 57 | U25: 22 | V25: 4 | W25: 4 | X25: 4 | Y25: 4 | Z25: 4 | AA25: 4 | AB25: 23 | AC25: 9 | AD25: 65 | AE25: 9 | AF25: संस्कृत (71) | AG25: 4 | AH25: 3 | AI25: 5 | AJ25: 5 | AK25: 5 | AL25: 5 | AM25: 8 | AN25: 55 | AO25: 47 | AP25: 9 | AQ25: 4 | AR25: 4 | AS25: 4 | AT25: 4 | AU25: 5 | AV25: 5 | AW25: 32 | AX25: 9 | AY25: 55 | AZ25: 8 | BA25: 3 | BB25: 3 | BC25: 3 | BD25: 3 | BE25: 3 | BF25: 5 | BG25: 31 | BH25: 10 | BI25: 58 | BJ25: 16 | BK25: 4 | BL25: 4 | BM25: 4 | BN25: 4 | BO25: 4 | BP25: 3 | BQ25: 35 | BR25: 10 | BS25: 61 | BT25: 18
A26: 20 | L26: 3 | M26: 3 | N26: 3 | O26: 4 | P26: 4 | Q26: 4 | R26: 37 | S26: 11 | T26: 57 | U26: 22 | V26: 4 | W26: 4 | X26: 4 | Y26: 4 | Z26: 4 | AA26: 4 | AB26: 26 | AC26: 9 | AD26: 54 | AE26: 9 | AG26: 4 | AH26: 3 | AI26: 5 | AJ26: 5 | AK26: 5 | AL26: 5 | AM26: 9 | AN26: 55 | AO26: 59 | AP26: 8 | AQ26: 4 | AR26: 4 | AS26: 4 | AT26: 4 | AU26: 5 | AV26: 5 | AW26: 35 | AX26: 8 | AY26: 55 | AZ26: 8 | BA26: 3 | BB26: 3 | BC26: 3 | BD26: 3 | BE26: 3 | BF26: 5 | BG26: 32 | BH26: 10 | BI26: 58 | BJ26: 16 | BK26: 4 | BL26: 4 | BM26: 4 | BN26: 4 | BO26: 4 | BP26: 3 | BQ26: 35 | BR26: 10 | BS26: 62 | BT26: 18
A27: 21 | L27: 3 | M27: 3 | N27: 3 | O27: 4 | P27: 4 | Q27: 4 | R27: 37 | S27: 11 | T27: 57 | U27: 22 | V27: 4 | W27: 4 | X27: 4 | Y27: 4 | Z27: 4 | AA27: 4 | AB27: 36 | AC27: 9 | AD27: 52 | AE27: 9 | AG27: 4 | AH27: 3 | AI27: 5 | AJ27: 5 | AK27: 5 | AL27: 5 | AM27: 8 | AN27: 55 | AO27: 36 | AP27: 7 | AQ27: 4 | AR27: 4 | AS27: 4 | AT27: 4 | AU27: 5 | AV27: 5 | AW27: 36 | AX27: 9 | AY27: 55 | AZ27: 8 | BA27: 3 | BB27: 3 | BC27: 3 | BD27: 3 | BE27: 3 | BF27: 5 | BG27: 15 | BH27: 10 | BI27: 58 | BJ27: 16 | BK27: 4 | BL27: 4 | BM27: 4 | BN27: 4 | BO27: 4 | BP27: 3 | BQ27: 35 | BR27: 10 | BS27: 62 | BT27: 18
A28: 22 | L28: 3 | M28: 3 | N28: 3 | O28: 4 | P28: 4 | Q28: 4 | R28: 37 | S28: 11 | T28: 57 | U28: 22 | V28: 4 | W28: 4 | X28: 4 | Y28: 4 | Z28: 4 | AA28: 4 | AB28: 38 | AC28: 8 | AD28: 51 | AE28: 9 | AG28: 4 | AH28: 3 | AI28: 5 | AJ28: 5 | AK28: 5 | AL28: 5 | AM28: 10 | AN28: 55 | AO28: 63 | AP28: 6 | AQ28: 4 | AR28: 4 | AS28: 4 | AT28: 4 | AU28: 5 | AV28: 5 | AW28: 41 | AX28: 8 | AY28: 55 | AZ28: 8 | BA28: 3 | BB28: 3 | BC28: 3 | BD28: 3 | BE28: 3 | BF28: 5 | BG28: 16 | BH28: 10 | BI28: 58 | BJ28: 16 | BK28: 4 | BL28: 4 | BM28: 4 | BN28: 4 | BO28: 4 | BP28: 3 | BQ28: 35 | BR28: 10 | BS28: 62 | BT28: 18
A29: 23 | L29: 3 | M29: 3 | N29: 3 | O29: 4 | P29: 4 | Q29: 4 | R29: 37 | S29: 11 | T29: 57 | U29: 22 | V29: 4 | W29: 4 | X29: 4 | Y29: 4 | Z29: 4 | AA29: 4 | AB29: 41 | AC29: 9 | AD29: 50 | AE29: 9 | AG29: 4 | AH29: 3 | AI29: 5 | AJ29: 5 | AK29: 5 | AL29: 5 | AM29: 11 | AN29: 55 | AO29: 9 | AP29: 9 | AQ29: 4 | AR29: 4 | AS29: 4 | AT29: 4 | AU29: 5 | AV29: 5 | AW29: 45 | AX29: 9 | AY29: 55 | AZ29: 8 | BA29: 3 | BB29: 3 | BC29: 3 | BD29: 3 | BE29: 3 | BF29: 5 | BG29: 25 | BH29: 9 | BI29: 58 | BJ29: 16 | BK29: 4 | BL29: 4 | BM29: 4 | BN29: 4 | BO29: 4 | BP29: 3 | BQ29: 35 | BR29: 10 | BS29: 62 | BT29: 18
A30: 24 | L30: 3 | M30: 3 | N30: 3 | O30: 4 | P30: 4 | Q30: 4 | R30: 37 | S30: 11 | T30: 57 | U30: 22 | V30: 4 | W30: 4 | X30: 4 | Y30: 4 | Z30: 4 | AA30: 4 | AB30: 42 | AC30: 8 | AD30: 54 | AE30: 9 | AG30: 4 | AH30: 3 | AI30: 5 | AJ30: 5 | AK30: 5 | AL30: 5 | AM30: 12 | AN30: 55 | AO30: 9 | AP30: 9 | AQ30: 4 | AR30: 4 | AS30: 4 | AT30: 4 | AU30: 5 | AV30: 5 | AW30: 46 | AX30: 8 | AY30: 55 | AZ30: 8 | BA30: 3 | BB30: 3 | BC30: 3 | BD30: 3 | BE30: 3 | BF30: 5 | BG30: 32 | BH30: 9 | BI30: 58 | BJ30: 16 | BK30: 4 | BL30: 4 | BM30: 4 | BN30: 4 | BO30: 4 | BP30: 3 | BQ30: 35 | BR30: 10 | BS30: 62 | BT30: 18
A31: 25 | L31: 3 | M31: 3 | N31: 3 | O31: 4 | P31: 4 | Q31: 4 | R31: 37 | S31: 11 | T31: 57 | U31: 22 | V31: 4 | W31: 4 | X31: 4 | Y31: 4 | Z31: 4 | AA31: 4 | AB31: 33 | AC31: 9 | AD31: 58 | AE31: 9 | AG31: 4 | AH31: 3 | AI31: 5 | AJ31: 5 | AK31: 5 | AL31: 5 | AM31: 10 | AN31: 55 | AO31: 9 | AP31: 9 | AQ31: 4 | AR31: 4 | AS31: 4 | AT31: 4 | AU31: 5 | AV31: 5 | AW31: 47 | AX31: 9 | AY31: 55 | AZ31: 8 | BA31: 3 | BB31: 3 | BC31: 3 | BD31: 3 | BE31: 3 | BF31: 5 | BG31: 28 | BH31: 9 | BI31: 58 | BJ31: 16 | BK31: 4 | BL31: 4 | BM31: 4 | BN31: 4 | BO31: 4 | BP31: 3 | BQ31: 35 | BR31: 10 | BS31: 62 | BT31: 18
A32: 26 | L32: 3 | M32: 3 | N32: 3 | O32: 4 | P32: 4 | Q32: 4 | R32: 37 | S32: 11 | T32: 57 | U32: 22 | V32: 4 | W32: 4 | X32: 4 | Y32: 4 | Z32: 4 | AA32: 4 | AB32: 36 | AC32: 8 | AD32: 59 | AE32: 9 | AG32: 4 | AH32: 3 | AI32: 5 | AJ32: 5 | AK32: 5 | AL32: 5 | AM32: 11 | AN32: 55 | AO32: 9 | AP32: 8 | AQ32: 4 | AR32: 4 | AS32: 4 | AT32: 4 | AU32: 5 | AV32: 5 | AW32: 48 | AX32: 8 | AY32: 55 | AZ32: 8 | BA32: 3 | BB32: 3 | BC32: 3 | BD32: 3 | BE32: 3 | BF32: 5 | BG32: 29 | BH32: 9 | BI32: 58 | BJ32: 16 | BK32: 4 | BL32: 4 | BM32: 4 | BN32: 4 | BO32: 4 | BP32: 3 | BQ32: 35 | BR32: 10 | BS32: 62 | BT32: 18
A33: 27 | L33: 3 | M33: 3 | N33: 3 | O33: 4 | P33: 4 | Q33: 4 | R33: 37 | S33: 11 | T33: 57 | U33: 22 | V33: 4 | W33: 4 | X33: 4 | Y33: 4 | Z33: 4 | AA33: 4 | AB33: 40 | AC33: 9 | AD33: 47 | AE33: 9 | AG33: 4 | AH33: 3 | AI33: 5 | AJ33: 5 | AK33: 5 | AL33: 5 | AM33: 10 | AN33: 55 | AO33: 9 | AP33: 9 | AQ33: 4 | AR33: 4 | AS33: 4 | AT33: 4 | AU33: 5 | AV33: 5 | AW33: 31 | AX33: 9 | AY33: 55 | AZ33: 8 | BA33: 3 | BB33: 3 | BC33: 3 | BD33: 3 | BE33: 3 | BF33: 5 | BG33: 24 | BH33: 9 | BI33: 58 | BJ33: 16 | BK33: 4 | BL33: 4 | BM33: 4 | BN33: 4 | BO33: 4 | BP33: 3 | BQ33: 35 | BR33: 10 | BS33: 62 | BT33: 18
A34: 28 | L34: 3 | M34: 3 | N34: 3 | O34: 4 | P34: 4 | Q34: 4 | R34: 37 | S34: 11 | T34: 57 | U34: 22 | V34: 4 | W34: 4 | X34: 4 | Y34: 4 | Z34: 4 | AA34: 4 | AB34: 44 | AC34: 9 | AD34: 48 | AE34: 9 | AG34: 4 | AH34: 3 | AI34: 5 | AJ34: 5 | AK34: 5 | AL34: 5 | AM34: 10 | AN34: 55 | AO34: 9 | AP34: 8 | AQ34: 4 | AR34: 4 | AS34: 4 | AT34: 4 | AU34: 5 | AV34: 5 | AW34: 36 | AX34: 9 | AY34: 55 | AZ34: 8 | BA34: 3 | BB34: 3 | BC34: 3 | BD34: 3 | BE34: 3 | BF34: 5 | BG34: 25 | BH34: 9 | BI34: 58 | BJ34: 16 | BK34: 4 | BL34: 4 | BM34: 4 | BN34: 4 | BO34: 4 | BP34: 3 | BQ34: 35 | BR34: 9 | BS34: 62 | BT34: 18
A35: 29 | L35: 3 | M35: 3 | N35: 3 | O35: 4 | P35: 4 | Q35: 4 | R35: 37 | S35: 11 | T35: 57 | U35: 22 | V35: 4 | W35: 4 | X35: 4 | Y35: 4 | Z35: 4 | AA35: 4 | AB35: 41 | AC35: 8 | AD35: 47 | AE35: 9 | AG35: 4 | AH35: 3 | AI35: 5 | AJ35: 5 | AK35: 5 | AL35: 5 | AM35: 9 | AN35: 55 | AO35: 9 | AP35: 9 | AQ35: 4 | AR35: 4 | AS35: 4 | AT35: 4 | AU35: 5 | AV35: 5 | AW35: 41 | AX35: 9 | AY35: 55 | AZ35: 8 | BA35: 3 | BB35: 3 | BC35: 3 | BD35: 3 | BE35: 3 | BF35: 5 | BG35: 26 | BH35: 8 | BI35: 58 | BJ35: 16 | BK35: 4 | BL35: 4 | BM35: 4 | BN35: 4 | BO35: 4 | BP35: 3 | BQ35: 35 | BR35: 9 | BS35: 62 | BT35: 18
A36: 30 | L36: 3 | M36: 3 | N36: 3 | O36: 4 | P36: 4 | Q36: 4 | R36: 37 | S36: 11 | T36: 57 | U36: 22 | V36: 4 | W36: 4 | X36: 4 | Y36: 4 | Z36: 4 | AA36: 4 | AB36: 40 | AC36: 7 | AD36: 49 | AE36: 9 | AG36: 4 | AH36: 3 | AI36: 5 | AJ36: 5 | AK36: 5 | AL36: 5 | AM36: 8 | AN36: 55 | AO36: 9 | AP36: 6 | AQ36: 4 | AR36: 4 | AS36: 4 | AT36: 4 | AU36: 5 | AV36: 5 | AW36: 41 | AX36: 9 | AY36: 55 | AZ36: 8 | BA36: 3 | BB36: 3 | BC36: 3 | BD36: 3 | BE36: 3 | BF36: 5 | BG36: 27 | BH36: 8 | BI36: 58 | BJ36: 16 | BK36: 4 | BL36: 4 | BM36: 4 | BN36: 4 | BO36: 4 | BP36: 3 | BQ36: 35 | BR36: 9 | BS36: 62 | BT36: 18
A37: 31 | L37: 3 | M37: 3 | N37: 3 | O37: 4 | P37: 4 | Q37: 4 | R37: 37 | S37: 11 | T37: 57 | U37: 22 | V37: 4 | W37: 4 | X37: 4 | Y37: 4 | Z37: 4 | AA37: 4 | AB37: 40 | AC37: 7 | AD37: 41 | AE37: 9 | AG37: 4 | AH37: 3 | AI37: 5 | AJ37: 5 | AK37: 5 | AL37: 5 | AM37: 9 | AN37: 55 | AO37: 9 | AP37: 5 | AQ37: 4 | AR37: 4 | AS37: 4 | AT37: 4 | AU37: 5 | AV37: 5 | AW37: 41 | AX37: 9 | AY37: 55 | AZ37: 8 | BA37: 3 | BB37: 3 | BC37: 3 | BD37: 3 | BE37: 3 | BF37: 5 | BG37: 30 | BH37: 8 | BI37: 58 | BJ37: 16 | BK37: 4 | BL37: 4 | BM37: 4 | BN37: 4 | BO37: 4 | BP37: 3 | BQ37: 35 | BR37: 8 | BS37: 62 | BT37: 18 | CS37: ='Master sheet'!D11 -> Hindi
A38: 32 | L38: 3 | M38: 3 | N38: 3 | O38: 4 | P38: 4 | Q38: 4 | R38: 37 | S38: 11 | T38: 57 | U38: 22 | V38: 4 | W38: 4 | X38: 4 | Y38: 4 | Z38: 4 | AA38: 4 | AB38: 40 | AC38: 7 | AD38: 40 | AE38: 9 | AM38: 8 | AN38: 55 | AO38: 9 | AP38: 9 | AQ38: 4 | AR38: 4 | AS38: 4 | AT38: 4 | AU38: 5 | AV38: 5 | AW38: 41 | AX38: 9 | AY38: 55 | AZ38: 8 | BA38: 3 | BB38: 3 | BC38: 3 | BD38: 3 | BE38: 3 | BF38: 5 | BG38: 30 | BH38: 8 | BI38: 58 | BJ38: 16 | BK38: 4 | BL38: 4 | BM38: 4 | BN38: 4 | BO38: 4 | BP38: 3 | BQ38: 35 | BR38: 9 | BS38: 62 | BT38: 18
A39: 33 | L39: 3 | M39: 3 | N39: 3 | O39: 4 | P39: 4 | Q39: 4 | R39: 37 | S39: 11 | T39: 57 | U39: 22 | V39: 4 | W39: 4 | X39: 4 | Y39: 4 | Z39: 4 | AA39: 4 | AB39: 40 | AC39: 7 | AD39: 37 | AE39: 9 | AN39: 55 | AO39: 9 | AP39: 8 | AQ39: 4 | AR39: 4 | AS39: 4 | AT39: 4 | AU39: 5 | AV39: 5 | AW39: 41 | AX39: 9 | AY39: 55 | AZ39: 8 | BA39: 3 | BB39: 3 | BC39: 3 | BD39: 3 | BE39: 3 | BF39: 5 | BG39: 31 | BH39: 8 | BI39: 58 | BJ39: 16 | BK39: 4 | BL39: 4 | BM39: 4 | BN39: 4 | BO39: 4 | BP39: 3 | BQ39: 35 | BR39: 9 | BS39: 62 | BT39: 18
A40: 34 | L40: 3 | M40: 3 | N40: 3 | O40: 4 | P40: 4 | Q40: 4 | R40: 37 | S40: 11 | T40: 57 | U40: 22 | V40: 4 | W40: 4 | X40: 4 | Y40: 4 | Z40: 4 | AA40: 4 | AB40: 40 | AC40: 7 | AD40: 37 | AE40: 9 | AN40: 55 | AO40: 9 | AP40: 9 | AQ40: 4 | AR40: 4 | AS40: 4 | AT40: 4 | AU40: 5 | AV40: 5 | AW40: 41 | AX40: 9 | AY40: 55 | AZ40: 8 | BA40: 3 | BB40: 3 | BC40: 3 | BD40: 3 | BE40: 3 | BF40: 5 | BG40: 32 | BH40: 8 | BI40: 58 | BJ40: 16 | BK40: 4 | BL40: 4 | BM40: 4 | BN40: 4 | BO40: 4 | BP40: 3 | BQ40: 35 | BR40: 9 | BS40: 62 | BT40: 18
A41: 35 | L41: 3 | M41: 3 | N41: 3 | O41: 4 | P41: 4 | Q41: 4 | R41: 37 | S41: 11 | T41: 57 | U41: 22 | V41: 4 | W41: 4 | X41: 4 | Y41: 4 | Z41: 4 | AA41: 4 | AB41: 40 | AC41: 7 | AD41: 37 | AE41: 9 | AN41: 55 | AO41: 9 | AP41: 8 | AQ41: 4 | AR41: 4 | AS41: 4 | AT41: 4 | AU41: 5 | AV41: 5 | AW41: 41 | AX41: 9 | AY41: 55 | AZ41: 8 | BA41: 3 | BB41: 3 | BC41: 3 | BD41: 3 | BE41: 3 | BF41: 5 | BG41: 32 | BH41: 9 | BI41: 58 | BJ41: 16 | BK41: 4 | BL41: 4 | BM41: 4 | BN41: 4 | BO41: 4 | BP41: 3 | BQ41: 35 | BR41: 8 | BS41: 62 | BT41: 18
A42: 36 | L42: 3 | M42: 3 | N42: 3 | O42: 4 | P42: 4 | Q42: 4 | R42: 37 | S42: 11 | T42: 57 | U42: 22 | V42: 4 | W42: 4 | X42: 4 | Y42: 4 | Z42: 4 | AA42: 4 | AB42: 40 | AC42: 7 | AD42: 47 | AE42: 9 | AN42: 55 | AO42: 9 | AP42: 10 | AQ42: 4 | AR42: 4 | AS42: 4 | AT42: 4 | AU42: 5 | AV42: 5 | AW42: 41 | AX42: 9 | AY42: 55 | AZ42: 8 | BA42: 3 | BB42: 3 | BC42: 3 | BD42: 3 | BE42: 3 | BF42: 5 | BG42: 32 | BH42: 9 | BI42: 58 | BJ42: 16 | BK42: 4 | BL42: 4 | BM42: 4 | BN42: 4 | BO42: 4 | BP42: 3 | BQ42: 35 | BR42: 9 | BS42: 62 | BT42: 18
A43: 37
A44: 38
A45: 39
A46: 40
A47: 41
A48: 42
A49: 43
A50: 44
A51: 45
A52: 46
A53: 47
A54: 48
A55: 49
A56: 50
A57: 51
A58: 52
A59: 53
A60: 54
A61: 55
A62: 56
A63: 57
A64: 58
A65: 59
A66: 60
A67: 61
A68: 62
A69: 63
A70: 64
A71: 65
A72: 66
A73: 67
A74: 68
A75: 69
A76: 70
A77: 71
A78: 72
A79: 73
A80: 74
A81: 75
A82: 76
A83: 77
A84: 78
A85: 79
A86: 80
A87: 81
A88: 82
A89: 83
A90: 84
A91: 85
A92: 86
A93: 87
A94: 88
A95: 89
A96: 90
A97: 91
A98: 92
A99: 93
A100: 94
A101: 95
A102: 96
A103: 97
A104: 98
A105: 99
A106: 100
A107: 101
A108: 102
A109: 103
A110: 104
A111: 105
A112: 106
A113: 107
A114: 108
A115: 109
A116: 110
A117: 111
A118: 112
A119: 113
A120: 114
A121: 115
A122: 116
A123: 117
A124: 118
A125: 119
A126: 120
A127: 121
A128: 122
A129: 123
A130: 124
A131: 125
A132: 126
A133: 127
A134: 128
A135: 129
A136: 130
A137: 131
A138: 132
A139: 133
A140: 134
A141: 135
A142: 136
A143: 137
A144: 138
A145: 139
A146: 140
A147: 141
A148: 142
A149: 143
A150: 144
A151: 145
A152: 146
A153: 147
A154: 148
A155: 149
A156: 150
A157: 151
A158: 152
A159: 153
A160: 154
A161: 155
A162: 156
A163: 157
A164: 158
A165: 159
A166: 160
A167: 161
A168: 162
A169: 163
A170: 164
A171: 165
A172: 166
A173: 167
A174: 168
A175: 169
A176: 170
A177: 171
A178: 172
A179: 173
A180: 174
A181: 175
A182: 176
A183: 177
A184: 178
A185: 179
A186: 180
A187: 181
A188: 182
A189: 183
A190: 184
A191: 185
A192: 186
A193: 187
A194: 188
A195: 189
A196: 190
A197: 191
A198: 192
A199: 193
A200: 194
... 6 more rows

Sheet Marks Entry 7th
A1: =IF('Master sheet'!D11="Hindi",'Master sheet'!D8,'Master sheet'!D7) -> महात्मा गाँधी राजकीय विद्यालय (अंग्रेजी माध्यम) बर, पाली | S1: This Sheet Password :- Resultsheet2025 | AF1: =IF('Master sheet'!$D$11="Hindi","तृतीय भाषा के लिए प्रत्येक कॉलम (सेल में) विद्यार्थी से सम्बंधित तृतीय भाषा को सलेक्ट करें I","For Third Language, Select the third language related to the student in each column") -> तृतीय भाषा के लिए प्रत्येक कॉलम (सेल में) विद्यार्थी से सम्बंधित तृतीय भाषा को सलेक्ट करें I | BU1: ए/बी/सी/डी/ई ग्रेडिंग देनी है (A/B/C/D/E Grade) | CJ1: =IF('Master sheet'!$D$11="Hindi","अतिरिक्त विषय ","Extra Subject") -> अतिरिक्त विषय | DW1: =L3 -> हिंदी | DZ1: =BU3 -> कार्यानुभव
A2: =IF('Master sheet'!D11="Hindi","रिजल्ट वर्कशीट","RESULT WORKSHEET") -> रिजल्ट वर्कशीट | I2: =IF('Master sheet'!D13="","",'Master sheet'!D13) -> 2024-2025 | DW2: =V3 -> अंग्रेजी | DZ2: =BZ3 -> कला शिक्षा
A3: =IF('Master sheet'!D11="Hindi","विद्यार्थी की सामान्य जानकारी","General Information of Students") -> विद्यार्थी की सामान्य जानकारी | I3: =IF('Master sheet'!D11="Hindi","कक्षा :-","CLASS :- ") -> कक्षा :- | J3: 7 | L3: =IF('Master sheet'!$D$11="Hindi","हिंदी","Hindi") -> हिंदी | P3: =UPPER('Master sheet'!H17) -> RADHESHYAM | V3: =IF('Master sheet'!$D$11="Hindi","अंग्रेजी","English") -> अंग्रेजी | Z3: =UPPER('Master sheet'!H18) -> MAMTA LAWANIYA | AF3: =IF('Master sheet'!$D$11="Hindi","तृतीय भाषा का चयन करें I","Select The Third Language") -> तृतीय भाषा का चयन करें I | AG3: =IF('Master sheet'!$D$11="Hindi","तृतीय भाषा","Third Language") -> तृतीय भाषा | AJ3: =UPPER('Master sheet'!H19) -> SURESH KUMAR | AQ3: =IF('Master sheet'!$D$11="Hindi","गणित","Maths") -> गणित | AU3: =UPPER('Master sheet'!H20) -> YOGENDRA | BA3: =IF('Master sheet'!$D$11="Hindi","विज्ञान","Science") -> विज्ञान | BE3: =UPPER('Master sheet'!H21) -> PRAKASH CHAND | BK3: =IF('Master sheet'!$D$11="Hindi","सामाजिक विज्ञान","Social Science") -> सामाजिक विज्ञान | BO3: =UPPER('Master sheet'!H22) -> SHARAD SHARMA | BU3: =IF('Master sheet'!$D$11="Hindi","कार्यानुभव","WORK EXP.") -> कार्यानुभव | BZ3: =IF('Master sheet'!$D$11="Hindi","कला शिक्षा","ART EDU.") -> कला शिक्षा | CE3: =IF('Master sheet'!$D$11="Hindi","स्वा. एवं शा. शिक्षा","HE.&PH. EDU.") -> स्वा. एवं शा. शिक्षा | CJ3: =UPPER('Master sheet'!G23) -> COMPUTER | CL3: =UPPER('Master sheet'!G24) -> G.K. | CN3: =IF('Master sheet'!$D$11="Hindi","उपस्थिति","Attendance") -> उपस्थिति | DW3: =AH3 -> 0 | DZ3: =CE3 -> स्वा. एवं शा. शिक्षा
A4: =IF('Master sheet'!D11="Hindi","क्र. स.","Sr. No. ") -> क्र. स. | B4: =IF('Master sheet'!$D$11="Hindi","कक्षा","CLASS ") -> कक्षा | C4: =IF('Master sheet'!$D$11="Hindi","सेक्शन","Section ") -> सेक्शन | D4: =IF('Master sheet'!$D$11="Hindi","प्रवेशांक","SR. NO.") -> प्रवेशांक | E4: =IF('Master sheet'!$D$11="Hindi","जन्म दिनांक","Date of Birth") -> जन्म दिनांक | F4: =IF('Master sheet'!$D$11="Hindi","विद्यार्थी का नाम","Student's Name") -> विद्यार्थी का नाम | G4: =IF('Master sheet'!$D$11="Hindi","पिता का नाम","Father's Name") -> पिता का नाम | H4: =IF('Master sheet'!$D$11="Hindi","माता का नाम ","Mother's Name") -> माता का नाम | I4: =IF('Master sheet'!$D$11="Hindi","कक्षा रोल न. ","Class Roll No.") -> कक्षा रोल न. | J4: =IF('Master sheet'!$D$11="Hindi","लिंग ","Gender") -> लिंग | K4: =IF('Master sheet'!$D$11="Hindi","वर्ग ","Category") -> वर्ग | L4: =IF('Master sheet'!$D$11="Hindi","प्रथम परख ","First Test") -> प्रथम परख | N4: =IF('Master sheet'!$D$11="Hindi","द्वितीय परख","Second Test") -> द्वितीय परख | P4: =IF('Master sheet'!$D$11="Hindi","तृतीय परख","Third Test") -> तृतीय परख | R4: =IF('Master sheet'!$D$11="Hindi","अर्द्धवार्षिक","Half Yearly") -> अर्द्धवार्षिक | T4: =IF('Master sheet'!$D$11="Hindi","वार्षिक","Yearly") -> वार्षिक | V4: =IF('Master sheet'!$D$11="Hindi","प्रथम परख ","First Test") -> प्रथम परख | X4: =IF('Master sheet'!$D$11="Hindi","द्वितीय परख","Second Test") -> द्वितीय परख | Z4: =IF('Master sheet'!$D$11="Hindi","तृतीय परख","Third Test") -> तृतीय परख | AB4: =IF('Master sheet'!$D$11="Hindi","अर्द्धवार्षिक","Half Yearly") -> अर्द्धवार्षिक | AD4: =IF('Master sheet'!$D$11="Hindi","वार्षिक","Yearly") -> वार्षिक | AG4: =IF('Master sheet'!$D$11="Hindi","प्रथम परख ","First Test") -> प्रथम परख | AI4: =IF('Master sheet'!$D$11="Hindi","द्वितीय परख","Second Test") -> द्वितीय परख | AK4: =IF('Master sheet'!$D$11="Hindi","तृतीय परख","Third Test") -> तृतीय परख | AM4: =IF('Master sheet'!$D$11="Hindi","अर्द्धवार्षिक","Half Yearly") -> अर्द्धवार्षिक | AO4: =IF('Master sheet'!$D$11="Hindi","वार्षिक","Yearly") -> वार्षिक | AQ4: =IF('Master sheet'!$D$11="Hindi","प्रथम परख ","First Test") -> प्रथम परख | AS4: =IF('Master sheet'!$D$11="Hindi","द्वितीय परख","Second Test") -> द्वितीय परख | AU4: =IF('Master sheet'!$D$11="Hindi","तृतीय परख","Third Test") -> तृतीय परख | AW4: =IF('Master sheet'!$D$11="Hindi","अर्द्धवार्षिक","Half Yearly") -> अर्द्धवार्षिक | AY4: =IF('Master sheet'!$D$11="Hindi","वार्षिक","Yearly") -> वार्षिक | BA4: =IF('Master sheet'!$D$11="Hindi","प्रथम परख ","First Test") -> प्रथम परख | BC4: =IF('Master sheet'!$D$11="Hindi","द्वितीय परख","Second Test") -> द्वितीय परख | BE4: =IF('Master sheet'!$D$11="Hindi","तृतीय परख","Third Test") -> तृतीय परख | BG4: =IF('Master sheet'!$D$11="Hindi","अर्द्धवार्षिक","Half Yearly") -> अर्द्धवार्षिक | BI4: =IF('Master sheet'!$D$11="Hindi","वार्षिक","Yearly") -> वार्षिक | BK4: =IF('Master sheet'!$D$11="Hindi","प्रथम परख ","First Test") -> प्रथम परख | BM4: =IF('Master sheet'!$D$11="Hindi","द्वितीय परख","Second Test") -> द्वितीय परख | BO4: =IF('Master sheet'!$D$11="Hindi","तृतीय परख","Third Test") -> तृतीय परख | BQ4: =IF('Master sheet'!$D$11="Hindi","अर्द्धवार्षिक","Half Yearly") -> अर्द्धवार्षिक | BS4: =IF('Master sheet'!$D$11="Hindi","वार्षिक","Yearly") -> वार्षिक | BU4: Yogendra | BZ4: Prakash chand | CE4: Lalit Kumar | CJ4: =UPPER('Master sheet'!H23) -> PRADIP SINGH | CL4: =UPPER('Master sheet'!H24) -> MANOJ KUMAR | CN4: =IF('Master sheet'!$D$11="Hindi","कुल कार्य दिवस","Total Meeting") -> कुल कार्य दिवस | CO4: =IF('Master sheet'!$D$11="Hindi","कुल उपस्थिति","Total Attendance") -> कुल उपस्थिति | DW4: =AQ3 -> गणित
L5: =IF('Master sheet'!$D$11="Hindi","लिखित परीक्षा","Written") -> लिखित परीक्षा | M5: =IF('Master sheet'!$D$11="Hindi","गतिविधि, मौखिक, प्रोजेक्ट, प्रायोगिक","Act, Oral, Project, Prac.") -> गतिविधि, मौखिक, प्रोजेक्ट, प्रायोगिक | N5: =IF('Master sheet'!$D$11="Hindi","लिखित परीक्षा","Written") -> लिखित परीक्षा | O5: =IF('Master sheet'!$D$11="Hindi","गतिविधि, मौखिक, प्रोजेक्ट, प्रायोगिक","Act, Oral, Project, Prac.") -> गतिविधि, मौखिक, प्रोजेक्ट, प्रायोगिक | P5: =IF('Master sheet'!$D$11="Hindi","लिखित परीक्षा","Written") -> लिखित परीक्षा | Q5: =IF('Master sheet'!$D$11="Hindi","गतिविधि, मौखिक, प्रोजेक्ट, प्रायोगिक","Act, Oral, Project, Prac.") -> गतिविधि, मौखिक, प्रोजेक्ट, प्रायोगिक | R5: =IF('Master sheet'!$D$11="Hindi","लिखित परीक्षा","Written") -> लिखित परीक्षा | S5: =IF('Master sheet'!$D$11="Hindi","गतिविधि, मौखिक, प्रोजेक्ट, प्रायोगिक","Act, Oral, Project, Prac.") -> गतिविधि, मौखिक, प्रोजेक्ट, प्रायोगिक | T5: =IF('Master sheet'!$D$11="Hindi","लिखित परीक्षा","Written") -> लिखित परीक्षा | U5: =IF('Master sheet'!$D$11="Hindi","गतिविधि, मौखिक, प्रोजेक्ट, प्रायोगिक","Act, Oral, Project, Prac.") -> गतिविधि, मौखिक, प्रोजेक्ट, प्रायोगिक | V5: =IF('Master sheet'!$D$11="Hindi","लिखित परीक्षा","Written") -> लिखित परीक्षा | W5: =IF('Master sheet'!$D$11="Hindi","गतिविधि, मौखिक, प्रोजेक्ट, प्रायोगिक","Act, Oral, Project, Prac.") -> गतिविधि, मौखिक, प्रोजेक्ट, प्रायोगिक | X5: =IF('Master sheet'!$D$11="Hindi","लिखित परीक्षा","Written") -> लिखित परीक्षा | Y5: =IF('Master sheet'!$D$11="Hindi","गतिविधि, मौखिक, प्रोजेक्ट, प्रायोगिक","Act, Oral, Project, Prac.") -> गतिविधि, मौखिक, प्रोजेक्ट, प्रायोगिक | Z5: =IF('Master sheet'!$D$11="Hindi","लिखित परीक्षा","Written") -> लिखित परीक्षा | AA5: =IF('Master sheet'!$D$11="Hindi","गतिविधि, मौखिक, प्रोजेक्ट, प्रायोगिक","Act, Oral, Project, Prac.") -> गतिविधि, मौखिक, प्रोजेक्ट, प्रायोगिक | AB5: =IF('Master sheet'!$D$11="Hindi","लिखित परीक्षा","Written") -> लिखित परीक्षा | AC5: =IF('Master sheet'!$D$11="Hindi","गतिविधि, मौखिक, प्रोजेक्ट, प्रायोगिक","Act, Oral, Project, Prac.") -> गतिविधि, मौखिक, प्रोजेक्ट, प्रायोगिक | AD5: =IF('Master sheet'!$D$11="Hindi","लिखित परीक्षा","Written") -> लिखित परीक्षा | AE5: =IF('Master sheet'!$D$11="Hindi","गतिविधि, मौखिक, प्रोजेक्ट, प्रायोगिक","Act, Oral, Project, Prac.") -> गतिविधि, मौखिक, प्रोजेक्ट, प्रायोगिक | AG5: =IF('Master sheet'!$D$11="Hindi","लिखित परीक्षा","Written") -> लिखित परीक्षा | AH5: =IF('Master sheet'!$D$11="Hindi","गतिविधि, मौखिक, प्रोजेक्ट, प्रायोगिक","Act, Oral, Project, Prac.") -> गतिविधि, मौखिक, प्रोजेक्ट, प्रायोगिक | AI5: =IF('Master sheet'!$D$11="Hindi","लिखित परीक्षा","Written") -> लिखित परीक्षा | AJ5: =IF('Master sheet'!$D$11="Hindi","गतिविधि, मौखिक, प्रोजेक्ट, प्रायोगिक","Act, Oral, Project, Prac.") -> गतिविधि, मौखिक, प्रोजेक्ट, प्रायोगिक | AK5: =IF('Master sheet'!$D$11="Hindi","लिखित परीक्षा","Written") -> लिखित परीक्षा | AL5: =IF('Master sheet'!$D$11="Hindi","गतिविधि, मौखिक, प्रोजेक्ट, प्रायोगिक","Act, Oral, Project, Prac.") -> गतिविधि, मौखिक, प्रोजेक्ट, प्रायोगिक | AM5: =IF('Master sheet'!$D$11="Hindi","लिखित परीक्षा","Written") -> लिखित परीक्षा | AN5: =IF('Master sheet'!$D$11="Hindi","गतिविधि, मौखिक, प्रोजेक्ट, प्रायोगिक","Act, Oral, Project, Prac.") -> गतिविधि, मौखिक, प्रोजेक्ट, प्रायोगिक | AO5: =IF('Master sheet'!$D$11="Hindi","लिखित परीक्षा","Written") -> लिखित परीक्षा | AP5: =IF('Master sheet'!$D$11="Hindi","गतिविधि, मौखिक, प्रोजेक्ट, प्रायोगिक","Act, Oral, Project, Prac.") -> गतिविधि, मौखिक, प्रोजेक्ट, प्रायोगिक | AQ5: =IF('Master sheet'!$D$11="Hindi","लिखित परीक्षा","Written") -> लिखित परीक्षा | AR5: =IF('Master sheet'!$D$11="Hindi","गतिविधि, मौखिक, प्रोजेक्ट, प्रायोगिक","Act, Oral, Project, Prac.") -> गतिविधि, मौखिक, प्रोजेक्ट, प्रायोगिक | AS5: =IF('Master sheet'!$D$11="Hindi","लिखित परीक्षा","Written") -> लिखित परीक्षा | AT5: =IF('Master sheet'!$D$11="Hindi","गतिविधि, मौखिक, प्रोजेक्ट, प्रायोगिक","Act, Oral, Project, Prac.") -> गतिविधि, मौखिक, प्रोजेक्ट, प्रायोगिक | AU5: =IF('Master sheet'!$D$11="Hindi","लिखित परीक्षा","Written") -> लिखित परीक्षा | AV5: =IF('Master sheet'!$D$11="Hindi","गतिविधि, मौखिक, प्रोजेक्ट, प्रायोगिक","Act, Oral, Project, Prac.") -> गतिविधि, मौखिक, प्रोजेक्ट, प्रायोगिक | AW5: =IF('Master sheet'!$D$11="Hindi","लिखित परीक्षा","Written") -> लिखित परीक्षा | AX5: =IF('Master sheet'!$D$11="Hindi","गतिविधि, मौखिक, प्रोजेक्ट, प्रायोगिक","Act, Oral, Project, Prac.") -> गतिविधि, मौखिक, प्रोजेक्ट, प्रायोगिक | AY5: =IF('Master sheet'!$D$11="Hindi","लिखित परीक्षा","Written") -> लिखित परीक्षा | AZ5: =IF('Master sheet'!$D$11="Hindi","गतिविधि, मौखिक, प्रोजेक्ट, प्रायोगिक","Act, Oral, Project, Prac.") -> गतिविधि, मौखिक, प्रोजेक्ट, प्रायोगिक | BA5: =IF('Master sheet'!$D$11="Hindi","लिखित परीक्षा","Written") -> लिखित परीक्षा | BB5: =IF('Master sheet'!$D$11="Hindi","गतिविधि, मौखिक, प्रोजेक्ट, प्रायोगिक","Act, Oral, Project, Prac.") -> गतिविधि, मौखिक, प्रोजेक्ट, प्रायोगिक | BC5: =IF('Master sheet'!$D$11="Hindi","लिखित परीक्षा","Written") -> लिखित परीक्षा | BD5: =IF('Master sheet'!$D$11="Hindi","गतिविधि, मौखिक, प्रोजेक्ट, प्रायोगिक","Act, Oral, Project, Prac.") -> गतिविधि, मौखिक, प्रोजेक्ट, प्रायोगिक | BE5: =IF('Master sheet'!$D$11="Hindi","लिखित परीक्षा","Written") -> लिखित परीक्षा | BF5: =IF('Master sheet'!$D$11="Hindi","गतिविधि, मौखिक, प्रोजेक्ट, प्रायोगिक","Act, Oral, Project, Prac.") -> गतिविधि, मौखिक, प्रोजेक्ट, प्रायोगिक | BG5: =IF('Master sheet'!$D$11="Hindi","लिखित परीक्षा","Written") -> लिखित परीक्षा | BH5: =IF('Master sheet'!$D$11="Hindi","गतिविधि, मौखिक, प्रोजेक्ट, प्रायोगिक","Act, Oral, Project, Prac.") -> गतिविधि, मौखिक, प्रोजेक्ट, प्रायोगिक | BI5: =IF('Master sheet'!$D$11="Hindi","लिखित परीक्षा","Written") -> लिखित परीक्षा | BJ5: =IF('Master sheet'!$D$11="Hindi","गतिविधि, मौखिक, प्रोजेक्ट, प्रायोगिक","Act, Oral, Project, Prac.") -> गतिविधि, मौखिक, प्रोजेक्ट, प्रायोगिक | BK5: =IF('Master sheet'!$D$11="Hindi","लिखित परीक्षा","Written") -> लिखित परीक्षा | BL5: =IF('Master sheet'!$D$11="Hindi","गतिविधि, मौखिक, प्रोजेक्ट, प्रायोगिक","Act, Oral, Project, Prac.") -> गतिविधि, मौखिक, प्रोजेक्ट, प्रायोगिक | BM5: =IF('Master sheet'!$D$11="Hindi","लिखित परीक्षा","Written") -> लिखित परीक्षा | BN5: =IF('Master sheet'!$D$11="Hindi","गतिविधि, मौखिक, प्रोजेक्ट, प्रायोगिक","Act, Oral, Project, Prac.") -> गतिविधि, मौखिक, प्रोजेक्ट, प्रायोगिक | BO5: =IF('Master sheet'!$D$11="Hindi","लिखित परीक्षा","Written") -> लिखित परीक्षा | BP5: =IF('Master sheet'!$D$11="Hindi","गतिविधि, मौखिक, प्रोजेक्ट, प्रायोगिक","Act, Oral, Project, Prac.") -> गतिविधि, मौखिक, प्रोजेक्ट, प्रायोगिक | BQ5: =IF('Master sheet'!$D$11="Hindi","लिखित परीक्षा","Written") -> लिखित परीक्षा | BR5: =IF('Master sheet'!$D$11="Hindi","गतिविधि, मौखिक, प्रोजेक्ट, प्रायोगिक","Act, Oral, Project, Prac.") -> गतिविधि, मौखिक, प्रोजेक्ट, प्रायोगिक | BS5: =IF('Master sheet'!$D$11="Hindi","लिखित परीक्षा","Written") -> लिखित परीक्षा | BT5: =IF('Master sheet'!$D$11="Hindi","गतिविधि, मौखिक, प्रोजेक्ट, प्रायोगिक","Act, Oral, Project, Prac.") -> गतिविधि, मौखिक, प्रोजेक्ट, प्रायोगिक | BU5: =IF('Master sheet'!$D$11="Hindi","प्रथम मूल्यांकन","1st Assessment") -> प्रथम मूल्यांकन | BV5: =IF('Master sheet'!$D$11="Hindi","द्वितीय मूल्यांकन","2nd Assessment") -> द्वितीय मूल्यांकन | BW5: =IF('Master sheet'!$D$11="Hindi","तृतीय मूल्यांकन","3rd Assessment") -> तृतीय मूल्यांकन | BX5: =IF('Master sheet'!$D$11="Hindi","चतुर्थ मूल्यांकन","4th Assessment") -> चतुर्थ मूल्यांकन | BY5: =IF('Master sheet'!$D$11="Hindi","पंचम मूल्यांकन","5th Assessment") -> पंचम मूल्यांकन | BZ5: =IF('Master sheet'!$D$11="Hindi","प्रथम मूल्यांकन","1st Assessment") -> प्रथम मूल्यांकन | CA5: =IF('Master sheet'!$D$11="Hindi","द्वितीय मूल्यांकन","2nd Assessment") -> द्वितीय मूल्यांकन | CB5: =IF('Master sheet'!$D$11="Hindi","तृतीय मूल्यांकन","3rd Assessment") -> तृतीय मूल्यांकन | CC5: =IF('Master sheet'!$D$11="Hindi","चतुर्थ मूल्यांकन","4th Assessment") -> चतुर्थ मूल्यांकन | CD5: =IF('Master sheet'!$D$11="Hindi","पंचम मूल्यांकन","5th Assessment") -> पंचम मूल्यांकन | CE5: =IF('Master sheet'!$D$11="Hindi","प्रथम मूल्यांकन","1st Assessment") -> प्रथम मूल्यांकन | CF5: =IF('Master sheet'!$D$11="Hindi","द्वितीय मूल्यांकन","2nd Assessment") -> द्वितीय मूल्यांकन | CG5: =IF('Master sheet'!$D$11="Hindi","तृतीय मूल्यांकन","3rd Assessment") -> तृतीय मूल्यांकन | CH5: =IF('Master sheet'!$D$11="Hindi","चतुर्थ मूल्यांकन","4th Assessment") -> चतुर्थ मूल्यांकन | CI5: =IF('Master sheet'!$D$11="Hindi","पंचम मूल्यांकन","5th Assessment") -> पंचम मूल्यांकन | CJ5: =IF('Master sheet'!$D$11="Hindi","अर्द्धवार्षिक","Half Yearly") -> अर्द्धवार्षिक | CK5: =IF('Master sheet'!$D$11="Hindi","वार्षिक","Yearly") -> वार्षिक | CL5: =IF('Master sheet'!$D$11="Hindi","अर्द्धवार्षिक","Half Yearly") -> अर्द्धवार्षिक | CM5: =IF('Master sheet'!$D$11="Hindi","वार्षिक","Yearly") -> वार्षिक | DH5: =IF(AND(L6="",N6="",R6="",S6=""),"",SUM(L6,N6,R6,#REF!,S6)) ->  | DI5: 20 | DJ5: =IF(AND(V6="",X6="",AB6="",AC6=""),"",SUM(V6,X6,AB6,#REF!,AC6)) ->  | DK5: 20 | DL5: =IF(AND(AG6="",AH6="",AI6="",AM6=""),"",SUM(AG6,AH6,AI6,AJ6,AM6)) -> 70 | DM5: 20 | DN5: =IF(AND(AQ6="",AT6="",AW6="",AX6=""),"",SUM(AQ6,AT6,AW6,#REF!,AX6)) ->  | DO5: 20 | DP5: =IF(AND(BA6="",BD6="",BG6="",BH6=""),"",SUM(BA6,BD6,BG6,#REF!,BH6)) ->  | DQ5: 20 | DR5: =IF(AND(BK6="",BN6="",BQ6="",BR6=""),"",SUM(BK6,BN6,BQ6,#REF!,BR6)) ->  | DS5: 20 | DW5: =BA3 -> विज्ञान
L6: 5 | M6: 5 | N6: 5 | O6: 5 | P6: 5 | Q6: 5 | R6: 50 | S6: 20 | T6: 70 | U6: 30 | V6: 5 | W6: 5 | X6: 5 | Y6: 5 | Z6: 5 | AA6: 5 | AB6: 50 | AC6: 20 | AD6: 70 | AE6: 30 | AG6: 5 | AH6: 5 | AI6: 5 | AJ6: 5 | AK6: 5 | AL6: 5 | AM6: 50 | AN6: 20 | AO6: 70 | AP6: 30 | AQ6: 5 | AR6: 5 | AS6: 5 | AT6: 5 | AU6: 5 | AV6: 5 | AW6: 50 | AX6: 20 | AY6: 70 | AZ6: 30 | BA6: 5 | BB6: 5 | BC6: 5 | BD6: 5 | BE6: 5 | BF6: 5 | BG6: 50 | BH6: 20 | BI6: 70 | BJ6: 30 | BK6: 5 | BL6: 5 | BM6: 5 | BN6: 5 | BO6: 5 | BP6: 5 | BQ6: 50 | BR6: 20 | BS6: 70 | BT6: 30 | BU6: 20 | BV6: 20 | BW6: 20 | BX6: 20 | BY6: 20 | BZ6: 20 | CA6: 20 | CB6: 20 | CC6: 20 | CD6: 20 | CE6: 20 | CF6: 20 | CG6: 20 | CH6: 20 | CI6: 20 | CJ6: 50 | CK6: 50 | CL6: 50 | CM6: 50 | CN6: 350 | CQ6: परम पूज्य गुरूदेव वासुदेव जी महाराज | DH6: 1 | DI6: 1 | DJ6: 2 | DK6: 2 | DL6: 3 | DM6: 3 | DN6: 4 | DO6: 4 | DP6: 5 | DQ6: 5 | DR6: 6 | DS6: 6 | DW6: =BK3 -> सामाजिक विज्ञान
A7: 1 | B7: 7 | C7: A | D7: 936 | E7: 28-10-2014 | F7: AAKIFA BANO | G7: SHABBIR MOHAMMAD | H7: HEENA KOUSER | I7: 701 | J7: F | K7: OBC | L7: 3 | M7: 4 | N7: 5 | O7: 3 | P7: 3 | Q7: 3 | R7: 39 | S7: 10 | T7: 39 | U7: 10 | V7: 1 | W7: 5 | X7: 2 | Y7: 5 | Z7: 4 | AA7: 5 | AB7: 39 | AC7: 11 | AD7: 50 | AE7: 10 | AF7: संस्कृत (71) | AG7: 4 | AH7: 4 | AI7: 4 | AJ7: 4 | AK7: 4 | AL7: 5 | AM7: 45 | AN7: 14 | AO7: 45 | AP7: 10 | AQ7: 5 | AR7: 5 | AS7: 5 | AT7: 5 | AU7: 5 | AV7: 5 | AW7: 31 | AX7: 10 | AY7: 31 | AZ7: 4 | BA7: 4 | BB7: 5 | BC7: 4 | BD7: 4 | BE7: 4 | BF7: 4 | BG7: 22 | BH7: 8 | BI7: 45 | BJ7: 4 | BK7: 4 | BL7: 4 | BM7: 4 | BN7: 4 | BO7: 5 | BP7: 5 | BQ7: 45 | BR7: 10 | BS7: 62 | BT7: 17 | BU7: 18 | BV7: 18 | BW7: 15 | BX7: 21 | BY7: 19 | BZ7: 11 | CA7: 15 | CB7: 12 | CC7: 17 | CD7: 20 | CE7: 16 | CF7: 16 | CG7: 21 | CH7: 21 | CI7: 21 | CJ7: 45 | CK7: 36 | CL7: 45 | CM7: 41 | CN7: 220 | CO7: 170 | DG7: =IF(I7="","",I7) -> 701 | DH7: =IF(AND(L7="",N7="",R7="",S7=""),"",SUM(L7,N7,R7,#REF!,S7)) ->  | DI7: =IFERROR(IF(DH7="","",ROUNDUP(DH7*20%,0)),"") ->  | DJ7: =IF(AND(V7="",X7="",AB7="",AC7=""),"",SUM(V7,X7,AB7,#REF!,AC7)) ->  | DK7: =IFERROR(IF(DJ7="","",ROUNDUP(DJ7*20%,0)),"") ->  | DL7: =IF(AND(AG7="",AH7="",AI7="",AM7=""),"",SUM(AG7,AH7,AI7,AJ7,AM7)) -> 61 | DM7: =IFERROR(IF(DL7="","",ROUNDUP(DL7*20%,0)),"") -> 13 | DN7: =IF(AND(AQ7="",AT7="",AW7="",AX7=""),"",SUM(AQ7,AT7,AW7,#REF!,AX7)) ->  | DO7: =IFERROR(IF(DN7="","",ROUNDUP(DN7*20%,0)),"") ->  | DP7: =IF(AND(BA7="",BD7="",BG7="",BH7=""),"",SUM(BA7,BD7,BG7,#REF!,BH7)) ->  | DQ7: =IFERROR(IF(DP7="","",ROUNDUP(DP7*20%,0)),"") ->  | DR7: =IF(AND(BK7="",BN7="",BQ7="",BR7=""),"",SUM(BK7,BN7,BQ7,#REF!,BR7)) ->  | DS7: =IFERROR(IF(DR7="","",ROUNDUP(DR7*20%,0)),"") -> 
A8: 2 | B8: 7 | C8: A | D8: 944 | E8: 2015-01-01 | F8: ANUJ GIRI | G8: BHAGWAT GIRI | H8: KANTA DEVI | I8: 702 | J8: M | K8: OBC | L8: 4 | M8: 5 | N8: 5 | O8: 5 | P8: 5 | Q8: 3 | R8: 37 | S8: 11 | T8: 37 | U8: 11 | V8: 2 | W8: 4 | X8: 2 | Y8: 5 | Z8: 4 | AA8: 5 | AB8: 37 | AC8: 12 | AD8: 37 | AE8: 9 | AF8: संस्कृत (71) | AG8: AB | AH8: AB | AI8: 4 | AJ8: 4 | AK8: 4 | AL8: 5 | AM8: 44 | AN8: 15 | AO8: 46 | AP8: 9 | AQ8: 4 | AR8: 4 | AS8: 4 | AT8: 4 | AU8: 4 | AV8: 5 | AW8: 31 | AX8: 11 | AY8: 31 | AZ8: 4 | BA8: 5 | BB8: 5 | BC8: 5 | BD8: 5 | BE8: 4 | BF8: 4 | BG8: 14 | BH8: 9 | BI8: 14 | BJ8: 4 | BK8: 5 | BL8: 5 | BM8: 4 | BN8: 4 | BO8: 3 | BP8: 3 | BQ8: 42 | BR8: 11 | BS8: 66 | BT8: 18 | BU8: 18 | BV8: 18 | BW8: 14 | BX8: 24 | BY8: 19 | BZ8: 11 | CA8: 16 | CB8: 13 | CC8: 17 | CD8: 20 | CE8: 15 | CF8: 16 | CG8: 21 | CH8: 21 | CI8: 21 | CJ8: 30 | CK8: 32 | CL8: 40 | CM8: 41 | CN8: 220 | CO8: 168 | CQ8: https://youtu.be/SrOW86gd-HE | DG8: =IF(I8="","",I8) -> 702 | DH8: =IF(AND(L8="",N8="",R8="",S8=""),"",SUM(L8,N8,R8,#REF!,S8)) ->  | DI8: =IFERROR(IF(DH8="","",ROUNDUP(DH8*20%,0)),"") ->  | DJ8: =IF(AND(V8="",X8="",AB8="",AC8=""),"",SUM(V8,X8,AB8,#REF!,AC8)) ->  | DK8: =IFERROR(IF(DJ8="","",ROUNDUP(DJ8*20%,0)),"") ->  | DL8: =IF(AND(AG8="",AH8="",AI8="",AM8=""),"",SUM(AG8,AH8,AI8,AJ8,AM8)) -> 52 | DM8: =IFERROR(IF(DL8="","",ROUNDUP(DL8*20%,0)),"") -> 11 | DN8: =IF(AND(AQ8="",AT8="",AW8="",AX8=""),"",SUM(AQ8,AT8,AW8,#REF!,AX8)) ->  | DO8: =IFERROR(IF(DN8="","",ROUNDUP(DN8*20%,0)),"") ->  | DP8: =IF(AND(BA8="",BD8="",BG8="",BH8=""),"",SUM(BA8,BD8,BG8,#REF!,BH8)) ->  | DQ8: =IFERROR(IF(DP8="","",ROUNDUP(DP8*20%,0)),"") ->  | DR8: =IF(AND(BK8="",BN8="",BQ8="",BR8=""),"",SUM(BK8,BN8,BQ8,#REF!,BR8)) ->  | DS8: =IFERROR(IF(DR8="","",ROUNDUP(DR8*20%,0)),"") -> 
A9: 3 | B9: 7 | C9: A | D9: 934 | E9: 2015-12-10 | F9: ARMAN HUSSAIN | G9: AARIF HUSSAIN | H9: SALMA BANO | I9: 703 | J9: M | K9: OBC | L9: 4 | M9: 5 | N9: 5 | O9: 5 | P9: 5 | Q9: 3 | R9: 38 | S9: 12 | T9: 37 | U9: 11 | V9: 3 | W9: 4 | X9: 2 | Y9: 5 | Z9: 4 | AA9: 5 | AB9: 40 | AC9: 11 | AD9: 37 | AE9: 8 | AF9: उर्दू (72) | AG9: 3 | AH9: 3 | AI9: 4 | AJ9: 4 | AK9: 5 | AL9: 5 | AM9: 42 | AN9: 14 | AO9: 41 | AP9: 8 | AQ9: 4 | AR9: 5 | AS9: 4 | AT9: 5 | AU9: 4 | AV9: 5 | AW9: 31 | AX9: 12 | AY9: 55 | AZ9: 8 | BA9: 5 | BB9: 5 | BC9: 5 | BD9: 5 | BE9: 4 | BF9: 4 | BG9: 23 | BH9: 10 | BI9: 58 | BJ9: 18 | BK9: 5 | BL9: 5 | BM9: 4 | BN9: 4 | BO9: 3 | BP9: 3 | BQ9: 42 | BR9: 12 | BS9: 66 | BT9: 18 | BU9: 19 | BV9: 18 | BW9: 15 | BX9: 24 | BY9: 19 | BZ9: 11 | CA9: 16 | CB9: 14 | CC9: 17 | CD9: 20 | CE9: 14 | CF9: 15 | CG9: 21 | CH9: 21 | CI9: 21 | CJ9: 41 | CK9: 42 | CL9: 43 | CM9: 44 | CN9: 360 | CO9: 160 | DG9: 703 | DH9: =IF(AND(L9="",N9="",R9="",S9=""),"",SUM(L9,N9,R9,#REF!,S9)) ->  | DJ9: =IF(AND(V9="",X9="",AB9="",AC9=""),"",SUM(V9,X9,AB9,#REF!,AC9)) ->  | DL9: 56 | DM9: 12 | DN9: =IF(AND(AQ9="",AT9="",AW9="",AX9=""),"",SUM(AQ9,AT9,AW9,#REF!,AX9)) ->  | DP9: =IF(AND(BA9="",BD9="",BG9="",BH9=""),"",SUM(BA9,BD9,BG9,#REF!,BH9)) ->  | DR9: =IF(AND(BK9="",BN9="",BQ9="",BR9=""),"",SUM(BK9,BN9,BQ9,#REF!,BR9)) -> 
A10: 4 | B10: 7 | C10: A | D10: 926 | E10: 2016-05-01 | F10: ARMAN SHAH | G10: JAKIR SHAH | H10: HEENA BANU | I10: 704 | J10: M | K10: OBC | L10: 4 | M10: 5 | N10: 5 | O10: 5 | P10: 5 | Q10: 3 | R10: 35 | S10: 11 | T10: 37 | U10: 11 | V10: 4 | W10: 4 | X10: AB | Y10: 5 | Z10: 4 | AA10: 5 | AB10: 41 | AC10: 10 | AD10: 37 | AE10: 7 | AF10: गुजराती (73) | AG10: 3 | AH10: 3 | AI10: 4 | AJ10: 4 | AK10: 5 | AL10: 5 | AM10: 42 | AN10: 18 | AO10: 40 | AP10: 6 | AQ10: 4 | AR10: 5 | AS10: 4 | AT10: 5 | AU10: 4 | AV10: 5 | AW10: 31 | AX10: 10 | AY10: 55 | AZ10: 8 | BA10: 5 | BB10: 5 | BC10: 5 | BD10: 5 | BE10: 4 | BF10: 4 | BG10: 25 | BH10: 11 | BI10: 58 | BJ10: 17 | BK10: 5 | BL10: 5 | BM10: 4 | BN10: 4 | BO10: 3 | BP10: 3 | BQ10: 42 | BR10: 10 | BS10: 66 | BT10: 18 | BU10: 19 | BV10: 18 | BW10: 16 | BX10: 20 | BY10: 19 | BZ10: 11 | CA10: 16 | CB10: 15 | CC10: 17 | CD10: 20 | CE10: 15 | CF10: 14 | CG10: 15 | CH10: 18 | CI10: 19 | CJ10: 48 | CK10: 47 | CL10: 46 | CM10: 45 | CN10: 220 | CO10: 188 | CQ10: Presented By :- | DG10: 704 | DH10: =IF(AND(L10="",N10="",R10="",S10=""),"",SUM(L10,N10,R10,#REF!,S10)) ->  | DJ10: =IF(AND(V10="",X10="",AB10="",AC10=""),"",SUM(V10,X10,AB10,#REF!,AC10)) ->  | DL10: 56 | DM10: 12 | DN10: =IF(AND(AQ10="",AT10="",AW10="",AX10=""),"",SUM(AQ10,AT10,AW10,#REF!,AX10)) ->  | DP10: =IF(AND(BA10="",BD10="",BG10="",BH10=""),"",SUM(BA10,BD10,BG10,#REF!,BH10)) ->  | DR10: =IF(AND(BK10="",BN10="",BQ10="",BR10=""),"",SUM(BK10,BN10,BQ10,#REF!,BR10)) -> 
A11: 5 | B11: 7 | C11: A | D11: 951 | E11: 25-08-2015 | F11: BHAVYANSH SINGH CHOUHAN | G11: AJIT SINGH | H11: MEENA | I11: 705 | J11: M | K11: GEN | L11: 4 | M11: 5 | N11: 5 | O11: 5 | P11: 5 | Q11: 3 | R11: ML | S11: 11 | T11: 37 | U11: 11 | V11: 5 | W11: 3 | X11: 3 | Y11: 5 | Z11: 4 | AA11: 5 | AB11: 40 | AC11: 10 | AD11: 37 | AE11: 6 | AF11: सिंधी (74) | AG11: ML | AH11: 4 | AI11: 4 | AJ11: 4 | AK11: 4 | AL11: 5 | AM11: 48 | AN11: 19 | AO11: 42 | AP11: 8 | AQ11: 4 | AR11: 5 | AS11: 4 | AT11: 5 | AU11: 4 | AV11: 5 | AW11: 31 | AX11: 8 | AY11: 55 | AZ11: 8 | BA11: 5 | BB11: 5 | BC11: 5 | BD11: 5 | BE11: 4 | BF11: 4 | BG11: 26 | BH11: 11 | BI11: 58 | BJ11: 16 | BK11: 5 | BL11: 5 | BM11: 4 | BN11: 4 | BO11: 3 | BP11: 3 | BQ11: 42 | BR11: 10 | BS11: 66 | BT11: 18 | BU11: 19 | BV11: 18 | BW11: 17 | BX11: 20 | BY11: 19 | BZ11: 11 | CA11: 16 | CB11: 16 | CC11: 17 | CD11: 20 | CE11: 16 | CF11: 18 | CG11: 15 | CH11: 18 | CI11: 19 | CJ11: 32 | CK11: 33 | CL11: 34 | CM11: 35 | CN11: 330 | CO11: 310 | DG11: 705 | DH11: =IF(AND(L11="",N11="",R11="",S11=""),"",SUM(L11,N11,R11,#REF!,S11)) ->  | DJ11: =IF(AND(V11="",X11="",AB11="",AC11=""),"",SUM(V11,X11,AB11,#REF!,AC11)) ->  | DL11: 60 | DM11: 12 | DN11: =IF(AND(AQ11="",AT11="",AW11="",AX11=""),"",SUM(AQ11,AT11,AW11,#REF!,AX11)) ->  | DP11: =IF(AND(BA11="",BD11="",BG11="",BH11=""),"",SUM(BA11,BD11,BG11,#REF!,BH11)) ->  | DR11: =IF(AND(BK11="",BN11="",BQ11="",BR11=""),"",SUM(BK11,BN11,BQ11,#REF!,BR11)) -> 
A12: 6 | B12: 7 | C12: A | D12: 939 | E12: 16-06-2014 | F12: BHUMIKA BAGRI | G12: MUKESH BAGRI | H12: SEEMA BAGRI | I12: 706 | J12: F | K12: OBC | L12: 4 | M12: 5 | N12: 5 | O12: 5 | P12: 5 | Q12: 3 | R12: 25 | S12: 11 | T12: 37 | U12: 11 | V12: 4 | W12: 3 | X12: 3 | Y12: 5 | Z12: 4 | AA12: 5 | AB12: 33 | AC12: 11 | AD12: 37 | AE12: 9 | AF12: पंजाबी (75) | AG12: 5 | AH12: 4 | AI12: 4 | AJ12: 4 | AK12: 4 | AL12: 5 | AM12: 48 | AN12: 19 | AO12: 43 | AP12: 8 | AQ12: 4 | AR12: 5 | AS12: 4 | AT12: 5 | AU12: 4 | AV12: 5 | AW12: 31 | AX12: 9 | AY12: 55 | AZ12: 8 | BA12: 5 | BB12: 5 | BC12: 5 | BD12: 5 | BE12: 4 | BF12: 4 | BG12: 28 | BH12: 11 | BI12: 58 | BJ12: 16 | BK12: 5 | BL12: 5 | BM12: 4 | BN12: 4 | BO12: 3 | BP12: 3 | BQ12: 42 | BR12: 10 | BS12: 66 | BT12: 18 | BU12: 19 | BV12: 18 | BW12: 18 | BX12: 20 | BY12: 19 | BZ12: 12 | CA12: 16 | CB12: 12 | CC12: 17 | CD12: 20 | CE12: 16 | CF12: 17 | CG12: 15 | CH12: 18 | CI12: 19 | CQ12: HEERA LAL JAT | DG12: 706 | DH12: =IF(AND(L12="",N12="",R12="",S12=""),"",SUM(L12,N12,R12,#REF!,S12)) ->  | DJ12: =IF(AND(V12="",X12="",AB12="",AC12=""),"",SUM(V12,X12,AB12,#REF!,AC12)) ->  | DL12: 65 | DM12: 13 | DN12: =IF(AND(AQ12="",AT12="",AW12="",AX12=""),"",SUM(AQ12,AT12,AW12,#REF!,AX12)) ->  | DP12: =IF(AND(BA12="",BD12="",BG12="",BH12=""),"",SUM(BA12,BD12,BG12,#REF!,BH12)) ->  | DR12: =IF(AND(BK12="",BN12="",BQ12="",BR12=""),"",SUM(BK12,BN12,BQ12,#REF!,BR12)) -> 
A13: 7 | B13: 7 | C13: A | D13: 942 | E13: 28-09-2015 | F13: DAKSH PRAJAPAT | G13: PRAKASH PRAJAPAT | H13: REKHA PRAJAPATI | I13: 707 | J13: M | K13: OBC | L13: 4 | M13: 5 | N13: 5 | O13: 5 | P13: 5 | Q13: 3 | R13: 39 | S13: 11 | T13: 37 | U13: 11 | V13: 4 | W13: 3 | X13: 3 | Y13: 5 | Z13: 5 | AA13: 5 | AB13: 39 | AC13: 12 | AD13: 37 | AE13: 8 | AF13: संस्कृत (71) | AG13: 5 | AH13: 4 | AI13: 4 | AJ13: 4 | AK13: 4 | AL13: 5 | AM13: 48 | AN13: 19 | AO13: 48 | AP13: 8 | AQ13: 4 | AR13: 5 | AS13: 4 | AT13: 5 | AU13: 4 | AV13: 5 | AW13: 31 | AX13: 10 | AY13: 55 | AZ13: 8 | BA13: 5 | BB13: 5 | BC13: 5 | BD13: 5 | BE13: 4 | BF13: 4 | BG13: 27 | BH13: 11 | BI13: 58 | BJ13: 16 | BK13: 5 | BL13: 5 | BM13: 4 | BN13: 4 | BO13: 3 | BP13: 3 | BQ13: 42 | BR13: 10 | BS13: 66 | BT13: 18 | BU13: 19 | BV13: 18 | BW13: 18 | BX13: 20 | BY13: 19 | BZ13: 13 | CA13: 16 | CB13: 12 | CC13: 17 | CD13: 20 | CE13: 16 | CF13: 19 | CG13: 15 | CH13: 18 | CI13: 19 | DG13: 707 | DH13: =IF(AND(L13="",N13="",R13="",S13=""),"",SUM(L13,N13,R13,#REF!,S13)) ->  | DJ13: =IF(AND(V13="",X13="",AB13="",AC13=""),"",SUM(V13,X13,AB13,#REF!,AC13)) ->  | DL13: 65 | DM13: 13 | DN13: =IF(AND(AQ13="",AT13="",AW13="",AX13=""),"",SUM(AQ13,AT13,AW13,#REF!,AX13)) ->  | DP13: =IF(AND(BA13="",BD13="",BG13="",BH13=""),"",SUM(BA13,BD13,BG13,#REF!,BH13)) ->  | DR13: =IF(AND(BK13="",BN13="",BQ13="",BR13=""),"",SUM(BK13,BN13,BQ13,#REF!,BR13)) -> 
A14: 8 | B14: 7 | C14: A | D14: 925 | E14: 26-10-2015 | F14: DIVYA BAGRI | G14: MUKESH | H14: SEEMA | I14: 708 | J14: F | K14: OBC | L14: 4 | M14: 5 | N14: 5 | O14: 5 | P14: 5 | Q14: 3 | R14: 37 | S14: 11 | T14: 37 | U14: 11 | V14: 4 | W14: 3 | X14: 3 | Y14: 5 | Z14: 5 | AA14: 5 | AB14: 45 | AC14: 10 | AD14: 37 | AE14: 7 | AF14: संस्कृत (71) | AG14: 5 | AH14: 4 | AI14: 4 | AJ14: 4 | AK14: 4 | AL14: 5 | AM14: 46 | AN14: 16 | AO14: 47 | AP14: 8 | AQ14: 4 | AR14: 5 | AS14: 4 | AT14: 5 | AU14: 4 | AV14: 5 | AW14: 31 | AX14: 11 | AY14: 55 | AZ14: 8 | BA14: 5 | BB14: 5 | BC14: 5 | BD14: 5 | BE14: 4 | BF14: 4 | BG14: 29 | BH14: 11 | BI14: 58 | BJ14: 16 | BK14: 5 | BL14: 5 | BM14: 4 | BN14: 4 | BO14: 3 | BP14: 3 | BQ14: 42 | BR14: 10 | BS14: 66 | BT14: 18 | BU14: 19 | BV14: 18 | BW14: 18 | BX14: 20 | BY14: 19 | BZ14: 13 | CA14: 16 | CB14: 12 | CC14: 17 | CD14: 20 | CE14: 16 | CF14: 14 | CG14: 15 | CH14: 18 | CI14: 19 | CQ14: Sr. Teacher at MGGS BAR (PALI) | DG14: 708 | DH14: =IF(AND(L14="",N14="",R14="",S14=""),"",SUM(L14,N14,R14,#REF!,S14)) ->  | DJ14: =IF(AND(V14="",X14="",AB14="",AC14=""),"",SUM(V14,X14,AB14,#REF!,AC14)) ->  | DL14: 63 | DM14: 13 | DN14: =IF(AND(AQ14="",AT14="",AW14="",AX14=""),"",SUM(AQ14,AT14,AW14,#REF!,AX14)) ->  | DP14: =IF(AND(BA14="",BD14="",BG14="",BH14=""),"",SUM(BA14,BD14,BG14,#REF!,BH14)) ->  | DR14: =IF(AND(BK14="",BN14="",BQ14="",BR14=""),"",SUM(BK14,BN14,BQ14,#REF!,BR14)) -> 
A15: 9 | B15: 7 | C15: A | D15: 952 | E15: 2015-02-12 | F15: DUSHYANT DAYAMA | G15: BASANT KUMAR DAYAMA | H15: PUSHPA DAYAMA | I15: 709 | J15: M | K15: SC | L15: 4 | M15: 5 | N15: 5 | O15: 5 | P15: 5 | Q15: 3 | R15: 35 | S15: 11 | T15: 37 | U15: 11 | V15: 4 | W15: 3 | X15: 4 | Y15: 5 | Z15: 5 | AA15: 5 | AB15: 46 | AC15: 9 | AD15: 37 | AE15: 9 | AF15: संस्कृत (71) | AG15: 5 | AH15: 4 | AI15: 4 | AJ15: 4 | AK15: 4 | AL15: 5 | AM15: 46 | AN15: 16 | AO15: 49 | AP15: 8 | AQ15: 4 | AR15: 5 | AS15: 4 | AT15: 5 | AU15: 4 | AV15: 5 | AW15: 31 | AX15: 9 | AY15: 55 | AZ15: 8 | BA15: 5 | BB15: 5 | BC15: 5 | BD15: 5 | BE15: 4 | BF15: 4 | BG15: 30 | BH15: 11 | BI15: 58 | BJ15: 16 | BK15: 5 | BL15: 5 | BM15: 4 | BN15: 4 | BO15: 3 | BP15: 3 | BQ15: 42 | BR15: 10 | BS15: 66 | BT15: 18 | BU15: 19 | BV15: 18 | BW15: 18 | BX15: 20 | BY15: 19 | BZ15: 14 | CA15: 16 | CB15: 12 | CC15: 17 | CD15: 20 | CE15: 16 | CF15: 14 | CG15: 15 | CH15: 18 | CI15: 19 | DG15: 709 | DH15: =IF(AND(L15="",N15="",R15="",S15=""),"",SUM(L15,N15,R15,#REF!,S15)) ->  | DJ15: =IF(AND(V15="",X15="",AB15="",AC15=""),"",SUM(V15,X15,AB15,#REF!,AC15)) ->  | DL15: 63 | DM15: 13 | DN15: =IF(AND(AQ15="",AT15="",AW15="",AX15=""),"",SUM(AQ15,AT15,AW15,#REF!,AX15)) ->  | DP15: =IF(AND(BA15="",BD15="",BG15="",BH15=""),"",SUM(BA15,BD15,BG15,#REF!,BH15)) ->  | DR15: =IF(AND(BK15="",BN15="",BQ15="",BR15=""),"",SUM(BK15,BN15,BQ15,#REF!,BR15)) -> 
A16: 10 | B16: 7 | C16: A | D16: 931 | E16: 23-10-2015 | F16: GUNEET CHOUHAN | G16: KAILASH CHOUHAN | H16: PUSHPA DEVI | I16: 710 | J16: M | K16: OBC | L16: AB | M16: 2 | N16: 2 | O16: 2 | P16: 2 | Q16: 5 | R16: 36 | S16: 11 | T16: 37 | U16: 11 | V16: 5 | W16: 5 | X16: 5 | Y16: 5 | Z16: 5 | AA16: 5 | AB16: 47 | AC16: 16 | AD16: 45 | AE16: 25 | AF16: संस्कृत (71) | AG16: 5 | AH16: 4 | AI16: 4 | AJ16: 4 | AK16: 4 | AL16: 5 | AM16: 46 | AN16: 16 | AO16: 45 | AP16: 8 | AQ16: 4 | AR16: 5 | AS16: 4 | AT16: 5 | AU16: 4 | AV16: 5 | AW16: ML | AX16: 9 | AY16: 55 | AZ16: 8 | BA16: 5 | BB16: 5 | BC16: 5 | BD16: 5 | BE16: 4 | BF16: 4 | BG16: 32 | BH16: 11 | BI16: 58 | BJ16: 16 | BK16: 5 | BL16: 5 | BM16: 4 | BN16: 4 | BO16: 3 | BP16: 3 | BQ16: 42 | BR16: 10 | BS16: 66 | BT16: 18 | BU16: 19 | BV16: 18 | BW16: 18 | BX16: 20 | BY16: 19 | BZ16: 15 | CA16: 16 | CB16: 12 | CC16: 17 | CD16: 20 | CE16: 16 | CF16: 14 | CG16: 15 | CH16: 18 | CI16: 19 | CQ16: V./P. - CHANDAWAL NAGAR , SOJAT (PALI) | DG16: 710 | DH16: =IF(AND(L16="",N16="",R16="",S16=""),"",SUM(L16,N16,R16,#REF!,S16)) ->  | DJ16: =IF(AND(V16="",X16="",AB16="",AC16=""),"",SUM(V16,X16,AB16,#REF!,AC16)) ->  | DL16: 63 | DM16: 13 | DN16: =IF(AND(AQ16="",AT16="",AW16="",AX16=""),"",SUM(AQ16,AT16,AW16,#REF!,AX16)) ->  | DP16: =IF(AND(BA16="",BD16="",BG16="",BH16=""),"",SUM(BA16,BD16,BG16,#REF!,BH16)) ->  | DR16: =IF(AND(BK16="",BN16="",BQ16="",BR16=""),"",SUM(BK16,BN16,BQ16,#REF!,BR16)) -> 
A17: 11 | B17: 7 | C17: A | D17: 932 | E17: 2015-11-11 | F17: रमेश चन्द्र | G17: दिनेश चन्द्र | H17: चंद्रा | I17: 711 | J17: M | K17: GEN | L17: 4 | M17: 4 | N17: 4 | O17: 4 | P17: 4 | Q17: 4 | R17: 39 | S17: 15 | T17: 55 | U17: 21 | V17: 5 | W17: 5 | X17: 5 | Y17: 5 | Z17: 5 | AA17: 5 | AB17: 47 | AC17: 16 | AD17: 45 | AE17: 25 | AF17: संस्कृत (71) | AG17: 5 | AH17: 4 | AI17: 4 | AJ17: 4 | AK17: 4 | AL17: 5 | AM17: 46 | AN17: 16 | AO17: 46 | AP17: 9 | AQ17: 4 | AR17: 5 | AS17: 4 | AT17: 5 | AU17: 4 | AV17: 5 | AW17: AB | AX17: 9 | AY17: 55 | AZ17: 8 | BA17: 5 | BB17: 5 | BC17: 5 | BD17: 5 | BE17: 4 | BF17: 4 | BG17: 25 | BH17: 11 | BI17: 58 | BJ17: 16 | BK17: 5 | BL17: 5 | BM17: 4 | BN17: 4 | BO17: 3 | BP17: 3 | BQ17: 42 | BR17: 9 | BS17: 66 | BT17: 18 | BU17: 19 | BV17: 18 | BW17: 18 | BX17: 20 | BY17: 19 | BZ17: 15 | CA17: 16 | CB17: 12 | CC17: 17 | CD17: 20 | CE17: 16 | CF17: 14 | CG17: 15 | CH17: 18 | CI17: 19 | DG17: 711 | DH17: =IF(AND(L17="",N17="",R17="",S17=""),"",SUM(L17,N17,R17,#REF!,S17)) ->  | DJ17: =IF(AND(V17="",X17="",AB17="",AC17=""),"",SUM(V17,X17,AB17,#REF!,AC17)) ->  | DL17: 63 | DM17: 13 | DN17: =IF(AND(AQ17="",AT17="",AW17="",AX17=""),"",SUM(AQ17,AT17,AW17,#REF!,AX17)) ->  | DP17: =IF(AND(BA17="",BD17="",BG17="",BH17=""),"",SUM(BA17,BD17,BG17,#REF!,BH17)) ->  | DR17: =IF(AND(BK17="",BN17="",BQ17="",BR17=""),"",SUM(BK17,BN17,BQ17,#REF!,BR17)) -> 
A18: 12 | B18: 7 | C18: A | D18: 933 | E18: 2015-10-10 | F18: राहुल | G18: रोहित | H18: मोहिनी | I18: 712 | J18: M | K18: OBC | L18: 4 | M18: 4 | N18: 4 | O18: 4 | P18: 4 | Q18: 4 | R18: 39 | S18: 15 | T18: 55 | U18: 21 | V18: 5 | W18: 5 | X18: 5 | Y18: 5 | Z18: 5 | AA18: 5 | AB18: 47 | AC18: 16 | AD18: 45 | AE18: 25 | AF18: संस्कृत (71) | AG18: 5 | AH18: 4 | AI18: 4 | AJ18: 4 | AK18: 4 | AL18: 5 | AM18: 46 | AN18: 16 | AO18: 63 | AP18: 10 | AQ18: NA | AR18: 4 | AS18: 3 | AT18: 3 | AU18: 3 | AV18: 3 | AW18: 30 | AX18: 9 | AY18: 55 | AZ18: 8 | BA18: 5 | BB18: 5 | BC18: 5 | BD18: 5 | BE18: 4 | BF18: 4 | BG18: 29 | BH18: 11 | BI18: 58 | BJ18: 16 | BK18: 5 | BL18: 5 | BM18: 4 | BN18: 4 | BO18: 3 | BP18: 3 | BQ18: 42 | BR18: 8 | BS18: 66 | BT18: 18 | BU18: 19 | BV18: 18 | BW18: 18 | BX18: 20 | BY18: 19 | BZ18: 15 | CA18: 16 | CB18: 12 | CC18: 17 | CD18: 20 | CE18: 16 | CF18: 14 | CG18: 15 | CH18: 18 | CI18: 19 | DG18: 712 | DH18: =IF(AND(L18="",N18="",R18="",S18=""),"",SUM(L18,N18,R18,#REF!,S18)) ->  | DJ18: =IF(AND(V18="",X18="",AB18="",AC18=""),"",SUM(V18,X18,AB18,#REF!,AC18)) ->  | DL18: 63 | DM18: 13 | DN18: =IF(AND(AQ18="",AT18="",AW18="",AX18=""),"",SUM(AQ18,AT18,AW18,#REF!,AX18)) ->  | DP18: =IF(AND(BA18="",BD18="",BG18="",BH18=""),"",SUM(BA18,BD18,BG18,#REF!,BH18)) ->  | DR18: =IF(AND(BK18="",BN18="",BQ18="",BR18=""),"",SUM(BK18,BN18,BQ18,#REF!,BR18)) -> 
A19: 13 | L19: 4 | M19: 4 | N19: 4 | O19: 4 | P19: 4 | Q19: 4 | R19: 39 | S19: 15 | T19: 55 | U19: 21 | V19: 5 | W19: 5 | X19: 5 | Y19: 5 | Z19: 5 | AA19: 5 | AB19: 47 | AC19: 16 | AD19: 45 | AE19: 25 | AF19: संस्कृत (71) | AG19: 5 | AH19: 4 | AI19: 4 | AJ19: 4 | AK19: 4 | AL19: 5 | AM19: 46 | AN19: 16 | AO19: 63 | AP19: 8 | AQ19: 5 | AR19: 4 | AS19: 5 | AT19: 4 | AU19: 5 | AV19: 4 | AW19: 31 | AX19: 9 | AY19: 55 | AZ19: 8 | BA19: 5 | BB19: 5 | BC19: 5 | BD19: 5 | BE19: 4 | BF19: 4 | BG19: 28 | BH19: 11 | BI19: 58 | BJ19: 16 | BK19: 5 | BL19: 5 | BM19: 4 | BN19: 4 | BO19: 3 | BP19: 3 | BQ19: 42 | BR19: 8 | BS19: 66 | BT19: 18 | BU19: 19 | BV19: 18 | BW19: 18 | BX19: 20 | BY19: 19 | BZ19: 15 | CA19: 16 | CB19: 12 | CC19: 17 | CD19: 20 | CE19: 16 | CF19: 14 | CG19: 15 | CH19: 18 | CI19: 19 | DH19: =IF(AND(L19="",N19="",R19="",S19=""),"",SUM(L19,N19,R19,#REF!,S19)) ->  | DJ19: =IF(AND(V19="",X19="",AB19="",AC19=""),"",SUM(V19,X19,AB19,#REF!,AC19)) ->  | DL19: 63 | DM19: 13 | DN19: =IF(AND(AQ19="",AT19="",AW19="",AX19=""),"",SUM(AQ19,AT19,AW19,#REF!,AX19)) ->  | DP19: =IF(AND(BA19="",BD19="",BG19="",BH19=""),"",SUM(BA19,BD19,BG19,#REF!,BH19)) ->  | DR19: =IF(AND(BK19="",BN19="",BQ19="",BR19=""),"",SUM(BK19,BN19,BQ19,#REF!,BR19)) -> 
A20: 14 | L20: 4 | M20: 4 | N20: 4 | O20: 4 | P20: 4 | Q20: 4 | R20: 39 | S20: 15 | T20: 55 | U20: 21 | V20: 5 | W20: 5 | X20: 5 | Y20: 5 | Z20: 5 | AA20: 5 | AB20: 47 | AC20: 16 | AD20: 45 | AE20: 25 | AF20: संस्कृत (71) | AG20: 5 | AH20: 4 | AI20: 4 | AJ20: 4 | AK20: 4 | AL20: 5 | AM20: 46 | AN20: 16 | AO20: 69 | AP20: 9 | AQ20: 5 | AR20: 4 | AS20: 5 | AT20: 4 | AU20: 5 | AV20: 4 | AW20: 31 | AX20: 9 | AY20: 55 | AZ20: 8 | BA20: 5 | BB20: 5 | BC20: 5 | BD20: 5 | BE20: 4 | BF20: 4 | BG20: 27 | BH20: 12 | BI20: 58 | BJ20: 16 | BK20: 5 | BL20: 5 | BM20: 4 | BN20: 4 | BO20: 3 | BP20: 3 | BQ20: 42 | BR20: 10 | BS20: 66 | BT20: 18 | DH20: =IF(AND(L20="",N20="",R20="",S20=""),"",SUM(L20,N20,R20,#REF!,S20)) ->  | DJ20: =IF(AND(V20="",X20="",AB20="",AC20=""),"",SUM(V20,X20,AB20,#REF!,AC20)) ->  | DL20: 63 | DM20: 13 | DN20: =IF(AND(AQ20="",AT20="",AW20="",AX20=""),"",SUM(AQ20,AT20,AW20,#REF!,AX20)) ->  | DP20: =IF(AND(BA20="",BD20="",BG20="",BH20=""),"",SUM(BA20,BD20,BG20,#REF!,BH20)) ->  | DR20: =IF(AND(BK20="",BN20="",BQ20="",BR20=""),"",SUM(BK20,BN20,BQ20,#REF!,BR20)) -> 
A21: 15 | L21: 4 | M21: 4 | N21: 4 | O21: 4 | P21: 4 | Q21: 4 | R21: 39 | S21: 15 | T21: 55 | U21: 21 | V21: 5 | W21: 5 | X21: 5 | Y21: 5 | Z21: 5 | AA21: 5 | AB21: 47 | AC21: 16 | AD21: 45 | AE21: 25 | AF21: संस्कृत (71) | AG21: 5 | AH21: 4 | AI21: 4 | AJ21: 4 | AK21: 4 | AL21: 5 | AM21: 46 | AN21: 16 | AO21: 69 | AP21: 9 | AQ21: 5 | AR21: 4 | AS21: 5 | AT21: 4 | AU21: 5 | AV21: 4 | AW21: 31 | AX21: 9 | AY21: 55 | AZ21: 8 | BA21: 5 | BB21: 5 | BC21: 5 | BD21: 5 | BE21: 4 | BF21: 4 | BG21: 24 | BH21: 12 | BI21: 58 | BJ21: 16 | BK21: 5 | BL21: 5 | BM21: 4 | BN21: 4 | BO21: 3 | BP21: 3 | BQ21: 42 | BR21: 12 | BS21: 66 | BT21: 18 | DH21: =IF(AND(L21="",N21="",R21="",S21=""),"",SUM(L21,N21,R21,#REF!,S21)) ->  | DJ21: =IF(AND(V21="",X21="",AB21="",AC21=""),"",SUM(V21,X21,AB21,#REF!,AC21)) ->  | DL21: 63 | DM21: 13 | DN21: =IF(AND(AQ21="",AT21="",AW21="",AX21=""),"",SUM(AQ21,AT21,AW21,#REF!,AX21)) ->  | DP21: =IF(AND(BA21="",BD21="",BG21="",BH21=""),"",SUM(BA21,BD21,BG21,#REF!,BH21)) ->  | DR21: =IF(AND(BK21="",BN21="",BQ21="",BR21=""),"",SUM(BK21,BN21,BQ21,#REF!,BR21)) -> 
A22: 16 | L22: 4 | M22: 4 | N22: 4 | O22: 4 | P22: 4 | Q22: 4 | R22: 39 | S22: 15 | T22: 55 | U22: 21 | V22: 5 | W22: 5 | X22: 5 | Y22: 5 | Z22: 5 | AA22: 5 | AB22: 47 | AC22: 16 | AD22: 45 | AE22: 25 | AF22: संस्कृत (71) | AG22: 5 | AH22: 4 | AI22: 4 | AJ22: 4 | AK22: 4 | AL22: 5 | AM22: 46 | AN22: 16 | AO22: 69 | AP22: 9 | AQ22: 5 | AR22: 4 | AS22: 5 | AT22: 4 | AU22: 5 | AV22: 4 | AW22: 31 | AX22: 9 | AY22: 55 | AZ22: 8 | BA22: 5 | BB22: 5 | BC22: 5 | BD22: 5 | BE22: 4 | BF22: 4 | BG22: 21 | BH22: 12 | BI22: 58 | BJ22: 16 | BK22: 5 | BL22: 5 | BM22: 4 | BN22: 4 | BO22: 3 | BP22: 3 | BQ22: 42 | BR22: 10 | BS22: 66 | BT22: 18 | DH22: =IF(AND(L22="",N22="",R22="",S22=""),"",SUM(L22,N22,R22,#REF!,S22)) ->  | DJ22: =IF(AND(V22="",X22="",AB22="",AC22=""),"",SUM(V22,X22,AB22,#REF!,AC22)) ->  | DL22: 63 | DM22: 13 | DN22: =IF(AND(AQ22="",AT22="",AW22="",AX22=""),"",SUM(AQ22,AT22,AW22,#REF!,AX22)) ->  | DP22: =IF(AND(BA22="",BD22="",BG22="",BH22=""),"",SUM(BA22,BD22,BG22,#REF!,BH22)) ->  | DR22: =IF(AND(BK22="",BN22="",BQ22="",BR22=""),"",SUM(BK22,BN22,BQ22,#REF!,BR22)) -> 
A23: 17 | L23: 4 | M23: 4 | N23: 4 | O23: 4 | P23: 4 | Q23: 4 | R23: 39 | S23: 15 | T23: 55 | U23: 21 | V23: 5 | W23: 5 | X23: 5 | Y23: 5 | Z23: 5 | AA23: 5 | AB23: 47 | AC23: 16 | AD23: 45 | AE23: 25 | AF23: संस्कृत (71) | AG23: 5 | AH23: 4 | AI23: 4 | AJ23: 4 | AK23: 4 | AL23: 5 | AM23: 46 | AN23: 16 | AO23: 63 | AP23: 9 | AQ23: 5 | AR23: 4 | AS23: 5 | AT23: 4 | AU23: 5 | AV23: 4 | AW23: 31 | AX23: 9 | AY23: 55 | AZ23: 8 | BA23: 5 | BB23: 5 | BC23: 5 | BD23: 5 | BE23: 4 | BF23: 4 | BG23: 32 | BH23: 12 | BI23: 58 | BJ23: 16 | BK23: 5 | BL23: 5 | BM23: 4 | BN23: 4 | BO23: 3 | BP23: 3 | BQ23: 42 | BR23: 10 | BS23: 66 | BT23: 18 | DH23: =IF(AND(L23="",N23="",R23="",S23=""),"",SUM(L23,N23,R23,#REF!,S23)) ->  | DJ23: =IF(AND(V23="",X23="",AB23="",AC23=""),"",SUM(V23,X23,AB23,#REF!,AC23)) ->  | DL23: 63 | DM23: 13 | DN23: =IF(AND(AQ23="",AT23="",AW23="",AX23=""),"",SUM(AQ23,AT23,AW23,#REF!,AX23)) ->  | DP23: =IF(AND(BA23="",BD23="",BG23="",BH23=""),"",SUM(BA23,BD23,BG23,#REF!,BH23)) ->  | DR23: =IF(AND(BK23="",BN23="",BQ23="",BR23=""),"",SUM(BK23,BN23,BQ23,#REF!,BR23)) -> 
A24: 18 | L24: 4 | M24: 4 | N24: 4 | O24: 4 | P24: 4 | Q24: 4 | R24: 39 | S24: 15 | T24: 55 | U24: 21 | V24: 5 | W24: 5 | X24: 5 | Y24: 5 | Z24: 5 | AA24: 5 | AB24: 47 | AC24: 16 | AD24: 45 | AE24: 25 | AF24: उर्दू (72) | AG24: 5 | AH24: 4 | AI24: 4 | AJ24: 4 | AK24: 4 | AL24: 5 | AM24: 46 | AN24: 16 | AO24: 69 | AP24: 9 | AQ24: 5 | AR24: 4 | AS24: 5 | AT24: 4 | AU24: 5 | AV24: 4 | AW24: 31 | AX24: 9 | AY24: 55 | AZ24: 8 | BA24: 5 | BB24: 5 | BC24: 5 | BD24: 5 | BE24: 4 | BF24: 4 | BG24: 30 | BH24: 12 | BI24: 58 | BJ24: 16 | BK24: 5 | BL24: 5 | BM24: 4 | BN24: 4 | BO24: 3 | BP24: 3 | BQ24: 42 | BR24: 11 | BS24: 62 | BT24: 18 | DH24: =IF(AND(L24="",N24="",R24="",S24=""),"",SUM(L24,N24,R24,#REF!,S24)) ->  | DJ24: =IF(AND(V24="",X24="",AB24="",AC24=""),"",SUM(V24,X24,AB24,#REF!,AC24)) ->  | DL24: 63 | DM24: 13 | DN24: =IF(AND(AQ24="",AT24="",AW24="",AX24=""),"",SUM(AQ24,AT24,AW24,#REF!,AX24)) ->  | DP24: =IF(AND(BA24="",BD24="",BG24="",BH24=""),"",SUM(BA24,BD24,BG24,#REF!,BH24)) ->  | DR24: =IF(AND(BK24="",BN24="",BQ24="",BR24=""),"",SUM(BK24,BN24,BQ24,#REF!,BR24)) -> 
A25: 19 | L25: 4 | M25: 4 | N25: 4 | O25: 4 | P25: 4 | Q25: 4 | R25: 39 | S25: 15 | T25: 55 | U25: 21 | V25: 5 | W25: 5 | X25: 5 | Y25: 5 | Z25: 5 | AA25: 5 | AB25: 47 | AC25: 16 | AD25: 45 | AE25: 25 | AF25: उर्दू (72) | AG25: 5 | AH25: 4 | AI25: 4 | AJ25: 4 | AK25: 4 | AL25: 5 | AM25: 46 | AN25: 16 | AO25: 63 | AP25: 9 | AQ25: 5 | AR25: 4 | AS25: 5 | AT25: 4 | AU25: 5 | AV25: 4 | AW25: 31 | AX25: 9 | AY25: 55 | AZ25: 8 | BA25: 5 | BB25: 5 | BC25: 5 | BD25: 5 | BE25: 4 | BF25: 4 | BG25: 31 | BH25: 10 | BI25: 58 | BJ25: 16 | BK25: 5 | BL25: 5 | BM25: 4 | BN25: 4 | BO25: 3 | BP25: 3 | BQ25: 42 | BR25: 10 | BS25: 61 | BT25: 18 | CS25: तृतीय भाषा | CT25: Third Lang. | DH25: =IF(AND(L25="",N25="",R25="",S25=""),"",SUM(L25,N25,R25,#REF!,S25)) ->  | DJ25: =IF(AND(V25="",X25="",AB25="",AC25=""),"",SUM(V25,X25,AB25,#REF!,AC25)) ->  | DL25: 63 | DM25: 13 | DN25: =IF(AND(AQ25="",AT25="",AW25="",AX25=""),"",SUM(AQ25,AT25,AW25,#REF!,AX25)) ->  | DP25: =IF(AND(BA25="",BD25="",BG25="",BH25=""),"",SUM(BA25,BD25,BG25,#REF!,BH25)) ->  | DR25: =IF(AND(BK25="",BN25="",BQ25="",BR25=""),"",SUM(BK25,BN25,BQ25,#REF!,BR25)) -> 
A26: 20 | L26: 4 | M26: 4 | N26: 4 | O26: 4 | P26: 4 | Q26: 4 | R26: 39 | S26: 15 | T26: 55 | U26: 21 | V26: 5 | W26: 5 | X26: 5 | Y26: 5 | Z26: 5 | AA26: 5 | AB26: 47 | AC26: 16 | AD26: 45 | AE26: 25 | AF26: गुजराती (73) | AG26: 5 | AH26: 4 | AI26: 4 | AJ26: 4 | AK26: 4 | AL26: 5 | AM26: 46 | AN26: 16 | AO26: 65 | AP26: 8 | AQ26: 5 | AR26: 4 | AS26: 5 | AT26: 4 | AU26: 5 | AV26: 4 | AW26: 31 | AX26: 9 | AY26: 55 | AZ26: 8 | BA26: 5 | BB26: 5 | BC26: 5 | BD26: 5 | BE26: 4 | BF26: 4 | BG26: 32 | BH26: 10 | BI26: 58 | BJ26: 16 | BK26: 5 | BL26: 5 | BM26: 4 | BN26: 4 | BO26: 3 | BP26: 3 | BQ26: 42 | BR26: 10 | BS26: 62 | BT26: 18 | CS26: संस्कृत (71) | CT26: Sanskrit (71) | DH26: =IF(AND(L26="",N26="",R26="",S26=""),"",SUM(L26,N26,R26,#REF!,S26)) ->  | DJ26: =IF(AND(V26="",X26="",AB26="",AC26=""),"",SUM(V26,X26,AB26,#REF!,AC26)) ->  | DL26: 63 | DM26: 13 | DN26: =IF(AND(AQ26="",AT26="",AW26="",AX26=""),"",SUM(AQ26,AT26,AW26,#REF!,AX26)) ->  | DP26: =IF(AND(BA26="",BD26="",BG26="",BH26=""),"",SUM(BA26,BD26,BG26,#REF!,BH26)) ->  | DR26: =IF(AND(BK26="",BN26="",BQ26="",BR26=""),"",SUM(BK26,BN26,BQ26,#REF!,BR26)) -> 
A27: 21 | L27: 4 | M27: 4 | N27: 4 | O27: 4 | P27: 4 | Q27: 4 | R27: 39 | S27: 15 | T27: 55 | U27: 21 | V27: 5 | W27: 5 | X27: 5 | Y27: 5 | Z27: 5 | AA27: 5 | AB27: 47 | AC27: 16 | AD27: 45 | AE27: 25 | AF27: गुजराती (73) | AG27: 5 | AH27: 4 | AI27: 4 | AJ27: 4 | AK27: 4 | AL27: 5 | AM27: 46 | AN27: 16 | AO27: 61 | AP27: 7 | AQ27: 5 | AR27: 4 | AS27: 5 | AT27: 4 | AU27: 5 | AV27: 4 | AW27: 31 | AX27: 9 | AY27: 55 | AZ27: 8 | BA27: 5 | BB27: 5 | BC27: 5 | BD27: 5 | BE27: 4 | BF27: 4 | BG27: 15 | BH27: 10 | BI27: 58 | BJ27: 16 | BK27: 5 | BL27: 5 | BM27: 4 | BN27: 4 | BO27: 3 | BP27: 3 | BQ27: 42 | BR27: 10 | BS27: 62 | BT27: 18 | CS27: उर्दू (72) | CT27: Urdu (72) | DH27: =IF(AND(L27="",N27="",R27="",S27=""),"",SUM(L27,N27,R27,#REF!,S27)) ->  | DJ27: =IF(AND(V27="",X27="",AB27="",AC27=""),"",SUM(V27,X27,AB27,#REF!,AC27)) ->  | DL27: 63 | DM27: 13 | DN27: =IF(AND(AQ27="",AT27="",AW27="",AX27=""),"",SUM(AQ27,AT27,AW27,#REF!,AX27)) ->  | DP27: =IF(AND(BA27="",BD27="",BG27="",BH27=""),"",SUM(BA27,BD27,BG27,#REF!,BH27)) ->  | DR27: =IF(AND(BK27="",BN27="",BQ27="",BR27=""),"",SUM(BK27,BN27,BQ27,#REF!,BR27)) -> 
A28: 22 | L28: 4 | M28: 4 | N28: 4 | O28: 4 | P28: 4 | Q28: 4 | R28: 39 | S28: 15 | T28: 55 | U28: 21 | V28: 5 | W28: 5 | X28: 5 | Y28: 5 | Z28: 5 | AA28: 5 | AB28: 47 | AC28: 16 | AD28: 45 | AE28: 25 | AF28: सिंधी (74) | AG28: 5 | AH28: 4 | AI28: 4 | AJ28: 4 | AK28: 4 | AL28: 5 | AM28: 46 | AN28: 16 | AO28: 62 | AP28: 6 | AQ28: 5 | AR28: 4 | AS28: 5 | AT28: 4 | AU28: 5 | AV28: 4 | AW28: 31 | AX28: 9 | AY28: 55 | AZ28: 8 | BA28: 5 | BB28: 5 | BC28: 5 | BD28: 5 | BE28: 4 | BF28: 4 | BG28: 16 | BH28: 10 | BI28: 58 | BJ28: 16 | BK28: 5 | BL28: 5 | BM28: 4 | BN28: 4 | BO28: 3 | BP28: 3 | BQ28: 42 | BR28: 10 | BS28: 62 | BT28: 18 | CS28: गुजराती (73) | CT28: Gujrati (73) | DH28: =IF(AND(L28="",N28="",R28="",S28=""),"",SUM(L28,N28,R28,#REF!,S28)) ->  | DJ28: =IF(AND(V28="",X28="",AB28="",AC28=""),"",SUM(V28,X28,AB28,#REF!,AC28)) ->  | DL28: 63 | DM28: 13 | DN28: =IF(AND(AQ28="",AT28="",AW28="",AX28=""),"",SUM(AQ28,AT28,AW28,#REF!,AX28)) ->  | DP28: =IF(AND(BA28="",BD28="",BG28="",BH28=""),"",SUM(BA28,BD28,BG28,#REF!,BH28)) ->  | DR28: =IF(AND(BK28="",BN28="",BQ28="",BR28=""),"",SUM(BK28,BN28,BQ28,#REF!,BR28)) -> 
A29: 23 | L29: 4 | M29: 4 | N29: 4 | O29: 4 | P29: 4 | Q29: 4 | R29: 39 | S29: 15 | T29: 55 | U29: 21 | V29: 5 | W29: 5 | X29: 5 | Y29: 5 | Z29: 5 | AA29: 5 | AB29: 47 | AC29: 16 | AD29: 45 | AE29: 25 | AF29: सिंधी (74) | AG29: 5 | AH29: 4 | AI29: 4 | AJ29: 4 | AK29: 4 | AL29: 5 | AM29: 46 | AN29: 16 | AO29: 9 | AP29: 9 | AQ29: 5 | AR29: 4 | AS29: 5 | AT29: 4 | AU29: 5 | AV29: 4 | AW29: 31 | AX29: 9 | AY29: 55 | AZ29: 8 | BA29: 5 | BB29: 5 | BC29: 5 | BD29: 5 | BE29: 4 | BF29: 4 | BG29: 25 | BH29: 9 | BI29: 58 | BJ29: 16 | BK29: 5 | BL29: 5 | BM29: 4 | BN29: 4 | BO29: 3 | BP29: 3 | BQ29: 42 | BR29: 10 | BS29: 62 | BT29: 18 | CS29: सिंधी (74) | CT29: Sindhi (74) | DH29: =IF(AND(L29="",N29="",R29="",S29=""),"",SUM(L29,N29,R29,#REF!,S29)) ->  | DJ29: =IF(AND(V29="",X29="",AB29="",AC29=""),"",SUM(V29,X29,AB29,#REF!,AC29)) ->  | DL29: 63 | DM29: 13 | DN29: =IF(AND(AQ29="",AT29="",AW29="",AX29=""),"",SUM(AQ29,AT29,AW29,#REF!,AX29)) ->  | DP29: =IF(AND(BA29="",BD29="",BG29="",BH29=""),"",SUM(BA29,BD29,BG29,#REF!,BH29)) ->  | DR29: =IF(AND(BK29="",BN29="",BQ29="",BR29=""),"",SUM(BK29,BN29,BQ29,#REF!,BR29)) -> 
A30: 24 | L30: 4 | M30: 4 | N30: 4 | O30: 4 | P30: 4 | Q30: 4 | R30: 39 | S30: 15 | T30: 55 | U30: 21 | V30: 5 | W30: 5 | X30: 5 | Y30: 5 | Z30: 5 | AA30: 5 | AB30: 47 | AC30: 16 | AD30: 45 | AE30: 25 | AF30: पंजाबी (75) | AG30: 5 | AH30: 4 | AI30: 4 | AJ30: 4 | AK30: 4 | AL30: 5 | AM30: 46 | AN30: 16 | AO30: 9 | AP30: 9 | AQ30: 5 | AR30: 4 | AS30: 5 | AT30: 4 | AU30: 5 | AV30: 4 | AW30: 31 | AX30: 9 | AY30: 55 | AZ30: 8 | BA30: 5 | BB30: 5 | BC30: 5 | BD30: 5 | BE30: 4 | BF30: 4 | BG30: 32 | BH30: 9 | BI30: 58 | BJ30: 16 | BK30: 5 | BL30: 5 | BM30: 4 | BN30: 4 | BO30: 3 | BP30: 3 | BQ30: 42 | BR30: 10 | BS30: 62 | BT30: 18 | CS30: पंजाबी (75) | CT30: Punjabi (75) | DH30: =IF(AND(L30="",N30="",R30="",S30=""),"",SUM(L30,N30,R30,#REF!,S30)) ->  | DJ30: =IF(AND(V30="",X30="",AB30="",AC30=""),"",SUM(V30,X30,AB30,#REF!,AC30)) ->  | DL30: 63 | DM30: 13 | DN30: =IF(AND(AQ30="",AT30="",AW30="",AX30=""),"",SUM(AQ30,AT30,AW30,#REF!,AX30)) ->  | DP30: =IF(AND(BA30="",BD30="",BG30="",BH30=""),"",SUM(BA30,BD30,BG30,#REF!,BH30)) ->  | DR30: =IF(AND(BK30="",BN30="",BQ30="",BR30=""),"",SUM(BK30,BN30,BQ30,#REF!,BR30)) -> 
A31: 25 | L31: 4 | M31: 4 | N31: 4 | O31: 4 | P31: 4 | Q31: 4 | R31: 39 | S31: 15 | T31: 55 | U31: 21 | V31: 5 | W31: 5 | X31: 5 | Y31: 5 | Z31: 5 | AA31: 5 | AB31: 47 | AC31: 16 | AD31: 45 | AE31: 25 | AF31: पंजाबी (75) | AG31: 5 | AH31: 4 | AI31: 4 | AJ31: 4 | AK31: 4 | AL31: 5 | AM31: 46 | AN31: 16 | AO31: 9 | AP31: 9 | AQ31: 5 | AR31: 4 | AS31: 5 | AT31: 4 | AU31: 5 | AV31: 4 | AW31: 31 | AX31: 9 | AY31: 55 | AZ31: 8 | BA31: 5 | BB31: 5 | BC31: 5 | BD31: 5 | BE31: 4 | BF31: 4 | BG31: 28 | BH31: 9 | BI31: 58 | BJ31: 16 | BK31: 5 | BL31: 5 | BM31: 4 | BN31: 4 | BO31: 3 | BP31: 3 | BQ31: 42 | BR31: 10 | BS31: 62 | BT31: 18 | CS31: संस्कृतम (95) | CT31: Sanskritam (95) | DH31: =IF(AND(L31="",N31="",R31="",S31=""),"",SUM(L31,N31,R31,#REF!,S31)) ->  | DJ31: =IF(AND(V31="",X31="",AB31="",AC31=""),"",SUM(V31,X31,AB31,#REF!,AC31)) ->  | DL31: 63 | DM31: 13 | DN31: =IF(AND(AQ31="",AT31="",AW31="",AX31=""),"",SUM(AQ31,AT31,AW31,#REF!,AX31)) ->  | DP31: =IF(AND(BA31="",BD31="",BG31="",BH31=""),"",SUM(BA31,BD31,BG31,#REF!,BH31)) ->  | DR31: =IF(AND(BK31="",BN31="",BQ31="",BR31=""),"",SUM(BK31,BN31,BQ31,#REF!,BR31)) -> 
A32: 26 | L32: 4 | M32: 4 | N32: 4 | O32: 4 | P32: 4 | Q32: 4 | R32: 39 | S32: 15 | T32: 55 | U32: 21 | V32: 5 | W32: 5 | X32: 5 | Y32: 5 | Z32: 5 | AA32: 5 | AB32: 47 | AC32: 16 | AD32: 45 | AE32: 25 | AG32: 5 | AH32: 4 | AI32: 4 | AJ32: 4 | AK32: 4 | AL32: 5 | AM32: 46 | AN32: 16 | AO32: 9 | AP32: 8 | AQ32: 5 | AR32: 4 | AS32: 5 | AT32: 4 | AU32: 5 | AV32: 4 | AW32: 31 | AX32: 9 | AY32: 55 | AZ32: 8 | BA32: 5 | BB32: 5 | BC32: 5 | BD32: 5 | BE32: 4 | BF32: 4 | BG32: 29 | BH32: 9 | BI32: 58 | BJ32: 16 | BK32: 5 | BL32: 5 | BM32: 4 | BN32: 4 | BO32: 3 | BP32: 3 | BQ32: 42 | BR32: 10 | BS32: 62 | BT32: 18 | DH32: =IF(AND(L32="",N32="",R32="",S32=""),"",SUM(L32,N32,R32,#REF!,S32)) ->  | DJ32: =IF(AND(V32="",X32="",AB32="",AC32=""),"",SUM(V32,X32,AB32,#REF!,AC32)) ->  | DL32: 63 | DM32: 13 | DN32: =IF(AND(AQ32="",AT32="",AW32="",AX32=""),"",SUM(AQ32,AT32,AW32,#REF!,AX32)) ->  | DP32: =IF(AND(BA32="",BD32="",BG32="",BH32=""),"",SUM(BA32,BD32,BG32,#REF!,BH32)) ->  | DR32: =IF(AND(BK32="",BN32="",BQ32="",BR32=""),"",SUM(BK32,BN32,BQ32,#REF!,BR32)) -> 
A33: 27 | L33: 4 | M33: 4 | N33: 4 | O33: 4 | P33: 4 | Q33: 4 | R33: 39 | S33: 15 | T33: 55 | U33: 21 | V33: 5 | W33: 5 | X33: 5 | Y33: 5 | Z33: 5 | AA33: 5 | AB33: 47 | AC33: 16 | AD33: 45 | AE33: 25 | AG33: 5 | AH33: 4 | AI33: 4 | AJ33: 4 | AK33: 4 | AL33: 5 | AM33: 46 | AN33: 16 | AO33: 9 | AP33: 9 | AQ33: 5 | AR33: 4 | AS33: 5 | AT33: 4 | AU33: 5 | AV33: 4 | AW33: 31 | AX33: 9 | AY33: 55 | AZ33: 8 | BA33: 5 | BB33: 5 | BC33: 5 | BD33: 5 | BE33: 4 | BF33: 4 | BG33: 24 | BH33: 9 | BI33: 58 | BJ33: 16 | BK33: 5 | BL33: 5 | BM33: 4 | BN33: 4 | BO33: 3 | BP33: 3 | BQ33: 42 | BR33: 10 | BS33: 62 | BT33: 18 | DH33: =IF(AND(L33="",N33="",R33="",S33=""),"",SUM(L33,N33,R33,#REF!,S33)) ->  | DJ33: =IF(AND(V33="",X33="",AB33="",AC33=""),"",SUM(V33,X33,AB33,#REF!,AC33)) ->  | DL33: 63 | DM33: 13 | DN33: =IF(AND(AQ33="",AT33="",AW33="",AX33=""),"",SUM(AQ33,AT33,AW33,#REF!,AX33)) ->  | DP33: =IF(AND(BA33="",BD33="",BG33="",BH33=""),"",SUM(BA33,BD33,BG33,#REF!,BH33)) ->  | DR33: =IF(AND(BK33="",BN33="",BQ33="",BR33=""),"",SUM(BK33,BN33,BQ33,#REF!,BR33)) -> 
A34: 28 | L34: 4 | M34: 4 | N34: 4 | O34: 4 | P34: 4 | Q34: 4 | R34: 39 | S34: 15 | T34: 55 | U34: 21 | V34: 5 | W34: 5 | X34: 5 | Y34: 5 | Z34: 5 | AA34: 5 | AB34: 47 | AC34: 16 | AD34: 45 | AE34: 25 | AG34: 5 | AH34: 4 | AI34: 4 | AJ34: 4 | AK34: 4 | AL34: 5 | AM34: 46 | AN34: 16 | AO34: 9 | AP34: 8 | AQ34: 5 | AR34: 4 | AS34: 5 | AT34: 4 | AU34: 5 | AV34: 4 | AW34: 31 | AX34: 9 | AY34: 55 | AZ34: 8 | BA34: 5 | BB34: 5 | BC34: 5 | BD34: 5 | BE34: 4 | BF34: 4 | BG34: 25 | BH34: 9 | BI34: 58 | BJ34: 16 | BK34: 5 | BL34: 5 | BM34: 4 | BN34: 4 | BO34: 3 | BP34: 3 | BQ34: 42 | BR34: 9 | BS34: 62 | BT34: 18 | DH34: =IF(AND(L34="",N34="",R34="",S34=""),"",SUM(L34,N34,R34,#REF!,S34)) ->  | DJ34: =IF(AND(V34="",X34="",AB34="",AC34=""),"",SUM(V34,X34,AB34,#REF!,AC34)) ->  | DL34: 63 | DM34: 13 | DN34: =IF(AND(AQ34="",AT34="",AW34="",AX34=""),"",SUM(AQ34,AT34,AW34,#REF!,AX34)) ->  | DP34: =IF(AND(BA34="",BD34="",BG34="",BH34=""),"",SUM(BA34,BD34,BG34,#REF!,BH34)) ->  | DR34: =IF(AND(BK34="",BN34="",BQ34="",BR34=""),"",SUM(BK34,BN34,BQ34,#REF!,BR34)) -> 
A35: 29 | L35: 4 | M35: 4 | N35: 4 | O35: 4 | P35: 4 | Q35: 4 | R35: 39 | S35: 15 | T35: 55 | U35: 21 | V35: 5 | W35: 5 | X35: 5 | Y35: 5 | Z35: 5 | AA35: 5 | AB35: 47 | AC35: 16 | AD35: 45 | AE35: 25 | AG35: 5 | AH35: 4 | AI35: 4 | AJ35: 4 | AK35: 4 | AL35: 5 | AM35: 46 | AN35: 16 | AO35: 9 | AP35: 9 | AQ35: 5 | AR35: 4 | AS35: 5 | AT35: 4 | AU35: 5 | AV35: 4 | AW35: 31 | AX35: 9 | AY35: 55 | AZ35: 8 | BA35: 5 | BB35: 5 | BC35: 5 | BD35: 5 | BE35: 4 | BF35: 4 | BG35: 26 | BH35: 8 | BI35: 58 | BJ35: 16 | BK35: 5 | BL35: 5 | BM35: 4 | BN35: 4 | BO35: 3 | BP35: 3 | BQ35: 42 | BR35: 9 | BS35: 62 | BT35: 18 | DH35: =IF(AND(L35="",N35="",R35="",S35=""),"",SUM(L35,N35,R35,#REF!,S35)) ->  | DJ35: =IF(AND(V35="",X35="",AB35="",AC35=""),"",SUM(V35,X35,AB35,#REF!,AC35)) ->  | DL35: 63 | DM35: 13 | DN35: =IF(AND(AQ35="",AT35="",AW35="",AX35=""),"",SUM(AQ35,AT35,AW35,#REF!,AX35)) ->  | DP35: =IF(AND(BA35="",BD35="",BG35="",BH35=""),"",SUM(BA35,BD35,BG35,#REF!,BH35)) ->  | DR35: =IF(AND(BK35="",BN35="",BQ35="",BR35=""),"",SUM(BK35,BN35,BQ35,#REF!,BR35)) -> 
A36: 30 | L36: 4 | M36: 4 | N36: 4 | O36: 4 | P36: 4 | Q36: 4 | R36: 39 | S36: 15 | T36: 55 | U36: 21 | V36: 5 | W36: 5 | X36: 5 | Y36: 5 | Z36: 5 | AA36: 5 | AB36: 47 | AC36: 16 | AD36: 45 | AE36: 25 | AG36: 5 | AH36: 4 | AI36: 4 | AJ36: 4 | AK36: 4 | AL36: 5 | AM36: 46 | AN36: 16 | AO36: 9 | AP36: 6 | AQ36: 5 | AR36: 4 | AS36: 5 | AT36: 4 | AU36: 5 | AV36: 4 | AW36: 31 | AX36: 9 | AY36: 55 | AZ36: 8 | BA36: 5 | BB36: 5 | BC36: 5 | BD36: 5 | BE36: 4 | BF36: 4 | BG36: 27 | BH36: 8 | BI36: 58 | BJ36: 16 | BK36: 5 | BL36: 5 | BM36: 4 | BN36: 4 | BO36: 3 | BP36: 3 | BQ36: 42 | BR36: 9 | BS36: 62 | BT36: 18 | DH36: =IF(AND(L36="",N36="",R36="",S36=""),"",SUM(L36,N36,R36,#REF!,S36)) ->  | DJ36: =IF(AND(V36="",X36="",AB36="",AC36=""),"",SUM(V36,X36,AB36,#REF!,AC36)) ->  | DL36: 63 | DM36: 13 | DN36: =IF(AND(AQ36="",AT36="",AW36="",AX36=""),"",SUM(AQ36,AT36,AW36,#REF!,AX36)) ->  | DP36: =IF(AND(BA36="",BD36="",BG36="",BH36=""),"",SUM(BA36,BD36,BG36,#REF!,BH36)) ->  | DR36: =IF(AND(BK36="",BN36="",BQ36="",BR36=""),"",SUM(BK36,BN36,BQ36,#REF!,BR36)) -> 
A37: 31 | L37: 4 | M37: 4 | N37: 4 | O37: 4 | P37: 4 | Q37: 4 | R37: 39 | S37: 15 | T37: 55 | U37: 21 | V37: 5 | W37: 5 | X37: 5 | Y37: 5 | Z37: 5 | AA37: 5 | AB37: 47 | AC37: 16 | AD37: 45 | AE37: 25 | AG37: 5 | AH37: 4 | AI37: 4 | AJ37: 4 | AK37: 4 | AL37: 5 | AM37: 46 | AN37: 16 | AO37: 9 | AP37: 5 | AQ37: 5 | AR37: 4 | AS37: 5 | AT37: 4 | AU37: 5 | AV37: 4 | AW37: 31 | AX37: 9 | AY37: 55 | AZ37: 8 | BA37: 5 | BB37: 5 | BC37: 5 | BD37: 5 | BE37: 4 | BF37: 4 | BG37: 30 | BH37: 8 | BI37: 58 | BJ37: 16 | BK37: 5 | BL37: 5 | BM37: 4 | BN37: 4 | BO37: 3 | BP37: 3 | BQ37: 42 | BR37: 8 | BS37: 62 | BT37: 18 | CS37: ='Master sheet'!D11 -> Hindi | DH37: =IF(AND(L37="",N37="",R37="",S37=""),"",SUM(L37,N37,R37,#REF!,S37)) ->  | DJ37: =IF(AND(V37="",X37="",AB37="",AC37=""),"",SUM(V37,X37,AB37,#REF!,AC37)) ->  | DL37: 63 | DM37: 13 | DN37: =IF(AND(AQ37="",AT37="",AW37="",AX37=""),"",SUM(AQ37,AT37,AW37,#REF!,AX37)) ->  | DP37: =IF(AND(BA37="",BD37="",BG37="",BH37=""),"",SUM(BA37,BD37,BG37,#REF!,BH37)) ->  | DR37: =IF(AND(BK37="",BN37="",BQ37="",BR37=""),"",SUM(BK37,BN37,BQ37,#REF!,BR37)) -> 
A38: 32 | L38: 4 | M38: 4 | N38: 4 | O38: 4 | P38: 4 | Q38: 4 | R38: 39 | S38: 15 | T38: 55 | U38: 21 | V38: 5 | W38: 5 | X38: 5 | Y38: 5 | Z38: 5 | AA38: 5 | AB38: 47 | AC38: 16 | AD38: 45 | AE38: 25 | AG38: 5 | AH38: 4 | AI38: 4 | AJ38: 4 | AK38: 4 | AL38: 5 | AM38: 46 | AN38: 16 | AO38: 9 | AP38: 9 | AQ38: 5 | AR38: 4 | AS38: 5 | AT38: 4 | AU38: 5 | AV38: 4 | AW38: 31 | AX38: 9 | AY38: 55 | AZ38: 8 | BA38: 5 | BB38: 5 | BC38: 5 | BD38: 5 | BE38: 4 | BF38: 4 | BG38: 30 | BH38: 8 | BI38: 58 | BJ38: 16 | BK38: 5 | BL38: 5 | BM38: 4 | BN38: 4 | BO38: 3 | BP38: 3 | BQ38: 42 | BR38: 9 | BS38: 62 | BT38: 18 | DH38: =IF(AND(L38="",N38="",R38="",S38=""),"",SUM(L38,N38,R38,#REF!,S38)) ->  | DJ38: =IF(AND(V38="",X38="",AB38="",AC38=""),"",SUM(V38,X38,AB38,#REF!,AC38)) ->  | DL38: 63 | DM38: 13 | DN38: =IF(AND(AQ38="",AT38="",AW38="",AX38=""),"",SUM(AQ38,AT38,AW38,#REF!,AX38)) ->  | DP38: =IF(AND(BA38="",BD38="",BG38="",BH38=""),"",SUM(BA38,BD38,BG38,#REF!,BH38)) ->  | DR38: =IF(AND(BK38="",BN38="",BQ38="",BR38=""),"",SUM(BK38,BN38,BQ38,#REF!,BR38)) -> 
A39: 33 | L39: 4 | M39: 4 | N39: 4 | O39: 4 | P39: 4 | Q39: 4 | R39: 39 | S39: 15 | T39: 55 | U39: 21 | V39: 5 | W39: 5 | X39: 5 | Y39: 5 | Z39: 5 | AA39: 5 | AB39: 47 | AC39: 16 | AD39: 45 | AE39: 25 | AG39: 5 | AH39: 4 | AI39: 4 | AJ39: 4 | AK39: 4 | AL39: 5 | AM39: 46 | AN39: 16 | AO39: 9 | AP39: 8 | AQ39: 5 | AR39: 4 | AS39: 5 | AT39: 4 | AU39: 5 | AV39: 4 | AW39: 31 | AX39: 9 | AY39: 55 | AZ39: 8 | BA39: 5 | BB39: 5 | BC39: 5 | BD39: 5 | BE39: 4 | BF39: 4 | BG39: 31 | BH39: 8 | BI39: 58 | BJ39: 16 | BK39: 5 | BL39: 5 | BM39: 4 | BN39: 4 | BO39: 3 | BP39: 3 | BQ39: 42 | BR39: 9 | BS39: 62 | BT39: 18 | DH39: =IF(AND(L39="",N39="",R39="",S39=""),"",SUM(L39,N39,R39,#REF!,S39)) ->  | DJ39: =IF(AND(V39="",X39="",AB39="",AC39=""),"",SUM(V39,X39,AB39,#REF!,AC39)) ->  | DL39: 63 | DM39: 13 | DN39: =IF(AND(AQ39="",AT39="",AW39="",AX39=""),"",SUM(AQ39,AT39,AW39,#REF!,AX39)) ->  | DP39: =IF(AND(BA39="",BD39="",BG39="",BH39=""),"",SUM(BA39,BD39,BG39,#REF!,BH39)) ->  | DR39: =IF(AND(BK39="",BN39="",BQ39="",BR39=""),"",SUM(BK39,BN39,BQ39,#REF!,BR39)) -> 
A40: 34 | L40: 4 | M40: 4 | N40: 4 | O40: 4 | P40: 4 | Q40: 4 | R40: 39 | S40: 15 | T40: 55 | U40: 21 | V40: 5 | W40: 5 | X40: 5 | Y40: 5 | Z40: 5 | AA40: 5 | AB40: 47 | AC40: 16 | AD40: 45 | AE40: 25 | AG40: 5 | AH40: 4 | AI40: 4 | AJ40: 4 | AK40: 4 | AL40: 5 | AM40: 46 | AN40: 16 | AO40: 9 | AP40: 9 | AQ40: 5 | AR40: 4 | AS40: 5 | AT40: 4 | AU40: 5 | AV40: 4 | AW40: 31 | AX40: 9 | AY40: 55 | AZ40: 8 | BA40: 5 | BB40: 5 | BC40: 5 | BD40: 5 | BE40: 4 | BF40: 4 | BG40: 32 | BH40: 8 | BI40: 58 | BJ40: 16 | BK40: 5 | BL40: 5 | BM40: 4 | BN40: 4 | BO40: 3 | BP40: 3 | BQ40: 42 | BR40: 9 | BS40: 62 | BT40: 18 | DH40: =IF(AND(L40="",N40="",R40="",S40=""),"",SUM(L40,N40,R40,#REF!,S40)) ->  | DJ40: =IF(AND(V40="",X40="",AB40="",AC40=""),"",SUM(V40,X40,AB40,#REF!,AC40)) ->  | DL40: 63 | DM40: 13 | DN40: =IF(AND(AQ40="",AT40="",AW40="",AX40=""),"",SUM(AQ40,AT40,AW40,#REF!,AX40)) ->  | DP40: =IF(AND(BA40="",BD40="",BG40="",BH40=""),"",SUM(BA40,BD40,BG40,#REF!,BH40)) ->  | DR40: =IF(AND(BK40="",BN40="",BQ40="",BR40=""),"",SUM(BK40,BN40,BQ40,#REF!,BR40)) -> 
A41: 35 | L41: 4 | M41: 4 | N41: 4 | O41: 4 | P41: 4 | Q41: 4 | R41: 39 | S41: 15 | T41: 55 | U41: 21 | V41: 5 | W41: 5 | X41: 5 | Y41: 5 | Z41: 5 | AA41: 5 | AB41: 47 | AC41: 16 | AD41: 45 | AE41: 25 | AG41: 5 | AH41: 4 | AI41: 4 | AJ41: 4 | AK41: 4 | AL41: 5 | AM41: 46 | AN41: 16 | AO41: 9 | AP41: 8 | AQ41: 5 | AR41: 4 | AS41: 5 | AT41: 4 | AU41: 5 | AV41: 4 | AW41: 31 | AX41: 9 | AY41: 55 | AZ41: 8 | BA41: 5 | BB41: 5 | BC41: 5 | BD41: 5 | BE41: 4 | BF41: 4 | BG41: 32 | BH41: 9 | BI41: 58 | BJ41: 16 | BK41: 5 | BL41: 5 | BM41: 4 | BN41: 4 | BO41: 3 | BP41: 3 | BQ41: 42 | BR41: 8 | BS41: 62 | BT41: 18 | DH41: =IF(AND(L41="",N41="",R41="",S41=""),"",SUM(L41,N41,R41,#REF!,S41)) ->  | DJ41: =IF(AND(V41="",X41="",AB41="",AC41=""),"",SUM(V41,X41,AB41,#REF!,AC41)) ->  | DL41: 63 | DM41: 13 | DN41: =IF(AND(AQ41="",AT41="",AW41="",AX41=""),"",SUM(AQ41,AT41,AW41,#REF!,AX41)) ->  | DP41: =IF(AND(BA41="",BD41="",BG41="",BH41=""),"",SUM(BA41,BD41,BG41,#REF!,BH41)) ->  | DR41: =IF(AND(BK41="",BN41="",BQ41="",BR41=""),"",SUM(BK41,BN41,BQ41,#REF!,BR41)) -> 
A42: 36 | L42: 4 | M42: 4 | N42: 4 | O42: 4 | P42: 4 | Q42: 4 | R42: 39 | S42: 15 | T42: 55 | U42: 21 | V42: 5 | W42: 5 | X42: 5 | Y42: 5 | Z42: 5 | AA42: 5 | AB42: 47 | AC42: 16 | AD42: 45 | AE42: 25 | AG42: 5 | AH42: 4 | AI42: 4 | AJ42: 4 | AK42: 4 | AL42: 5 | AM42: 46 | AN42: 16 | AO42: 9 | AP42: 10 | AQ42: 5 | AR42: 4 | AS42: 5 | AT42: 4 | AU42: 5 | AV42: 4 | AW42: 31 | AX42: 9 | AY42: 55 | AZ42: 8 | BA42: 5 | BB42: 5 | BC42: 5 | BD42: 5 | BE42: 4 | BF42: 4 | BG42: 32 | BH42: 9 | BI42: 58 | BJ42: 16 | BK42: 5 | BL42: 5 | BM42: 4 | BN42: 4 | BO42: 3 | BP42: 3 | BQ42: 42 | BR42: 9 | BS42: 62 | BT42: 18 | DH42: =IF(AND(L42="",N42="",R42="",S42=""),"",SUM(L42,N42,R42,#REF!,S42)) ->  | DJ42: =IF(AND(V42="",X42="",AB42="",AC42=""),"",SUM(V42,X42,AB42,#REF!,AC42)) ->  | DL42: 63 | DM42: 13 | DN42: =IF(AND(AQ42="",AT42="",AW42="",AX42=""),"",SUM(AQ42,AT42,AW42,#REF!,AX42)) ->  | DP42: =IF(AND(BA42="",BD42="",BG42="",BH42=""),"",SUM(BA42,BD42,BG42,#REF!,BH42)) ->  | DR42: =IF(AND(BK42="",BN42="",BQ42="",BR42=""),"",SUM(BK42,BN42,BQ42,#REF!,BR42)) -> 
A43: 37 | DH43: =IF(AND(L43="",N43="",R43="",S43=""),"",SUM(L43,N43,R43,#REF!,S43)) ->  | DJ43: =IF(AND(V43="",X43="",AB43="",AC43=""),"",SUM(V43,X43,AB43,#REF!,AC43)) ->  | DN43: =IF(AND(AQ43="",AT43="",AW43="",AX43=""),"",SUM(AQ43,AT43,AW43,#REF!,AX43)) ->  | DP43: =IF(AND(BA43="",BD43="",BG43="",BH43=""),"",SUM(BA43,BD43,BG43,#REF!,BH43)) ->  | DR43: =IF(AND(BK43="",BN43="",BQ43="",BR43=""),"",SUM(BK43,BN43,BQ43,#REF!,BR43)) -> 
A44: 38 | DH44: =IF(AND(L44="",N44="",R44="",S44=""),"",SUM(L44,N44,R44,#REF!,S44)) ->  | DJ44: =IF(AND(V44="",X44="",AB44="",AC44=""),"",SUM(V44,X44,AB44,#REF!,AC44)) ->  | DN44: =IF(AND(AQ44="",AT44="",AW44="",AX44=""),"",SUM(AQ44,AT44,AW44,#REF!,AX44)) ->  | DP44: =IF(AND(BA44="",BD44="",BG44="",BH44=""),"",SUM(BA44,BD44,BG44,#REF!,BH44)) ->  | DR44: =IF(AND(BK44="",BN44="",BQ44="",BR44=""),"",SUM(BK44,BN44,BQ44,#REF!,BR44)) -> 
A45: 39 | DH45: =IF(AND(L45="",N45="",R45="",S45=""),"",SUM(L45,N45,R45,#REF!,S45)) ->  | DJ45: =IF(AND(V45="",X45="",AB45="",AC45=""),"",SUM(V45,X45,AB45,#REF!,AC45)) ->  | DN45: =IF(AND(AQ45="",AT45="",AW45="",AX45=""),"",SUM(AQ45,AT45,AW45,#REF!,AX45)) ->  | DP45: =IF(AND(BA45="",BD45="",BG45="",BH45=""),"",SUM(BA45,BD45,BG45,#REF!,BH45)) ->  | DR45: =IF(AND(BK45="",BN45="",BQ45="",BR45=""),"",SUM(BK45,BN45,BQ45,#REF!,BR45)) -> 
A46: 40 | DH46: =IF(AND(L46="",N46="",R46="",S46=""),"",SUM(L46,N46,R46,#REF!,S46)) ->  | DJ46: =IF(AND(V46="",X46="",AB46="",AC46=""),"",SUM(V46,X46,AB46,#REF!,AC46)) ->  | DN46: =IF(AND(AQ46="",AT46="",AW46="",AX46=""),"",SUM(AQ46,AT46,AW46,#REF!,AX46)) ->  | DP46: =IF(AND(BA46="",BD46="",BG46="",BH46=""),"",SUM(BA46,BD46,BG46,#REF!,BH46)) ->  | DR46: =IF(AND(BK46="",BN46="",BQ46="",BR46=""),"",SUM(BK46,BN46,BQ46,#REF!,BR46)) -> 
A47: 41 | DH47: =IF(AND(L47="",N47="",R47="",S47=""),"",SUM(L47,N47,R47,#REF!,S47)) ->  | DJ47: =IF(AND(V47="",X47="",AB47="",AC47=""),"",SUM(V47,X47,AB47,#REF!,AC47)) ->  | DN47: =IF(AND(AQ47="",AT47="",AW47="",AX47=""),"",SUM(AQ47,AT47,AW47,#REF!,AX47)) ->  | DP47: =IF(AND(BA47="",BD47="",BG47="",BH47=""),"",SUM(BA47,BD47,BG47,#REF!,BH47)) ->  | DR47: =IF(AND(BK47="",BN47="",BQ47="",BR47=""),"",SUM(BK47,BN47,BQ47,#REF!,BR47)) -> 
A48: 42 | DH48: =IF(AND(L48="",N48="",R48="",S48=""),"",SUM(L48,N48,R48,#REF!,S48)) ->  | DJ48: =IF(AND(V48="",X48="",AB48="",AC48=""),"",SUM(V48,X48,AB48,#REF!,AC48)) ->  | DN48: =IF(AND(AQ48="",AT48="",AW48="",AX48=""),"",SUM(AQ48,AT48,AW48,#REF!,AX48)) ->  | DP48: =IF(AND(BA48="",BD48="",BG48="",BH48=""),"",SUM(BA48,BD48,BG48,#REF!,BH48)) ->  | DR48: =IF(AND(BK48="",BN48="",BQ48="",BR48=""),"",SUM(BK48,BN48,BQ48,#REF!,BR48)) -> 
A49: 43 | DH49: =IF(AND(L49="",N49="",R49="",S49=""),"",SUM(L49,N49,R49,#REF!,S49)) ->  | DJ49: =IF(AND(V49="",X49="",AB49="",AC49=""),"",SUM(V49,X49,AB49,#REF!,AC49)) ->  | DN49: =IF(AND(AQ49="",AT49="",AW49="",AX49=""),"",SUM(AQ49,AT49,AW49,#REF!,AX49)) ->  | DP49: =IF(AND(BA49="",BD49="",BG49="",BH49=""),"",SUM(BA49,BD49,BG49,#REF!,BH49)) ->  | DR49: =IF(AND(BK49="",BN49="",BQ49="",BR49=""),"",SUM(BK49,BN49,BQ49,#REF!,BR49)) -> 
A50: 44 | DH50: =IF(AND(L50="",N50="",R50="",S50=""),"",SUM(L50,N50,R50,#REF!,S50)) ->  | DJ50: =IF(AND(V50="",X50="",AB50="",AC50=""),"",SUM(V50,X50,AB50,#REF!,AC50)) ->  | DN50: =IF(AND(AQ50="",AT50="",AW50="",AX50=""),"",SUM(AQ50,AT50,AW50,#REF!,AX50)) ->  | DP50: =IF(AND(BA50="",BD50="",BG50="",BH50=""),"",SUM(BA50,BD50,BG50,#REF!,BH50)) ->  | DR50: =IF(AND(BK50="",BN50="",BQ50="",BR50=""),"",SUM(BK50,BN50,BQ50,#REF!,BR50)) -> 
A51: 45 | DH51: =IF(AND(L51="",N51="",R51="",S51=""),"",SUM(L51,N51,R51,#REF!,S51)) ->  | DJ51: =IF(AND(V51="",X51="",AB51="",AC51=""),"",SUM(V51,X51,AB51,#REF!,AC51)) ->  | DN51: =IF(AND(AQ51="",AT51="",AW51="",AX51=""),"",SUM(AQ51,AT51,AW51,#REF!,AX51)) ->  | DP51: =IF(AND(BA51="",BD51="",BG51="",BH51=""),"",SUM(BA51,BD51,BG51,#REF!,BH51)) ->  | DR51: =IF(AND(BK51="",BN51="",BQ51="",BR51=""),"",SUM(BK51,BN51,BQ51,#REF!,BR51)) -> 
A52: 46 | DH52: =IF(AND(L52="",N52="",R52="",S52=""),"",SUM(L52,N52,R52,#REF!,S52)) ->  | DJ52: =IF(AND(V52="",X52="",AB52="",AC52=""),"",SUM(V52,X52,AB52,#REF!,AC52)) ->  | DN52: =IF(AND(AQ52="",AT52="",AW52="",AX52=""),"",SUM(AQ52,AT52,AW52,#REF!,AX52)) ->  | DP52: =IF(AND(BA52="",BD52="",BG52="",BH52=""),"",SUM(BA52,BD52,BG52,#REF!,BH52)) ->  | DR52: =IF(AND(BK52="",BN52="",BQ52="",BR52=""),"",SUM(BK52,BN52,BQ52,#REF!,BR52)) -> 
A53: 47 | DH53: =IF(AND(L53="",N53="",R53="",S53=""),"",SUM(L53,N53,R53,#REF!,S53)) ->  | DJ53: =IF(AND(V53="",X53="",AB53="",AC53=""),"",SUM(V53,X53,AB53,#REF!,AC53)) ->  | DN53: =IF(AND(AQ53="",AT53="",AW53="",AX53=""),"",SUM(AQ53,AT53,AW53,#REF!,AX53)) ->  | DP53: =IF(AND(BA53="",BD53="",BG53="",BH53=""),"",SUM(BA53,BD53,BG53,#REF!,BH53)) ->  | DR53: =IF(AND(BK53="",BN53="",BQ53="",BR53=""),"",SUM(BK53,BN53,BQ53,#REF!,BR53)) -> 
A54: 48 | DH54: =IF(AND(L54="",N54="",R54="",S54=""),"",SUM(L54,N54,R54,#REF!,S54)) ->  | DJ54: =IF(AND(V54="",X54="",AB54="",AC54=""),"",SUM(V54,X54,AB54,#REF!,AC54)) ->  | DN54: =IF(AND(AQ54="",AT54="",AW54="",AX54=""),"",SUM(AQ54,AT54,AW54,#REF!,AX54)) ->  | DP54: =IF(AND(BA54="",BD54="",BG54="",BH54=""),"",SUM(BA54,BD54,BG54,#REF!,BH54)) ->  | DR54: =IF(AND(BK54="",BN54="",BQ54="",BR54=""),"",SUM(BK54,BN54,BQ54,#REF!,BR54)) -> 
A55: 49 | DH55: =IF(AND(L55="",N55="",R55="",S55=""),"",SUM(L55,N55,R55,#REF!,S55)) ->  | DJ55: =IF(AND(V55="",X55="",AB55="",AC55=""),"",SUM(V55,X55,AB55,#REF!,AC55)) ->  | DN55: =IF(AND(AQ55="",AT55="",AW55="",AX55=""),"",SUM(AQ55,AT55,AW55,#REF!,AX55)) ->  | DP55: =IF(AND(BA55="",BD55="",BG55="",BH55=""),"",SUM(BA55,BD55,BG55,#REF!,BH55)) ->  | DR55: =IF(AND(BK55="",BN55="",BQ55="",BR55=""),"",SUM(BK55,BN55,BQ55,#REF!,BR55)) -> 
A56: 50 | DH56: =IF(AND(L56="",N56="",R56="",S56=""),"",SUM(L56,N56,R56,#REF!,S56)) ->  | DJ56: =IF(AND(V56="",X56="",AB56="",AC56=""),"",SUM(V56,X56,AB56,#REF!,AC56)) ->  | DN56: =IF(AND(AQ56="",AT56="",AW56="",AX56=""),"",SUM(AQ56,AT56,AW56,#REF!,AX56)) ->  | DP56: =IF(AND(BA56="",BD56="",BG56="",BH56=""),"",SUM(BA56,BD56,BG56,#REF!,BH56)) ->  | DR56: =IF(AND(BK56="",BN56="",BQ56="",BR56=""),"",SUM(BK56,BN56,BQ56,#REF!,BR56)) -> 
A57: 51 | DH57: =IF(AND(L57="",N57="",R57="",S57=""),"",SUM(L57,N57,R57,#REF!,S57)) ->  | DJ57: =IF(AND(V57="",X57="",AB57="",AC57=""),"",SUM(V57,X57,AB57,#REF!,AC57)) ->  | DN57: =IF(AND(AQ57="",AT57="",AW57="",AX57=""),"",SUM(AQ57,AT57,AW57,#REF!,AX57)) ->  | DP57: =IF(AND(BA57="",BD57="",BG57="",BH57=""),"",SUM(BA57,BD57,BG57,#REF!,BH57)) ->  | DR57: =IF(AND(BK57="",BN57="",BQ57="",BR57=""),"",SUM(BK57,BN57,BQ57,#REF!,BR57)) -> 
A58: 52 | DH58: =IF(AND(L58="",N58="",R58="",S58=""),"",SUM(L58,N58,R58,#REF!,S58)) ->  | DJ58: =IF(AND(V58="",X58="",AB58="",AC58=""),"",SUM(V58,X58,AB58,#REF!,AC58)) ->  | DN58: =IF(AND(AQ58="",AT58="",AW58="",AX58=""),"",SUM(AQ58,AT58,AW58,#REF!,AX58)) ->  | DP58: =IF(AND(BA58="",BD58="",BG58="",BH58=""),"",SUM(BA58,BD58,BG58,#REF!,BH58)) ->  | DR58: =IF(AND(BK58="",BN58="",BQ58="",BR58=""),"",SUM(BK58,BN58,BQ58,#REF!,BR58)) -> 
A59: 53 | DH59: =IF(AND(L59="",N59="",R59="",S59=""),"",SUM(L59,N59,R59,#REF!,S59)) ->  | DJ59: =IF(AND(V59="",X59="",AB59="",AC59=""),"",SUM(V59,X59,AB59,#REF!,AC59)) ->  | DN59: =IF(AND(AQ59="",AT59="",AW59="",AX59=""),"",SUM(AQ59,AT59,AW59,#REF!,AX59)) ->  | DP59: =IF(AND(BA59="",BD59="",BG59="",BH59=""),"",SUM(BA59,BD59,BG59,#REF!,BH59)) ->  | DR59: =IF(AND(BK59="",BN59="",BQ59="",BR59=""),"",SUM(BK59,BN59,BQ59,#REF!,BR59)) -> 
A60: 54 | DH60: =IF(AND(L60="",N60="",R60="",S60=""),"",SUM(L60,N60,R60,#REF!,S60)) ->  | DJ60: =IF(AND(V60="",X60="",AB60="",AC60=""),"",SUM(V60,X60,AB60,#REF!,AC60)) ->  | DN60: =IF(AND(AQ60="",AT60="",AW60="",AX60=""),"",SUM(AQ60,AT60,AW60,#REF!,AX60)) ->  | DP60: =IF(AND(BA60="",BD60="",BG60="",BH60=""),"",SUM(BA60,BD60,BG60,#REF!,BH60)) ->  | DR60: =IF(AND(BK60="",BN60="",BQ60="",BR60=""),"",SUM(BK60,BN60,BQ60,#REF!,BR60)) -> 
A61: 55 | DH61: =IF(AND(L61="",N61="",R61="",S61=""),"",SUM(L61,N61,R61,#REF!,S61)) ->  | DJ61: =IF(AND(V61="",X61="",AB61="",AC61=""),"",SUM(V61,X61,AB61,#REF!,AC61)) ->  | DN61: =IF(AND(AQ61="",AT61="",AW61="",AX61=""),"",SUM(AQ61,AT61,AW61,#REF!,AX61)) ->  | DP61: =IF(AND(BA61="",BD61="",BG61="",BH61=""),"",SUM(BA61,BD61,BG61,#REF!,BH61)) ->  | DR61: =IF(AND(BK61="",BN61="",BQ61="",BR61=""),"",SUM(BK61,BN61,BQ61,#REF!,BR61)) -> 
A62: 56 | DH62: =IF(AND(L62="",N62="",R62="",S62=""),"",SUM(L62,N62,R62,#REF!,S62)) ->  | DJ62: =IF(AND(V62="",X62="",AB62="",AC62=""),"",SUM(V62,X62,AB62,#REF!,AC62)) ->  | DN62: =IF(AND(AQ62="",AT62="",AW62="",AX62=""),"",SUM(AQ62,AT62,AW62,#REF!,AX62)) ->  | DP62: =IF(AND(BA62="",BD62="",BG62="",BH62=""),"",SUM(BA62,BD62,BG62,#REF!,BH62)) ->  | DR62: =IF(AND(BK62="",BN62="",BQ62="",BR62=""),"",SUM(BK62,BN62,BQ62,#REF!,BR62)) -> 
A63: 57 | DH63: =IF(AND(L63="",N63="",R63="",S63=""),"",SUM(L63,N63,R63,#REF!,S63)) ->  | DJ63: =IF(AND(V63="",X63="",AB63="",AC63=""),"",SUM(V63,X63,AB63,#REF!,AC63)) ->  | DN63: =IF(AND(AQ63="",AT63="",AW63="",AX63=""),"",SUM(AQ63,AT63,AW63,#REF!,AX63)) ->  | DP63: =IF(AND(BA63="",BD63="",BG63="",BH63=""),"",SUM(BA63,BD63,BG63,#REF!,BH63)) ->  | DR63: =IF(AND(BK63="",BN63="",BQ63="",BR63=""),"",SUM(BK63,BN63,BQ63,#REF!,BR63)) -> 
A64: 58 | DH64: =IF(AND(L64="",N64="",R64="",S64=""),"",SUM(L64,N64,R64,#REF!,S64)) ->  | DJ64: =IF(AND(V64="",X64="",AB64="",AC64=""),"",SUM(V64,X64,AB64,#REF!,AC64)) ->  | DN64: =IF(AND(AQ64="",AT64="",AW64="",AX64=""),"",SUM(AQ64,AT64,AW64,#REF!,AX64)) ->  | DP64: =IF(AND(BA64="",BD64="",BG64="",BH64=""),"",SUM(BA64,BD64,BG64,#REF!,BH64)) ->  | DR64: =IF(AND(BK64="",BN64="",BQ64="",BR64=""),"",SUM(BK64,BN64,BQ64,#REF!,BR64)) -> 
A65: 59 | DH65: =IF(AND(L65="",N65="",R65="",S65=""),"",SUM(L65,N65,R65,#REF!,S65)) ->  | DJ65: =IF(AND(V65="",X65="",AB65="",AC65=""),"",SUM(V65,X65,AB65,#REF!,AC65)) ->  | DN65: =IF(AND(AQ65="",AT65="",AW65="",AX65=""),"",SUM(AQ65,AT65,AW65,#REF!,AX65)) ->  | DP65: =IF(AND(BA65="",BD65="",BG65="",BH65=""),"",SUM(BA65,BD65,BG65,#REF!,BH65)) ->  | DR65: =IF(AND(BK65="",BN65="",BQ65="",BR65=""),"",SUM(BK65,BN65,BQ65,#REF!,BR65)) -> 
A66: 60 | DH66: =IF(AND(L66="",N66="",R66="",S66=""),"",SUM(L66,N66,R66,#REF!,S66)) ->  | DJ66: =IF(AND(V66="",X66="",AB66="",AC66=""),"",SUM(V66,X66,AB66,#REF!,AC66)) ->  | DN66: =IF(AND(AQ66="",AT66="",AW66="",AX66=""),"",SUM(AQ66,AT66,AW66,#REF!,AX66)) ->  | DP66: =IF(AND(BA66="",BD66="",BG66="",BH66=""),"",SUM(BA66,BD66,BG66,#REF!,BH66)) ->  | DR66: =IF(AND(BK66="",BN66="",BQ66="",BR66=""),"",SUM(BK66,BN66,BQ66,#REF!,BR66)) -> 
A67: 61 | DH67: =IF(AND(L67="",N67="",R67="",S67=""),"",SUM(L67,N67,R67,#REF!,S67)) ->  | DJ67: =IF(AND(V67="",X67="",AB67="",AC67=""),"",SUM(V67,X67,AB67,#REF!,AC67)) ->  | DN67: =IF(AND(AQ67="",AT67="",AW67="",AX67=""),"",SUM(AQ67,AT67,AW67,#REF!,AX67)) ->  | DP67: =IF(AND(BA67="",BD67="",BG67="",BH67=""),"",SUM(BA67,BD67,BG67,#REF!,BH67)) ->  | DR67: =IF(AND(BK67="",BN67="",BQ67="",BR67=""),"",SUM(BK67,BN67,BQ67,#REF!,BR67)) -> 
A68: 62 | DH68: =IF(AND(L68="",N68="",R68="",S68=""),"",SUM(L68,N68,R68,#REF!,S68)) ->  | DJ68: =IF(AND(V68="",X68="",AB68="",AC68=""),"",SUM(V68,X68,AB68,#REF!,AC68)) ->  | DN68: =IF(AND(AQ68="",AT68="",AW68="",AX68=""),"",SUM(AQ68,AT68,AW68,#REF!,AX68)) ->  | DP68: =IF(AND(BA68="",BD68="",BG68="",BH68=""),"",SUM(BA68,BD68,BG68,#REF!,BH68)) ->  | DR68: =IF(AND(BK68="",BN68="",BQ68="",BR68=""),"",SUM(BK68,BN68,BQ68,#REF!,BR68)) -> 
A69: 63 | DH69: =IF(AND(L69="",N69="",R69="",S69=""),"",SUM(L69,N69,R69,#REF!,S69)) ->  | DJ69: =IF(AND(V69="",X69="",AB69="",AC69=""),"",SUM(V69,X69,AB69,#REF!,AC69)) ->  | DN69: =IF(AND(AQ69="",AT69="",AW69="",AX69=""),"",SUM(AQ69,AT69,AW69,#REF!,AX69)) ->  | DP69: =IF(AND(BA69="",BD69="",BG69="",BH69=""),"",SUM(BA69,BD69,BG69,#REF!,BH69)) ->  | DR69: =IF(AND(BK69="",BN69="",BQ69="",BR69=""),"",SUM(BK69,BN69,BQ69,#REF!,BR69)) -> 
A70: 64 | DH70: =IF(AND(L70="",N70="",R70="",S70=""),"",SUM(L70,N70,R70,#REF!,S70)) ->  | DJ70: =IF(AND(V70="",X70="",AB70="",AC70=""),"",SUM(V70,X70,AB70,#REF!,AC70)) ->  | DN70: =IF(AND(AQ70="",AT70="",AW70="",AX70=""),"",SUM(AQ70,AT70,AW70,#REF!,AX70)) ->  | DP70: =IF(AND(BA70="",BD70="",BG70="",BH70=""),"",SUM(BA70,BD70,BG70,#REF!,BH70)) ->  | DR70: =IF(AND(BK70="",BN70="",BQ70="",BR70=""),"",SUM(BK70,BN70,BQ70,#REF!,BR70)) -> 
A71: 65 | DH71: =IF(AND(L71="",N71="",R71="",S71=""),"",SUM(L71,N71,R71,#REF!,S71)) ->  | DJ71: =IF(AND(V71="",X71="",AB71="",AC71=""),"",SUM(V71,X71,AB71,#REF!,AC71)) ->  | DN71: =IF(AND(AQ71="",AT71="",AW71="",AX71=""),"",SUM(AQ71,AT71,AW71,#REF!,AX71)) ->  | DP71: =IF(AND(BA71="",BD71="",BG71="",BH71=""),"",SUM(BA71,BD71,BG71,#REF!,BH71)) ->  | DR71: =IF(AND(BK71="",BN71="",BQ71="",BR71=""),"",SUM(BK71,BN71,BQ71,#REF!,BR71)) -> 
A72: 66 | DG72: =IF(I72="","",I72) ->  | DH72: =IF(AND(L72="",N72="",R72="",S72=""),"",SUM(L72,N72,R72,#REF!,S72)) ->  | DI72: =IFERROR(IF(DH72="","",ROUNDUP(DH72*20%,0)),"") ->  | DJ72: =IF(AND(V72="",X72="",AB72="",AC72=""),"",SUM(V72,X72,AB72,#REF!,AC72)) ->  | DK72: =IFERROR(IF(DJ72="","",ROUNDUP(DJ72*20%,0)),"") ->  | DL72: =IF(AND(AG72="",AH72="",AI72="",AM72=""),"",SUM(AG72,AH72,AI72,AJ72,AM72)) ->  | DM72: =IFERROR(IF(DL72="","",ROUNDUP(DL72*20%,0)),"") ->  | DN72: =IF(AND(AQ72="",AT72="",AW72="",AX72=""),"",SUM(AQ72,AT72,AW72,#REF!,AX72)) ->  | DO72: =IFERROR(IF(DN72="","",ROUNDUP(DN72*20%,0)),"") ->  | DP72: =IF(AND(BA72="",BD72="",BG72="",BH72=""),"",SUM(BA72,BD72,BG72,#REF!,BH72)) ->  | DQ72: =IFERROR(IF(DP72="","",ROUNDUP(DP72*20%,0)),"") ->  | DR72: =IF(AND(BK72="",BN72="",BQ72="",BR72=""),"",SUM(BK72,BN72,BQ72,#REF!,BR72)) ->  | DS72: =IFERROR(IF(DR72="","",ROUNDUP(DR72*20%,0)),"") -> 
A73: 67 | DH73: =IF(AND(L73="",N73="",R73="",S73=""),"",SUM(L73,N73,R73,#REF!,S73)) ->  | DJ73: =IF(AND(V73="",X73="",AB73="",AC73=""),"",SUM(V73,X73,AB73,#REF!,AC73)) ->  | DN73: =IF(AND(AQ73="",AT73="",AW73="",AX73=""),"",SUM(AQ73,AT73,AW73,#REF!,AX73)) ->  | DP73: =IF(AND(BA73="",BD73="",BG73="",BH73=""),"",SUM(BA73,BD73,BG73,#REF!,BH73)) ->  | DR73: =IF(AND(BK73="",BN73="",BQ73="",BR73=""),"",SUM(BK73,BN73,BQ73,#REF!,BR73)) -> 
A74: 68 | DH74: =IF(AND(L74="",N74="",R74="",S74=""),"",SUM(L74,N74,R74,#REF!,S74)) ->  | DJ74: =IF(AND(V74="",X74="",AB74="",AC74=""),"",SUM(V74,X74,AB74,#REF!,AC74)) ->  | DN74: =IF(AND(AQ74="",AT74="",AW74="",AX74=""),"",SUM(AQ74,AT74,AW74,#REF!,AX74)) ->  | DP74: =IF(AND(BA74="",BD74="",BG74="",BH74=""),"",SUM(BA74,BD74,BG74,#REF!,BH74)) ->  | DR74: =IF(AND(BK74="",BN74="",BQ74="",BR74=""),"",SUM(BK74,BN74,BQ74,#REF!,BR74)) -> 
A75: 69 | DH75: =IF(AND(L75="",N75="",R75="",S75=""),"",SUM(L75,N75,R75,#REF!,S75)) ->  | DJ75: =IF(AND(V75="",X75="",AB75="",AC75=""),"",SUM(V75,X75,AB75,#REF!,AC75)) ->  | DN75: =IF(AND(AQ75="",AT75="",AW75="",AX75=""),"",SUM(AQ75,AT75,AW75,#REF!,AX75)) ->  | DP75: =IF(AND(BA75="",BD75="",BG75="",BH75=""),"",SUM(BA75,BD75,BG75,#REF!,BH75)) ->  | DR75: =IF(AND(BK75="",BN75="",BQ75="",BR75=""),"",SUM(BK75,BN75,BQ75,#REF!,BR75)) -> 
A76: 70 | DH76: =IF(AND(L76="",N76="",R76="",S76=""),"",SUM(L76,N76,R76,#REF!,S76)) ->  | DJ76: =IF(AND(V76="",X76="",AB76="",AC76=""),"",SUM(V76,X76,AB76,#REF!,AC76)) ->  | DN76: =IF(AND(AQ76="",AT76="",AW76="",AX76=""),"",SUM(AQ76,AT76,AW76,#REF!,AX76)) ->  | DP76: =IF(AND(BA76="",BD76="",BG76="",BH76=""),"",SUM(BA76,BD76,BG76,#REF!,BH76)) ->  | DR76: =IF(AND(BK76="",BN76="",BQ76="",BR76=""),"",SUM(BK76,BN76,BQ76,#REF!,BR76)) -> 
A77: 71 | DH77: =IF(AND(L77="",N77="",R77="",S77=""),"",SUM(L77,N77,R77,#REF!,S77)) ->  | DJ77: =IF(AND(V77="",X77="",AB77="",AC77=""),"",SUM(V77,X77,AB77,#REF!,AC77)) ->  | DN77: =IF(AND(AQ77="",AT77="",AW77="",AX77=""),"",SUM(AQ77,AT77,AW77,#REF!,AX77)) ->  | DP77: =IF(AND(BA77="",BD77="",BG77="",BH77=""),"",SUM(BA77,BD77,BG77,#REF!,BH77)) ->  | DR77: =IF(AND(BK77="",BN77="",BQ77="",BR77=""),"",SUM(BK77,BN77,BQ77,#REF!,BR77)) -> 
A78: 72 | DH78: =IF(AND(L78="",N78="",R78="",S78=""),"",SUM(L78,N78,R78,#REF!,S78)) ->  | DJ78: =IF(AND(V78="",X78="",AB78="",AC78=""),"",SUM(V78,X78,AB78,#REF!,AC78)) ->  | DN78: =IF(AND(AQ78="",AT78="",AW78="",AX78=""),"",SUM(AQ78,AT78,AW78,#REF!,AX78)) ->  | DP78: =IF(AND(BA78="",BD78="",BG78="",BH78=""),"",SUM(BA78,BD78,BG78,#REF!,BH78)) ->  | DR78: =IF(AND(BK78="",BN78="",BQ78="",BR78=""),"",SUM(BK78,BN78,BQ78,#REF!,BR78)) -> 
A79: 73 | DH79: =IF(AND(L79="",N79="",R79="",S79=""),"",SUM(L79,N79,R79,#REF!,S79)) ->  | DJ79: =IF(AND(V79="",X79="",AB79="",AC79=""),"",SUM(V79,X79,AB79,#REF!,AC79)) ->  | DN79: =IF(AND(AQ79="",AT79="",AW79="",AX79=""),"",SUM(AQ79,AT79,AW79,#REF!,AX79)) ->  | DP79: =IF(AND(BA79="",BD79="",BG79="",BH79=""),"",SUM(BA79,BD79,BG79,#REF!,BH79)) ->  | DR79: =IF(AND(BK79="",BN79="",BQ79="",BR79=""),"",SUM(BK79,BN79,BQ79,#REF!,BR79)) -> 
A80: 74 | DH80: =IF(AND(L80="",N80="",R80="",S80=""),"",SUM(L80,N80,R80,#REF!,S80)) ->  | DJ80: =IF(AND(V80="",X80="",AB80="",AC80=""),"",SUM(V80,X80,AB80,#REF!,AC80)) ->  | DN80: =IF(AND(AQ80="",AT80="",AW80="",AX80=""),"",SUM(AQ80,AT80,AW80,#REF!,AX80)) ->  | DP80: =IF(AND(BA80="",BD80="",BG80="",BH80=""),"",SUM(BA80,BD80,BG80,#REF!,BH80)) ->  | DR80: =IF(AND(BK80="",BN80="",BQ80="",BR80=""),"",SUM(BK80,BN80,BQ80,#REF!,BR80)) -> 
A81: 75 | DH81: =IF(AND(L81="",N81="",R81="",S81=""),"",SUM(L81,N81,R81,#REF!,S81)) ->  | DJ81: =IF(AND(V81="",X81="",AB81="",AC81=""),"",SUM(V81,X81,AB81,#REF!,AC81)) ->  | DN81: =IF(AND(AQ81="",AT81="",AW81="",AX81=""),"",SUM(AQ81,AT81,AW81,#REF!,AX81)) ->  | DP81: =IF(AND(BA81="",BD81="",BG81="",BH81=""),"",SUM(BA81,BD81,BG81,#REF!,BH81)) ->  | DR81: =IF(AND(BK81="",BN81="",BQ81="",BR81=""),"",SUM(BK81,BN81,BQ81,#REF!,BR81)) -> 
A82: 76 | DH82: =IF(AND(L82="",N82="",R82="",S82=""),"",SUM(L82,N82,R82,#REF!,S82)) ->  | DJ82: =IF(AND(V82="",X82="",AB82="",AC82=""),"",SUM(V82,X82,AB82,#REF!,AC82)) ->  | DN82: =IF(AND(AQ82="",AT82="",AW82="",AX82=""),"",SUM(AQ82,AT82,AW82,#REF!,AX82)) ->  | DP82: =IF(AND(BA82="",BD82="",BG82="",BH82=""),"",SUM(BA82,BD82,BG82,#REF!,BH82)) ->  | DR82: =IF(AND(BK82="",BN82="",BQ82="",BR82=""),"",SUM(BK82,BN82,BQ82,#REF!,BR82)) -> 
A83: 77 | DH83: =IF(AND(L83="",N83="",R83="",S83=""),"",SUM(L83,N83,R83,#REF!,S83)) ->  | DJ83: =IF(AND(V83="",X83="",AB83="",AC83=""),"",SUM(V83,X83,AB83,#REF!,AC83)) ->  | DN83: =IF(AND(AQ83="",AT83="",AW83="",AX83=""),"",SUM(AQ83,AT83,AW83,#REF!,AX83)) ->  | DP83: =IF(AND(BA83="",BD83="",BG83="",BH83=""),"",SUM(BA83,BD83,BG83,#REF!,BH83)) ->  | DR83: =IF(AND(BK83="",BN83="",BQ83="",BR83=""),"",SUM(BK83,BN83,BQ83,#REF!,BR83)) -> 
A84: 78 | DH84: =IF(AND(L84="",N84="",R84="",S84=""),"",SUM(L84,N84,R84,#REF!,S84)) ->  | DJ84: =IF(AND(V84="",X84="",AB84="",AC84=""),"",SUM(V84,X84,AB84,#REF!,AC84)) ->  | DN84: =IF(AND(AQ84="",AT84="",AW84="",AX84=""),"",SUM(AQ84,AT84,AW84,#REF!,AX84)) ->  | DP84: =IF(AND(BA84="",BD84="",BG84="",BH84=""),"",SUM(BA84,BD84,BG84,#REF!,BH84)) ->  | DR84: =IF(AND(BK84="",BN84="",BQ84="",BR84=""),"",SUM(BK84,BN84,BQ84,#REF!,BR84)) -> 
A85: 79 | DH85: =IF(AND(L85="",N85="",R85="",S85=""),"",SUM(L85,N85,R85,#REF!,S85)) ->  | DJ85: =IF(AND(V85="",X85="",AB85="",AC85=""),"",SUM(V85,X85,AB85,#REF!,AC85)) ->  | DN85: =IF(AND(AQ85="",AT85="",AW85="",AX85=""),"",SUM(AQ85,AT85,AW85,#REF!,AX85)) ->  | DP85: =IF(AND(BA85="",BD85="",BG85="",BH85=""),"",SUM(BA85,BD85,BG85,#REF!,BH85)) ->  | DR85: =IF(AND(BK85="",BN85="",BQ85="",BR85=""),"",SUM(BK85,BN85,BQ85,#REF!,BR85)) -> 
A86: 80 | DH86: =IF(AND(L86="",N86="",R86="",S86=""),"",SUM(L86,N86,R86,#REF!,S86)) ->  | DJ86: =IF(AND(V86="",X86="",AB86="",AC86=""),"",SUM(V86,X86,AB86,#REF!,AC86)) ->  | DN86: =IF(AND(AQ86="",AT86="",AW86="",AX86=""),"",SUM(AQ86,AT86,AW86,#REF!,AX86)) ->  | DP86: =IF(AND(BA86="",BD86="",BG86="",BH86=""),"",SUM(BA86,BD86,BG86,#REF!,BH86)) ->  | DR86: =IF(AND(BK86="",BN86="",BQ86="",BR86=""),"",SUM(BK86,BN86,BQ86,#REF!,BR86)) -> 
A87: 81 | DH87: =IF(AND(L87="",N87="",R87="",S87=""),"",SUM(L87,N87,R87,#REF!,S87)) ->  | DJ87: =IF(AND(V87="",X87="",AB87="",AC87=""),"",SUM(V87,X87,AB87,#REF!,AC87)) ->  | DN87: =IF(AND(AQ87="",AT87="",AW87="",AX87=""),"",SUM(AQ87,AT87,AW87,#REF!,AX87)) ->  | DP87: =IF(AND(BA87="",BD87="",BG87="",BH87=""),"",SUM(BA87,BD87,BG87,#REF!,BH87)) ->  | DR87: =IF(AND(BK87="",BN87="",BQ87="",BR87=""),"",SUM(BK87,BN87,BQ87,#REF!,BR87)) -> 
A88: 82 | DH88: =IF(AND(L88="",N88="",R88="",S88=""),"",SUM(L88,N88,R88,#REF!,S88)) ->  | DJ88: =IF(AND(V88="",X88="",AB88="",AC88=""),"",SUM(V88,X88,AB88,#REF!,AC88)) ->  | DN88: =IF(AND(AQ88="",AT88="",AW88="",AX88=""),"",SUM(AQ88,AT88,AW88,#REF!,AX88)) ->  | DP88: =IF(AND(BA88="",BD88="",BG88="",BH88=""),"",SUM(BA88,BD88,BG88,#REF!,BH88)) ->  | DR88: =IF(AND(BK88="",BN88="",BQ88="",BR88=""),"",SUM(BK88,BN88,BQ88,#REF!,BR88)) -> 
A89: 83 | DH89: =IF(AND(L89="",N89="",R89="",S89=""),"",SUM(L89,N89,R89,#REF!,S89)) ->  | DJ89: =IF(AND(V89="",X89="",AB89="",AC89=""),"",SUM(V89,X89,AB89,#REF!,AC89)) ->  | DN89: =IF(AND(AQ89="",AT89="",AW89="",AX89=""),"",SUM(AQ89,AT89,AW89,#REF!,AX89)) ->  | DP89: =IF(AND(BA89="",BD89="",BG89="",BH89=""),"",SUM(BA89,BD89,BG89,#REF!,BH89)) ->  | DR89: =IF(AND(BK89="",BN89="",BQ89="",BR89=""),"",SUM(BK89,BN89,BQ89,#REF!,BR89)) -> 
A90: 84 | DH90: =IF(AND(L90="",N90="",R90="",S90=""),"",SUM(L90,N90,R90,#REF!,S90)) ->  | DJ90: =IF(AND(V90="",X90="",AB90="",AC90=""),"",SUM(V90,X90,AB90,#REF!,AC90)) ->  | DN90: =IF(AND(AQ90="",AT90="",AW90="",AX90=""),"",SUM(AQ90,AT90,AW90,#REF!,AX90)) ->  | DP90: =IF(AND(BA90="",BD90="",BG90="",BH90=""),"",SUM(BA90,BD90,BG90,#REF!,BH90)) ->  | DR90: =IF(AND(BK90="",BN90="",BQ90="",BR90=""),"",SUM(BK90,BN90,BQ90,#REF!,BR90)) -> 
A91: 85 | DH91: =IF(AND(L91="",N91="",R91="",S91=""),"",SUM(L91,N91,R91,#REF!,S91)) ->  | DJ91: =IF(AND(V91="",X91="",AB91="",AC91=""),"",SUM(V91,X91,AB91,#REF!,AC91)) ->  | DN91: =IF(AND(AQ91="",AT91="",AW91="",AX91=""),"",SUM(AQ91,AT91,AW91,#REF!,AX91)) ->  | DP91: =IF(AND(BA91="",BD91="",BG91="",BH91=""),"",SUM(BA91,BD91,BG91,#REF!,BH91)) ->  | DR91: =IF(AND(BK91="",BN91="",BQ91="",BR91=""),"",SUM(BK91,BN91,BQ91,#REF!,BR91)) -> 
A92: 86 | DH92: =IF(AND(L92="",N92="",R92="",S92=""),"",SUM(L92,N92,R92,#REF!,S92)) ->  | DJ92: =IF(AND(V92="",X92="",AB92="",AC92=""),"",SUM(V92,X92,AB92,#REF!,AC92)) ->  | DN92: =IF(AND(AQ92="",AT92="",AW92="",AX92=""),"",SUM(AQ92,AT92,AW92,#REF!,AX92)) ->  | DP92: =IF(AND(BA92="",BD92="",BG92="",BH92=""),"",SUM(BA92,BD92,BG92,#REF!,BH92)) ->  | DR92: =IF(AND(BK92="",BN92="",BQ92="",BR92=""),"",SUM(BK92,BN92,BQ92,#REF!,BR92)) -> 
A93: 87 | DH93: =IF(AND(L93="",N93="",R93="",S93=""),"",SUM(L93,N93,R93,#REF!,S93)) ->  | DJ93: =IF(AND(V93="",X93="",AB93="",AC93=""),"",SUM(V93,X93,AB93,#REF!,AC93)) ->  | DN93: =IF(AND(AQ93="",AT93="",AW93="",AX93=""),"",SUM(AQ93,AT93,AW93,#REF!,AX93)) ->  | DP93: =IF(AND(BA93="",BD93="",BG93="",BH93=""),"",SUM(BA93,BD93,BG93,#REF!,BH93)) ->  | DR93: =IF(AND(BK93="",BN93="",BQ93="",BR93=""),"",SUM(BK93,BN93,BQ93,#REF!,BR93)) -> 
A94: 88 | DH94: =IF(AND(L94="",N94="",R94="",S94=""),"",SUM(L94,N94,R94,#REF!,S94)) ->  | DJ94: =IF(AND(V94="",X94="",AB94="",AC94=""),"",SUM(V94,X94,AB94,#REF!,AC94)) ->  | DN94: =IF(AND(AQ94="",AT94="",AW94="",AX94=""),"",SUM(AQ94,AT94,AW94,#REF!,AX94)) ->  | DP94: =IF(AND(BA94="",BD94="",BG94="",BH94=""),"",SUM(BA94,BD94,BG94,#REF!,BH94)) ->  | DR94: =IF(AND(BK94="",BN94="",BQ94="",BR94=""),"",SUM(BK94,BN94,BQ94,#REF!,BR94)) -> 
A95: 89 | DH95: =IF(AND(L95="",N95="",R95="",S95=""),"",SUM(L95,N95,R95,#REF!,S95)) ->  | DJ95: =IF(AND(V95="",X95="",AB95="",AC95=""),"",SUM(V95,X95,AB95,#REF!,AC95)) ->  | DN95: =IF(AND(AQ95="",AT95="",AW95="",AX95=""),"",SUM(AQ95,AT95,AW95,#REF!,AX95)) ->  | DP95: =IF(AND(BA95="",BD95="",BG95="",BH95=""),"",SUM(BA95,BD95,BG95,#REF!,BH95)) ->  | DR95: =IF(AND(BK95="",BN95="",BQ95="",BR95=""),"",SUM(BK95,BN95,BQ95,#REF!,BR95)) -> 
A96: 90 | DH96: =IF(AND(L96="",N96="",R96="",S96=""),"",SUM(L96,N96,R96,#REF!,S96)) ->  | DJ96: =IF(AND(V96="",X96="",AB96="",AC96=""),"",SUM(V96,X96,AB96,#REF!,AC96)) ->  | DN96: =IF(AND(AQ96="",AT96="",AW96="",AX96=""),"",SUM(AQ96,AT96,AW96,#REF!,AX96)) ->  | DP96: =IF(AND(BA96="",BD96="",BG96="",BH96=""),"",SUM(BA96,BD96,BG96,#REF!,BH96)) ->  | DR96: =IF(AND(BK96="",BN96="",BQ96="",BR96=""),"",SUM(BK96,BN96,BQ96,#REF!,BR96)) -> 
A97: 91 | DH97: =IF(AND(L97="",N97="",R97="",S97=""),"",SUM(L97,N97,R97,#REF!,S97)) ->  | DJ97: =IF(AND(V97="",X97="",AB97="",AC97=""),"",SUM(V97,X97,AB97,#REF!,AC97)) ->  | DN97: =IF(AND(AQ97="",AT97="",AW97="",AX97=""),"",SUM(AQ97,AT97,AW97,#REF!,AX97)) ->  | DP97: =IF(AND(BA97="",BD97="",BG97="",BH97=""),"",SUM(BA97,BD97,BG97,#REF!,BH97)) ->  | DR97: =IF(AND(BK97="",BN97="",BQ97="",BR97=""),"",SUM(BK97,BN97,BQ97,#REF!,BR97)) -> 
A98: 92 | DH98: =IF(AND(L98="",N98="",R98="",S98=""),"",SUM(L98,N98,R98,#REF!,S98)) ->  | DJ98: =IF(AND(V98="",X98="",AB98="",AC98=""),"",SUM(V98,X98,AB98,#REF!,AC98)) ->  | DN98: =IF(AND(AQ98="",AT98="",AW98="",AX98=""),"",SUM(AQ98,AT98,AW98,#REF!,AX98)) ->  | DP98: =IF(AND(BA98="",BD98="",BG98="",BH98=""),"",SUM(BA98,BD98,BG98,#REF!,BH98)) ->  | DR98: =IF(AND(BK98="",BN98="",BQ98="",BR98=""),"",SUM(BK98,BN98,BQ98,#REF!,BR98)) -> 
A99: 93 | DH99: =IF(AND(L99="",N99="",R99="",S99=""),"",SUM(L99,N99,R99,#REF!,S99)) ->  | DJ99: =IF(AND(V99="",X99="",AB99="",AC99=""),"",SUM(V99,X99,AB99,#REF!,AC99)) ->  | DN99: =IF(AND(AQ99="",AT99="",AW99="",AX99=""),"",SUM(AQ99,AT99,AW99,#REF!,AX99)) ->  | DP99: =IF(AND(BA99="",BD99="",BG99="",BH99=""),"",SUM(BA99,BD99,BG99,#REF!,BH99)) ->  | DR99: =IF(AND(BK99="",BN99="",BQ99="",BR99=""),"",SUM(BK99,BN99,BQ99,#REF!,BR99)) -> 
A100: 94 | DH100: =IF(AND(L100="",N100="",R100="",S100=""),"",SUM(L100,N100,R100,#REF!,S100)) ->  | DJ100: =IF(AND(V100="",X100="",AB100="",AC100=""),"",SUM(V100,X100,AB100,#REF!,AC100)) ->  | DN100: =IF(AND(AQ100="",AT100="",AW100="",AX100=""),"",SUM(AQ100,AT100,AW100,#REF!,AX100)) ->  | DP100: =IF(AND(BA100="",BD100="",BG100="",BH100=""),"",SUM(BA100,BD100,BG100,#REF!,BH100)) ->  | DR100: =IF(AND(BK100="",BN100="",BQ100="",BR100=""),"",SUM(BK100,BN100,BQ100,#REF!,BR100)) -> 
A101: 95 | DH101: =IF(AND(L101="",N101="",R101="",S101=""),"",SUM(L101,N101,R101,#REF!,S101)) ->  | DJ101: =IF(AND(V101="",X101="",AB101="",AC101=""),"",SUM(V101,X101,AB101,#REF!,AC101)) ->  | DN101: =IF(AND(AQ101="",AT101="",AW101="",AX101=""),"",SUM(AQ101,AT101,AW101,#REF!,AX101)) ->  | DP101: =IF(AND(BA101="",BD101="",BG101="",BH101=""),"",SUM(BA101,BD101,BG101,#REF!,BH101)) ->  | DR101: =IF(AND(BK101="",BN101="",BQ101="",BR101=""),"",SUM(BK101,BN101,BQ101,#REF!,BR101)) -> 
A102: 96 | DH102: =IF(AND(L102="",N102="",R102="",S102=""),"",SUM(L102,N102,R102,#REF!,S102)) ->  | DJ102: =IF(AND(V102="",X102="",AB102="",AC102=""),"",SUM(V102,X102,AB102,#REF!,AC102)) ->  | DN102: =IF(AND(AQ102="",AT102="",AW102="",AX102=""),"",SUM(AQ102,AT102,AW102,#REF!,AX102)) ->  | DP102: =IF(AND(BA102="",BD102="",BG102="",BH102=""),"",SUM(BA102,BD102,BG102,#REF!,BH102)) ->  | DR102: =IF(AND(BK102="",BN102="",BQ102="",BR102=""),"",SUM(BK102,BN102,BQ102,#REF!,BR102)) -> 
A103: 97 | DH103: =IF(AND(L103="",N103="",R103="",S103=""),"",SUM(L103,N103,R103,#REF!,S103)) ->  | DJ103: =IF(AND(V103="",X103="",AB103="",AC103=""),"",SUM(V103,X103,AB103,#REF!,AC103)) ->  | DN103: =IF(AND(AQ103="",AT103="",AW103="",AX103=""),"",SUM(AQ103,AT103,AW103,#REF!,AX103)) ->  | DP103: =IF(AND(BA103="",BD103="",BG103="",BH103=""),"",SUM(BA103,BD103,BG103,#REF!,BH103)) ->  | DR103: =IF(AND(BK103="",BN103="",BQ103="",BR103=""),"",SUM(BK103,BN103,BQ103,#REF!,BR103)) -> 
A104: 98 | DH104: =IF(AND(L104="",N104="",R104="",S104=""),"",SUM(L104,N104,R104,#REF!,S104)) ->  | DJ104: =IF(AND(V104="",X104="",AB104="",AC104=""),"",SUM(V104,X104,AB104,#REF!,AC104)) ->  | DN104: =IF(AND(AQ104="",AT104="",AW104="",AX104=""),"",SUM(AQ104,AT104,AW104,#REF!,AX104)) ->  | DP104: =IF(AND(BA104="",BD104="",BG104="",BH104=""),"",SUM(BA104,BD104,BG104,#REF!,BH104)) ->  | DR104: =IF(AND(BK104="",BN104="",BQ104="",BR104=""),"",SUM(BK104,BN104,BQ104,#REF!,BR104)) -> 
A105: 99 | DH105: =IF(AND(L105="",N105="",R105="",S105=""),"",SUM(L105,N105,R105,#REF!,S105)) ->  | DJ105: =IF(AND(V105="",X105="",AB105="",AC105=""),"",SUM(V105,X105,AB105,#REF!,AC105)) ->  | DN105: =IF(AND(AQ105="",AT105="",AW105="",AX105=""),"",SUM(AQ105,AT105,AW105,#REF!,AX105)) ->  | DP105: =IF(AND(BA105="",BD105="",BG105="",BH105=""),"",SUM(BA105,BD105,BG105,#REF!,BH105)) ->  | DR105: =IF(AND(BK105="",BN105="",BQ105="",BR105=""),"",SUM(BK105,BN105,BQ105,#REF!,BR105)) -> 
A106: 100 | DH106: =IF(AND(L106="",N106="",R106="",S106=""),"",SUM(L106,N106,R106,#REF!,S106)) ->  | DJ106: =IF(AND(V106="",X106="",AB106="",AC106=""),"",SUM(V106,X106,AB106,#REF!,AC106)) ->  | DN106: =IF(AND(AQ106="",AT106="",AW106="",AX106=""),"",SUM(AQ106,AT106,AW106,#REF!,AX106)) ->  | DP106: =IF(AND(BA106="",BD106="",BG106="",BH106=""),"",SUM(BA106,BD106,BG106,#REF!,BH106)) ->  | DR106: =IF(AND(BK106="",BN106="",BQ106="",BR106=""),"",SUM(BK106,BN106,BQ106,#REF!,BR106)) -> 
A107: 101 | DH107: =IF(AND(L107="",N107="",R107="",S107=""),"",SUM(L107,N107,R107,#REF!,S107)) ->  | DJ107: =IF(AND(V107="",X107="",AB107="",AC107=""),"",SUM(V107,X107,AB107,#REF!,AC107)) ->  | DN107: =IF(AND(AQ107="",AT107="",AW107="",AX107=""),"",SUM(AQ107,AT107,AW107,#REF!,AX107)) ->  | DP107: =IF(AND(BA107="",BD107="",BG107="",BH107=""),"",SUM(BA107,BD107,BG107,#REF!,BH107)) ->  | DR107: =IF(AND(BK107="",BN107="",BQ107="",BR107=""),"",SUM(BK107,BN107,BQ107,#REF!,BR107)) -> 
A108: 102 | DH108: =IF(AND(L108="",N108="",R108="",S108=""),"",SUM(L108,N108,R108,#REF!,S108)) ->  | DJ108: =IF(AND(V108="",X108="",AB108="",AC108=""),"",SUM(V108,X108,AB108,#REF!,AC108)) ->  | DN108: =IF(AND(AQ108="",AT108="",AW108="",AX108=""),"",SUM(AQ108,AT108,AW108,#REF!,AX108)) ->  | DP108: =IF(AND(BA108="",BD108="",BG108="",BH108=""),"",SUM(BA108,BD108,BG108,#REF!,BH108)) ->  | DR108: =IF(AND(BK108="",BN108="",BQ108="",BR108=""),"",SUM(BK108,BN108,BQ108,#REF!,BR108)) -> 
A109: 103 | DH109: =IF(AND(L109="",N109="",R109="",S109=""),"",SUM(L109,N109,R109,#REF!,S109)) ->  | DJ109: =IF(AND(V109="",X109="",AB109="",AC109=""),"",SUM(V109,X109,AB109,#REF!,AC109)) ->  | DN109: =IF(AND(AQ109="",AT109="",AW109="",AX109=""),"",SUM(AQ109,AT109,AW109,#REF!,AX109)) ->  | DP109: =IF(AND(BA109="",BD109="",BG109="",BH109=""),"",SUM(BA109,BD109,BG109,#REF!,BH109)) ->  | DR109: =IF(AND(BK109="",BN109="",BQ109="",BR109=""),"",SUM(BK109,BN109,BQ109,#REF!,BR109)) -> 
A110: 104 | DH110: =IF(AND(L110="",N110="",R110="",S110=""),"",SUM(L110,N110,R110,#REF!,S110)) ->  | DJ110: =IF(AND(V110="",X110="",AB110="",AC110=""),"",SUM(V110,X110,AB110,#REF!,AC110)) ->  | DN110: =IF(AND(AQ110="",AT110="",AW110="",AX110=""),"",SUM(AQ110,AT110,AW110,#REF!,AX110)) ->  | DP110: =IF(AND(BA110="",BD110="",BG110="",BH110=""),"",SUM(BA110,BD110,BG110,#REF!,BH110)) ->  | DR110: =IF(AND(BK110="",BN110="",BQ110="",BR110=""),"",SUM(BK110,BN110,BQ110,#REF!,BR110)) -> 
A111: 105 | DH111: =IF(AND(L111="",N111="",R111="",S111=""),"",SUM(L111,N111,R111,#REF!,S111)) ->  | DJ111: =IF(AND(V111="",X111="",AB111="",AC111=""),"",SUM(V111,X111,AB111,#REF!,AC111)) ->  | DN111: =IF(AND(AQ111="",AT111="",AW111="",AX111=""),"",SUM(AQ111,AT111,AW111,#REF!,AX111)) ->  | DP111: =IF(AND(BA111="",BD111="",BG111="",BH111=""),"",SUM(BA111,BD111,BG111,#REF!,BH111)) ->  | DR111: =IF(AND(BK111="",BN111="",BQ111="",BR111=""),"",SUM(BK111,BN111,BQ111,#REF!,BR111)) -> 
A112: 106 | DH112: =IF(AND(L112="",N112="",R112="",S112=""),"",SUM(L112,N112,R112,#REF!,S112)) ->  | DJ112: =IF(AND(V112="",X112="",AB112="",AC112=""),"",SUM(V112,X112,AB112,#REF!,AC112)) ->  | DN112: =IF(AND(AQ112="",AT112="",AW112="",AX112=""),"",SUM(AQ112,AT112,AW112,#REF!,AX112)) ->  | DP112: =IF(AND(BA112="",BD112="",BG112="",BH112=""),"",SUM(BA112,BD112,BG112,#REF!,BH112)) ->  | DR112: =IF(AND(BK112="",BN112="",BQ112="",BR112=""),"",SUM(BK112,BN112,BQ112,#REF!,BR112)) -> 
A113: 107 | DH113: =IF(AND(L113="",N113="",R113="",S113=""),"",SUM(L113,N113,R113,#REF!,S113)) ->  | DJ113: =IF(AND(V113="",X113="",AB113="",AC113=""),"",SUM(V113,X113,AB113,#REF!,AC113)) ->  | DN113: =IF(AND(AQ113="",AT113="",AW113="",AX113=""),"",SUM(AQ113,AT113,AW113,#REF!,AX113)) ->  | DP113: =IF(AND(BA113="",BD113="",BG113="",BH113=""),"",SUM(BA113,BD113,BG113,#REF!,BH113)) ->  | DR113: =IF(AND(BK113="",BN113="",BQ113="",BR113=""),"",SUM(BK113,BN113,BQ113,#REF!,BR113)) -> 
A114: 108 | DH114: =IF(AND(L114="",N114="",R114="",S114=""),"",SUM(L114,N114,R114,#REF!,S114)) ->  | DJ114: =IF(AND(V114="",X114="",AB114="",AC114=""),"",SUM(V114,X114,AB114,#REF!,AC114)) ->  | DN114: =IF(AND(AQ114="",AT114="",AW114="",AX114=""),"",SUM(AQ114,AT114,AW114,#REF!,AX114)) ->  | DP114: =IF(AND(BA114="",BD114="",BG114="",BH114=""),"",SUM(BA114,BD114,BG114,#REF!,BH114)) ->  | DR114: =IF(AND(BK114="",BN114="",BQ114="",BR114=""),"",SUM(BK114,BN114,BQ114,#REF!,BR114)) -> 
A115: 109 | DH115: =IF(AND(L115="",N115="",R115="",S115=""),"",SUM(L115,N115,R115,#REF!,S115)) ->  | DJ115: =IF(AND(V115="",X115="",AB115="",AC115=""),"",SUM(V115,X115,AB115,#REF!,AC115)) ->  | DN115: =IF(AND(AQ115="",AT115="",AW115="",AX115=""),"",SUM(AQ115,AT115,AW115,#REF!,AX115)) ->  | DP115: =IF(AND(BA115="",BD115="",BG115="",BH115=""),"",SUM(BA115,BD115,BG115,#REF!,BH115)) ->  | DR115: =IF(AND(BK115="",BN115="",BQ115="",BR115=""),"",SUM(BK115,BN115,BQ115,#REF!,BR115)) -> 
A116: 110 | DH116: =IF(AND(L116="",N116="",R116="",S116=""),"",SUM(L116,N116,R116,#REF!,S116)) ->  | DJ116: =IF(AND(V116="",X116="",AB116="",AC116=""),"",SUM(V116,X116,AB116,#REF!,AC116)) ->  | DN116: =IF(AND(AQ116="",AT116="",AW116="",AX116=""),"",SUM(AQ116,AT116,AW116,#REF!,AX116)) ->  | DP116: =IF(AND(BA116="",BD116="",BG116="",BH116=""),"",SUM(BA116,BD116,BG116,#REF!,BH116)) ->  | DR116: =IF(AND(BK116="",BN116="",BQ116="",BR116=""),"",SUM(BK116,BN116,BQ116,#REF!,BR116)) -> 
A117: 111 | DH117: =IF(AND(L117="",N117="",R117="",S117=""),"",SUM(L117,N117,R117,#REF!,S117)) ->  | DJ117: =IF(AND(V117="",X117="",AB117="",AC117=""),"",SUM(V117,X117,AB117,#REF!,AC117)) ->  | DN117: =IF(AND(AQ117="",AT117="",AW117="",AX117=""),"",SUM(AQ117,AT117,AW117,#REF!,AX117)) ->  | DP117: =IF(AND(BA117="",BD117="",BG117="",BH117=""),"",SUM(BA117,BD117,BG117,#REF!,BH117)) ->  | DR117: =IF(AND(BK117="",BN117="",BQ117="",BR117=""),"",SUM(BK117,BN117,BQ117,#REF!,BR117)) -> 
A118: 112 | DH118: =IF(AND(L118="",N118="",R118="",S118=""),"",SUM(L118,N118,R118,#REF!,S118)) ->  | DJ118: =IF(AND(V118="",X118="",AB118="",AC118=""),"",SUM(V118,X118,AB118,#REF!,AC118)) ->  | DN118: =IF(AND(AQ118="",AT118="",AW118="",AX118=""),"",SUM(AQ118,AT118,AW118,#REF!,AX118)) ->  | DP118: =IF(AND(BA118="",BD118="",BG118="",BH118=""),"",SUM(BA118,BD118,BG118,#REF!,BH118)) ->  | DR118: =IF(AND(BK118="",BN118="",BQ118="",BR118=""),"",SUM(BK118,BN118,BQ118,#REF!,BR118)) -> 
A119: 113 | DH119: =IF(AND(L119="",N119="",R119="",S119=""),"",SUM(L119,N119,R119,#REF!,S119)) ->  | DJ119: =IF(AND(V119="",X119="",AB119="",AC119=""),"",SUM(V119,X119,AB119,#REF!,AC119)) ->  | DN119: =IF(AND(AQ119="",AT119="",AW119="",AX119=""),"",SUM(AQ119,AT119,AW119,#REF!,AX119)) ->  | DP119: =IF(AND(BA119="",BD119="",BG119="",BH119=""),"",SUM(BA119,BD119,BG119,#REF!,BH119)) ->  | DR119: =IF(AND(BK119="",BN119="",BQ119="",BR119=""),"",SUM(BK119,BN119,BQ119,#REF!,BR119)) -> 
A120: 114 | DH120: =IF(AND(L120="",N120="",R120="",S120=""),"",SUM(L120,N120,R120,#REF!,S120)) ->  | DJ120: =IF(AND(V120="",X120="",AB120="",AC120=""),"",SUM(V120,X120,AB120,#REF!,AC120)) ->  | DN120: =IF(AND(AQ120="",AT120="",AW120="",AX120=""),"",SUM(AQ120,AT120,AW120,#REF!,AX120)) ->  | DP120: =IF(AND(BA120="",BD120="",BG120="",BH120=""),"",SUM(BA120,BD120,BG120,#REF!,BH120)) ->  | DR120: =IF(AND(BK120="",BN120="",BQ120="",BR120=""),"",SUM(BK120,BN120,BQ120,#REF!,BR120)) -> 
A121: 115 | DH121: =IF(AND(L121="",N121="",R121="",S121=""),"",SUM(L121,N121,R121,#REF!,S121)) ->  | DJ121: =IF(AND(V121="",X121="",AB121="",AC121=""),"",SUM(V121,X121,AB121,#REF!,AC121)) ->  | DN121: =IF(AND(AQ121="",AT121="",AW121="",AX121=""),"",SUM(AQ121,AT121,AW121,#REF!,AX121)) ->  | DP121: =IF(AND(BA121="",BD121="",BG121="",BH121=""),"",SUM(BA121,BD121,BG121,#REF!,BH121)) ->  | DR121: =IF(AND(BK121="",BN121="",BQ121="",BR121=""),"",SUM(BK121,BN121,BQ121,#REF!,BR121)) -> 
A122: 116 | DH122: =IF(AND(L122="",N122="",R122="",S122=""),"",SUM(L122,N122,R122,#REF!,S122)) ->  | DJ122: =IF(AND(V122="",X122="",AB122="",AC122=""),"",SUM(V122,X122,AB122,#REF!,AC122)) ->  | DN122: =IF(AND(AQ122="",AT122="",AW122="",AX122=""),"",SUM(AQ122,AT122,AW122,#REF!,AX122)) ->  | DP122: =IF(AND(BA122="",BD122="",BG122="",BH122=""),"",SUM(BA122,BD122,BG122,#REF!,BH122)) ->  | DR122: =IF(AND(BK122="",BN122="",BQ122="",BR122=""),"",SUM(BK122,BN122,BQ122,#REF!,BR122)) -> 
A123: 117 | DH123: =IF(AND(L123="",N123="",R123="",S123=""),"",SUM(L123,N123,R123,#REF!,S123)) ->  | DJ123: =IF(AND(V123="",X123="",AB123="",AC123=""),"",SUM(V123,X123,AB123,#REF!,AC123)) ->  | DN123: =IF(AND(AQ123="",AT123="",AW123="",AX123=""),"",SUM(AQ123,AT123,AW123,#REF!,AX123)) ->  | DP123: =IF(AND(BA123="",BD123="",BG123="",BH123=""),"",SUM(BA123,BD123,BG123,#REF!,BH123)) ->  | DR123: =IF(AND(BK123="",BN123="",BQ123="",BR123=""),"",SUM(BK123,BN123,BQ123,#REF!,BR123)) -> 
A124: 118 | DH124: =IF(AND(L124="",N124="",R124="",S124=""),"",SUM(L124,N124,R124,#REF!,S124)) ->  | DJ124: =IF(AND(V124="",X124="",AB124="",AC124=""),"",SUM(V124,X124,AB124,#REF!,AC124)) ->  | DN124: =IF(AND(AQ124="",AT124="",AW124="",AX124=""),"",SUM(AQ124,AT124,AW124,#REF!,AX124)) ->  | DP124: =IF(AND(BA124="",BD124="",BG124="",BH124=""),"",SUM(BA124,BD124,BG124,#REF!,BH124)) ->  | DR124: =IF(AND(BK124="",BN124="",BQ124="",BR124=""),"",SUM(BK124,BN124,BQ124,#REF!,BR124)) -> 
A125: 119 | DH125: =IF(AND(L125="",N125="",R125="",S125=""),"",SUM(L125,N125,R125,#REF!,S125)) ->  | DJ125: =IF(AND(V125="",X125="",AB125="",AC125=""),"",SUM(V125,X125,AB125,#REF!,AC125)) ->  | DN125: =IF(AND(AQ125="",AT125="",AW125="",AX125=""),"",SUM(AQ125,AT125,AW125,#REF!,AX125)) ->  | DP125: =IF(AND(BA125="",BD125="",BG125="",BH125=""),"",SUM(BA125,BD125,BG125,#REF!,BH125)) ->  | DR125: =IF(AND(BK125="",BN125="",BQ125="",BR125=""),"",SUM(BK125,BN125,BQ125,#REF!,BR125)) -> 
A126: 120 | DH126: =IF(AND(L126="",N126="",R126="",S126=""),"",SUM(L126,N126,R126,#REF!,S126)) ->  | DJ126: =IF(AND(V126="",X126="",AB126="",AC126=""),"",SUM(V126,X126,AB126,#REF!,AC126)) ->  | DN126: =IF(AND(AQ126="",AT126="",AW126="",AX126=""),"",SUM(AQ126,AT126,AW126,#REF!,AX126)) ->  | DP126: =IF(AND(BA126="",BD126="",BG126="",BH126=""),"",SUM(BA126,BD126,BG126,#REF!,BH126)) ->  | DR126: =IF(AND(BK126="",BN126="",BQ126="",BR126=""),"",SUM(BK126,BN126,BQ126,#REF!,BR126)) -> 
A127: 121 | DH127: =IF(AND(L127="",N127="",R127="",S127=""),"",SUM(L127,N127,R127,#REF!,S127)) ->  | DJ127: =IF(AND(V127="",X127="",AB127="",AC127=""),"",SUM(V127,X127,AB127,#REF!,AC127)) ->  | DN127: =IF(AND(AQ127="",AT127="",AW127="",AX127=""),"",SUM(AQ127,AT127,AW127,#REF!,AX127)) ->  | DP127: =IF(AND(BA127="",BD127="",BG127="",BH127=""),"",SUM(BA127,BD127,BG127,#REF!,BH127)) ->  | DR127: =IF(AND(BK127="",BN127="",BQ127="",BR127=""),"",SUM(BK127,BN127,BQ127,#REF!,BR127)) ->  | DT127: =IF(AND(#REF!="",#REF!="",#REF!="",#REF!=""),"",SUM(#REF!,#REF!,#REF!,#REF!)) ->  | DU127: =IFERROR(IF(DT127="","",IF($DT$5=100,ROUNDUP(DT127*20%,0),IF($DT$5=86,ROUNDUP((DT127/$DT$5)*$DU$5,0),IF($DT$5=66,ROUNDUP((DT127/$DT$5)*$DU$5,0),"")))),"") -> 
A128: 122 | DH128: =IF(AND(L128="",N128="",R128="",S128=""),"",SUM(L128,N128,R128,#REF!,S128)) ->  | DJ128: =IF(AND(V128="",X128="",AB128="",AC128=""),"",SUM(V128,X128,AB128,#REF!,AC128)) ->  | DN128: =IF(AND(AQ128="",AT128="",AW128="",AX128=""),"",SUM(AQ128,AT128,AW128,#REF!,AX128)) ->  | DP128: =IF(AND(BA128="",BD128="",BG128="",BH128=""),"",SUM(BA128,BD128,BG128,#REF!,BH128)) ->  | DR128: =IF(AND(BK128="",BN128="",BQ128="",BR128=""),"",SUM(BK128,BN128,BQ128,#REF!,BR128)) ->  | DT128: =IF(AND(#REF!="",#REF!="",#REF!="",#REF!=""),"",SUM(#REF!,#REF!,#REF!,#REF!)) -> 
A129: 123 | DH129: =IF(AND(L129="",N129="",R129="",S129=""),"",SUM(L129,N129,R129,#REF!,S129)) ->  | DJ129: =IF(AND(V129="",X129="",AB129="",AC129=""),"",SUM(V129,X129,AB129,#REF!,AC129)) ->  | DN129: =IF(AND(AQ129="",AT129="",AW129="",AX129=""),"",SUM(AQ129,AT129,AW129,#REF!,AX129)) ->  | DP129: =IF(AND(BA129="",BD129="",BG129="",BH129=""),"",SUM(BA129,BD129,BG129,#REF!,BH129)) ->  | DR129: =IF(AND(BK129="",BN129="",BQ129="",BR129=""),"",SUM(BK129,BN129,BQ129,#REF!,BR129)) ->  | DT129: =IF(AND(#REF!="",#REF!="",#REF!="",#REF!=""),"",SUM(#REF!,#REF!,#REF!,#REF!)) -> 
A130: 124 | DH130: =IF(AND(L130="",N130="",R130="",S130=""),"",SUM(L130,N130,R130,#REF!,S130)) ->  | DJ130: =IF(AND(V130="",X130="",AB130="",AC130=""),"",SUM(V130,X130,AB130,#REF!,AC130)) ->  | DN130: =IF(AND(AQ130="",AT130="",AW130="",AX130=""),"",SUM(AQ130,AT130,AW130,#REF!,AX130)) ->  | DP130: =IF(AND(BA130="",BD130="",BG130="",BH130=""),"",SUM(BA130,BD130,BG130,#REF!,BH130)) ->  | DR130: =IF(AND(BK130="",BN130="",BQ130="",BR130=""),"",SUM(BK130,BN130,BQ130,#REF!,BR130)) ->  | DT130: =IF(AND(#REF!="",#REF!="",#REF!="",#REF!=""),"",SUM(#REF!,#REF!,#REF!,#REF!)) -> 
A131: 125 | DH131: =IF(AND(L131="",N131="",R131="",S131=""),"",SUM(L131,N131,R131,#REF!,S131)) ->  | DJ131: =IF(AND(V131="",X131="",AB131="",AC131=""),"",SUM(V131,X131,AB131,#REF!,AC131)) ->  | DN131: =IF(AND(AQ131="",AT131="",AW131="",AX131=""),"",SUM(AQ131,AT131,AW131,#REF!,AX131)) ->  | DP131: =IF(AND(BA131="",BD131="",BG131="",BH131=""),"",SUM(BA131,BD131,BG131,#REF!,BH131)) ->  | DR131: =IF(AND(BK131="",BN131="",BQ131="",BR131=""),"",SUM(BK131,BN131,BQ131,#REF!,BR131)) ->  | DT131: =IF(AND(#REF!="",#REF!="",#REF!="",#REF!=""),"",SUM(#REF!,#REF!,#REF!,#REF!)) -> 
A132: 126 | DH132: =IF(AND(L132="",N132="",R132="",S132=""),"",SUM(L132,N132,R132,#REF!,S132)) ->  | DJ132: =IF(AND(V132="",X132="",AB132="",AC132=""),"",SUM(V132,X132,AB132,#REF!,AC132)) ->  | DN132: =IF(AND(AQ132="",AT132="",AW132="",AX132=""),"",SUM(AQ132,AT132,AW132,#REF!,AX132)) ->  | DP132: =IF(AND(BA132="",BD132="",BG132="",BH132=""),"",SUM(BA132,BD132,BG132,#REF!,BH132)) ->  | DR132: =IF(AND(BK132="",BN132="",BQ132="",BR132=""),"",SUM(BK132,BN132,BQ132,#REF!,BR132)) ->  | DT132: =IF(AND(#REF!="",#REF!="",#REF!="",#REF!=""),"",SUM(#REF!,#REF!,#REF!,#REF!)) -> 
A133: 127 | DH133: =IF(AND(L133="",N133="",R133="",S133=""),"",SUM(L133,N133,R133,#REF!,S133)) ->  | DJ133: =IF(AND(V133="",X133="",AB133="",AC133=""),"",SUM(V133,X133,AB133,#REF!,AC133)) ->  | DN133: =IF(AND(AQ133="",AT133="",AW133="",AX133=""),"",SUM(AQ133,AT133,AW133,#REF!,AX133)) ->  | DP133: =IF(AND(BA133="",BD133="",BG133="",BH133=""),"",SUM(BA133,BD133,BG133,#REF!,BH133)) ->  | DR133: =IF(AND(BK133="",BN133="",BQ133="",BR133=""),"",SUM(BK133,BN133,BQ133,#REF!,BR133)) ->  | DT133: =IF(AND(#REF!="",#REF!="",#REF!="",#REF!=""),"",SUM(#REF!,#REF!,#REF!,#REF!)) -> 
A134: 128 | DH134: =IF(AND(L134="",N134="",R134="",S134=""),"",SUM(L134,N134,R134,#REF!,S134)) ->  | DJ134: =IF(AND(V134="",X134="",AB134="",AC134=""),"",SUM(V134,X134,AB134,#REF!,AC134)) ->  | DN134: =IF(AND(AQ134="",AT134="",AW134="",AX134=""),"",SUM(AQ134,AT134,AW134,#REF!,AX134)) ->  | DP134: =IF(AND(BA134="",BD134="",BG134="",BH134=""),"",SUM(BA134,BD134,BG134,#REF!,BH134)) ->  | DR134: =IF(AND(BK134="",BN134="",BQ134="",BR134=""),"",SUM(BK134,BN134,BQ134,#REF!,BR134)) ->  | DT134: =IF(AND(#REF!="",#REF!="",#REF!="",#REF!=""),"",SUM(#REF!,#REF!,#REF!,#REF!)) -> 
A135: 129 | DH135: =IF(AND(L135="",N135="",R135="",S135=""),"",SUM(L135,N135,R135,#REF!,S135)) ->  | DJ135: =IF(AND(V135="",X135="",AB135="",AC135=""),"",SUM(V135,X135,AB135,#REF!,AC135)) ->  | DN135: =IF(AND(AQ135="",AT135="",AW135="",AX135=""),"",SUM(AQ135,AT135,AW135,#REF!,AX135)) ->  | DP135: =IF(AND(BA135="",BD135="",BG135="",BH135=""),"",SUM(BA135,BD135,BG135,#REF!,BH135)) ->  | DR135: =IF(AND(BK135="",BN135="",BQ135="",BR135=""),"",SUM(BK135,BN135,BQ135,#REF!,BR135)) ->  | DT135: =IF(AND(#REF!="",#REF!="",#REF!="",#REF!=""),"",SUM(#REF!,#REF!,#REF!,#REF!)) -> 
A136: 130 | DG136: =IF(I136="","",I136) ->  | DH136: =IF(AND(L136="",N136="",R136="",S136=""),"",SUM(L136,N136,R136,#REF!,S136)) ->  | DI136: =IFERROR(IF(DH136="","",ROUNDUP(DH136*20%,0)),"") ->  | DJ136: =IF(AND(V136="",X136="",AB136="",AC136=""),"",SUM(V136,X136,AB136,#REF!,AC136)) ->  | DK136: =IFERROR(IF(DJ136="","",ROUNDUP(DJ136*20%,0)),"") ->  | DL136: =IF(AND(AG136="",AH136="",AI136="",AM136=""),"",SUM(AG136,AH136,AI136,AJ136,AM136)) ->  | DM136: =IFERROR(IF(DL136="","",ROUNDUP(DL136*20%,0)),"") ->  | DN136: =IF(AND(AQ136="",AT136="",AW136="",AX136=""),"",SUM(AQ136,AT136,AW136,#REF!,AX136)) ->  | DO136: =IFERROR(IF(DN136="","",ROUNDUP(DN136*20%,0)),"") ->  | DP136: =IF(AND(BA136="",BD136="",BG136="",BH136=""),"",SUM(BA136,BD136,BG136,#REF!,BH136)) ->  | DQ136: =IFERROR(IF(DP136="","",ROUNDUP(DP136*20%,0)),"") ->  | DR136: =IF(AND(BK136="",BN136="",BQ136="",BR136=""),"",SUM(BK136,BN136,BQ136,#REF!,BR136)) ->  | DS136: =IFERROR(IF(DR136="","",ROUNDUP(DR136*20%,0)),"") ->  | DT136: =IF(AND(#REF!="",#REF!="",#REF!="",#REF!=""),"",SUM(#REF!,#REF!,#REF!,#REF!)) -> 
A137: 131 | DH137: =IF(AND(L137="",N137="",R137="",S137=""),"",SUM(L137,N137,R137,#REF!,S137)) ->  | DJ137: =IF(AND(V137="",X137="",AB137="",AC137=""),"",SUM(V137,X137,AB137,#REF!,AC137)) ->  | DN137: =IF(AND(AQ137="",AT137="",AW137="",AX137=""),"",SUM(AQ137,AT137,AW137,#REF!,AX137)) ->  | DP137: =IF(AND(BA137="",BD137="",BG137="",BH137=""),"",SUM(BA137,BD137,BG137,#REF!,BH137)) ->  | DR137: =IF(AND(BK137="",BN137="",BQ137="",BR137=""),"",SUM(BK137,BN137,BQ137,#REF!,BR137)) ->  | DT137: =IF(AND(#REF!="",#REF!="",#REF!="",#REF!=""),"",SUM(#REF!,#REF!,#REF!,#REF!)) -> 
A138: 132 | DH138: =IF(AND(L138="",N138="",R138="",S138=""),"",SUM(L138,N138,R138,#REF!,S138)) ->  | DJ138: =IF(AND(V138="",X138="",AB138="",AC138=""),"",SUM(V138,X138,AB138,#REF!,AC138)) ->  | DN138: =IF(AND(AQ138="",AT138="",AW138="",AX138=""),"",SUM(AQ138,AT138,AW138,#REF!,AX138)) ->  | DP138: =IF(AND(BA138="",BD138="",BG138="",BH138=""),"",SUM(BA138,BD138,BG138,#REF!,BH138)) ->  | DR138: =IF(AND(BK138="",BN138="",BQ138="",BR138=""),"",SUM(BK138,BN138,BQ138,#REF!,BR138)) ->  | DT138: =IF(AND(#REF!="",#REF!="",#REF!="",#REF!=""),"",SUM(#REF!,#REF!,#REF!,#REF!)) -> 
A139: 133 | DH139: =IF(AND(L139="",N139="",R139="",S139=""),"",SUM(L139,N139,R139,#REF!,S139)) ->  | DJ139: =IF(AND(V139="",X139="",AB139="",AC139=""),"",SUM(V139,X139,AB139,#REF!,AC139)) ->  | DN139: =IF(AND(AQ139="",AT139="",AW139="",AX139=""),"",SUM(AQ139,AT139,AW139,#REF!,AX139)) ->  | DP139: =IF(AND(BA139="",BD139="",BG139="",BH139=""),"",SUM(BA139,BD139,BG139,#REF!,BH139)) ->  | DR139: =IF(AND(BK139="",BN139="",BQ139="",BR139=""),"",SUM(BK139,BN139,BQ139,#REF!,BR139)) ->  | DT139: =IF(AND(#REF!="",#REF!="",#REF!="",#REF!=""),"",SUM(#REF!,#REF!,#REF!,#REF!)) -> 
A140: 134 | DH140: =IF(AND(L140="",N140="",R140="",S140=""),"",SUM(L140,N140,R140,#REF!,S140)) ->  | DJ140: =IF(AND(V140="",X140="",AB140="",AC140=""),"",SUM(V140,X140,AB140,#REF!,AC140)) ->  | DN140: =IF(AND(AQ140="",AT140="",AW140="",AX140=""),"",SUM(AQ140,AT140,AW140,#REF!,AX140)) ->  | DP140: =IF(AND(BA140="",BD140="",BG140="",BH140=""),"",SUM(BA140,BD140,BG140,#REF!,BH140)) ->  | DR140: =IF(AND(BK140="",BN140="",BQ140="",BR140=""),"",SUM(BK140,BN140,BQ140,#REF!,BR140)) ->  | DT140: =IF(AND(#REF!="",#REF!="",#REF!="",#REF!=""),"",SUM(#REF!,#REF!,#REF!,#REF!)) -> 
A141: 135 | DH141: =IF(AND(L141="",N141="",R141="",S141=""),"",SUM(L141,N141,R141,#REF!,S141)) ->  | DJ141: =IF(AND(V141="",X141="",AB141="",AC141=""),"",SUM(V141,X141,AB141,#REF!,AC141)) ->  | DN141: =IF(AND(AQ141="",AT141="",AW141="",AX141=""),"",SUM(AQ141,AT141,AW141,#REF!,AX141)) ->  | DP141: =IF(AND(BA141="",BD141="",BG141="",BH141=""),"",SUM(BA141,BD141,BG141,#REF!,BH141)) ->  | DR141: =IF(AND(BK141="",BN141="",BQ141="",BR141=""),"",SUM(BK141,BN141,BQ141,#REF!,BR141)) ->  | DT141: =IF(AND(#REF!="",#REF!="",#REF!="",#REF!=""),"",SUM(#REF!,#REF!,#REF!,#REF!)) -> 
A142: 136 | DH142: =IF(AND(L142="",N142="",R142="",S142=""),"",SUM(L142,N142,R142,#REF!,S142)) ->  | DJ142: =IF(AND(V142="",X142="",AB142="",AC142=""),"",SUM(V142,X142,AB142,#REF!,AC142)) ->  | DN142: =IF(AND(AQ142="",AT142="",AW142="",AX142=""),"",SUM(AQ142,AT142,AW142,#REF!,AX142)) ->  | DP142: =IF(AND(BA142="",BD142="",BG142="",BH142=""),"",SUM(BA142,BD142,BG142,#REF!,BH142)) ->  | DR142: =IF(AND(BK142="",BN142="",BQ142="",BR142=""),"",SUM(BK142,BN142,BQ142,#REF!,BR142)) ->  | DT142: =IF(AND(#REF!="",#REF!="",#REF!="",#REF!=""),"",SUM(#REF!,#REF!,#REF!,#REF!)) -> 
A143: 137 | DH143: =IF(AND(L143="",N143="",R143="",S143=""),"",SUM(L143,N143,R143,#REF!,S143)) ->  | DJ143: =IF(AND(V143="",X143="",AB143="",AC143=""),"",SUM(V143,X143,AB143,#REF!,AC143)) ->  | DN143: =IF(AND(AQ143="",AT143="",AW143="",AX143=""),"",SUM(AQ143,AT143,AW143,#REF!,AX143)) ->  | DP143: =IF(AND(BA143="",BD143="",BG143="",BH143=""),"",SUM(BA143,BD143,BG143,#REF!,BH143)) ->  | DR143: =IF(AND(BK143="",BN143="",BQ143="",BR143=""),"",SUM(BK143,BN143,BQ143,#REF!,BR143)) ->  | DT143: =IF(AND(#REF!="",#REF!="",#REF!="",#REF!=""),"",SUM(#REF!,#REF!,#REF!,#REF!)) -> 
A144: 138 | DH144: =IF(AND(L144="",N144="",R144="",S144=""),"",SUM(L144,N144,R144,#REF!,S144)) ->  | DJ144: =IF(AND(V144="",X144="",AB144="",AC144=""),"",SUM(V144,X144,AB144,#REF!,AC144)) ->  | DN144: =IF(AND(AQ144="",AT144="",AW144="",AX144=""),"",SUM(AQ144,AT144,AW144,#REF!,AX144)) ->  | DP144: =IF(AND(BA144="",BD144="",BG144="",BH144=""),"",SUM(BA144,BD144,BG144,#REF!,BH144)) ->  | DR144: =IF(AND(BK144="",BN144="",BQ144="",BR144=""),"",SUM(BK144,BN144,BQ144,#REF!,BR144)) ->  | DT144: =IF(AND(#REF!="",#REF!="",#REF!="",#REF!=""),"",SUM(#REF!,#REF!,#REF!,#REF!)) -> 
A145: 139 | DH145: =IF(AND(L145="",N145="",R145="",S145=""),"",SUM(L145,N145,R145,#REF!,S145)) ->  | DJ145: =IF(AND(V145="",X145="",AB145="",AC145=""),"",SUM(V145,X145,AB145,#REF!,AC145)) ->  | DN145: =IF(AND(AQ145="",AT145="",AW145="",AX145=""),"",SUM(AQ145,AT145,AW145,#REF!,AX145)) ->  | DP145: =IF(AND(BA145="",BD145="",BG145="",BH145=""),"",SUM(BA145,BD145,BG145,#REF!,BH145)) ->  | DR145: =IF(AND(BK145="",BN145="",BQ145="",BR145=""),"",SUM(BK145,BN145,BQ145,#REF!,BR145)) ->  | DT145: =IF(AND(#REF!="",#REF!="",#REF!="",#REF!=""),"",SUM(#REF!,#REF!,#REF!,#REF!)) -> 
A146: 140 | DH146: =IF(AND(L146="",N146="",R146="",S146=""),"",SUM(L146,N146,R146,#REF!,S146)) ->  | DJ146: =IF(AND(V146="",X146="",AB146="",AC146=""),"",SUM(V146,X146,AB146,#REF!,AC146)) ->  | DN146: =IF(AND(AQ146="",AT146="",AW146="",AX146=""),"",SUM(AQ146,AT146,AW146,#REF!,AX146)) ->  | DP146: =IF(AND(BA146="",BD146="",BG146="",BH146=""),"",SUM(BA146,BD146,BG146,#REF!,BH146)) ->  | DR146: =IF(AND(BK146="",BN146="",BQ146="",BR146=""),"",SUM(BK146,BN146,BQ146,#REF!,BR146)) ->  | DT146: =IF(AND(#REF!="",#REF!="",#REF!="",#REF!=""),"",SUM(#REF!,#REF!,#REF!,#REF!)) -> 
A147: 141 | DH147: =IF(AND(L147="",N147="",R147="",S147=""),"",SUM(L147,N147,R147,#REF!,S147)) ->  | DJ147: =IF(AND(V147="",X147="",AB147="",AC147=""),"",SUM(V147,X147,AB147,#REF!,AC147)) ->  | DN147: =IF(AND(AQ147="",AT147="",AW147="",AX147=""),"",SUM(AQ147,AT147,AW147,#REF!,AX147)) ->  | DP147: =IF(AND(BA147="",BD147="",BG147="",BH147=""),"",SUM(BA147,BD147,BG147,#REF!,BH147)) ->  | DR147: =IF(AND(BK147="",BN147="",BQ147="",BR147=""),"",SUM(BK147,BN147,BQ147,#REF!,BR147)) ->  | DT147: =IF(AND(#REF!="",#REF!="",#REF!="",#REF!=""),"",SUM(#REF!,#REF!,#REF!,#REF!)) -> 
A148: 142 | DH148: =IF(AND(L148="",N148="",R148="",S148=""),"",SUM(L148,N148,R148,#REF!,S148)) ->  | DJ148: =IF(AND(V148="",X148="",AB148="",AC148=""),"",SUM(V148,X148,AB148,#REF!,AC148)) ->  | DN148: =IF(AND(AQ148="",AT148="",AW148="",AX148=""),"",SUM(AQ148,AT148,AW148,#REF!,AX148)) ->  | DP148: =IF(AND(BA148="",BD148="",BG148="",BH148=""),"",SUM(BA148,BD148,BG148,#REF!,BH148)) ->  | DR148: =IF(AND(BK148="",BN148="",BQ148="",BR148=""),"",SUM(BK148,BN148,BQ148,#REF!,BR148)) ->  | DT148: =IF(AND(#REF!="",#REF!="",#REF!="",#REF!=""),"",SUM(#REF!,#REF!,#REF!,#REF!)) -> 
A149: 143 | DH149: =IF(AND(L149="",N149="",R149="",S149=""),"",SUM(L149,N149,R149,#REF!,S149)) ->  | DJ149: =IF(AND(V149="",X149="",AB149="",AC149=""),"",SUM(V149,X149,AB149,#REF!,AC149)) ->  | DN149: =IF(AND(AQ149="",AT149="",AW149="",AX149=""),"",SUM(AQ149,AT149,AW149,#REF!,AX149)) ->  | DP149: =IF(AND(BA149="",BD149="",BG149="",BH149=""),"",SUM(BA149,BD149,BG149,#REF!,BH149)) ->  | DR149: =IF(AND(BK149="",BN149="",BQ149="",BR149=""),"",SUM(BK149,BN149,BQ149,#REF!,BR149)) ->  | DT149: =IF(AND(#REF!="",#REF!="",#REF!="",#REF!=""),"",SUM(#REF!,#REF!,#REF!,#REF!)) -> 
A150: 144 | DH150: =IF(AND(L150="",N150="",R150="",S150=""),"",SUM(L150,N150,R150,#REF!,S150)) ->  | DJ150: =IF(AND(V150="",X150="",AB150="",AC150=""),"",SUM(V150,X150,AB150,#REF!,AC150)) ->  | DN150: =IF(AND(AQ150="",AT150="",AW150="",AX150=""),"",SUM(AQ150,AT150,AW150,#REF!,AX150)) ->  | DP150: =IF(AND(BA150="",BD150="",BG150="",BH150=""),"",SUM(BA150,BD150,BG150,#REF!,BH150)) ->  | DR150: =IF(AND(BK150="",BN150="",BQ150="",BR150=""),"",SUM(BK150,BN150,BQ150,#REF!,BR150)) ->  | DT150: =IF(AND(#REF!="",#REF!="",#REF!="",#REF!=""),"",SUM(#REF!,#REF!,#REF!,#REF!)) -> 
A151: 145 | DH151: =IF(AND(L151="",N151="",R151="",S151=""),"",SUM(L151,N151,R151,#REF!,S151)) ->  | DJ151: =IF(AND(V151="",X151="",AB151="",AC151=""),"",SUM(V151,X151,AB151,#REF!,AC151)) ->  | DN151: =IF(AND(AQ151="",AT151="",AW151="",AX151=""),"",SUM(AQ151,AT151,AW151,#REF!,AX151)) ->  | DP151: =IF(AND(BA151="",BD151="",BG151="",BH151=""),"",SUM(BA151,BD151,BG151,#REF!,BH151)) ->  | DR151: =IF(AND(BK151="",BN151="",BQ151="",BR151=""),"",SUM(BK151,BN151,BQ151,#REF!,BR151)) ->  | DT151: =IF(AND(#REF!="",#REF!="",#REF!="",#REF!=""),"",SUM(#REF!,#REF!,#REF!,#REF!)) -> 
A152: 146 | DH152: =IF(AND(L152="",N152="",R152="",S152=""),"",SUM(L152,N152,R152,#REF!,S152)) ->  | DJ152: =IF(AND(V152="",X152="",AB152="",AC152=""),"",SUM(V152,X152,AB152,#REF!,AC152)) ->  | DN152: =IF(AND(AQ152="",AT152="",AW152="",AX152=""),"",SUM(AQ152,AT152,AW152,#REF!,AX152)) ->  | DP152: =IF(AND(BA152="",BD152="",BG152="",BH152=""),"",SUM(BA152,BD152,BG152,#REF!,BH152)) ->  | DR152: =IF(AND(BK152="",BN152="",BQ152="",BR152=""),"",SUM(BK152,BN152,BQ152,#REF!,BR152)) ->  | DT152: =IF(AND(#REF!="",#REF!="",#REF!="",#REF!=""),"",SUM(#REF!,#REF!,#REF!,#REF!)) -> 
A153: 147 | DH153: =IF(AND(L153="",N153="",R153="",S153=""),"",SUM(L153,N153,R153,#REF!,S153)) ->  | DJ153: =IF(AND(V153="",X153="",AB153="",AC153=""),"",SUM(V153,X153,AB153,#REF!,AC153)) ->  | DN153: =IF(AND(AQ153="",AT153="",AW153="",AX153=""),"",SUM(AQ153,AT153,AW153,#REF!,AX153)) ->  | DP153: =IF(AND(BA153="",BD153="",BG153="",BH153=""),"",SUM(BA153,BD153,BG153,#REF!,BH153)) ->  | DR153: =IF(AND(BK153="",BN153="",BQ153="",BR153=""),"",SUM(BK153,BN153,BQ153,#REF!,BR153)) ->  | DT153: =IF(AND(#REF!="",#REF!="",#REF!="",#REF!=""),"",SUM(#REF!,#REF!,#REF!,#REF!)) -> 
A154: 148 | DH154: =IF(AND(L154="",N154="",R154="",S154=""),"",SUM(L154,N154,R154,#REF!,S154)) ->  | DJ154: =IF(AND(V154="",X154="",AB154="",AC154=""),"",SUM(V154,X154,AB154,#REF!,AC154)) ->  | DN154: =IF(AND(AQ154="",AT154="",AW154="",AX154=""),"",SUM(AQ154,AT154,AW154,#REF!,AX154)) ->  | DP154: =IF(AND(BA154="",BD154="",BG154="",BH154=""),"",SUM(BA154,BD154,BG154,#REF!,BH154)) ->  | DR154: =IF(AND(BK154="",BN154="",BQ154="",BR154=""),"",SUM(BK154,BN154,BQ154,#REF!,BR154)) ->  | DT154: =IF(AND(#REF!="",#REF!="",#REF!="",#REF!=""),"",SUM(#REF!,#REF!,#REF!,#REF!)) -> 
A155: 149 | DH155: =IF(AND(L155="",N155="",R155="",S155=""),"",SUM(L155,N155,R155,#REF!,S155)) ->  | DJ155: =IF(AND(V155="",X155="",AB155="",AC155=""),"",SUM(V155,X155,AB155,#REF!,AC155)) ->  | DN155: =IF(AND(AQ155="",AT155="",AW155="",AX155=""),"",SUM(AQ155,AT155,AW155,#REF!,AX155)) ->  | DP155: =IF(AND(BA155="",BD155="",BG155="",BH155=""),"",SUM(BA155,BD155,BG155,#REF!,BH155)) ->  | DR155: =IF(AND(BK155="",BN155="",BQ155="",BR155=""),"",SUM(BK155,BN155,BQ155,#REF!,BR155)) ->  | DT155: =IF(AND(#REF!="",#REF!="",#REF!="",#REF!=""),"",SUM(#REF!,#REF!,#REF!,#REF!)) -> 
A156: 150 | DH156: =IF(AND(L156="",N156="",R156="",S156=""),"",SUM(L156,N156,R156,#REF!,S156)) ->  | DJ156: =IF(AND(V156="",X156="",AB156="",AC156=""),"",SUM(V156,X156,AB156,#REF!,AC156)) ->  | DN156: =IF(AND(AQ156="",AT156="",AW156="",AX156=""),"",SUM(AQ156,AT156,AW156,#REF!,AX156)) ->  | DP156: =IF(AND(BA156="",BD156="",BG156="",BH156=""),"",SUM(BA156,BD156,BG156,#REF!,BH156)) ->  | DR156: =IF(AND(BK156="",BN156="",BQ156="",BR156=""),"",SUM(BK156,BN156,BQ156,#REF!,BR156)) ->  | DT156: =IF(AND(#REF!="",#REF!="",#REF!="",#REF!=""),"",SUM(#REF!,#REF!,#REF!,#REF!)) -> 
A157: 151 | DH157: =IF(AND(L157="",N157="",R157="",S157=""),"",SUM(L157,N157,R157,#REF!,S157)) ->  | DJ157: =IF(AND(V157="",X157="",AB157="",AC157=""),"",SUM(V157,X157,AB157,#REF!,AC157)) ->  | DN157: =IF(AND(AQ157="",AT157="",AW157="",AX157=""),"",SUM(AQ157,AT157,AW157,#REF!,AX157)) ->  | DP157: =IF(AND(BA157="",BD157="",BG157="",BH157=""),"",SUM(BA157,BD157,BG157,#REF!,BH157)) ->  | DR157: =IF(AND(BK157="",BN157="",BQ157="",BR157=""),"",SUM(BK157,BN157,BQ157,#REF!,BR157)) ->  | DT157: =IF(AND(#REF!="",#REF!="",#REF!="",#REF!=""),"",SUM(#REF!,#REF!,#REF!,#REF!)) -> 
A158: 152 | DH158: =IF(AND(L158="",N158="",R158="",S158=""),"",SUM(L158,N158,R158,#REF!,S158)) ->  | DJ158: =IF(AND(V158="",X158="",AB158="",AC158=""),"",SUM(V158,X158,AB158,#REF!,AC158)) ->  | DN158: =IF(AND(AQ158="",AT158="",AW158="",AX158=""),"",SUM(AQ158,AT158,AW158,#REF!,AX158)) ->  | DP158: =IF(AND(BA158="",BD158="",BG158="",BH158=""),"",SUM(BA158,BD158,BG158,#REF!,BH158)) ->  | DR158: =IF(AND(BK158="",BN158="",BQ158="",BR158=""),"",SUM(BK158,BN158,BQ158,#REF!,BR158)) ->  | DT158: =IF(AND(#REF!="",#REF!="",#REF!="",#REF!=""),"",SUM(#REF!,#REF!,#REF!,#REF!)) -> 
A159: 153 | DH159: =IF(AND(L159="",N159="",R159="",S159=""),"",SUM(L159,N159,R159,#REF!,S159)) ->  | DJ159: =IF(AND(V159="",X159="",AB159="",AC159=""),"",SUM(V159,X159,AB159,#REF!,AC159)) ->  | DN159: =IF(AND(AQ159="",AT159="",AW159="",AX159=""),"",SUM(AQ159,AT159,AW159,#REF!,AX159)) ->  | DP159: =IF(AND(BA159="",BD159="",BG159="",BH159=""),"",SUM(BA159,BD159,BG159,#REF!,BH159)) ->  | DR159: =IF(AND(BK159="",BN159="",BQ159="",BR159=""),"",SUM(BK159,BN159,BQ159,#REF!,BR159)) ->  | DT159: =IF(AND(#REF!="",#REF!="",#REF!="",#REF!=""),"",SUM(#REF!,#REF!,#REF!,#REF!)) -> 
A160: 154 | DH160: =IF(AND(L160="",N160="",R160="",S160=""),"",SUM(L160,N160,R160,#REF!,S160)) ->  | DJ160: =IF(AND(V160="",X160="",AB160="",AC160=""),"",SUM(V160,X160,AB160,#REF!,AC160)) ->  | DN160: =IF(AND(AQ160="",AT160="",AW160="",AX160=""),"",SUM(AQ160,AT160,AW160,#REF!,AX160)) ->  | DP160: =IF(AND(BA160="",BD160="",BG160="",BH160=""),"",SUM(BA160,BD160,BG160,#REF!,BH160)) ->  | DR160: =IF(AND(BK160="",BN160="",BQ160="",BR160=""),"",SUM(BK160,BN160,BQ160,#REF!,BR160)) ->  | DT160: =IF(AND(#REF!="",#REF!="",#REF!="",#REF!=""),"",SUM(#REF!,#REF!,#REF!,#REF!)) -> 
A161: 155 | DH161: =IF(AND(L161="",N161="",R161="",S161=""),"",SUM(L161,N161,R161,#REF!,S161)) ->  | DJ161: =IF(AND(V161="",X161="",AB161="",AC161=""),"",SUM(V161,X161,AB161,#REF!,AC161)) ->  | DN161: =IF(AND(AQ161="",AT161="",AW161="",AX161=""),"",SUM(AQ161,AT161,AW161,#REF!,AX161)) ->  | DP161: =IF(AND(BA161="",BD161="",BG161="",BH161=""),"",SUM(BA161,BD161,BG161,#REF!,BH161)) ->  | DR161: =IF(AND(BK161="",BN161="",BQ161="",BR161=""),"",SUM(BK161,BN161,BQ161,#REF!,BR161)) ->  | DT161: =IF(AND(#REF!="",#REF!="",#REF!="",#REF!=""),"",SUM(#REF!,#REF!,#REF!,#REF!)) -> 
A162: 156 | DH162: =IF(AND(L162="",N162="",R162="",S162=""),"",SUM(L162,N162,R162,#REF!,S162)) ->  | DJ162: =IF(AND(V162="",X162="",AB162="",AC162=""),"",SUM(V162,X162,AB162,#REF!,AC162)) ->  | DN162: =IF(AND(AQ162="",AT162="",AW162="",AX162=""),"",SUM(AQ162,AT162,AW162,#REF!,AX162)) ->  | DP162: =IF(AND(BA162="",BD162="",BG162="",BH162=""),"",SUM(BA162,BD162,BG162,#REF!,BH162)) ->  | DR162: =IF(AND(BK162="",BN162="",BQ162="",BR162=""),"",SUM(BK162,BN162,BQ162,#REF!,BR162)) ->  | DT162: =IF(AND(#REF!="",#REF!="",#REF!="",#REF!=""),"",SUM(#REF!,#REF!,#REF!,#REF!)) -> 
A163: 157 | DH163: =IF(AND(L163="",N163="",R163="",S163=""),"",SUM(L163,N163,R163,#REF!,S163)) ->  | DJ163: =IF(AND(V163="",X163="",AB163="",AC163=""),"",SUM(V163,X163,AB163,#REF!,AC163)) ->  | DN163: =IF(AND(AQ163="",AT163="",AW163="",AX163=""),"",SUM(AQ163,AT163,AW163,#REF!,AX163)) ->  | DP163: =IF(AND(BA163="",BD163="",BG163="",BH163=""),"",SUM(BA163,BD163,BG163,#REF!,BH163)) ->  | DR163: =IF(AND(BK163="",BN163="",BQ163="",BR163=""),"",SUM(BK163,BN163,BQ163,#REF!,BR163)) ->  | DT163: =IF(AND(#REF!="",#REF!="",#REF!="",#REF!=""),"",SUM(#REF!,#REF!,#REF!,#REF!)) -> 
A164: 158 | DH164: =IF(AND(L164="",N164="",R164="",S164=""),"",SUM(L164,N164,R164,#REF!,S164)) ->  | DJ164: =IF(AND(V164="",X164="",AB164="",AC164=""),"",SUM(V164,X164,AB164,#REF!,AC164)) ->  | DN164: =IF(AND(AQ164="",AT164="",AW164="",AX164=""),"",SUM(AQ164,AT164,AW164,#REF!,AX164)) ->  | DP164: =IF(AND(BA164="",BD164="",BG164="",BH164=""),"",SUM(BA164,BD164,BG164,#REF!,BH164)) ->  | DR164: =IF(AND(BK164="",BN164="",BQ164="",BR164=""),"",SUM(BK164,BN164,BQ164,#REF!,BR164)) ->  | DT164: =IF(AND(#REF!="",#REF!="",#REF!="",#REF!=""),"",SUM(#REF!,#REF!,#REF!,#REF!)) -> 
A165: 159 | DH165: =IF(AND(L165="",N165="",R165="",S165=""),"",SUM(L165,N165,R165,#REF!,S165)) ->  | DJ165: =IF(AND(V165="",X165="",AB165="",AC165=""),"",SUM(V165,X165,AB165,#REF!,AC165)) ->  | DN165: =IF(AND(AQ165="",AT165="",AW165="",AX165=""),"",SUM(AQ165,AT165,AW165,#REF!,AX165)) ->  | DP165: =IF(AND(BA165="",BD165="",BG165="",BH165=""),"",SUM(BA165,BD165,BG165,#REF!,BH165)) ->  | DR165: =IF(AND(BK165="",BN165="",BQ165="",BR165=""),"",SUM(BK165,BN165,BQ165,#REF!,BR165)) ->  | DT165: =IF(AND(#REF!="",#REF!="",#REF!="",#REF!=""),"",SUM(#REF!,#REF!,#REF!,#REF!)) -> 
A166: 160 | DH166: =IF(AND(L166="",N166="",R166="",S166=""),"",SUM(L166,N166,R166,#REF!,S166)) ->  | DJ166: =IF(AND(V166="",X166="",AB166="",AC166=""),"",SUM(V166,X166,AB166,#REF!,AC166)) ->  | DN166: =IF(AND(AQ166="",AT166="",AW166="",AX166=""),"",SUM(AQ166,AT166,AW166,#REF!,AX166)) ->  | DP166: =IF(AND(BA166="",BD166="",BG166="",BH166=""),"",SUM(BA166,BD166,BG166,#REF!,BH166)) ->  | DR166: =IF(AND(BK166="",BN166="",BQ166="",BR166=""),"",SUM(BK166,BN166,BQ166,#REF!,BR166)) ->  | DT166: =IF(AND(#REF!="",#REF!="",#REF!="",#REF!=""),"",SUM(#REF!,#REF!,#REF!,#REF!)) -> 
A167: 161 | DH167: =IF(AND(L167="",N167="",R167="",S167=""),"",SUM(L167,N167,R167,#REF!,S167)) ->  | DJ167: =IF(AND(V167="",X167="",AB167="",AC167=""),"",SUM(V167,X167,AB167,#REF!,AC167)) ->  | DN167: =IF(AND(AQ167="",AT167="",AW167="",AX167=""),"",SUM(AQ167,AT167,AW167,#REF!,AX167)) ->  | DP167: =IF(AND(BA167="",BD167="",BG167="",BH167=""),"",SUM(BA167,BD167,BG167,#REF!,BH167)) ->  | DR167: =IF(AND(BK167="",BN167="",BQ167="",BR167=""),"",SUM(BK167,BN167,BQ167,#REF!,BR167)) ->  | DT167: =IF(AND(#REF!="",#REF!="",#REF!="",#REF!=""),"",SUM(#REF!,#REF!,#REF!,#REF!)) -> 
A168: 162 | DH168: =IF(AND(L168="",N168="",R168="",S168=""),"",SUM(L168,N168,R168,#REF!,S168)) ->  | DJ168: =IF(AND(V168="",X168="",AB168="",AC168=""),"",SUM(V168,X168,AB168,#REF!,AC168)) ->  | DN168: =IF(AND(AQ168="",AT168="",AW168="",AX168=""),"",SUM(AQ168,AT168,AW168,#REF!,AX168)) ->  | DP168: =IF(AND(BA168="",BD168="",BG168="",BH168=""),"",SUM(BA168,BD168,BG168,#REF!,BH168)) ->  | DR168: =IF(AND(BK168="",BN168="",BQ168="",BR168=""),"",SUM(BK168,BN168,BQ168,#REF!,BR168)) ->  | DT168: =IF(AND(#REF!="",#REF!="",#REF!="",#REF!=""),"",SUM(#REF!,#REF!,#REF!,#REF!)) -> 
A169: 163 | DH169: =IF(AND(L169="",N169="",R169="",S169=""),"",SUM(L169,N169,R169,#REF!,S169)) ->  | DJ169: =IF(AND(V169="",X169="",AB169="",AC169=""),"",SUM(V169,X169,AB169,#REF!,AC169)) ->  | DN169: =IF(AND(AQ169="",AT169="",AW169="",AX169=""),"",SUM(AQ169,AT169,AW169,#REF!,AX169)) ->  | DP169: =IF(AND(BA169="",BD169="",BG169="",BH169=""),"",SUM(BA169,BD169,BG169,#REF!,BH169)) ->  | DR169: =IF(AND(BK169="",BN169="",BQ169="",BR169=""),"",SUM(BK169,BN169,BQ169,#REF!,BR169)) ->  | DT169: =IF(AND(#REF!="",#REF!="",#REF!="",#REF!=""),"",SUM(#REF!,#REF!,#REF!,#REF!)) -> 
A170: 164 | DH170: =IF(AND(L170="",N170="",R170="",S170=""),"",SUM(L170,N170,R170,#REF!,S170)) ->  | DJ170: =IF(AND(V170="",X170="",AB170="",AC170=""),"",SUM(V170,X170,AB170,#REF!,AC170)) ->  | DN170: =IF(AND(AQ170="",AT170="",AW170="",AX170=""),"",SUM(AQ170,AT170,AW170,#REF!,AX170)) ->  | DP170: =IF(AND(BA170="",BD170="",BG170="",BH170=""),"",SUM(BA170,BD170,BG170,#REF!,BH170)) ->  | DR170: =IF(AND(BK170="",BN170="",BQ170="",BR170=""),"",SUM(BK170,BN170,BQ170,#REF!,BR170)) ->  | DT170: =IF(AND(#REF!="",#REF!="",#REF!="",#REF!=""),"",SUM(#REF!,#REF!,#REF!,#REF!)) -> 
A171: 165 | DH171: =IF(AND(L171="",N171="",R171="",S171=""),"",SUM(L171,N171,R171,#REF!,S171)) ->  | DJ171: =IF(AND(V171="",X171="",AB171="",AC171=""),"",SUM(V171,X171,AB171,#REF!,AC171)) ->  | DN171: =IF(AND(AQ171="",AT171="",AW171="",AX171=""),"",SUM(AQ171,AT171,AW171,#REF!,AX171)) ->  | DP171: =IF(AND(BA171="",BD171="",BG171="",BH171=""),"",SUM(BA171,BD171,BG171,#REF!,BH171)) ->  | DR171: =IF(AND(BK171="",BN171="",BQ171="",BR171=""),"",SUM(BK171,BN171,BQ171,#REF!,BR171)) ->  | DT171: =IF(AND(#REF!="",#REF!="",#REF!="",#REF!=""),"",SUM(#REF!,#REF!,#REF!,#REF!)) -> 
A172: 166 | DH172: =IF(AND(L172="",N172="",R172="",S172=""),"",SUM(L172,N172,R172,#REF!,S172)) ->  | DJ172: =IF(AND(V172="",X172="",AB172="",AC172=""),"",SUM(V172,X172,AB172,#REF!,AC172)) ->  | DN172: =IF(AND(AQ172="",AT172="",AW172="",AX172=""),"",SUM(AQ172,AT172,AW172,#REF!,AX172)) ->  | DP172: =IF(AND(BA172="",BD172="",BG172="",BH172=""),"",SUM(BA172,BD172,BG172,#REF!,BH172)) ->  | DR172: =IF(AND(BK172="",BN172="",BQ172="",BR172=""),"",SUM(BK172,BN172,BQ172,#REF!,BR172)) ->  | DT172: =IF(AND(#REF!="",#REF!="",#REF!="",#REF!=""),"",SUM(#REF!,#REF!,#REF!,#REF!)) -> 
A173: 167 | DH173: =IF(AND(L173="",N173="",R173="",S173=""),"",SUM(L173,N173,R173,#REF!,S173)) ->  | DJ173: =IF(AND(V173="",X173="",AB173="",AC173=""),"",SUM(V173,X173,AB173,#REF!,AC173)) ->  | DN173: =IF(AND(AQ173="",AT173="",AW173="",AX173=""),"",SUM(AQ173,AT173,AW173,#REF!,AX173)) ->  | DP173: =IF(AND(BA173="",BD173="",BG173="",BH173=""),"",SUM(BA173,BD173,BG173,#REF!,BH173)) ->  | DR173: =IF(AND(BK173="",BN173="",BQ173="",BR173=""),"",SUM(BK173,BN173,BQ173,#REF!,BR173)) ->  | DT173: =IF(AND(#REF!="",#REF!="",#REF!="",#REF!=""),"",SUM(#REF!,#REF!,#REF!,#REF!)) -> 
A174: 168 | DH174: =IF(AND(L174="",N174="",R174="",S174=""),"",SUM(L174,N174,R174,#REF!,S174)) ->  | DJ174: =IF(AND(V174="",X174="",AB174="",AC174=""),"",SUM(V174,X174,AB174,#REF!,AC174)) ->  | DN174: =IF(AND(AQ174="",AT174="",AW174="",AX174=""),"",SUM(AQ174,AT174,AW174,#REF!,AX174)) ->  | DP174: =IF(AND(BA174="",BD174="",BG174="",BH174=""),"",SUM(BA174,BD174,BG174,#REF!,BH174)) ->  | DR174: =IF(AND(BK174="",BN174="",BQ174="",BR174=""),"",SUM(BK174,BN174,BQ174,#REF!,BR174)) ->  | DT174: =IF(AND(#REF!="",#REF!="",#REF!="",#REF!=""),"",SUM(#REF!,#REF!,#REF!,#REF!)) -> 
A175: 169 | DH175: =IF(AND(L175="",N175="",R175="",S175=""),"",SUM(L175,N175,R175,#REF!,S175)) ->  | DJ175: =IF(AND(V175="",X175="",AB175="",AC175=""),"",SUM(V175,X175,AB175,#REF!,AC175)) ->  | DN175: =IF(AND(AQ175="",AT175="",AW175="",AX175=""),"",SUM(AQ175,AT175,AW175,#REF!,AX175)) ->  | DP175: =IF(AND(BA175="",BD175="",BG175="",BH175=""),"",SUM(BA175,BD175,BG175,#REF!,BH175)) ->  | DR175: =IF(AND(BK175="",BN175="",BQ175="",BR175=""),"",SUM(BK175,BN175,BQ175,#REF!,BR175)) ->  | DT175: =IF(AND(#REF!="",#REF!="",#REF!="",#REF!=""),"",SUM(#REF!,#REF!,#REF!,#REF!)) -> 
A176: 170 | DH176: =IF(AND(L176="",N176="",R176="",S176=""),"",SUM(L176,N176,R176,#REF!,S176)) ->  | DJ176: =IF(AND(V176="",X176="",AB176="",AC176=""),"",SUM(V176,X176,AB176,#REF!,AC176)) ->  | DN176: =IF(AND(AQ176="",AT176="",AW176="",AX176=""),"",SUM(AQ176,AT176,AW176,#REF!,AX176)) ->  | DP176: =IF(AND(BA176="",BD176="",BG176="",BH176=""),"",SUM(BA176,BD176,BG176,#REF!,BH176)) ->  | DR176: =IF(AND(BK176="",BN176="",BQ176="",BR176=""),"",SUM(BK176,BN176,BQ176,#REF!,BR176)) ->  | DT176: =IF(AND(#REF!="",#REF!="",#REF!="",#REF!=""),"",SUM(#REF!,#REF!,#REF!,#REF!)) -> 
A177: 171 | DH177: =IF(AND(L177="",N177="",R177="",S177=""),"",SUM(L177,N177,R177,#REF!,S177)) ->  | DJ177: =IF(AND(V177="",X177="",AB177="",AC177=""),"",SUM(V177,X177,AB177,#REF!,AC177)) ->  | DN177: =IF(AND(AQ177="",AT177="",AW177="",AX177=""),"",SUM(AQ177,AT177,AW177,#REF!,AX177)) ->  | DP177: =IF(AND(BA177="",BD177="",BG177="",BH177=""),"",SUM(BA177,BD177,BG177,#REF!,BH177)) ->  | DR177: =IF(AND(BK177="",BN177="",BQ177="",BR177=""),"",SUM(BK177,BN177,BQ177,#REF!,BR177)) ->  | DT177: =IF(AND(#REF!="",#REF!="",#REF!="",#REF!=""),"",SUM(#REF!,#REF!,#REF!,#REF!)) -> 
A178: 172 | DH178: =IF(AND(L178="",N178="",R178="",S178=""),"",SUM(L178,N178,R178,#REF!,S178)) ->  | DJ178: =IF(AND(V178="",X178="",AB178="",AC178=""),"",SUM(V178,X178,AB178,#REF!,AC178)) ->  | DN178: =IF(AND(AQ178="",AT178="",AW178="",AX178=""),"",SUM(AQ178,AT178,AW178,#REF!,AX178)) ->  | DP178: =IF(AND(BA178="",BD178="",BG178="",BH178=""),"",SUM(BA178,BD178,BG178,#REF!,BH178)) ->  | DR178: =IF(AND(BK178="",BN178="",BQ178="",BR178=""),"",SUM(BK178,BN178,BQ178,#REF!,BR178)) ->  | DT178: =IF(AND(#REF!="",#REF!="",#REF!="",#REF!=""),"",SUM(#REF!,#REF!,#REF!,#REF!)) -> 
A179: 173 | DH179: =IF(AND(L179="",N179="",R179="",S179=""),"",SUM(L179,N179,R179,#REF!,S179)) ->  | DJ179: =IF(AND(V179="",X179="",AB179="",AC179=""),"",SUM(V179,X179,AB179,#REF!,AC179)) ->  | DN179: =IF(AND(AQ179="",AT179="",AW179="",AX179=""),"",SUM(AQ179,AT179,AW179,#REF!,AX179)) ->  | DP179: =IF(AND(BA179="",BD179="",BG179="",BH179=""),"",SUM(BA179,BD179,BG179,#REF!,BH179)) ->  | DR179: =IF(AND(BK179="",BN179="",BQ179="",BR179=""),"",SUM(BK179,BN179,BQ179,#REF!,BR179)) ->  | DT179: =IF(AND(#REF!="",#REF!="",#REF!="",#REF!=""),"",SUM(#REF!,#REF!,#REF!,#REF!)) -> 
A180: 174 | DH180: =IF(AND(L180="",N180="",R180="",S180=""),"",SUM(L180,N180,R180,#REF!,S180)) ->  | DJ180: =IF(AND(V180="",X180="",AB180="",AC180=""),"",SUM(V180,X180,AB180,#REF!,AC180)) ->  | DN180: =IF(AND(AQ180="",AT180="",AW180="",AX180=""),"",SUM(AQ180,AT180,AW180,#REF!,AX180)) ->  | DP180: =IF(AND(BA180="",BD180="",BG180="",BH180=""),"",SUM(BA180,BD180,BG180,#REF!,BH180)) ->  | DR180: =IF(AND(BK180="",BN180="",BQ180="",BR180=""),"",SUM(BK180,BN180,BQ180,#REF!,BR180)) ->  | DT180: =IF(AND(#REF!="",#REF!="",#REF!="",#REF!=""),"",SUM(#REF!,#REF!,#REF!,#REF!)) -> 
A181: 175 | DH181: =IF(AND(L181="",N181="",R181="",S181=""),"",SUM(L181,N181,R181,#REF!,S181)) ->  | DJ181: =IF(AND(V181="",X181="",AB181="",AC181=""),"",SUM(V181,X181,AB181,#REF!,AC181)) ->  | DN181: =IF(AND(AQ181="",AT181="",AW181="",AX181=""),"",SUM(AQ181,AT181,AW181,#REF!,AX181)) ->  | DP181: =IF(AND(BA181="",BD181="",BG181="",BH181=""),"",SUM(BA181,BD181,BG181,#REF!,BH181)) ->  | DR181: =IF(AND(BK181="",BN181="",BQ181="",BR181=""),"",SUM(BK181,BN181,BQ181,#REF!,BR181)) ->  | DT181: =IF(AND(#REF!="",#REF!="",#REF!="",#REF!=""),"",SUM(#REF!,#REF!,#REF!,#REF!)) -> 
A182: 176 | DH182: =IF(AND(L182="",N182="",R182="",S182=""),"",SUM(L182,N182,R182,#REF!,S182)) ->  | DJ182: =IF(AND(V182="",X182="",AB182="",AC182=""),"",SUM(V182,X182,AB182,#REF!,AC182)) ->  | DN182: =IF(AND(AQ182="",AT182="",AW182="",AX182=""),"",SUM(AQ182,AT182,AW182,#REF!,AX182)) ->  | DP182: =IF(AND(BA182="",BD182="",BG182="",BH182=""),"",SUM(BA182,BD182,BG182,#REF!,BH182)) ->  | DR182: =IF(AND(BK182="",BN182="",BQ182="",BR182=""),"",SUM(BK182,BN182,BQ182,#REF!,BR182)) ->  | DT182: =IF(AND(#REF!="",#REF!="",#REF!="",#REF!=""),"",SUM(#REF!,#REF!,#REF!,#REF!)) -> 
A183: 177 | DH183: =IF(AND(L183="",N183="",R183="",S183=""),"",SUM(L183,N183,R183,#REF!,S183)) ->  | DJ183: =IF(AND(V183="",X183="",AB183="",AC183=""),"",SUM(V183,X183,AB183,#REF!,AC183)) ->  | DN183: =IF(AND(AQ183="",AT183="",AW183="",AX183=""),"",SUM(AQ183,AT183,AW183,#REF!,AX183)) ->  | DP183: =IF(AND(BA183="",BD183="",BG183="",BH183=""),"",SUM(BA183,BD183,BG183,#REF!,BH183)) ->  | DR183: =IF(AND(BK183="",BN183="",BQ183="",BR183=""),"",SUM(BK183,BN183,BQ183,#REF!,BR183)) ->  | DT183: =IF(AND(#REF!="",#REF!="",#REF!="",#REF!=""),"",SUM(#REF!,#REF!,#REF!,#REF!)) -> 
A184: 178 | DH184: =IF(AND(L184="",N184="",R184="",S184=""),"",SUM(L184,N184,R184,#REF!,S184)) ->  | DJ184: =IF(AND(V184="",X184="",AB184="",AC184=""),"",SUM(V184,X184,AB184,#REF!,AC184)) ->  | DN184: =IF(AND(AQ184="",AT184="",AW184="",AX184=""),"",SUM(AQ184,AT184,AW184,#REF!,AX184)) ->  | DP184: =IF(AND(BA184="",BD184="",BG184="",BH184=""),"",SUM(BA184,BD184,BG184,#REF!,BH184)) ->  | DR184: =IF(AND(BK184="",BN184="",BQ184="",BR184=""),"",SUM(BK184,BN184,BQ184,#REF!,BR184)) ->  | DT184: =IF(AND(#REF!="",#REF!="",#REF!="",#REF!=""),"",SUM(#REF!,#REF!,#REF!,#REF!)) -> 
A185: 179 | DH185: =IF(AND(L185="",N185="",R185="",S185=""),"",SUM(L185,N185,R185,#REF!,S185)) ->  | DJ185: =IF(AND(V185="",X185="",AB185="",AC185=""),"",SUM(V185,X185,AB185,#REF!,AC185)) ->  | DN185: =IF(AND(AQ185="",AT185="",AW185="",AX185=""),"",SUM(AQ185,AT185,AW185,#REF!,AX185)) ->  | DP185: =IF(AND(BA185="",BD185="",BG185="",BH185=""),"",SUM(BA185,BD185,BG185,#REF!,BH185)) ->  | DR185: =IF(AND(BK185="",BN185="",BQ185="",BR185=""),"",SUM(BK185,BN185,BQ185,#REF!,BR185)) ->  | DT185: =IF(AND(#REF!="",#REF!="",#REF!="",#REF!=""),"",SUM(#REF!,#REF!,#REF!,#REF!)) -> 
A186: 180 | DH186: =IF(AND(L186="",N186="",R186="",S186=""),"",SUM(L186,N186,R186,#REF!,S186)) ->  | DJ186: =IF(AND(V186="",X186="",AB186="",AC186=""),"",SUM(V186,X186,AB186,#REF!,AC186)) ->  | DN186: =IF(AND(AQ186="",AT186="",AW186="",AX186=""),"",SUM(AQ186,AT186,AW186,#REF!,AX186)) ->  | DP186: =IF(AND(BA186="",BD186="",BG186="",BH186=""),"",SUM(BA186,BD186,BG186,#REF!,BH186)) ->  | DR186: =IF(AND(BK186="",BN186="",BQ186="",BR186=""),"",SUM(BK186,BN186,BQ186,#REF!,BR186)) ->  | DT186: =IF(AND(#REF!="",#REF!="",#REF!="",#REF!=""),"",SUM(#REF!,#REF!,#REF!,#REF!)) -> 
A187: 181 | DH187: =IF(AND(L187="",N187="",R187="",S187=""),"",SUM(L187,N187,R187,#REF!,S187)) ->  | DJ187: =IF(AND(V187="",X187="",AB187="",AC187=""),"",SUM(V187,X187,AB187,#REF!,AC187)) ->  | DN187: =IF(AND(AQ187="",AT187="",AW187="",AX187=""),"",SUM(AQ187,AT187,AW187,#REF!,AX187)) ->  | DP187: =IF(AND(BA187="",BD187="",BG187="",BH187=""),"",SUM(BA187,BD187,BG187,#REF!,BH187)) ->  | DR187: =IF(AND(BK187="",BN187="",BQ187="",BR187=""),"",SUM(BK187,BN187,BQ187,#REF!,BR187)) ->  | DT187: =IF(AND(#REF!="",#REF!="",#REF!="",#REF!=""),"",SUM(#REF!,#REF!,#REF!,#REF!)) -> 
A188: 182 | DH188: =IF(AND(L188="",N188="",R188="",S188=""),"",SUM(L188,N188,R188,#REF!,S188)) ->  | DJ188: =IF(AND(V188="",X188="",AB188="",AC188=""),"",SUM(V188,X188,AB188,#REF!,AC188)) ->  | DN188: =IF(AND(AQ188="",AT188="",AW188="",AX188=""),"",SUM(AQ188,AT188,AW188,#REF!,AX188)) ->  | DP188: =IF(AND(BA188="",BD188="",BG188="",BH188=""),"",SUM(BA188,BD188,BG188,#REF!,BH188)) ->  | DR188: =IF(AND(BK188="",BN188="",BQ188="",BR188=""),"",SUM(BK188,BN188,BQ188,#REF!,BR188)) ->  | DT188: =IF(AND(#REF!="",#REF!="",#REF!="",#REF!=""),"",SUM(#REF!,#REF!,#REF!,#REF!)) -> 
A189: 183 | DH189: =IF(AND(L189="",N189="",R189="",S189=""),"",SUM(L189,N189,R189,#REF!,S189)) ->  | DJ189: =IF(AND(V189="",X189="",AB189="",AC189=""),"",SUM(V189,X189,AB189,#REF!,AC189)) ->  | DN189: =IF(AND(AQ189="",AT189="",AW189="",AX189=""),"",SUM(AQ189,AT189,AW189,#REF!,AX189)) ->  | DP189: =IF(AND(BA189="",BD189="",BG189="",BH189=""),"",SUM(BA189,BD189,BG189,#REF!,BH189)) ->  | DR189: =IF(AND(BK189="",BN189="",BQ189="",BR189=""),"",SUM(BK189,BN189,BQ189,#REF!,BR189)) ->  | DT189: =IF(AND(#REF!="",#REF!="",#REF!="",#REF!=""),"",SUM(#REF!,#REF!,#REF!,#REF!)) -> 
A190: 184 | DH190: =IF(AND(L190="",N190="",R190="",S190=""),"",SUM(L190,N190,R190,#REF!,S190)) ->  | DJ190: =IF(AND(V190="",X190="",AB190="",AC190=""),"",SUM(V190,X190,AB190,#REF!,AC190)) ->  | DN190: =IF(AND(AQ190="",AT190="",AW190="",AX190=""),"",SUM(AQ190,AT190,AW190,#REF!,AX190)) ->  | DP190: =IF(AND(BA190="",BD190="",BG190="",BH190=""),"",SUM(BA190,BD190,BG190,#REF!,BH190)) ->  | DR190: =IF(AND(BK190="",BN190="",BQ190="",BR190=""),"",SUM(BK190,BN190,BQ190,#REF!,BR190)) ->  | DT190: =IF(AND(#REF!="",#REF!="",#REF!="",#REF!=""),"",SUM(#REF!,#REF!,#REF!,#REF!)) -> 
A191: 185 | DH191: =IF(AND(L191="",N191="",R191="",S191=""),"",SUM(L191,N191,R191,#REF!,S191)) ->  | DJ191: =IF(AND(V191="",X191="",AB191="",AC191=""),"",SUM(V191,X191,AB191,#REF!,AC191)) ->  | DN191: =IF(AND(AQ191="",AT191="",AW191="",AX191=""),"",SUM(AQ191,AT191,AW191,#REF!,AX191)) ->  | DP191: =IF(AND(BA191="",BD191="",BG191="",BH191=""),"",SUM(BA191,BD191,BG191,#REF!,BH191)) ->  | DR191: =IF(AND(BK191="",BN191="",BQ191="",BR191=""),"",SUM(BK191,BN191,BQ191,#REF!,BR191)) ->  | DT191: =IF(AND(#REF!="",#REF!="",#REF!="",#REF!=""),"",SUM(#REF!,#REF!,#REF!,#REF!)) ->  | DU191: =IFERROR(IF(DT191="","",IF($DT$5=100,ROUNDUP(DT191*20%,0),IF($DT$5=86,ROUNDUP((DT191/$DT$5)*$DU$5,0),IF($DT$5=66,ROUNDUP((DT191/$DT$5)*$DU$5,0),"")))),"") -> 
A192: 186 | DH192: =IF(AND(L192="",N192="",R192="",S192=""),"",SUM(L192,N192,R192,#REF!,S192)) ->  | DJ192: =IF(AND(V192="",X192="",AB192="",AC192=""),"",SUM(V192,X192,AB192,#REF!,AC192)) ->  | DN192: =IF(AND(AQ192="",AT192="",AW192="",AX192=""),"",SUM(AQ192,AT192,AW192,#REF!,AX192)) ->  | DP192: =IF(AND(BA192="",BD192="",BG192="",BH192=""),"",SUM(BA192,BD192,BG192,#REF!,BH192)) ->  | DR192: =IF(AND(BK192="",BN192="",BQ192="",BR192=""),"",SUM(BK192,BN192,BQ192,#REF!,BR192)) ->  | DT192: =IF(AND(#REF!="",#REF!="",#REF!="",#REF!=""),"",SUM(#REF!,#REF!,#REF!,#REF!)) -> 
A193: 187 | DH193: =IF(AND(L193="",N193="",R193="",S193=""),"",SUM(L193,N193,R193,#REF!,S193)) ->  | DJ193: =IF(AND(V193="",X193="",AB193="",AC193=""),"",SUM(V193,X193,AB193,#REF!,AC193)) ->  | DN193: =IF(AND(AQ193="",AT193="",AW193="",AX193=""),"",SUM(AQ193,AT193,AW193,#REF!,AX193)) ->  | DP193: =IF(AND(BA193="",BD193="",BG193="",BH193=""),"",SUM(BA193,BD193,BG193,#REF!,BH193)) ->  | DR193: =IF(AND(BK193="",BN193="",BQ193="",BR193=""),"",SUM(BK193,BN193,BQ193,#REF!,BR193)) ->  | DT193: =IF(AND(#REF!="",#REF!="",#REF!="",#REF!=""),"",SUM(#REF!,#REF!,#REF!,#REF!)) -> 
A194: 188 | DH194: =IF(AND(L194="",N194="",R194="",S194=""),"",SUM(L194,N194,R194,#REF!,S194)) ->  | DJ194: =IF(AND(V194="",X194="",AB194="",AC194=""),"",SUM(V194,X194,AB194,#REF!,AC194)) ->  | DN194: =IF(AND(AQ194="",AT194="",AW194="",AX194=""),"",SUM(AQ194,AT194,AW194,#REF!,AX194)) ->  | DP194: =IF(AND(BA194="",BD194="",BG194="",BH194=""),"",SUM(BA194,BD194,BG194,#REF!,BH194)) ->  | DR194: =IF(AND(BK194="",BN194="",BQ194="",BR194=""),"",SUM(BK194,BN194,BQ194,#REF!,BR194)) ->  | DT194: =IF(AND(#REF!="",#REF!="",#REF!="",#REF!=""),"",SUM(#REF!,#REF!,#REF!,#REF!)) -> 
A195: 189 | DH195: =IF(AND(L195="",N195="",R195="",S195=""),"",SUM(L195,N195,R195,#REF!,S195)) ->  | DJ195: =IF(AND(V195="",X195="",AB195="",AC195=""),"",SUM(V195,X195,AB195,#REF!,AC195)) ->  | DN195: =IF(AND(AQ195="",AT195="",AW195="",AX195=""),"",SUM(AQ195,AT195,AW195,#REF!,AX195)) ->  | DP195: =IF(AND(BA195="",BD195="",BG195="",BH195=""),"",SUM(BA195,BD195,BG195,#REF!,BH195)) ->  | DR195: =IF(AND(BK195="",BN195="",BQ195="",BR195=""),"",SUM(BK195,BN195,BQ195,#REF!,BR195)) ->  | DT195: =IF(AND(#REF!="",#REF!="",#REF!="",#REF!=""),"",SUM(#REF!,#REF!,#REF!,#REF!)) -> 
A196: 190 | DH196: =IF(AND(L196="",N196="",R196="",S196=""),"",SUM(L196,N196,R196,#REF!,S196)) ->  | DJ196: =IF(AND(V196="",X196="",AB196="",AC196=""),"",SUM(V196,X196,AB196,#REF!,AC196)) ->  | DN196: =IF(AND(AQ196="",AT196="",AW196="",AX196=""),"",SUM(AQ196,AT196,AW196,#REF!,AX196)) ->  | DP196: =IF(AND(BA196="",BD196="",BG196="",BH196=""),"",SUM(BA196,BD196,BG196,#REF!,BH196)) ->  | DR196: =IF(AND(BK196="",BN196="",BQ196="",BR196=""),"",SUM(BK196,BN196,BQ196,#REF!,BR196)) ->  | DT196: =IF(AND(#REF!="",#REF!="",#REF!="",#REF!=""),"",SUM(#REF!,#REF!,#REF!,#REF!)) -> 
A197: 191 | DH197: =IF(AND(L197="",N197="",R197="",S197=""),"",SUM(L197,N197,R197,#REF!,S197)) ->  | DJ197: =IF(AND(V197="",X197="",AB197="",AC197=""),"",SUM(V197,X197,AB197,#REF!,AC197)) ->  | DN197: =IF(AND(AQ197="",AT197="",AW197="",AX197=""),"",SUM(AQ197,AT197,AW197,#REF!,AX197)) ->  | DP197: =IF(AND(BA197="",BD197="",BG197="",BH197=""),"",SUM(BA197,BD197,BG197,#REF!,BH197)) ->  | DR197: =IF(AND(BK197="",BN197="",BQ197="",BR197=""),"",SUM(BK197,BN197,BQ197,#REF!,BR197)) ->  | DT197: =IF(AND(#REF!="",#REF!="",#REF!="",#REF!=""),"",SUM(#REF!,#REF!,#REF!,#REF!)) -> 
A198: 192 | DH198: =IF(AND(L198="",N198="",R198="",S198=""),"",SUM(L198,N198,R198,#REF!,S198)) ->  | DJ198: =IF(AND(V198="",X198="",AB198="",AC198=""),"",SUM(V198,X198,AB198,#REF!,AC198)) ->  | DN198: =IF(AND(AQ198="",AT198="",AW198="",AX198=""),"",SUM(AQ198,AT198,AW198,#REF!,AX198)) ->  | DP198: =IF(AND(BA198="",BD198="",BG198="",BH198=""),"",SUM(BA198,BD198,BG198,#REF!,BH198)) ->  | DR198: =IF(AND(BK198="",BN198="",BQ198="",BR198=""),"",SUM(BK198,BN198,BQ198,#REF!,BR198)) ->  | DT198: =IF(AND(#REF!="",#REF!="",#REF!="",#REF!=""),"",SUM(#REF!,#REF!,#REF!,#REF!)) -> 
A199: 193 | DH199: =IF(AND(L199="",N199="",R199="",S199=""),"",SUM(L199,N199,R199,#REF!,S199)) ->  | DJ199: =IF(AND(V199="",X199="",AB199="",AC199=""),"",SUM(V199,X199,AB199,#REF!,AC199)) ->  | DN199: =IF(AND(AQ199="",AT199="",AW199="",AX199=""),"",SUM(AQ199,AT199,AW199,#REF!,AX199)) ->  | DP199: =IF(AND(BA199="",BD199="",BG199="",BH199=""),"",SUM(BA199,BD199,BG199,#REF!,BH199)) ->  | DR199: =IF(AND(BK199="",BN199="",BQ199="",BR199=""),"",SUM(BK199,BN199,BQ199,#REF!,BR199)) ->  | DT199: =IF(AND(#REF!="",#REF!="",#REF!="",#REF!=""),"",SUM(#REF!,#REF!,#REF!,#REF!)) -> 
A200: 194 | DG200: =IF(I200="","",I200) ->  | DH200: =IF(AND(L200="",N200="",R200="",S200=""),"",SUM(L200,N200,R200,#REF!,S200)) ->  | DI200: =IFERROR(IF(DH200="","",ROUNDUP(DH200*20%,0)),"") ->  | DJ200: =IF(AND(V200="",X200="",AB200="",AC200=""),"",SUM(V200,X200,AB200,#REF!,AC200)) ->  | DK200: =IFERROR(IF(DJ200="","",ROUNDUP(DJ200*20%,0)),"") ->  | DL200: =IF(AND(AG200="",AH200="",AI200="",AM200=""),"",SUM(AG200,AH200,AI200,AJ200,AM200)) ->  | DM200: =IFERROR(IF(DL200="","",ROUNDUP(DL200*20%,0)),"") ->  | DN200: =IF(AND(AQ200="",AT200="",AW200="",AX200=""),"",SUM(AQ200,AT200,AW200,#REF!,AX200)) ->  | DO200: =IFERROR(IF(DN200="","",ROUNDUP(DN200*20%,0)),"") ->  | DP200: =IF(AND(BA200="",BD200="",BG200="",BH200=""),"",SUM(BA200,BD200,BG200,#REF!,BH200)) ->  | DQ200: =IFERROR(IF(DP200="","",ROUNDUP(DP200*20%,0)),"") ->  | DR200: =IF(AND(BK200="",BN200="",BQ200="",BR200=""),"",SUM(BK200,BN200,BQ200,#REF!,BR200)) ->  | DS200: =IFERROR(IF(DR200="","",ROUNDUP(DR200*20%,0)),"") ->  | DT200: =IF(AND(#REF!="",#REF!="",#REF!="",#REF!=""),"",SUM(#REF!,#REF!,#REF!,#REF!)) -> 
... 6 more rows

Sheet Result Sheet
G1: जिस क्लास की रिजल्ट शीट चाहिए, पीले कलर की सेल में वो क्लास सलेक्ट करें I यहाँ पर जो क्लास शो होगी, रिपोर्ट कार्ड तथा अन्य रिपोर्ट उसी कक्षा के प्रिंट होंगे I
A2: =IF('Master sheet'!D11="Hindi","विद्यालय का नाम :-","School Name :- ") -> विद्यालय का नाम :- | F2: =IF('Master sheet'!D11="Hindi",'Master sheet'!D8,'Master sheet'!D7) -> महात्मा गाँधी राजकीय विद्यालय (अंग्रेजी माध्यम) बर, पाली
A3: =IF('Master sheet'!D11="Hindi","कक्षा :-","CLASS :- ") -> कक्षा :- | D3: 0 | E3: 7 | G3: =IF('Master sheet'!D11="Hindi","सत्र :- ","Session :- ") -> सत्र :- | H3: 0 | I3: 0 | J3: =IF('Master sheet'!D13="","",'Master sheet'!D13) -> 2024-2025 | FM3: =IF('Master sheet'!$D$11="Hindi","अतिरिक्त विषय ","Extra Subject") -> अतिरिक्त विषय
A4: =IF('Master sheet'!D11="Hindi","विद्यार्थी विवरण","Student Detail") -> विद्यार्थी विवरण | L4: =IF('Master sheet'!$D$11="Hindi","हिंदी","Hindi") -> हिंदी | S4: =IF(AND($E$3=6),UPPER('Marks Entry 6th'!P3),IF(AND($E$3=7),UPPER('Marks Entry 7th'!P3),"")) -> RADHESHYAM | AG4: =IF('Master sheet'!$D$11="Hindi","अंग्रेजी","English") -> अंग्रेजी | AN4: =IF(AND($E$3=6),UPPER('Marks Entry 6th'!Z3),IF(AND($E$3=7),UPPER('Marks Entry 7th'!Z3),"")) -> MAMTA LAWANIYA | BB4: =IF('Master sheet'!$D$11="Hindi","तृतीय भाषा","Third Language") -> तृतीय भाषा | BJ4: =IF(AND($E$3=6),UPPER('Marks Entry 6th'!AJ3),IF(AND($E$3=7),UPPER('Marks Entry 7th'!AJ3),"")) -> SURESH KUMAR | BX4: =IF('Master sheet'!$D$11="Hindi","गणित","Maths") -> गणित | CE4: =IF(AND($E$3=6),UPPER('Marks Entry 6th'!AU3),IF(AND($E$3=7),UPPER('Marks Entry 7th'!AU3),"")) -> YOGENDRA | CS4: =IF('Master sheet'!$D$11="Hindi","विज्ञान","Science") -> विज्ञान | CZ4: =IF(AND($E$3=6),UPPER('Marks Entry 6th'!BE3),IF(AND($E$3=7),UPPER('Marks Entry 7th'!BE3),"")) -> PRAKASH CHAND | DN4: =IF('Master sheet'!$D$11="Hindi","सामाजिक विज्ञान","Social Science") -> सामाजिक विज्ञान | DU4: =IF(AND($E$3=6),UPPER('Marks Entry 6th'!BO3),IF(AND($E$3=7),UPPER('Marks Entry 7th'!BO3),"")) -> SHARAD SHARMA | EI4: =IF('Master sheet'!$D$11="Hindi","कार्यानुभव","WORK EXP.") -> कार्यानुभव | ES4: =IF('Master sheet'!$D$11="Hindi","कला शिक्षा","ART EDU.") -> कला शिक्षा | FC4: =IF('Master sheet'!$D$11="Hindi","स्वा. एवं शा. शिक्षा","HE.&PH. EDU.") -> स्वा. एवं शा. शिक्षा | FM4: =IF(AND('Marks Entry 6th'!CJ3="",'Marks Entry 7th'!CJ3=""),"",IF(AND($E$3=6),'Marks Entry 6th'!CJ3,IF(AND($E$3=7),'Marks Entry 7th'!CJ3,""))) -> COMPUTER | FQ4: =IF(AND('Marks Entry 6th'!CL3="",'Marks Entry 7th'!CL3=""),"",IF(AND($E$3=6),'Marks Entry 6th'!CL3,IF(AND($E$3=7),'Marks Entry 7th'!CL3,""))) -> G.K. | FU4: =IF('Master sheet'!$D$11="Hindi","कुल विषय योग","Grand Total") -> कुल विषय योग | FV4: =IF('Master sheet'!$D$11="Hindi","प्रतिशत","Percentage") -> प्रतिशत | FW4: =IF('Master sheet'!$D$11="Hindi","श्रेणी ","Division") -> श्रेणी | FX4: =IF('Master sheet'!$D$11="Hindi","ग्रेड","Grade") -> ग्रेड | FY4: =IF('Master sheet'!$D$11="Hindi","कक्षा में स्थान","Position in the Class") -> कक्षा में स्थान | FZ4: =IF('Master sheet'!$D$11="Hindi","परीक्षा परिणाम","Results") -> परीक्षा परिणाम | GA4: =IF('Master sheet'!$D$11="Hindi","उपस्थिति","Attendance") -> उपस्थिति | GC4: =IF('Master sheet'!$D$11="Hindi","विशेष विवरण","Specifications") -> विशेष विवरण
A5: =IF('Master sheet'!D11="Hindi","क्र. स.","Sr. No. ") -> क्र. स. | B5: =IF('Master sheet'!D11="Hindi","नामांक","Roll No.") -> नामांक | C5: =IF('Master sheet'!D11="Hindi","कक्षा","CLASS ") -> कक्षा | D5: =IF('Master sheet'!$D$11="Hindi","सेक्शन","Section ") -> सेक्शन | E5: =IF('Master sheet'!$D$11="Hindi","जन्म दिनांक","Date of Birth") -> जन्म दिनांक | F5: =IF('Master sheet'!$D$11="Hindi","प्रवेशांक","SR. NO.") -> प्रवेशांक | G5: =IF('Master sheet'!D11="Hindi","विद्यार्थी का नाम","Student's Name") -> विद्यार्थी का नाम | H5: =IF('Master sheet'!$D$11="Hindi","पिता का नाम","Father's Name") -> पिता का नाम | I5: =IF('Master sheet'!$D$11="Hindi","माता का नाम ","Mother's Name") -> माता का नाम | J5: =IF('Master sheet'!$D$11="Hindi","लिंग ","Gender") -> लिंग | K5: =IF('Master sheet'!$D$11="Hindi","वर्ग ","Category") -> वर्ग | L5: =IF('Master sheet'!$D$11="Hindi","प्रथम परख ","First Test") -> प्रथम परख | N5: =IF('Master sheet'!$D$11="Hindi","द्वितीय परख","Second Test") -> द्वितीय परख | P5: =IF('Master sheet'!$D$11="Hindi","तृतीय परख","Third Test") -> तृतीय परख | R5: =IF('Master sheet'!$D$11="Hindi","सा. परख योग","Test Total") -> सा. परख योग | S5: =IF('Master sheet'!$D$11="Hindi","अर्द्धवार्षिक","Half Yearly") -> अर्द्धवार्षिक | V5: =IF('Master sheet'!$D$11="Hindi","अर्द्ध वा. तक योग","Total Till H.Y.") -> अर्द्ध वा. तक योग | W5: =IF('Master sheet'!$D$11="Hindi","वार्षिक","Yearly") -> वार्षिक | Z5: =IF('Master sheet'!$D$11="Hindi","विषय कुल योग ","Subject Total") -> विषय कुल योग | AA5: EXEMPTION | AB5: SUBJECT MM | AC5: 2T+E OR 2E+T | AD5: SUBJECT RESULT | AE5: SUBJECT DIVISION | AF5: =IF('Master sheet'!$D$11="Hindi","ग्रेड","Grade") -> ग्रेड | AG5: =IF('Master sheet'!$D$11="Hindi","प्रथम परख ","First Test") -> प्रथम परख | AI5: =IF('Master sheet'!$D$11="Hindi","द्वितीय परख","Second Test") -> द्वितीय परख | AK5: =IF('Master sheet'!$D$11="Hindi","तृतीय परख","Third Test") -> तृतीय परख | AM5: =IF('Master sheet'!$D$11="Hindi","सा. परख योग","Test Total") -> सा. परख योग | AN5: =IF('Master sheet'!$D$11="Hindi","अर्द्धवार्षिक","Half Yearly") -> अर्द्धवार्षिक | AQ5: =IF('Master sheet'!$D$11="Hindi","अर्द्ध वा. तक योग","Total Till H.Y.") -> अर्द्ध वा. तक योग | AR5: =IF('Master sheet'!$D$11="Hindi","वार्षिक","Yearly") -> वार्षिक | AU5: =IF('Master sheet'!$D$11="Hindi","विषय कुल योग ","Subject Total") -> विषय कुल योग | AV5: EXEMPTION | AW5: SUBJECT MM | AX5: 2T+E OR 2E+T | AY5: SUBJECT RESULT | AZ5: SUBJECT DIVISION | BA5: =IF('Master sheet'!$D$11="Hindi","ग्रेड","Grade") -> ग्रेड | BB5: =IF('Master sheet'!$D$11="Hindi","तृतीय भाषा का चयन करें I","Select The Third Language") -> तृतीय भाषा का चयन करें I | BC5: =IF('Master sheet'!$D$11="Hindi","प्रथम परख ","First Test") -> प्रथम परख | BE5: =IF('Master sheet'!$D$11="Hindi","द्वितीय परख","Second Test") -> द्वितीय परख | BG5: =IF('Master sheet'!$D$11="Hindi","तृतीय परख","Third Test") -> तृतीय परख | BI5: =IF('Master sheet'!$D$11="Hindi","सा. परख योग","Test Total") -> सा. परख योग | BJ5: =IF('Master sheet'!$D$11="Hindi","अर्द्धवार्षिक","Half Yearly") -> अर्द्धवार्षिक | BM5: =IF('Master sheet'!$D$11="Hindi","अर्द्ध वा. तक योग","Total Till H.Y.") -> अर्द्ध वा. तक योग | BN5: =IF('Master sheet'!$D$11="Hindi","वार्षिक","Yearly") -> वार्षिक | BQ5: =IF('Master sheet'!$D$11="Hindi","विषय कुल योग ","Subject Total") -> विषय कुल योग | BR5: EXEMPTION | BS5: SUBJECT MM | BT5: 2T+E OR 2E+T | BU5: SUBJECT RESULT | BV5: SUBJECT DIVISION | BW5: =IF('Master sheet'!$D$11="Hindi","ग्रेड","Grade") -> ग्रेड | BX5: =IF('Master sheet'!$D$11="Hindi","प्रथम परख ","First Test") -> प्रथम परख | BZ5: =IF('Master sheet'!$D$11="Hindi","द्वितीय परख","Second Test") -> द्वितीय परख | CB5: =IF('Master sheet'!$D$11="Hindi","तृतीय परख","Third Test") -> तृतीय परख | CD5: =IF('Master sheet'!$D$11="Hindi","सा. परख योग","Test Total") -> सा. परख योग | CE5: =IF('Master sheet'!$D$11="Hindi","अर्द्धवार्षिक","Half Yearly") -> अर्द्धवार्षिक | CH5: =IF('Master sheet'!$D$11="Hindi","अर्द्ध वा. तक योग","Total Till H.Y.") -> अर्द्ध वा. तक योग | CI5: =IF('Master sheet'!$D$11="Hindi","वार्षिक","Yearly") -> वार्षिक | CL5: =IF('Master sheet'!$D$11="Hindi","विषय कुल योग ","Subject Total") -> विषय कुल योग | CM5: EXEMPTION | CN5: SUBJECT MM | CO5: 2T+E OR 2E+T | CP5: SUBJECT RESULT | CQ5: SUBJECT DIVISION | CR5: =IF('Master sheet'!$D$11="Hindi","ग्रेड","Grade") -> ग्रेड | CS5: =IF('Master sheet'!$D$11="Hindi","प्रथम परख ","First Test") -> प्रथम परख | CU5: =IF('Master sheet'!$D$11="Hindi","द्वितीय परख","Second Test") -> द्वितीय परख | CY5: =IF('Master sheet'!$D$11="Hindi","सा. परख योग","Test Total") -> सा. परख योग | CZ5: =IF('Master sheet'!$D$11="Hindi","अर्द्धवार्षिक","Half Yearly") -> अर्द्धवार्षिक | DC5: =IF('Master sheet'!$D$11="Hindi","अर्द्ध वा. तक योग","Total Till H.Y.") -> अर्द्ध वा. तक योग | DD5: =IF('Master sheet'!$D$11="Hindi","वार्षिक","Yearly") -> वार्षिक | DG5: =IF('Master sheet'!$D$11="Hindi","विषय कुल योग ","Subject Total") -> विषय कुल योग | DH5: EXEMPTION | DI5: SUBJECT MM | DJ5: 2T+E OR 2E+T | DK5: SUBJECT RESULT | DL5: SUBJECT DIVISION | DM5: =IF('Master sheet'!$D$11="Hindi","ग्रेड","Grade") -> ग्रेड | DN5: =IF('Master sheet'!$D$11="Hindi","प्रथम परख ","First Test") -> प्रथम परख | DP5: =IF('Master sheet'!$D$11="Hindi","द्वितीय परख","Second Test") -> द्वितीय परख | DR5: =IF('Master sheet'!$D$11="Hindi","तृतीय परख","Third Test") -> तृतीय परख | DT5: =IF('Master sheet'!$D$11="Hindi","सा. परख योग","Test Total") -> सा. परख योग | DU5: =IF('Master sheet'!$D$11="Hindi","अर्द्धवार्षिक","Half Yearly") -> अर्द्धवार्षिक | DX5: =IF('Master sheet'!$D$11="Hindi","अर्द्ध वा. तक योग","Total Till H.Y.") -> अर्द्ध वा. तक योग | DY5: =IF('Master sheet'!$D$11="Hindi","वार्षिक","Yearly") -> वार्षिक | EB5: =IF('Master sheet'!$D$11="Hindi","विषय कुल योग ","Subject Total") -> विषय कुल योग | EC5: EXEMPTION | ED5: SUBJECT MM | EE5: 2T+E OR 2E+T | EF5: SUBJECT RESULT | EG5: SUBJECT DIVISION | EH5: =IF('Master sheet'!$D$11="Hindi","ग्रेड","Grade") -> ग्रेड | EI5: =IF('Master sheet'!$D$11="Hindi","प्रथम मूल्यांकन","1st Assessment") -> प्रथम मूल्यांकन | EJ5: =IF('Master sheet'!$D$11="Hindi","द्वितीय मूल्यांकन","2nd Assessment") -> द्वितीय मूल्यांकन | EK5: =IF('Master sheet'!$D$11="Hindi","तृतीय मूल्यांकन","3rd Assessment") -> तृतीय मूल्यांकन | EL5: =IF('Master sheet'!$D$11="Hindi","चतुर्थ मूल्यांकन","4th Assessment") -> चतुर्थ मूल्यांकन | EM5: =IF('Master sheet'!$D$11="Hindi","पंचम मूल्यांकन","5th Assessment") -> पंचम मूल्यांकन | EN5: =IF('Master sheet'!$D$11="Hindi","योग","Total") -> योग | EO5: EXEMPTION | EP5: SUBJECT MM | EQ5: SUBJECT RESULT | ER5: =IF('Master sheet'!$D$11="Hindi","ग्रेड","Grade") -> ग्रेड | ES5: =IF('Master sheet'!$D$11="Hindi","प्रथम मूल्यांकन","1st Assessment") -> प्रथम मूल्यांकन | ET5: =IF('Master sheet'!$D$11="Hindi","द्वितीय मूल्यांकन","2nd Assessment") -> द्वितीय मूल्यांकन | EU5: =IF('Master sheet'!$D$11="Hindi","तृतीय मूल्यांकन","3rd Assessment") -> तृतीय मूल्यांकन | EV5: =IF('Master sheet'!$D$11="Hindi","चतुर्थ मूल्यांकन","4th Assessment") -> चतुर्थ मूल्यांकन | EW5: =IF('Master sheet'!$D$11="Hindi","पंचम मूल्यांकन","5th Assessment") -> पंचम मूल्यांकन | EX5: =IF('Master sheet'!$D$11="Hindi","योग","Total") -> योग | EY5: EXEMPTION | EZ5: SUBJECT MM | FA5: SUBJECT RESULT | FB5: =IF('Master sheet'!$D$11="Hindi","ग्रेड","Grade") -> ग्रेड | FC5: =IF('Master sheet'!$D$11="Hindi","प्रथम मूल्यांकन","1st Assessment") -> प्रथम मूल्यांकन | FD5: =IF('Master sheet'!$D$11="Hindi","द्वितीय मूल्यांकन","2nd Assessment") -> द्वितीय मूल्यांकन | FE5: =IF('Master sheet'!$D$11="Hindi","तृतीय मूल्यांकन","3rd Assessment") -> तृतीय मूल्यांकन | FF5: =IF('Master sheet'!$D$11="Hindi","चतुर्थ मूल्यांकन","4th Assessment") -> चतुर्थ मूल्यांकन | FG5: =IF('Master sheet'!$D$11="Hindi","पंचम मूल्यांकन","5th Assessment") -> पंचम मूल्यांकन | FH5: =IF('Master sheet'!$D$11="Hindi","योग","Total") -> योग | FI5: EXEMPTION | FJ5: SUBJECT MM | FK5: SUBJECT RESULT | FL5: =IF('Master sheet'!$D$11="Hindi","ग्रेड","Grade") -> ग्रेड | FM5: =IF('Master sheet'!$D$11="Hindi","अर्द्धवार्षिक","Half Yearly") -> अर्द्धवार्षिक | FN5: =IF('Master sheet'!$D$11="Hindi","वार्षिक","Yearly") -> वार्षिक | FO5: =IF('Master sheet'!$D$11="Hindi","योग","Total") -> योग | FP5: =IF('Master sheet'!$D$11="Hindi","ग्रेड","Grade") -> ग्रेड | FQ5: =IF('Master sheet'!$D$11="Hindi","अर्द्धवार्षिक","Half Yearly") -> अर्द्धवार्षिक | FR5: =IF('Master sheet'!$D$11="Hindi","वार्षिक","Yearly") -> वार्षिक | FS5: =IF('Master sheet'!$D$11="Hindi","योग","Total") -> योग | FT5: =IF('Master sheet'!$D$11="Hindi","ग्रेड","Grade") -> ग्रेड | FU5: 0 | FV5: 0 | FW5: 0 | FX5: 0 | FZ5: 0
L6: =IF('Master sheet'!$D$11="Hindi","लिखित परीक्षा","Written") -> लिखित परीक्षा | M6: =IF('Master sheet'!$D$11="Hindi","गतिविधि, मौखिक, प्रोजेक्ट, प्रायोगिक","Act, Oral, Project, Prac.") -> गतिविधि, मौखिक, प्रोजेक्ट, प्रायोगिक | N6: =IF('Master sheet'!$D$11="Hindi","लिखित परीक्षा","Written") -> लिखित परीक्षा | O6: =IF('Master sheet'!$D$11="Hindi","गतिविधि, मौखिक, प्रोजेक्ट, प्रायोगिक","Act, Oral, Project, Prac.") -> गतिविधि, मौखिक, प्रोजेक्ट, प्रायोगिक | P6: =IF('Master sheet'!$D$11="Hindi","लिखित परीक्षा","Written") -> लिखित परीक्षा | Q6: =IF('Master sheet'!$D$11="Hindi","गतिविधि, मौखिक, प्रोजेक्ट, प्रायोगिक","Act, Oral, Project, Prac.") -> गतिविधि, मौखिक, प्रोजेक्ट, प्रायोगिक | S6: =IF('Master sheet'!$D$11="Hindi","लिखित परीक्षा","Written") -> लिखित परीक्षा | T6: =IF('Master sheet'!$D$11="Hindi","गतिविधि, मौखिक, प्रोजेक्ट, प्रायोगिक","Act, Oral, Project, Prac.") -> गतिविधि, मौखिक, प्रोजेक्ट, प्रायोगिक | U6: =IF('Master sheet'!$D$11="Hindi","अर्द्ध वा. योग","H.Y. Total") -> अर्द्ध वा. योग | W6: =IF('Master sheet'!$D$11="Hindi","लिखित परीक्षा","Written") -> लिखित परीक्षा | X6: =IF('Master sheet'!$D$11="Hindi","गतिविधि, मौखिक, प्रोजेक्ट, प्रायोगिक","Act, Oral, Project, Prac.") -> गतिविधि, मौखिक, प्रोजेक्ट, प्रायोगिक | Y6: =IF('Master sheet'!$D$11="Hindi","वार्षिक योग","Yearly Total") -> वार्षिक योग | AF6: 0 | AG6: =IF('Master sheet'!$D$11="Hindi","लिखित परीक्षा","Written") -> लिखित परीक्षा | AH6: =IF('Master sheet'!$D$11="Hindi","गतिविधि, मौखिक, प्रोजेक्ट, प्रायोगिक","Act, Oral, Project, Prac.") -> गतिविधि, मौखिक, प्रोजेक्ट, प्रायोगिक | AI6: =IF('Master sheet'!$D$11="Hindi","लिखित परीक्षा","Written") -> लिखित परीक्षा | AJ6: =IF('Master sheet'!$D$11="Hindi","गतिविधि, मौखिक, प्रोजेक्ट, प्रायोगिक","Act, Oral, Project, Prac.") -> गतिविधि, मौखिक, प्रोजेक्ट, प्रायोगिक | AK6: =IF('Master sheet'!$D$11="Hindi","लिखित परीक्षा","Written") -> लिखित परीक्षा | AL6: =IF('Master sheet'!$D$11="Hindi","गतिविधि, मौखिक, प्रोजेक्ट, प्रायोगिक","Act, Oral, Project, Prac.") -> गतिविधि, मौखिक, प्रोजेक्ट, प्रायोगिक | AN6: =IF('Master sheet'!$D$11="Hindi","लिखित परीक्षा","Written") -> लिखित परीक्षा | AO6: =IF('Master sheet'!$D$11="Hindi","गतिविधि, मौखिक, प्रोजेक्ट, प्रायोगिक","Act, Oral, Project, Prac.") -> गतिविधि, मौखिक, प्रोजेक्ट, प्रायोगिक | AP6: =IF('Master sheet'!$D$11="Hindi","अर्द्ध वा. योग","H.Y. Total") -> अर्द्ध वा. योग | AR6: =IF('Master sheet'!$D$11="Hindi","लिखित परीक्षा","Written") -> लिखित परीक्षा | AS6: =IF('Master sheet'!$D$11="Hindi","गतिविधि, मौखिक, प्रोजेक्ट, प्रायोगिक","Act, Oral, Project, Prac.") -> गतिविधि, मौखिक, प्रोजेक्ट, प्रायोगिक | AT6: =IF('Master sheet'!$D$11="Hindi","वार्षिक योग","Yearly Total") -> वार्षिक योग | BA6: 0 | BC6: =IF('Master sheet'!$D$11="Hindi","लिखित परीक्षा","Written") -> लिखित परीक्षा | BD6: =IF('Master sheet'!$D$11="Hindi","गतिविधि, मौखिक, प्रोजेक्ट, प्रायोगिक","Act, Oral, Project, Prac.") -> गतिविधि, मौखिक, प्रोजेक्ट, प्रायोगिक | BE6: =IF('Master sheet'!$D$11="Hindi","लिखित परीक्षा","Written") -> लिखित परीक्षा | BF6: =IF('Master sheet'!$D$11="Hindi","गतिविधि, मौखिक, प्रोजेक्ट, प्रायोगिक","Act, Oral, Project, Prac.") -> गतिविधि, मौखिक, प्रोजेक्ट, प्रायोगिक | BG6: =IF('Master sheet'!$D$11="Hindi","लिखित परीक्षा","Written") -> लिखित परीक्षा | BH6: =IF('Master sheet'!$D$11="Hindi","गतिविधि, मौखिक, प्रोजेक्ट, प्रायोगिक","Act, Oral, Project, Prac.") -> गतिविधि, मौखिक, प्रोजेक्ट, प्रायोगिक | BJ6: =IF('Master sheet'!$D$11="Hindi","लिखित परीक्षा","Written") -> लिखित परीक्षा | BK6: =IF('Master sheet'!$D$11="Hindi","गतिविधि, मौखिक, प्रोजेक्ट, प्रायोगिक","Act, Oral, Project, Prac.") -> गतिविधि, मौखिक, प्रोजेक्ट, प्रायोगिक | BL6: =IF('Master sheet'!$D$11="Hindi","अर्द्ध वा. योग","H.Y. Total") -> अर्द्ध वा. योग | BN6: =IF('Master sheet'!$D$11="Hindi","लिखित परीक्षा","Written") -> लिखित परीक्षा | BO6: =IF('Master sheet'!$D$11="Hindi","गतिविधि, मौखिक, प्रोजेक्ट, प्रायोगिक","Act, Oral, Project, Prac.") -> गतिविधि, मौखिक, प्रोजेक्ट, प्रायोगिक | BP6: =IF('Master sheet'!$D$11="Hindi","वार्षिक योग","Yearly Total") -> वार्षिक योग | BW6: 0 | BX6: =IF('Master sheet'!$D$11="Hindi","लिखित परीक्षा","Written") -> लिखित परीक्षा | BY6: =IF('Master sheet'!$D$11="Hindi","गतिविधि, मौखिक, प्रोजेक्ट, प्रायोगिक","Act, Oral, Project, Prac.") -> गतिविधि, मौखिक, प्रोजेक्ट, प्रायोगिक | BZ6: =IF('Master sheet'!$D$11="Hindi","लिखित परीक्षा","Written") -> लिखित परीक्षा | CA6: =IF('Master sheet'!$D$11="Hindi","गतिविधि, मौखिक, प्रोजेक्ट, प्रायोगिक","Act, Oral, Project, Prac.") -> गतिविधि, मौखिक, प्रोजेक्ट, प्रायोगिक | CB6: =IF('Master sheet'!$D$11="Hindi","लिखित परीक्षा","Written") -> लिखित परीक्षा | CC6: =IF('Master sheet'!$D$11="Hindi","गतिविधि, मौखिक, प्रोजेक्ट, प्रायोगिक","Act, Oral, Project, Prac.") -> गतिविधि, मौखिक, प्रोजेक्ट, प्रायोगिक | CE6: =IF('Master sheet'!$D$11="Hindi","लिखित परीक्षा","Written") -> लिखित परीक्षा | CF6: =IF('Master sheet'!$D$11="Hindi","गतिविधि, मौखिक, प्रोजेक्ट, प्रायोगिक","Act, Oral, Project, Prac.") -> गतिविधि, मौखिक, प्रोजेक्ट, प्रायोगिक | CG6: =IF('Master sheet'!$D$11="Hindi","अर्द्ध वा. योग","H.Y. Total") -> अर्द्ध वा. योग | CI6: =IF('Master sheet'!$D$11="Hindi","लिखित परीक्षा","Written") -> लिखित परीक्षा | CJ6: =IF('Master sheet'!$D$11="Hindi","गतिविधि, मौखिक, प्रोजेक्ट, प्रायोगिक","Act, Oral, Project, Prac.") -> गतिविधि, मौखिक, प्रोजेक्ट, प्रायोगिक | CK6: =IF('Master sheet'!$D$11="Hindi","वार्षिक योग","Yearly Total") -> वार्षिक योग | CR6: 0 | CS6: =IF('Master sheet'!$D$11="Hindi","लिखित परीक्षा","Written") -> लिखित परीक्षा | CT6: =IF('Master sheet'!$D$11="Hindi","गतिविधि, मौखिक, प्रोजेक्ट, प्रायोगिक","Act, Oral, Project, Prac.") -> गतिविधि, मौखिक, प्रोजेक्ट, प्रायोगिक | CU6: =IF('Master sheet'!$D$11="Hindi","लिखित परीक्षा","Written") -> लिखित परीक्षा | CV6: =IF('Master sheet'!$D$11="Hindi","गतिविधि, मौखिक, प्रोजेक्ट, प्रायोगिक","Act, Oral, Project, Prac.") -> गतिविधि, मौखिक, प्रोजेक्ट, प्रायोगिक | CW6: =IF('Master sheet'!$D$11="Hindi","लिखित परीक्षा","Written") -> लिखित परीक्षा | CX6: =IF('Master sheet'!$D$11="Hindi","गतिविधि, मौखिक, प्रोजेक्ट, प्रायोगिक","Act, Oral, Project, Prac.") -> गतिविधि, मौखिक, प्रोजेक्ट, प्रायोगिक | CZ6: =IF('Master sheet'!$D$11="Hindi","लिखित परीक्षा","Written") -> लिखित परीक्षा | DA6: =IF('Master sheet'!$D$11="Hindi","गतिविधि, मौखिक, प्रोजेक्ट, प्रायोगिक","Act, Oral, Project, Prac.") -> गतिविधि, मौखिक, प्रोजेक्ट, प्रायोगिक | DB6: =IF('Master sheet'!$D$11="Hindi","अर्द्ध वा. योग","H.Y. Total") -> अर्द्ध वा. योग | DD6: =IF('Master sheet'!$D$11="Hindi","लिखित परीक्षा","Written") -> लिखित परीक्षा | DE6: =IF('Master sheet'!$D$11="Hindi","गतिविधि, मौखिक, प्रोजेक्ट, प्रायोगिक","Act, Oral, Project, Prac.") -> गतिविधि, मौखिक, प्रोजेक्ट, प्रायोगिक | DF6: =IF('Master sheet'!$D$11="Hindi","वार्षिक योग","Yearly Total") -> वार्षिक योग | DM6: 0 | DN6: =IF('Master sheet'!$D$11="Hindi","लिखित परीक्षा","Written") -> लिखित परीक्षा | DO6: =IF('Master sheet'!$D$11="Hindi","गतिविधि, मौखिक, प्रोजेक्ट, प्रायोगिक","Act, Oral, Project, Prac.") -> गतिविधि, मौखिक, प्रोजेक्ट, प्रायोगिक | DP6: =IF('Master sheet'!$D$11="Hindi","लिखित परीक्षा","Written") -> लिखित परीक्षा | DQ6: =IF('Master sheet'!$D$11="Hindi","गतिविधि, मौखिक, प्रोजेक्ट, प्रायोगिक","Act, Oral, Project, Prac.") -> गतिविधि, मौखिक, प्रोजेक्ट, प्रायोगिक | DR6: =IF('Master sheet'!$D$11="Hindi","लिखित परीक्षा","Written") -> लिखित परीक्षा | DS6: =IF('Master sheet'!$D$11="Hindi","गतिविधि, मौखिक, प्रोजेक्ट, प्रायोगिक","Act, Oral, Project, Prac.") -> गतिविधि, मौखिक, प्रोजेक्ट, प्रायोगिक | DU6: =IF('Master sheet'!$D$11="Hindi","लिखित परीक्षा","Written") -> लिखित परीक्षा | DV6: =IF('Master sheet'!$D$11="Hindi","गतिविधि, मौखिक, प्रोजेक्ट, प्रायोगिक","Act, Oral, Project, Prac.") -> गतिविधि, मौखिक, प्रोजेक्ट, प्रायोगिक | DW6: =IF('Master sheet'!$D$11="Hindi","अर्द्ध वा. योग","H.Y. Total") -> अर्द्ध वा. योग | DY6: =IF('Master sheet'!$D$11="Hindi","लिखित परीक्षा","Written") -> लिखित परीक्षा | DZ6: =IF('Master sheet'!$D$11="Hindi","गतिविधि, मौखिक, प्रोजेक्ट, प्रायोगिक","Act, Oral, Project, Prac.") -> गतिविधि, मौखिक, प्रोजेक्ट, प्रायोगिक | EA6: =IF('Master sheet'!$D$11="Hindi","वार्षिक योग","Yearly Total") -> वार्षिक योग | EH6: 0 | EI6: =IF('Master sheet'!$D$11="Hindi","प्रथम मूल्यांकन","1st Assessment") -> प्रथम मूल्यांकन | EJ6: =IF('Master sheet'!$D$11="Hindi","द्वितीय मूल्यांकन","2nd Assessment") -> द्वितीय मूल्यांकन | EL6: =IF('Master sheet'!$D$11="Hindi","चतुर्थ मूल्यांकन","4th Assessment") -> चतुर्थ मूल्यांकन | EM6: =IF('Master sheet'!$D$11="Hindi","पंचम मूल्यांकन","5th Assessment") -> पंचम मूल्यांकन | EN6: 0 | ER6: 0 | ES6: =IF('Master sheet'!$D$11="Hindi","प्रथम मूल्यांकन","1st Assessment") -> प्रथम मूल्यांकन | ET6: =IF('Master sheet'!$D$11="Hindi","द्वितीय मूल्यांकन","2nd Assessment") -> द्वितीय मूल्यांकन | EV6: =IF('Master sheet'!$D$11="Hindi","चतुर्थ मूल्यांकन","4th Assessment") -> चतुर्थ मूल्यांकन | EW6: =IF('Master sheet'!$D$11="Hindi","पंचम मूल्यांकन","5th Assessment") -> पंचम मूल्यांकन | EX6: 0 | FB6: 0 | FC6: =IF('Master sheet'!$D$11="Hindi","प्रथम मूल्यांकन","1st Assessment") -> प्रथम मूल्यांकन | FD6: =IF('Master sheet'!$D$11="Hindi","द्वितीय मूल्यांकन","2nd Assessment") -> द्वितीय मूल्यांकन | FF6: =IF('Master sheet'!$D$11="Hindi","चतुर्थ मूल्यांकन","4th Assessment") -> चतुर्थ मूल्यांकन | FG6: =IF('Master sheet'!$D$11="Hindi","पंचम मूल्यांकन","5th Assessment") -> पंचम मूल्यांकन | FH6: 0 | FL6: 0 | FU6: 0 | FV6: 0 | FW6: 0 | FX6: 0 | FZ6: 0 | GA6: =IF('Master sheet'!$D$11="Hindi","कुल कार्य दिवस","Total Meeting") -> कुल कार्य दिवस | GB6: =IF('Master sheet'!$D$11="Hindi","कुल उपस्थिति","Total Attendance") -> कुल उपस्थिति
L7: =IF(AND($E$3=6),'Marks Entry 6th'!L6,IF(AND($E$3=7),'Marks Entry 7th'!L6,"")) -> 5 | M7: =IF(AND($E$3=6),'Marks Entry 6th'!M6,IF(AND($E$3=7),'Marks Entry 7th'!M6,"")) -> 5 | N7: =IF(AND($E$3=6),'Marks Entry 6th'!N6,IF(AND($E$3=7),'Marks Entry 7th'!N6,"")) -> 5 | O7: =IF(AND($E$3=6),'Marks Entry 6th'!O6,IF(AND($E$3=7),'Marks Entry 7th'!O6,"")) -> 5 | P7: =IF(AND($E$3=6),'Marks Entry 6th'!P6,IF(AND($E$3=7),'Marks Entry 7th'!P6,"")) -> 5 | Q7: =IF(AND($E$3=6),'Marks Entry 6th'!Q6,IF(AND($E$3=7),'Marks Entry 7th'!Q6,"")) -> 5 | R7: =IF(AND(L7="",M7="",N7="",O7="",P7="",Q7=""),"",SUM(L7:Q7)) -> 30 | S7: =IF(AND($E$3=6),'Marks Entry 6th'!R6,IF(AND($E$3=7),'Marks Entry 7th'!R6,"")) -> 50 | T7: =IF(AND($E$3=6),'Marks Entry 6th'!S6,IF(AND($E$3=7),'Marks Entry 7th'!S6,"")) -> 20 | U7: =IF(AND(S7="",T7=""),"",SUM(S7:T7)) -> 70 | V7: =IF(AND(R7="NA",U7="NA"),"NA",SUM(R7,U7)) -> 100 | W7: =IF(AND($E$3=6),'Marks Entry 6th'!T6,IF(AND($E$3=7),'Marks Entry 7th'!T6,"")) -> 70 | X7: =IF(AND($E$3=6),'Marks Entry 6th'!U6,IF(AND($E$3=7),'Marks Entry 7th'!U6,"")) -> 30 | Y7: =IF(AND(W7="",X7=""),"",SUM(W7:X7)) -> 100 | Z7: =IF(Y7="","",SUM(V7,Y7)) -> 200 | AG7: =IF(AND($E$3=6),'Marks Entry 6th'!V6,IF(AND($E$3=7),'Marks Entry 7th'!V6,"")) -> 5 | AH7: =IF(AND($E$3=6),'Marks Entry 6th'!W6,IF(AND($E$3=7),'Marks Entry 7th'!W6,"")) -> 5 | AI7: =IF(AND($E$3=6),'Marks Entry 6th'!X6,IF(AND($E$3=7),'Marks Entry 7th'!X6,"")) -> 5 | AJ7: =IF(AND($E$3=6),'Marks Entry 6th'!Y6,IF(AND($E$3=7),'Marks Entry 7th'!Y6,"")) -> 5 | AK7: =IF(AND($E$3=6),'Marks Entry 6th'!Z6,IF(AND($E$3=7),'Marks Entry 7th'!Z6,"")) -> 5 | AL7: =IF(AND($E$3=6),'Marks Entry 6th'!AA6,IF(AND($E$3=7),'Marks Entry 7th'!AA6,"")) -> 5 | AM7: =IF(AND(AG7="",AH7="",AI7="",AJ7="",AK7="",AL7=""),"",SUM(AG7:AL7)) -> 30 | AN7: =IF(AND($E$3=6),'Marks Entry 6th'!AB6,IF(AND($E$3=7),'Marks Entry 7th'!AB6,"")) -> 50 | AO7: =IF(AND($E$3=6),'Marks Entry 6th'!AC6,IF(AND($E$3=7),'Marks Entry 7th'!AC6,"")) -> 20 | AP7: =IF(AND(AN7="",AO7=""),"",SUM(AN7:AO7)) -> 70 | AQ7: =IF(AND(AM7="NA",AP7="NA"),"NA",SUM(AM7,AP7)) -> 100 | AR7: =IF(AND($E$3=6),'Marks Entry 6th'!AD6,IF(AND($E$3=7),'Marks Entry 7th'!AD6,"")) -> 70 | AS7: =IF(AND($E$3=6),'Marks Entry 6th'!AE6,IF(AND($E$3=7),'Marks Entry 7th'!AE6,"")) -> 30 | AT7: =IF(AND(AR7="",AS7=""),"",SUM(AR7:AS7)) -> 100 | AU7: =IF(AT7="","",SUM(AQ7,AT7)) -> 200 | BC7: =IF(AND($E$3=6),'Marks Entry 6th'!AG6,IF(AND($E$3=7),'Marks Entry 7th'!AG6,"")) -> 5 | BD7: =IF(AND($E$3=6),'Marks Entry 6th'!AH6,IF(AND($E$3=7),'Marks Entry 7th'!AH6,"")) -> 5 | BE7: =IF(AND($E$3=6),'Marks Entry 6th'!AI6,IF(AND($E$3=7),'Marks Entry 7th'!AI6,"")) -> 5 | BF7: =IF(AND($E$3=6),'Marks Entry 6th'!AJ6,IF(AND($E$3=7),'Marks Entry 7th'!AJ6,"")) -> 5 | BG7: =IF(AND($E$3=6),'Marks Entry 6th'!AK6,IF(AND($E$3=7),'Marks Entry 7th'!AK6,"")) -> 5 | BH7: =IF(AND($E$3=6),'Marks Entry 6th'!AL6,IF(AND($E$3=7),'Marks Entry 7th'!AL6,"")) -> 5 | BI7: =IF(AND(BC7="",BD7="",BE7="",BF7="",BG7="",BH7=""),"",SUM(BC7:BH7)) -> 30 | BJ7: =IF(AND($E$3=6),'Marks Entry 6th'!AM6,IF(AND($E$3=7),'Marks Entry 7th'!AM6,"")) -> 50 | BK7: =IF(AND($E$3=6),'Marks Entry 6th'!AN6,IF(AND($E$3=7),'Marks Entry 7th'!AN6,"")) -> 20 | BL7: =IF(AND(BJ7="",BK7=""),"",SUM(BJ7:BK7)) -> 70 | BM7: =IF(AND(BI7="NA",BL7="NA"),"NA",SUM(BI7,BL7)) -> 100 | BN7: =IF(AND($E$3=6),'Marks Entry 6th'!AO6,IF(AND($E$3=7),'Marks Entry 7th'!AO6,"")) -> 70 | BO7: =IF(AND($E$3=6),'Marks Entry 6th'!AP6,IF(AND($E$3=7),'Marks Entry 7th'!AP6,"")) -> 30 | BP7: =IF(AND(BN7="",BO7=""),"",SUM(BN7:BO7)) -> 100 | BQ7: =IF(BP7="","",SUM(BM7,BP7)) -> 200 | BX7: =IF(AND($E$3=6),'Marks Entry 6th'!AQ6,IF(AND($E$3=7),'Marks Entry 7th'!AQ6,"")) -> 5 | BY7: =IF(AND($E$3=6),'Marks Entry 6th'!AR6,IF(AND($E$3=7),'Marks Entry 7th'!AR6,"")) -> 5 | BZ7: =IF(AND($E$3=6),'Marks Entry 6th'!AS6,IF(AND($E$3=7),'Marks Entry 7th'!AS6,"")) -> 5 | CA7: =IF(AND($E$3=6),'Marks Entry 6th'!AT6,IF(AND($E$3=7),'Marks Entry 7th'!AT6,"")) -> 5 | CB7: =IF(AND($E$3=6),'Marks Entry 6th'!AU6,IF(AND($E$3=7),'Marks Entry 7th'!AU6,"")) -> 5 | CC7: =IF(AND($E$3=6),'Marks Entry 6th'!AV6,IF(AND($E$3=7),'Marks Entry 7th'!AV6,"")) -> 5 | CD7: =IF(AND(BX7="",BY7="",BZ7="",CA7="",CB7="",CC7=""),"",SUM(BX7:CC7)) -> 30 | CE7: =IF(AND($E$3=6),'Marks Entry 6th'!AW6,IF(AND($E$3=7),'Marks Entry 7th'!AW6,"")) -> 50 | CF7: =IF(AND($E$3=6),'Marks Entry 6th'!AX6,IF(AND($E$3=7),'Marks Entry 7th'!AX6,"")) -> 20 | CG7: =IF(AND(CE7="",CF7=""),"",SUM(CE7:CF7)) -> 70 | CH7: =IF(AND(CD7="NA",CG7="NA"),"NA",SUM(CD7,CG7)) -> 100 | CI7: =IF(AND($E$3=6),'Marks Entry 6th'!AY6,IF(AND($E$3=7),'Marks Entry 7th'!AY6,"")) -> 70 | CJ7: =IF(AND($E$3=6),'Marks Entry 6th'!AZ6,IF(AND($E$3=7),'Marks Entry 7th'!AZ6,"")) -> 30 | CK7: =IF(AND(CI7="",CJ7=""),"",SUM(CI7:CJ7)) -> 100 | CL7: =IF(CK7="","",SUM(CH7,CK7)) -> 200 | CS7: =IF(AND($E$3=6),'Marks Entry 6th'!BA6,IF(AND($E$3=7),'Marks Entry 7th'!BA6,"")) -> 5 | CT7: =IF(AND($E$3=6),'Marks Entry 6th'!BB6,IF(AND($E$3=7),'Marks Entry 7th'!BB6,"")) -> 5 | CU7: =IF(AND($E$3=6),'Marks Entry 6th'!BC6,IF(AND($E$3=7),'Marks Entry 7th'!BC6,"")) -> 5 | CV7: =IF(AND($E$3=6),'Marks Entry 6th'!BD6,IF(AND($E$3=7),'Marks Entry 7th'!BD6,"")) -> 5 | CW7: =IF(AND($E$3=6),'Marks Entry 6th'!BE6,IF(AND($E$3=7),'Marks Entry 7th'!BE6,"")) -> 5 | CX7: =IF(AND($E$3=6),'Marks Entry 6th'!BF6,IF(AND($E$3=7),'Marks Entry 7th'!BF6,"")) -> 5 | CY7: =IF(AND(CS7="",CT7="",CU7="",CV7="",CW7="",CX7=""),"",SUM(CS7:CX7)) -> 30 | CZ7: =IF(AND($E$3=6),'Marks Entry 6th'!BG6,IF(AND($E$3=7),'Marks Entry 7th'!BG6,"")) -> 50 | DA7: =IF(AND($E$3=6),'Marks Entry 6th'!BH6,IF(AND($E$3=7),'Marks Entry 7th'!BH6,"")) -> 20 | DB7: =IF(AND(CZ7="",DA7=""),"",SUM(CZ7:DA7)) -> 70 | DC7: =IF(AND(CY7="NA",DB7="NA"),"NA",SUM(CY7,DB7)) -> 100 | DD7: =IF(AND($E$3=6),'Marks Entry 6th'!BI6,IF(AND($E$3=7),'Marks Entry 7th'!BI6,"")) -> 70 | DE7: =IF(AND($E$3=6),'Marks Entry 6th'!BJ6,IF(AND($E$3=7),'Marks Entry 7th'!BJ6,"")) -> 30 | DF7: =IF(AND(DD7="",DE7=""),"",SUM(DD7:DE7)) -> 100 | DG7: =IF(DF7="","",SUM(DC7,DF7)) -> 200 | DN7: =IF(AND($E$3=6),'Marks Entry 6th'!BK6,IF(AND($E$3=7),'Marks Entry 7th'!BK6,"")) -> 5 | DO7: =IF(AND($E$3=6),'Marks Entry 6th'!BL6,IF(AND($E$3=7),'Marks Entry 7th'!BL6,"")) -> 5 | DP7: =IF(AND($E$3=6),'Marks Entry 6th'!BM6,IF(AND($E$3=7),'Marks Entry 7th'!BM6,"")) -> 5 | DQ7: =IF(AND($E$3=6),'Marks Entry 6th'!BN6,IF(AND($E$3=7),'Marks Entry 7th'!BN6,"")) -> 5 | DR7: =IF(AND($E$3=6),'Marks Entry 6th'!BO6,IF(AND($E$3=7),'Marks Entry 7th'!BO6,"")) -> 5 | DS7: =IF(AND($E$3=6),'Marks Entry 6th'!BP6,IF(AND($E$3=7),'Marks Entry 7th'!BP6,"")) -> 5 | DT7: =IF(AND(DN7="",DO7="",DP7="",DQ7="",DR7="",DS7=""),"",SUM(DN7:DS7)) -> 30 | DU7: =IF(AND($E$3=6),'Marks Entry 6th'!BQ6,IF(AND($E$3=7),'Marks Entry 7th'!BQ6,"")) -> 50 | DV7: =IF(AND($E$3=6),'Marks Entry 6th'!BR6,IF(AND($E$3=7),'Marks Entry 7th'!BR6,"")) -> 20 | DW7: =IF(AND(DU7="",DV7=""),"",SUM(DU7:DV7)) -> 70 | DX7: =IF(AND(DT7="NA",DW7="NA"),"NA",SUM(DT7,DW7)) -> 100 | DY7: =IF(AND($E$3=6),'Marks Entry 6th'!BS6,IF(AND($E$3=7),'Marks Entry 7th'!BS6,"")) -> 70 | DZ7: =IF(AND($E$3=6),'Marks Entry 6th'!BT6,IF(AND($E$3=7),'Marks Entry 7th'!BT6,"")) -> 30 | EA7: =IF(AND(DY7="",DZ7=""),"",SUM(DY7:DZ7)) -> 100 | EB7: =IF(EA7="","",SUM(DX7,EA7)) -> 200 | EI7: =IF(AND($E$3=6),'Marks Entry 6th'!BU6,IF(AND($E$3=7),'Marks Entry 7th'!BU6,"")) -> 20 | EJ7: =IF(AND($E$3=6),'Marks Entry 6th'!BV6,IF(AND($E$3=7),'Marks Entry 7th'!BV6,"")) -> 20 | EK7: =IF(AND($E$3=6),'Marks Entry 6th'!BW6,IF(AND($E$3=7),'Marks Entry 7th'!BW6,"")) -> 20 | EL7: =IF(AND($E$3=6),'Marks Entry 6th'!BX6,IF(AND($E$3=7),'Marks Entry 7th'!BX6,"")) -> 20 | EM7: =IF(AND($E$3=6),'Marks Entry 6th'!BY6,IF(AND($E$3=7),'Marks Entry 7th'!BY6,"")) -> 20 | EN7: =IF(AND(EI7="",EJ7="",EK7="",EL7="",EM7=""),"",SUM(EI7:EM7)) -> 100 | ES7: =IF(AND($E$3=6),'Marks Entry 6th'!BZ6,IF(AND($E$3=7),'Marks Entry 7th'!BZ6,"")) -> 20 | ET7: =IF(AND($E$3=6),'Marks Entry 6th'!CA6,IF(AND($E$3=7),'Marks Entry 7th'!CA6,"")) -> 20 | EU7: =IF(AND($E$3=6),'Marks Entry 6th'!CB6,IF(AND($E$3=7),'Marks Entry 7th'!CB6,"")) -> 20 | EV7: =IF(AND($E$3=6),'Marks Entry 6th'!CC6,IF(AND($E$3=7),'Marks Entry 7th'!CC6,"")) -> 20 | EW7: =IF(AND($E$3=6),'Marks Entry 6th'!CD6,IF(AND($E$3=7),'Marks Entry 7th'!CD6,"")) -> 20 | EX7: =IF(AND(ES7="",ET7="",EU7="",EV7="",EW7=""),"",SUM(ES7:EW7)) -> 100 | FC7: =IF(AND($E$3=6),'Marks Entry 6th'!CE6,IF(AND($E$3=7),'Marks Entry 7th'!CE6,"")) -> 20 | FD7: =IF(AND($E$3=6),'Marks Entry 6th'!CF6,IF(AND($E$3=7),'Marks Entry 7th'!CF6,"")) -> 20 | FE7: =IF(AND($E$3=6),'Marks Entry 6th'!CG6,IF(AND($E$3=7),'Marks Entry 7th'!CG6,"")) -> 20 | FF7: =IF(AND($E$3=6),'Marks Entry 6th'!CH6,IF(AND($E$3=7),'Marks Entry 7th'!CH6,"")) -> 20 | FG7: =IF(AND($E$3=6),'Marks Entry 6th'!CI6,IF(AND($E$3=7),'Marks Entry 7th'!CI6,"")) -> 20 | FH7: =IF(AND(FC7="",FD7="",FE7="",FF7="",FG7=""),"",SUM(FC7:FG7)) -> 100 | FM7: =IF(AND('Marks Entry 6th'!CJ6="",'Marks Entry 7th'!CJ6=""),"",IF(AND($E$3=6),'Marks Entry 6th'!CJ6,IF(AND($E$3=7),'Marks Entry 7th'!CJ6,""))) -> 50 | FN7: =IF(AND('Marks Entry 6th'!CK6="",'Marks Entry 7th'!CK6=""),"",IF(AND($E$3=6),'Marks Entry 6th'!CK6,IF(AND($E$3=7),'Marks Entry 7th'!CK6,""))) -> 50 | FO7: =IF(AND(FM7="",FN7=""),"",SUM(FM7:FN7)) -> 100 | FQ7: =IF(AND('Marks Entry 6th'!CL6="",'Marks Entry 7th'!CL6=""),"",IF(AND($E$3=6),'Marks Entry 6th'!CL6,IF(AND($E$3=7),'Marks Entry 7th'!CL6,""))) -> 50 | FR7: =IF(AND('Marks Entry 6th'!CM6="",'Marks Entry 7th'!CM6=""),"",IF(AND($E$3=6),'Marks Entry 6th'!CM6,IF(AND($E$3=7),'Marks Entry 7th'!CM6,""))) -> 50 | FS7: =IF(AND(FQ7="",FR7=""),"",SUM(FQ7:FR7)) -> 100 | FU7: =IF($E$3="","",SUM(Z7,AU7,BQ7,CL7,DG7,EB7)) -> 1200 | FZ7: 0 | GA7: =IF(AND($E$3=6),'Marks Entry 6th'!CN6,IF(AND($E$3=7),'Marks Entry 7th'!CN6,"")) -> 350
A8: 1 | B8: =IF(OR(GK8=0,GK8=""),"",IF(AND($E$3=6),'Marks Entry 6th'!I7,IF(AND($E$3=7),'Marks Entry 7th'!I7,""))) -> 701 | C8: =IF(OR(B8=0,B8=""),"",IF(AND($E$3=6,'Marks Entry 6th'!B7=""),"",IF(AND($E$3=7,'Marks Entry 7th'!B7=""),"",IF(AND($E$3=6,'Marks Entry 6th'!B7),'Marks Entry 6th'!B7,IF(AND($E$3=7),'Marks Entry 7th'!B7,""))))) -> 7 | D8: =IF(OR(B8=0,B8=""),"",IF(AND($E$3=6,'Marks Entry 6th'!C7=""),"",IF(AND($E$3=7,'Marks Entry 7th'!C7=""),"",IF(AND($E$3=6),'Marks Entry 6th'!C7,IF(AND($E$3=7),'Marks Entry 7th'!C7,""))))) -> A | E8: =IF(OR(B8=0,B8=""),"",IF(AND($E$3=6,'Marks Entry 6th'!E7=""),"",IF(AND($E$3=7,'Marks Entry 7th'!E7=""),"",IF(AND($E$3=6),'Marks Entry 6th'!E7,IF(AND($E$3=7),'Marks Entry 7th'!E7,""))))) -> 28-10-2014 | F8: =IF(OR(B8=0,B8=""),"",IF(AND($E$3=6,'Marks Entry 6th'!D7=""),"",IF(AND($E$3=7,'Marks Entry 7th'!D7=""),"",IF(AND($E$3=6),'Marks Entry 6th'!D7,IF(AND($E$3=7),'Marks Entry 7th'!D7,""))))) -> 936 | G8: =IF(OR(B8=0,B8=""),"",IF(AND($E$3=6,'Marks Entry 6th'!F7=""),"",IF(AND($E$3=7,'Marks Entry 7th'!F7=""),"",IF(AND($E$3=6),UPPER('Marks Entry 6th'!F7),IF(AND($E$3=7),UPPER('Marks Entry 7th'!F7),""))))) -> AAKIFA BANO | H8: =IF(OR(B8=0,B8=""),"",IF(AND($E$3=6,'Marks Entry 6th'!G7=""),"",IF(AND($E$3=7,'Marks Entry 7th'!G7=""),"",IF(AND($E$3=6),UPPER('Marks Entry 6th'!G7),IF(AND($E$3=7),UPPER('Marks Entry 7th'!G7),""))))) -> SHABBIR MOHAMMAD | I8: =IF(OR(B8=0,B8=""),"",IF(AND($E$3=6,'Marks Entry 6th'!H7=""),"",IF(AND($E$3=7,'Marks Entry 7th'!H7=""),"",IF(AND($E$3=6),UPPER('Marks Entry 6th'!H7),IF(AND($E$3=7),UPPER('Marks Entry 7th'!H7),""))))) -> HEENA KOUSER | J8: =IF(OR(B8=0,B8=""),"",IF(AND($E$3=6,'Marks Entry 6th'!J7=""),"",IF(AND($E$3=7,'Marks Entry 7th'!J7=""),"",IF(AND($E$3=6),'Marks Entry 6th'!J7,IF(AND($E$3=7),'Marks Entry 7th'!J7,""))))) -> F | K8: =IF(OR(B8=0,B8=""),"",IF(AND($E$3=6,'Marks Entry 6th'!K7=""),"",IF(AND($E$3=7,'Marks Entry 7th'!K7=""),"",IF(AND($E$3=6),'Marks Entry 6th'!K7,IF(AND($E$3=7),'Marks Entry 7th'!K7,""))))) -> OBC | L8: =IF(OR($E8="",$G8=""),"",IF(AND($E$3=6),'Marks Entry 6th'!L7,IF(AND($E$3=7),'Marks Entry 7th'!L7,""))) -> 3 | M8: =IF(OR($E8="",$G8=""),"",IF(AND($E$3=6),'Marks Entry 6th'!M7,IF(AND($E$3=7),'Marks Entry 7th'!M7,""))) -> 4 | N8: =IF(OR($E8="",$G8=""),"",IF(AND($E$3=6),'Marks Entry 6th'!N7,IF(AND($E$3=7),'Marks Entry 7th'!N7,""))) -> 5 | O8: =IF(OR($E8="",$G8=""),"",IF(AND($E$3=6),'Marks Entry 6th'!O7,IF(AND($E$3=7),'Marks Entry 7th'!O7,""))) -> 3 | P8: =IF(OR($E8="",$G8=""),"",IF(AND($E$3=6),'Marks Entry 6th'!P7,IF(AND($E$3=7),'Marks Entry 7th'!P7,""))) -> 3 | Q8: =IF(OR($E8="",$G8=""),"",IF(AND($E$3=6),'Marks Entry 6th'!Q7,IF(AND($E$3=7),'Marks Entry 7th'!Q7,""))) -> 3 | R8: =IF(AND(L8="",M8="",N8="",O8="",P8="",Q8=""),"",SUM(L8:Q8)) -> 21 | S8: =IF(OR($E8="",$G8=""),"",IF(AND($E$3=6),'Marks Entry 6th'!R7,IF(AND($E$3=7),'Marks Entry 7th'!R7,""))) -> 39 | T8: =IF(OR($E8="",$G8=""),"",IF(AND($E$3=6),'Marks Entry 6th'!S7,IF(AND($E$3=7),'Marks Entry 7th'!S7,""))) -> 10 | U8: =IF(AND(S8="",T8=""),"",IF(AND(S8="NA",T8="NA"),"NA",IF(AND(S8="AB",T8="AB"),"AB",IF(AND(S8="ML",T8="ML"),"ML",SUM(S8:T8))))) -> 49 | V8: =IF(AND(R8="NA",U8="NA"),"NA",IF(AND(R8="AB",U8="AB"),"AB",IF(AND(R8="ML",U8="ML"),"ML",SUM(R8,U8)))) -> 70 | W8: =IF(OR($E8="",$G8=""),"",IF(AND($E$3=6),'Marks Entry 6th'!T7,IF(AND($E$3=7),'Marks Entry 7th'!T7,""))) -> 39 | X8: =IF(OR($E8="",$G8=""),"",IF(AND($E$3=6),'Marks Entry 6th'!U7,IF(AND($E$3=7),'Marks Entry 7th'!U7,""))) -> 10 | Y8: =IF(AND(W8="",X8=""),"",IF(AND(W8="AB",X8="AB"),"AB",IF(AND(W8="ML",X8="ML"),"ML",SUM(W8:X8)))) -> 49 | Z8: =IF(Y8="","",IF(AND(V8="AB",Y8="AB"),"AB",SUM(V8,Y8))) -> 119 | AA8: =COUNTIF(L8:O8,"NA")*5+(COUNTIF(L8:O8,"ML")*5)+(COUNTIF(S8,"ML")*$S$7)+(COUNTIF(W8,"ML")*$W$7) -> 0 | AB8: =IF(OR(B8="NSO",B8=0,B8=""),"",IF(AND(L8="",N8="",S8="",W8=""),"",IF(AND(N8="",L8="",M8="",O8=""),20-AA8,IF(AND(S8="",T8=""),$U$7-AA8,IF(AND(W8="",X8=""),$Y$7-AA8,$Z$7-AA8))))) -> 200 | AC8: =IF(AND(OR(L8="ab",L8="ml"),OR(N8="ab",N8="ml"),OR(S8="ab",S8="ml")),"AB",IF(AND(OR(L8="ab",L8="ml"),OR(S8="ab",S8="ml"),OR(W8="ab",W8="ml")),"AB",IF(AND(OR(N8="ab",N8="ml"),OR(S8="ab",S8="ml"),OR(W8="ab",W8="ml")),"AB",""))) ->  | AD8: =IF(OR(B8="NSO",B8="",W8=""),"",IF(OR(AC8="AB",W8="ab"),"AB",IF(W8="ML","RE",IF(AND(Z8>=36%*AB8,W8>=$W$7*20%),"P",IF(AND(Z8>=34%*AB8,W8>=$W$7*20%),"G2",IF(AND(Z8>=31%*AB8,W8>=$W$7*20%),"G1",IF(Z8>=25%*AB8,"S","F"))))))) -> P | AE8: =IF(OR(AD8="",AD8=0,AD8="S",AD8="RE",AD8="F",AD8="AB"),AD8,IF(Z8>=75%*AB8,"D",IF(Z8>=60%*AB8,"I",IF(Z8>=48%*AB8,"II",IF(Z8>=36%*AB8,"III",AD8))))) -> II | AF8: =IF(Z8="","",IF(OR(AD8="",AD8=0,AD8="S",AD8="RE",AD8="F",AD8="AB"),"",IF(Z8>=86%*AB8,"A",IF(Z8>=71%*AB8,"B",IF(Z8>=51%*AB8,"C",IF(Z8>=31%*AB8,"D","E")))))) -> C | AG8: =IF(OR($E8="",$G8=""),"",IF(AND($E$3=6),'Marks Entry 6th'!V7,IF(AND($E$3=7),'Marks Entry 7th'!V7,""))) -> 1 | AH8: =IF(OR($E8="",$G8=""),"",IF(AND($E$3=6),'Marks Entry 6th'!W7,IF(AND($E$3=7),'Marks Entry 7th'!W7,""))) -> 5 | AI8: =IF(OR($E8="",$G8=""),"",IF(AND($E$3=6),'Marks Entry 6th'!X7,IF(AND($E$3=7),'Marks Entry 7th'!X7,""))) -> 2 | AJ8: =IF(OR($E8="",$G8=""),"",IF(AND($E$3=6),'Marks Entry 6th'!Y7,IF(AND($E$3=7),'Marks Entry 7th'!Y7,""))) -> 5 | AK8: =IF(OR($E8="",$G8=""),"",IF(AND($E$3=6),'Marks Entry 6th'!Z7,IF(AND($E$3=7),'Marks Entry 7th'!Z7,""))) -> 4 | AL8: =IF(OR($E8="",$G8=""),"",IF(AND($E$3=6),'Marks Entry 6th'!AA7,IF(AND($E$3=7),'Marks Entry 7th'!AA7,""))) -> 5 | AM8: =IF(AND(AG8="",AH8="",AI8="",AJ8="",AK8="",AL8=""),"",SUM(AG8:AL8)) -> 22 | AN8: =IF(OR($E8="",$G8=""),"",IF(AND($E$3=6),'Marks Entry 6th'!AB7,IF(AND($E$3=7),'Marks Entry 7th'!AB7,""))) -> 39 | AO8: =IF(OR($E8="",$G8=""),"",IF(AND($E$3=6),'Marks Entry 6th'!AC7,IF(AND($E$3=7),'Marks Entry 7th'!AC7,""))) -> 11 | AP8: =IF(AND(AN8="",AO8=""),"",IF(AND(AN8="NA",AO8="NA"),"NA",IF(AND(AN8="AB",AO8="AB"),"AB",IF(AND(AN8="ML",AO8="ML"),"ML",SUM(AN8:AO8))))) -> 50 | AQ8: =IF(AND(AM8="NA",AP8="NA"),"NA",IF(AND(AM8="AB",AP8="AB"),"AB",IF(AND(AM8="ML",AP8="ML"),"ML",SUM(AM8,AP8)))) -> 72 | AR8: =IF(OR($E8="",$G8=""),"",IF(AND($E$3=6),'Marks Entry 6th'!AD7,IF(AND($E$3=7),'Marks Entry 7th'!AD7,""))) -> 50 | AS8: =IF(OR($E8="",$G8=""),"",IF(AND($E$3=6),'Marks Entry 6th'!AE7,IF(AND($E$3=7),'Marks Entry 7th'!AE7,""))) -> 10 | AT8: =IF(AND(AR8="",AS8=""),"",IF(AND(AR8="NA",AS8="NA"),"NA",IF(AND(AR8="AB",AS8="AB"),"AB",IF(AND(AR8="ML",AS8="ML"),"ML",SUM(AR8:AS8))))) -> 60 | AU8: =IF(AT8="","",IF(AND(AQ8="AB",AT8="AB"),"AB",SUM(AQ8,AT8))) -> 132 | AV8: =COUNTIF(AG8:AJ8,"NA")*5+(COUNTIF(AG8:AJ8,"ML")*5)+(COUNTIF(AN8,"ML")*$AN$7)+(COUNTIF(AR8,"ML")*$AR$7) -> 0 | AW8: =IF(OR(B8="NSO",B8=0,B8=""),"",IF(AND(AG8="",AI8="",AN8="",AR8=""),"",IF(AND(AI8="",AN8="",AH8="",AJ8=""),20-AV8,IF(AND(AN8="",AO8=""),$AP$7-AV8,IF(AND(AR8="",AS8=""),$AT$7-AV8,$AU$7-AV8))))) -> 200 | AX8: =IF(AND(OR(AG8="ab",AG8="ml"),OR(AI8="ab",AI8="ml"),OR(AN8="ab",AN8="ml")),"AB",IF(AND(OR(AG8="ab",AG8="ml"),OR(AN8="ab",AN8="ml"),OR(AR8="ab",AR8="ml")),"AB",IF(AND(OR(AI8="ab",AI8="ml"),OR(AN8="ab",AN8="ml"),OR(AR8="ab",AR8="ml")),"AB",""))) ->  | AY8: =IF(OR(B8="NSO",B8="",AR8=""),"",IF(OR(AX8="AB",AR8="ab"),"AB",IF(AR8="ML","RE",IF(AND(AU8>=36%*AW8,AR8>=$AR$7*20%),"P",IF(AND(AU8>=34%*AW8,AR8>=$AR$7*20%),"G2",IF(AND(AU8>=31%*AW8,AR8>=$AR$7*20%),"G1",IF(AU8>=25%*AW8,"S","F"))))))) -> P | AZ8: =IF(OR(AY8="",AY8=0,AY8="S",AY8="RE",AY8="F",AY8="AB"),AY8,IF(AU8>=75%*AW8,"D",IF(AU8>=60%*AW8,"I",IF(AU8>=48%*AW8,"II",IF(AU8>=36%*AW8,"III",AY8))))) -> I | BA8: =IF(AU8="","",IF(OR(AY8="",AY8=0,AY8="S",AY8="RE",AY8="F",AY8="AB"),"",IF(AU8>=86%*AW8,"A",IF(AU8>=71%*AW8,"B",IF(AU8>=51%*AW8,"C",IF(AU8>=31%*AW8,"D","E")))))) -> C | BB8: =IF(OR($E8="",$G8=""),"",IF(AND($E$3=6),'Marks Entry 6th'!AF7,IF(AND($E$3=7),'Marks Entry 7th'!AF7,""))) -> संस्कृत (71) | BC8: =IF(OR($E8="",$G8=""),"",IF(AND($E$3=6),'Marks Entry 6th'!AG7,IF(AND($E$3=7),'Marks Entry 7th'!AG7,""))) -> 4 | BD8: =IF(OR($E8="",$G8=""),"",IF(AND($E$3=6),'Marks Entry 6th'!AH7,IF(AND($E$3=7),'Marks Entry 7th'!AH7,""))) -> 4 | BE8: =IF(OR($E8="",$G8=""),"",IF(AND($E$3=6),'Marks Entry 6th'!AI7,IF(AND($E$3=7),'Marks Entry 7th'!AI7,""))) -> 4 | BF8: =IF(OR($E8="",$G8=""),"",IF(AND($E$3=6),'Marks Entry 6th'!AJ7,IF(AND($E$3=7),'Marks Entry 7th'!AJ7,""))) -> 4 | BG8: =IF(OR($E8="",$G8=""),"",IF(AND($E$3=6),'Marks Entry 6th'!AK7,IF(AND($E$3=7),'Marks Entry 7th'!AK7,""))) -> 4 | BH8: =IF(OR($E8="",$G8=""),"",IF(AND($E$3=6),'Marks Entry 6th'!AL7,IF(AND($E$3=7),'Marks Entry 7th'!AL7,""))) -> 5 | BI8: =IF(AND(BC8="",BD8="",BE8="",BF8="",BG8="",BH8=""),"",SUM(BC8:BH8)) -> 25 | BJ8: =IF(OR($E8="",$G8=""),"",IF(AND($E$3=6),'Marks Entry 6th'!AM7,IF(AND($E$3=7),'Marks Entry 7th'!AM7,""))) -> 45 | BK8: =IF(OR($E8="",$G8=""),"",IF(AND($E$3=6),'Marks Entry 6th'!AN7,IF(AND($E$3=7),'Marks Entry 7th'!AN7,""))) -> 14 | BL8: =IF(AND(BJ8="",BK8=""),"",IF(AND(BJ8="NA",BK8="NA"),"NA",IF(AND(BJ8="AB",BK8="AB"),"AB",IF(AND(BJ8="ML",BK8="ML"),"ML",SUM(BJ8:BK8))))) -> 59 | BM8: =IF(AND(BI8="NA",BL8="NA"),"NA",IF(AND(BI8="AB",BL8="AB"),"AB",SUM(BI8,BL8))) -> 84 | BN8: =IF(OR($E8="",$G8=""),"",IF(AND($E$3=6),'Marks Entry 6th'!AO7,IF(AND($E$3=7),'Marks Entry 7th'!AO7,""))) -> 45 | BO8: =IF(OR($E8="",$G8=""),"",IF(AND($E$3=6),'Marks Entry 6th'!AP7,IF(AND($E$3=7),'Marks Entry 7th'!AP7,""))) -> 10 | BP8: =IF(AND(BN8="",BO8=""),"",IF(AND(BN8="NA",BO8="NA"),"NA",IF(AND(BN8="AB",BO8="AB"),"AB",IF(AND(BN8="ML",BO8="ML"),"ML",SUM(BN8:BO8))))) -> 55 | BQ8: =IF(BP8="","",IF(AND(BM8="AB",BP8="AB"),"AB",SUM(BM8,BP8))) -> 139 | BR8: =COUNTIF(BC8:BF8,"NA")*5+(COUNTIF(BC8:BF8,"ML")*5)+(COUNTIF(BJ8,"ML")*$BJ$7)+(COUNTIF(BN8,"ML")*$BN$7) -> 0 | BS8: =IF(OR($B8="NSO",$B8=0,$B8=""),"",IF(AND(BC8="",BE8="",BJ8="",BN8=""),"",IF(AND(BE8="",BC8="",BD8="",BF8=""),20-BR8,IF(AND(BJ8="",BK8=""),$BL$7-BR8,IF(AND(BN8="",BO8=""),$BP$7-BR8,$BQ$7-BR8))))) -> 200 | BT8: =IF(AND(OR(BC8="ab",BC8="ml"),OR(BE8="ab",BE8="ml"),OR(BJ8="ab",BJ8="ml")),"AB",IF(AND(OR(BC8="ab",BC8="ml"),OR(BJ8="ab",BJ8="ml"),OR(BN8="ab",BN8="ml")),"AB",IF(AND(OR(BE8="ab",BE8="ml"),OR(BJ8="ab",BJ8="ml"),OR(BN8="ab",BN8="ml")),"AB",""))) ->  | BU8: =IF(OR($B8="NSO",$B8="",BN8=""),"",IF(OR(BT8="AB",BN8="ab"),"AB",IF(BN8="ML","RE",IF(AND(BQ8>=36%*BS8,BN8>=$BN$7*20%),"P",IF(AND(BQ8>=34%*BS8,BN8>=$BN$7*20%),"G2",IF(AND(BQ8>=31%*BS8,BN8>=$BN$7*20%),"G1",IF(BQ8>=25%*BS8,"S","F"))))))) -> P | BV8: =IF(OR(BU8="",BU8=0,BU8="S",BU8="RE",BU8="F",BU8="AB"),BU8,IF(BQ8>=75%*BS8,"D",IF(BQ8>=60%*BS8,"I",IF(BQ8>=48%*BS8,"II",IF(BQ8>=36%*BS8,"III",BU8))))) -> I | BW8: =IF(BQ8="","",IF(OR(BU8="",BU8=0,BU8="S",BU8="RE",BU8="F",BU8="AB"),"",IF(BQ8>=86%*BS8,"A",IF(BQ8>=71%*BS8,"B",IF(BQ8>=51%*BS8,"C",IF(BQ8>=31%*BS8,"D","E")))))) -> C | BX8: =IF(OR($E8="",$G8=""),"",IF(AND($E$3=6),'Marks Entry 6th'!AQ7,IF(AND($E$3=7),'Marks Entry 7th'!AQ7,""))) -> 5 | BY8: =IF(OR($E8="",$G8=""),"",IF(AND($E$3=6),'Marks Entry 6th'!AR7,IF(AND($E$3=7),'Marks Entry 7th'!AR7,""))) -> 5 | BZ8: =IF(OR($E8="",$G8=""),"",IF(AND($E$3=6),'Marks Entry 6th'!AS7,IF(AND($E$3=7),'Marks Entry 7th'!AS7,""))) -> 5 | CA8: =IF(OR($E8="",$G8=""),"",IF(AND($E$3=6),'Marks Entry 6th'!AT7,IF(AND($E$3=7),'Marks Entry 7th'!AT7,""))) -> 5 | CB8: =IF(OR($E8="",$G8=""),"",IF(AND($E$3=6),'Marks Entry 6th'!AU7,IF(AND($E$3=7),'Marks Entry 7th'!AU7,""))) -> 5 | CC8: =IF(OR($E8="",$G8=""),"",IF(AND($E$3=6),'Marks Entry 6th'!AV7,IF(AND($E$3=7),'Marks Entry 7th'!AV7,""))) -> 5 | CD8: =IF(AND(BX8="",BY8="",BZ8="",CA8="",CB8="",CC8=""),"",SUM(BX8:CC8)) -> 30 | CE8: =IF(OR($E8="",$G8=""),"",IF(AND($E$3=6),'Marks Entry 6th'!AW7,IF(AND($E$3=7),'Marks Entry 7th'!AW7,""))) -> 31 | CF8: =IF(OR($E8="",$G8=""),"",IF(AND($E$3=6),'Marks Entry 6th'!AX7,IF(AND($E$3=7),'Marks Entry 7th'!AX7,""))) -> 10 | CG8: =IF(AND(CE8="",CF8=""),"",IF(AND(CE8="NA",CF8="NA"),"NA",IF(AND(CE8="AB",CF8="AB"),"AB",IF(AND(CE8="ML",CF8="ML"),"ML",SUM(CE8:CF8))))) -> 41 | CH8: =IF(AND(CD8="NA",CG8="NA"),"NA",IF(AND(CD8="AB",CG8="AB"),"AB",SUM(CD8,CG8))) -> 71 | CI8: =IF(OR($E8="",$G8=""),"",IF(AND($E$3=6),'Marks Entry 6th'!AY7,IF(AND($E$3=7),'Marks Entry 7th'!AY7,""))) -> 31 | CJ8: =IF(OR($E8="",$G8=""),"",IF(AND($E$3=6),'Marks Entry 6th'!AZ7,IF(AND($E$3=7),'Marks Entry 7th'!AZ7,""))) -> 4 | CK8: =IF(AND(CI8="",CJ8=""),"",IF(AND(CI8="NA",CJ8="NA"),"NA",IF(AND(CI8="AB",CJ8="AB"),"AB",IF(AND(CI8="ML",CJ8="ML"),"ML",SUM(CI8:CJ8))))) -> 35 | CL8: =IF(CK8="","",IF(AND(CH8="AB",CK8="AB"),"AB",SUM(CH8,CK8))) -> 106 | CM8: =COUNTIF(BX8:CA8,"NA")*5+(COUNTIF(BX8:CA8,"ML")*5)+(COUNTIF(CE8,"ML")*$CE$7)+(COUNTIF(CI8,"ML")*$CI$7) -> 0 | CN8: =IF(OR($B8="NSO",$B8=0,$B8=""),"",IF(AND(BX8="",BZ8="",CE8="",CI8=""),"",IF(AND(BZ8="",BX8="",BY8="",CA8=""),20-CM8,IF(AND(CE8="",CF8=""),$CG$7-CM8,IF(AND(CI8="",CJ8=""),$CK$7-CM8,$CL$7-CM8))))) -> 200 | CO8: =IF(AND(OR(BX8="ab",BX8="ml"),OR(BZ8="ab",BZ8="ml"),OR(CE8="ab",CE8="ml")),"AB",IF(AND(OR(BX8="ab",BX8="ml"),OR(CE8="ab",CE8="ml"),OR(CI8="ab",CI8="ml")),"AB",IF(AND(OR(BZ8="ab",BZ8="ml"),OR(CE8="ab",CE8="ml"),OR(CI8="ab",CI8="ml")),"AB",""))) ->  | CP8: =IF(OR($B8="NSO",$B8="",CI8=""),"",IF(OR(CO8="AB",CI8="ab"),"AB",IF(CI8="ML","RE",IF(AND(CL8>=36%*CN8,CI8>=$CI$7*20%),"P",IF(AND(CL8>=34%*CN8,CI8>=$CI$7*20%),"G2",IF(AND(CL8>=31%*CN8,CI8>=$CI$7*20%),"G1",IF(CL8>=25%*CN8,"S","F"))))))) -> P | CQ8: =IF(OR(CP8="",CP8=0,CP8="S",CP8="RE",CP8="F",CP8="AB"),CP8,IF(CL8>=75%*CN8,"D",IF(CL8>=60%*CN8,"I",IF(CL8>=48%*CN8,"II",IF(CL8>=36%*CN8,"III",CP8))))) -> II | CR8: =IF(CL8="","",IF(OR(CP8="",CP8=0,CP8="S",CP8="RE",CP8="F",CP8="AB"),"",IF(CL8>=86%*CN8,"A",IF(CL8>=71%*CN8,"B",IF(CL8>=51%*CN8,"C",IF(CL8>=31%*CN8,"D","E")))))) -> C | CS8: =IF(OR($E8="",$G8=""),"",IF(AND($E$3=6),'Marks Entry 6th'!BA7,IF(AND($E$3=7),'Marks Entry 7th'!BA7,""))) -> 4 | CT8: =IF(OR($E8="",$G8=""),"",IF(AND($E$3=6),'Marks Entry 6th'!BB7,IF(AND($E$3=7),'Marks Entry 7th'!BB7,""))) -> 5 | CU8: =IF(OR($E8="",$G8=""),"",IF(AND($E$3=6),'Marks Entry 6th'!BC7,IF(AND($E$3=7),'Marks Entry 7th'!BC7,""))) -> 4 | CV8: =IF(OR($E8="",$G8=""),"",IF(AND($E$3=6),'Marks Entry 6th'!BD7,IF(AND($E$3=7),'Marks Entry 7th'!BD7,""))) -> 4 | CW8: =IF(OR($E8="",$G8=""),"",IF(AND($E$3=6),'Marks Entry 6th'!BE7,IF(AND($E$3=7),'Marks Entry 7th'!BE7,""))) -> 4 | CX8: =IF(OR($E8="",$G8=""),"",IF(AND($E$3=6),'Marks Entry 6th'!BF7,IF(AND($E$3=7),'Marks Entry 7th'!BF7,""))) -> 4 | CY8: =IF(AND(CS8="",CT8="",CU8="",CV8="",CW8="",CX8=""),"",SUM(CS8:CX8)) -> 25 | CZ8: =IF(OR($E8="",$G8=""),"",IF(AND($E$3=6),'Marks Entry 6th'!BG7,IF(AND($E$3=7),'Marks Entry 7th'!BG7,""))) -> 22 | DA8: =IF(OR($E8="",$G8=""),"",IF(AND($E$3=6),'Marks Entry 6th'!BH7,IF(AND($E$3=7),'Marks Entry 7th'!BH7,""))) -> 8 | DB8: =IF(AND(CZ8="",DA8=""),"",IF(AND(CZ8="NA",DA8="NA"),"NA",IF(AND(CZ8="AB",DA8="AB"),"AB",IF(AND(CZ8="ML",DA8="ML"),"ML",SUM(CZ8:DA8))))) -> 30 | DC8: =IF(AND(CY8="NA",DB8="NA"),"NA",IF(AND(CY8="AB",DB8="AB"),"AB",SUM(CY8,DB8))) -> 55 | DD8: =IF(OR($E8="",$G8=""),"",IF(AND($E$3=6),'Marks Entry 6th'!BI7,IF(AND($E$3=7),'Marks Entry 7th'!BI7,""))) -> 45 | DE8: =IF(OR($E8="",$G8=""),"",IF(AND($E$3=6),'Marks Entry 6th'!BJ7,IF(AND($E$3=7),'Marks Entry 7th'!BJ7,""))) -> 4 | DF8: =IF(AND(DD8="",DE8=""),"",IF(AND(DD8="NA",DE8="NA"),"NA",IF(AND(DD8="AB",DE8="AB"),"AB",IF(AND(DD8="ML",DE8="ML"),"ML",SUM(DD8:DE8))))) -> 49 | DG8: =IF(DF8="","",IF(AND(DC8="AB",DF8="AB"),"AB",SUM(DC8,DF8))) -> 104 | DH8: =COUNTIF(CS8:CV8,"NA")*5+(COUNTIF(CS8:CV8,"ML")*5)+(COUNTIF(CZ8,"ML")*$CZ$7)+(COUNTIF(DD8,"ML")*$DD$7) -> 0 | DI8: =IF(OR($B8="NSO",$B8=0,$B8=""),"",IF(AND(CS8="",CU8="",CZ8="",DD8=""),"",IF(AND(CU8="",CS8="",CT8="",CV8=""),20-DH8,IF(AND(CZ8="",DA8=""),$DB$7-DH8,IF(AND(DD8="",DE8=""),$DF$7-DH8,$DG$7-DH8))))) -> 200 | DJ8: =IF(AND(OR(CS8="ab",CS8="ml"),OR(CU8="ab",CU8="ml"),OR(CZ8="ab",CZ8="ml")),"AB",IF(AND(OR(CS8="ab",CS8="ml"),OR(CZ8="ab",CZ8="ml"),OR(DD8="ab",DD8="ml")),"AB",IF(AND(OR(CU8="ab",CU8="ml"),OR(CZ8="ab",CZ8="ml"),OR(DD8="ab",DD8="ml")),"AB",""))) ->  | DK8: =IF(OR($B8="NSO",$B8="",DD8=""),"",IF(OR(DJ8="AB",DD8="ab"),"AB",IF(DD8="ML","RE",IF(AND(DG8>=36%*DI8,DD8>=$DD$7*20%),"P",IF(AND(DG8>=34%*DI8,DD8>=$DD$7*20%),"G2",IF(AND(DG8>=31%*DI8,DD8>=$DD$7*20%),"G1",IF(DG8>=25%*DI8,"S","F"))))))) -> P | DL8: =IF(OR(DK8="",DK8=0,DK8="S",DK8="RE",DK8="F",DK8="AB"),DK8,IF(DG8>=75%*DI8,"D",IF(DG8>=60%*DI8,"I",IF(DG8>=48%*DI8,"II",IF(DG8>=36%*DI8,"III",DK8))))) -> II | DM8: =IF(DG8="","",IF(OR(DK8="",DK8=0,DK8="S",DK8="RE",DK8="F",DK8="AB"),"",IF(DG8>=86%*DI8,"A",IF(DG8>=71%*DI8,"B",IF(DG8>=51%*DI8,"C",IF(DG8>=31%*DI8,"D","E")))))) -> C | DN8: =IF(OR($E8="",$G8=""),"",IF(AND($E$3=6),'Marks Entry 6th'!BK7,IF(AND($E$3=7),'Marks Entry 7th'!BK7,""))) -> 4 | DO8: =IF(OR($E8="",$G8=""),"",IF(AND($E$3=6),'Marks Entry 6th'!BL7,IF(AND($E$3=7),'Marks Entry 7th'!BL7,""))) -> 4 | DP8: =IF(OR($E8="",$G8=""),"",IF(AND($E$3=6),'Marks Entry 6th'!BM7,IF(AND($E$3=7),'Marks Entry 7th'!BM7,""))) -> 4 | DQ8: =IF(OR($E8="",$G8=""),"",IF(AND($E$3=6),'Marks Entry 6th'!BN7,IF(AND($E$3=7),'Marks Entry 7th'!BN7,""))) -> 4 | DR8: =IF(OR($E8="",$G8=""),"",IF(AND($E$3=6),'Marks Entry 6th'!BO7,IF(AND($E$3=7),'Marks Entry 7th'!BO7,""))) -> 5 | DS8: =IF(OR($E8="",$G8=""),"",IF(AND($E$3=6),'Marks Entry 6th'!BP7,IF(AND($E$3=7),'Marks Entry 7th'!BP7,""))) -> 5 | DT8: =IF(AND(DN8="",DO8="",DP8="",DQ8="",DR8="",DS8=""),"",SUM(DN8:DS8)) -> 26 | DU8: =IF(OR($E8="",$G8=""),"",IF(AND($E$3=6),'Marks Entry 6th'!BQ7,IF(AND($E$3=7),'Marks Entry 7th'!BQ7,""))) -> 45 | DV8: =IF(OR($E8="",$G8=""),"",IF(AND($E$3=6),'Marks Entry 6th'!BR7,IF(AND($E$3=7),'Marks Entry 7th'!BR7,""))) -> 10 | DW8: =IF(AND(DU8="",DV8=""),"",IF(AND(DU8="NA",DV8="NA"),"NA",IF(AND(DU8="AB",DV8="AB"),"AB",IF(AND(DU8="ML",DV8="ML"),"ML",SUM(DU8:DV8))))) -> 55 | DX8: =IF(AND(DT8="NA",DW8="NA"),"NA",IF(AND(DT8="AB",DW8="AB"),"AB",SUM(DT8,DW8))) -> 81 | DY8: =IF(OR($E8="",$G8=""),"",IF(AND($E$3=6),'Marks Entry 6th'!BS7,IF(AND($E$3=7),'Marks Entry 7th'!BS7,""))) -> 62 | DZ8: =IF(OR($E8="",$G8=""),"",IF(AND($E$3=6),'Marks Entry 6th'!BT7,IF(AND($E$3=7),'Marks Entry 7th'!BT7,""))) -> 17 | EA8: =IF(AND(DY8="",DZ8=""),"",IF(AND(DY8="NA",DZ8="NA"),"NA",IF(AND(DY8="AB",DZ8="AB"),"AB",IF(AND(DY8="ML",DZ8="ML"),"ML",SUM(DY8:DZ8))))) -> 79 | EB8: =IF(EA8="","",IF(AND(DX8="AB",EA8="AB"),"AB",SUM(DX8,EA8))) -> 160 | EC8: =COUNTIF(DN8:DQ8,"NA")*5+(COUNTIF(DN8:DQ8,"ML")*5)+(COUNTIF(DU8,"ML")*$DU$7)+(COUNTIF(DY8,"ML")*$DY$7) -> 0 | ED8: =IF(OR($B8="NSO",$B8=0,$B8=""),"",IF(AND(DN8="",DP8="",DU8="",DY8=""),"",IF(AND(DP8="",DN8="",DO8="",DQ8=""),20-EC8,IF(AND(DU8="",DV8=""),$DW$7-EC8,IF(AND(DY8="",DZ8=""),$EA$7-EC8,$EB$7-EC8))))) -> 200 | EE8: =IF(AND(OR(DN8="ab",DN8="ml"),OR(DP8="ab",DP8="ml"),OR(DU8="ab",DU8="ml")),"AB",IF(AND(OR(DN8="ab",DN8="ml"),OR(DU8="ab",DU8="ml"),OR(DY8="ab",DY8="ml")),"AB",IF(AND(OR(DP8="ab",DP8="ml"),OR(DU8="ab",DU8="ml"),OR(DY8="ab",DY8="ml")),"AB",""))) ->  | EF8: =IF(OR($B8="NSO",$B8="",DY8=""),"",IF(OR(EE8="AB",DY8="ab"),"AB",IF(DY8="ML","RE",IF(AND(EB8>=36%*ED8,DY8>=$DY$7*20%),"P",IF(AND(EB8>=34%*ED8,DY8>=$DY$7*20%),"G2",IF(AND(EB8>=31%*ED8,DY8>=$DY$7*20%),"G1",IF(EB8>=25%*ED8,"S","F"))))))) -> P | EG8: =IF(OR(EF8="",EF8=0,EF8="S",EF8="RE",EF8="F",EF8="AB"),EF8,IF(EB8>=75%*ED8,"D",IF(EB8>=60%*ED8,"I",IF(EB8>=48%*ED8,"II",IF(EB8>=36%*ED8,"III",EF8))))) -> D | EH8: =IF(EB8="","",IF(OR(EF8="",EF8=0,EF8="S",EF8="RE",EF8="F",EF8="AB"),"",IF(EB8>=86%*ED8,"A",IF(EB8>=71%*ED8,"B",IF(EB8>=51%*ED8,"C",IF(EB8>=31%*ED8,"D","E")))))) -> B | EI8: =IF(OR($E8="",$G8=""),"",IF(AND($E$3=6),'Marks Entry 6th'!BU7,IF(AND($E$3=7),'Marks Entry 7th'!BU7,""))) -> 18 | EJ8: =IF(OR($E8="",$G8=""),"",IF(AND($E$3=6),'Marks Entry 6th'!BV7,IF(AND($E$3=7),'Marks Entry 7th'!BV7,""))) -> 18 | EK8: =IF(OR($E8="",$G8=""),"",IF(AND($E$3=6),'Marks Entry 6th'!BW7,IF(AND($E$3=7),'Marks Entry 7th'!BW7,""))) -> 15 | EL8: =IF(OR($E8="",$G8=""),"",IF(AND($E$3=6),'Marks Entry 6th'!BX7,IF(AND($E$3=7),'Marks Entry 7th'!BX7,""))) -> 21 | EM8: =IF(OR($E8="",$G8=""),"",IF(AND($E$3=6),'Marks Entry 6th'!BY7,IF(AND($E$3=7),'Marks Entry 7th'!BY7,""))) -> 19 | EN8: =IF(AND(EI8="",EJ8="",EK8="",EL8="",EM8=""),"",SUM(EI8:EM8)) -> 91 | EO8: =COUNTIF(EI8,"ML")*$EI$7+COUNTIF(EJ8,"ML")*$EJ$7+COUNTIF(EK8,"ML")*$EK$7+COUNTIF(EL8,"ML")*$EL$7+COUNTIF(EM8,"ML")*$EM$7 -> 0 | EP8: =IF(OR($B8="NSO",$B8="",EN8="",EN8=0),"",IF(AND(EI8="",EJ8="",EK8="",EL8="",EM8=""),"",IF(AND(EJ8="",EI8=""),$EI$7-EO8,IF(EM8="",($EI$7+$EJ$7)-EO8,$EN$7-EO8)))) -> 100 | EQ8: =IF(OR($B8="NSO",$B8="",EN8="",EN8=0),"",IF(OR(EI8="AB",EK8="AB",EL8="AB",EM8="AB",EJ8="AB"),"AB",IF(EN8>=36%*EP8,"P","S"))) -> P | ER8: =IF(EN8="","",IF(OR(EQ8="",EQ8=0,EQ8="S",EQ8="RE",EQ8="F",EQ8="AB"),"",IF(EN8>=91%*EP8,"A+",IF(EN8>=76%*EP8,"A",IF(EN8>=61%*EP8,"B",IF(EN8>=41%*EP8,"C","D")))))) -> A+ | ES8: =IF(OR($E8="",$G8=""),"",IF(AND($E$3=6),'Marks Entry 6th'!BZ7,IF(AND($E$3=7),'Marks Entry 7th'!BZ7,""))) -> 11 | ET8: =IF(OR($E8="",$G8=""),"",IF(AND($E$3=6),'Marks Entry 6th'!CA7,IF(AND($E$3=7),'Marks Entry 7th'!CA7,""))) -> 15 | EU8: =IF(OR($E8="",$G8=""),"",IF(AND($E$3=6),'Marks Entry 6th'!CB7,IF(AND($E$3=7),'Marks Entry 7th'!CB7,""))) -> 12 | EV8: =IF(OR($E8="",$G8=""),"",IF(AND($E$3=6),'Marks Entry 6th'!CC7,IF(AND($E$3=7),'Marks Entry 7th'!CC7,""))) -> 17 | EW8: =IF(OR($E8="",$G8=""),"",IF(AND($E$3=6),'Marks Entry 6th'!CD7,IF(AND($E$3=7),'Marks Entry 7th'!CD7,""))) -> 20 | EX8: =IF(AND(ES8="",ET8="",EU8="",EV8="",EW8=""),"",SUM(ES8:EW8)) -> 75 | EY8: =COUNTIF(ES8,"ML")*$ES$7+COUNTIF(ET8,"ML")*$ET$7+COUNTIF(EU8,"ML")*$EU$7+COUNTIF(EV8,"ML")*$EV$7+COUNTIF(EW8,"ML")*$EW$7 -> 0 | EZ8: =IF(OR($B8="NSO",$B8="",EX8="",EX8=0),"",IF(AND(ES8="",ET8="",EU8="",EV8="",EW8=""),"",IF(AND(ET8="",ES8=""),$ES$7-EY8,IF(EW8="",($ES$7+$ET$7)-EY8,$EX$7-EY8)))) -> 100 | FA8: =IF(OR($B8="NSO",$B8="",EX8="",EX8=0),"",IF(OR(ES8="AB",EU8="AB",EV8="AB",EW8="AB",ET8="AB"),"AB",IF(EX8>=36%*EZ8,"P","S"))) -> P | FB8: =IF(EX8="","",IF(OR(FA8="",FA8=0,FA8="S",FA8="RE",FA8="F",FA8="AB"),"",IF(EX8>=91%*EZ8,"A+",IF(EX8>=76%*EZ8,"A",IF(EX8>=61%*EZ8,"B",IF(EX8>=41%*EZ8,"C","D")))))) -> B | FC8: =IF(OR($E8="",$G8=""),"",IF(AND($E$3=6),'Marks Entry 6th'!CE7,IF(AND($E$3=7),'Marks Entry 7th'!CE7,""))) -> 16 | FD8: =IF(OR($E8="",$G8=""),"",IF(AND($E$3=6),'Marks Entry 6th'!CF7,IF(AND($E$3=7),'Marks Entry 7th'!CF7,""))) -> 16 | FE8: =IF(OR($E8="",$G8=""),"",IF(AND($E$3=6),'Marks Entry 6th'!CG7,IF(AND($E$3=7),'Marks Entry 7th'!CG7,""))) -> 21 | FF8: =IF(OR($E8="",$G8=""),"",IF(AND($E$3=6),'Marks Entry 6th'!CH7,IF(AND($E$3=7),'Marks Entry 7th'!CH7,""))) -> 21 | FG8: =IF(OR($E8="",$G8=""),"",IF(AND($E$3=6),'Marks Entry 6th'!CI7,IF(AND($E$3=7),'Marks Entry 7th'!CI7,""))) -> 21 | FH8: =IF(AND(FC8="",FD8="",FE8="",FF8="",FG8=""),"",SUM(FC8:FG8)) -> 95 | FI8: =COUNTIF(FC8,"ML")*$FC$7+COUNTIF(FD8,"ML")*$FD$7+COUNTIF(FE8,"ML")*$FE$7+COUNTIF(FF8,"ML")*$FF$7+COUNTIF(FG8,"ML")*$FG$7 -> 0 | FJ8: =IF(OR($B8="NSO",$B8="",FH8="",FH8=0),"",IF(AND(FC8="",FD8="",FE8="",FF8="",FG8=""),"",IF(AND(FD8="",FC8=""),$FC$7-FI8,IF(FG8="",($FC$7+$FD$7)-FI8,$FH$7-FI8)))) -> 100 | FK8: =IF(OR($B8="NSO",$B8="",FH8="",FH8=0),"",IF(OR(FC8="AB",FE8="AB",FF8="AB",FG8="AB",FD8="AB"),"AB",IF(FH8>=36%*FJ8,"P","S"))) -> P | FL8: =IF(FH8="","",IF(OR(FK8="",FK8=0,FK8="S",FK8="RE",FK8="F",FK8="AB"),"",IF(FH8>=91%*FJ8,"A+",IF(FH8>=76%*FJ8,"A",IF(FH8>=61%*FJ8,"B",IF(FH8>=41%*FJ8,"C","D")))))) -> A+ | FM8: =IF(OR($E8="",$G8=""),"",IF(AND('Marks Entry 6th'!CJ7="",'Marks Entry 7th'!CJ7=""),"",IF(AND($E$3=6),'Marks Entry 6th'!CJ7,IF(AND($E$3=7),'Marks Entry 7th'!CJ7,"")))) -> 45 | FN8: =IF(OR($E8="",$G8=""),"",IF(AND('Marks Entry 6th'!CK7="",'Marks Entry 7th'!CK7=""),"",IF(AND($E$3=6),'Marks Entry 6th'!CK7,IF(AND($E$3=7),'Marks Entry 7th'!CK7,"")))) -> 36 | FO8: =IF(AND(FM8="",FN8=""),"",SUM(FM8:FN8)) -> 81 | FP8: =IF(FO8="","",IF(OR(FO8="",FO8=0,FO8="RE",FO8="AB"),"",IF(FO8>=91%*$FO$7,"A+",IF(FO8>=76%*$FO$7,"A",IF(FO8>=61%*$FO$7,"B",IF(FO8>=341%*$FO$7,"C","D")))))) -> A | FQ8: =IF(OR($E8="",$G8=""),"",IF(AND('Marks Entry 6th'!CL7="",'Marks Entry 7th'!CL7=""),"",IF(AND($E$3=6),'Marks Entry 6th'!CL7,IF(AND($E$3=7),'Marks Entry 7th'!CL7,"")))) -> 45 | FR8: =IF(OR($E8="",$G8=""),"",IF(AND('Marks Entry 6th'!CM7="",'Marks Entry 7th'!CM7=""),"",IF(AND($E$3=6),'Marks Entry 6th'!CM7,IF(AND($E$3=7),'Marks Entry 7th'!CM7,"")))) -> 41 | FS8: =IF(AND(FQ8="",FR8=""),"",SUM(FQ8:FR8)) -> 86 | FT8: =IF(FS8="","",IF(OR(FS8="",FS8=0,FS8="RE",FS8="AB"),"",IF(FS8>=91%*$FS$7,"A+",IF(FS8>=76%*$FS$7,"A",IF(FS8>=61%*$FS$7,"B",IF(FS8>=41%*$FS$7,"C","D")))))) -> A | FU8: =IF($E$3="","",IF(OR(E8="",G8=""),"",IF(AND(Z8="AB",AU8="AB",BQ8="AB",CL8="AB",DG8="AB",EB8="AB"),"AB",SUM(Z8,AU8,BQ8,CL8,DG8,EB8)))) -> 760 | FV8: =IFERROR(IF(FU8="","",FU8*100/SUM(AB8,AW8,BS8,CN8,DI8,ED8)),"") -> 63.33 % | FW8: =IFERROR(IF(FV8="","",IF(AND(FV8>=60),"I",IF(AND(FV8>=48),"II",IF(AND(FV8>=36),"III","")))),"") -> I | FX8: =IFERROR(IF(FU8="","",IF(OR(B8="",G8="",FV8=""),"",IF(FV8>=86,"A",IF(FV8>=71,"B",IF(FV8>=51,"C",IF(FV8>=31,"D","E")))))),"") -> C | FY8: =IFERROR(IF(FV8="","",SUMPRODUCT((FV8<$FV$8:$FV$207)/COUNTIF($FV$8:$FV$207,$FV$8:$FV$207))),"") -> 10 | FZ8: =IFERROR(IF(B8="NSO","NSO",IF(OR(D8="",G8="",F8=""),"",IF(AND(FV8>=36,'Master sheet'!$D$11="Hindi"),"कक्षा क्रमोन्नत",IF(AND(FV8>=36,'Master sheet'!$D$11="English"),"Promoted",IF(AND(FV8<36,'Master sheet'!$D$11="Hindi"),"पुनः परीक्षा","Re-Exam"))))),"") -> कक्षा क्रमोन्नत | GA8: =IF(OR($E8="",$G8=""),"",IF(AND($E$3=6,'Marks Entry 6th'!CN7=""),"",IF(AND($E$3=7,'Marks Entry 7th'!CN7=""),"",IF(AND($E$3=6),'Marks Entry 6th'!CN7,IF(AND($E$3=7),'Marks Entry 7th'!CN7,""))))) -> 220 | GB8: =IF(OR($E8="",$G8=""),"",IF(AND($E$3=6,'Marks Entry 6th'!CO7=""),"",IF(AND($E$3=7,'Marks Entry 7th'!CO7=""),"",IF(AND($E$3=6),'Marks Entry 6th'!CO7,IF(AND($E$3=7),'Marks Entry 7th'!CO7,""))))) -> 170 | GK8: =IF(AND($E$3=6),'Marks Entry 6th'!I7,IF(AND($E$3=7),'Marks Entry 7th'!I7,"")) -> 701 | GL8: =SUM(AB8,AW8,BS8,CN8,DI8,ED8) -> 1200
A9: 2 | B9: =IF(OR(GK9=0,GK9=""),"",IF(AND($E$3=6),'Marks Entry 6th'!I8,IF(AND($E$3=7),'Marks Entry 7th'!I8,""))) -> 702 | C9: =IF(OR(B9=0,B9=""),"",IF(AND($E$3=6,'Marks Entry 6th'!B8=""),"",IF(AND($E$3=7,'Marks Entry 7th'!B8=""),"",IF(AND($E$3=6,'Marks Entry 6th'!B8),'Marks Entry 6th'!B8,IF(AND($E$3=7),'Marks Entry 7th'!B8,""))))) -> 7 | D9: =IF(OR(B9=0,B9=""),"",IF(AND($E$3=6,'Marks Entry 6th'!C8=""),"",IF(AND($E$3=7,'Marks Entry 7th'!C8=""),"",IF(AND($E$3=6),'Marks Entry 6th'!C8,IF(AND($E$3=7),'Marks Entry 7th'!C8,""))))) -> A | E9: =IF(OR(B9=0,B9=""),"",IF(AND($E$3=6,'Marks Entry 6th'!E8=""),"",IF(AND($E$3=7,'Marks Entry 7th'!E8=""),"",IF(AND($E$3=6),'Marks Entry 6th'!E8,IF(AND($E$3=7),'Marks Entry 7th'!E8,""))))) -> 2015-01-01 | F9: =IF(OR(B9=0,B9=""),"",IF(AND($E$3=6,'Marks Entry 6th'!D8=""),"",IF(AND($E$3=7,'Marks Entry 7th'!D8=""),"",IF(AND($E$3=6),'Marks Entry 6th'!D8,IF(AND($E$3=7),'Marks Entry 7th'!D8,""))))) -> 944 | G9: =IF(OR(B9=0,B9=""),"",IF(AND($E$3=6,'Marks Entry 6th'!F8=""),"",IF(AND($E$3=7,'Marks Entry 7th'!F8=""),"",IF(AND($E$3=6),UPPER('Marks Entry 6th'!F8),IF(AND($E$3=7),UPPER('Marks Entry 7th'!F8),""))))) -> ANUJ GIRI | H9: =IF(OR(B9=0,B9=""),"",IF(AND($E$3=6,'Marks Entry 6th'!G8=""),"",IF(AND($E$3=7,'Marks Entry 7th'!G8=""),"",IF(AND($E$3=6),UPPER('Marks Entry 6th'!G8),IF(AND($E$3=7),UPPER('Marks Entry 7th'!G8),""))))) -> BHAGWAT GIRI | I9: =IF(OR(B9=0,B9=""),"",IF(AND($E$3=6,'Marks Entry 6th'!H8=""),"",IF(AND($E$3=7,'Marks Entry 7th'!H8=""),"",IF(AND($E$3=6),UPPER('Marks Entry 6th'!H8),IF(AND($E$3=7),UPPER('Marks Entry 7th'!H8),""))))) -> KANTA DEVI | J9: =IF(OR(B9=0,B9=""),"",IF(AND($E$3=6,'Marks Entry 6th'!J8=""),"",IF(AND($E$3=7,'Marks Entry 7th'!J8=""),"",IF(AND($E$3=6),'Marks Entry 6th'!J8,IF(AND($E$3=7),'Marks Entry 7th'!J8,""))))) -> M | K9: =IF(OR(B9=0,B9=""),"",IF(AND($E$3=6,'Marks Entry 6th'!K8=""),"",IF(AND($E$3=7,'Marks Entry 7th'!K8=""),"",IF(AND($E$3=6),'Marks Entry 6th'!K8,IF(AND($E$3=7),'Marks Entry 7th'!K8,""))))) -> OBC | L9: =IF(OR($E9="",$G9=""),"",IF(AND($E$3=6),'Marks Entry 6th'!L8,IF(AND($E$3=7),'Marks Entry 7th'!L8,""))) -> 4 | M9: =IF(OR($E9="",$G9=""),"",IF(AND($E$3=6),'Marks Entry 6th'!M8,IF(AND($E$3=7),'Marks Entry 7th'!M8,""))) -> 5 | N9: =IF(OR($E9="",$G9=""),"",IF(AND($E$3=6),'Marks Entry 6th'!N8,IF(AND($E$3=7),'Marks Entry 7th'!N8,""))) -> 5 | O9: =IF(OR($E9="",$G9=""),"",IF(AND($E$3=6),'Marks Entry 6th'!O8,IF(AND($E$3=7),'Marks Entry 7th'!O8,""))) -> 5 | P9: =IF(OR($E9="",$G9=""),"",IF(AND($E$3=6),'Marks Entry 6th'!P8,IF(AND($E$3=7),'Marks Entry 7th'!P8,""))) -> 5 | Q9: =IF(OR($E9="",$G9=""),"",IF(AND($E$3=6),'Marks Entry 6th'!Q8,IF(AND($E$3=7),'Marks Entry 7th'!Q8,""))) -> 3 | R9: =IF(AND(L9="",M9="",N9="",O9="",P9="",Q9=""),"",SUM(L9:Q9)) -> 27 | S9: =IF(OR($E9="",$G9=""),"",IF(AND($E$3=6),'Marks Entry 6th'!R8,IF(AND($E$3=7),'Marks Entry 7th'!R8,""))) -> 37 | T9: =IF(OR($E9="",$G9=""),"",IF(AND($E$3=6),'Marks Entry 6th'!S8,IF(AND($E$3=7),'Marks Entry 7th'!S8,""))) -> 11 | U9: =IF(AND(S9="",T9=""),"",IF(AND(S9="NA",T9="NA"),"NA",IF(AND(S9="AB",T9="AB"),"AB",IF(AND(S9="ML",T9="ML"),"ML",SUM(S9:T9))))) -> 48 | V9: =IF(AND(R9="NA",U9="NA"),"NA",IF(AND(R9="AB",U9="AB"),"AB",IF(AND(R9="ML",U9="ML"),"ML",SUM(R9,U9)))) -> 75 | W9: =IF(OR($E9="",$G9=""),"",IF(AND($E$3=6),'Marks Entry 6th'!T8,IF(AND($E$3=7),'Marks Entry 7th'!T8,""))) -> 37 | X9: =IF(OR($E9="",$G9=""),"",IF(AND($E$3=6),'Marks Entry 6th'!U8,IF(AND($E$3=7),'Marks Entry 7th'!U8,""))) -> 11 | Y9: =IF(AND(W9="",X9=""),"",IF(AND(W9="AB",X9="AB"),"AB",IF(AND(W9="ML",X9="ML"),"ML",SUM(W9:X9)))) -> 48 | Z9: =IF(Y9="","",IF(AND(V9="AB",Y9="AB"),"AB",SUM(V9,Y9))) -> 123 | AA9: =COUNTIF(L9:O9,"NA")*5+(COUNTIF(L9:O9,"ML")*5)+(COUNTIF(S9,"ML")*$S$7)+(COUNTIF(W9,"ML")*$W$7) -> 0 | AB9: =IF(OR(B9="NSO",B9=0,B9=""),"",IF(AND(L9="",N9="",S9="",W9=""),"",IF(AND(N9="",L9="",M9="",O9=""),20-AA9,IF(AND(S9="",T9=""),$U$7-AA9,IF(AND(W9="",X9=""),$Y$7-AA9,$Z$7-AA9))))) -> 200 | AC9: =IF(AND(OR(L9="ab",L9="ml"),OR(N9="ab",N9="ml"),OR(S9="ab",S9="ml")),"AB",IF(AND(OR(L9="ab",L9="ml"),OR(S9="ab",S9="ml"),OR(W9="ab",W9="ml")),"AB",IF(AND(OR(N9="ab",N9="ml"),OR(S9="ab",S9="ml"),OR(W9="ab",W9="ml")),"AB",""))) ->  | AD9: =IF(OR(B9="NSO",B9="",W9=""),"",IF(OR(AC9="AB",W9="ab"),"AB",IF(W9="ML","RE",IF(AND(Z9>=36%*AB9,W9>=$W$7*20%),"P",IF(AND(Z9>=34%*AB9,W9>=$W$7*20%),"G2",IF(AND(Z9>=31%*AB9,W9>=$W$7*20%),"G1",IF(Z9>=25%*AB9,"S","F"))))))) -> P | AE9: =IF(OR(AD9="",AD9=0,AD9="S",AD9="RE",AD9="F",AD9="AB"),AD9,IF(Z9>=75%*AB9,"D",IF(Z9>=60%*AB9,"I",IF(Z9>=48%*AB9,"II",IF(Z9>=36%*AB9,"III",AD9))))) -> I | AF9: =IF(Z9="","",IF(OR(AD9="",AD9=0,AD9="S",AD9="RE",AD9="F",AD9="AB"),"",IF(Z9>=86%*AB9,"A",IF(Z9>=71%*AB9,"B",IF(Z9>=51%*AB9,"C",IF(Z9>=31%*AB9,"D","E")))))) -> C | AG9: =IF(OR($E9="",$G9=""),"",IF(AND($E$3=6),'Marks Entry 6th'!V8,IF(AND($E$3=7),'Marks Entry 7th'!V8,""))) -> 2 | AH9: =IF(OR($E9="",$G9=""),"",IF(AND($E$3=6),'Marks Entry 6th'!W8,IF(AND($E$3=7),'Marks Entry 7th'!W8,""))) -> 4 | AI9: =IF(OR($E9="",$G9=""),"",IF(AND($E$3=6),'Marks Entry 6th'!X8,IF(AND($E$3=7),'Marks Entry 7th'!X8,""))) -> 2 | AJ9: =IF(OR($E9="",$G9=""),"",IF(AND($E$3=6),'Marks Entry 6th'!Y8,IF(AND($E$3=7),'Marks Entry 7th'!Y8,""))) -> 5 | AK9: =IF(OR($E9="",$G9=""),"",IF(AND($E$3=6),'Marks Entry 6th'!Z8,IF(AND($E$3=7),'Marks Entry 7th'!Z8,""))) -> 4 | AL9: =IF(OR($E9="",$G9=""),"",IF(AND($E$3=6),'Marks Entry 6th'!AA8,IF(AND($E$3=7),'Marks Entry 7th'!AA8,""))) -> 5 | AM9: =IF(AND(AG9="",AH9="",AI9="",AJ9="",AK9="",AL9=""),"",SUM(AG9:AL9)) -> 22 | AN9: =IF(OR($E9="",$G9=""),"",IF(AND($E$3=6),'Marks Entry 6th'!AB8,IF(AND($E$3=7),'Marks Entry 7th'!AB8,""))) -> 37 | AO9: =IF(OR($E9="",$G9=""),"",IF(AND($E$3=6),'Marks Entry 6th'!AC8,IF(AND($E$3=7),'Marks Entry 7th'!AC8,""))) -> 12 | AP9: =IF(AND(AN9="",AO9=""),"",IF(AND(AN9="NA",AO9="NA"),"NA",IF(AND(AN9="AB",AO9="AB"),"AB",IF(AND(AN9="ML",AO9="ML"),"ML",SUM(AN9:AO9))))) -> 49 | AQ9: =IF(AND(AM9="NA",AP9="NA"),"NA",IF(AND(AM9="AB",AP9="AB"),"AB",IF(AND(AM9="ML",AP9="ML"),"ML",SUM(AM9,AP9)))) -> 71 | AR9: =IF(OR($E9="",$G9=""),"",IF(AND($E$3=6),'Marks Entry 6th'!AD8,IF(AND($E$3=7),'Marks Entry 7th'!AD8,""))) -> 37 | AS9: =IF(OR($E9="",$G9=""),"",IF(AND($E$3=6),'Marks Entry 6th'!AE8,IF(AND($E$3=7),'Marks Entry 7th'!AE8,""))) -> 9 | AT9: =IF(AND(AR9="",AS9=""),"",IF(AND(AR9="NA",AS9="NA"),"NA",IF(AND(AR9="AB",AS9="AB"),"AB",IF(AND(AR9="ML",AS9="ML"),"ML",SUM(AR9:AS9))))) -> 46 | AU9: =IF(AT9="","",IF(AND(AQ9="AB",AT9="AB"),"AB",SUM(AQ9,AT9))) -> 117 | AV9: =COUNTIF(AG9:AJ9,"NA")*5+(COUNTIF(AG9:AJ9,"ML")*5)+(COUNTIF(AN9,"ML")*$AN$7)+(COUNTIF(AR9,"ML")*$AR$7) -> 0 | AW9: =IF(OR(B9="NSO",B9=0,B9=""),"",IF(AND(AG9="",AI9="",AN9="",AR9=""),"",IF(AND(AI9="",AN9="",AH9="",AJ9=""),20-AV9,IF(AND(AN9="",AO9=""),$AP$7-AV9,IF(AND(AR9="",AS9=""),$AT$7-AV9,$AU$7-AV9))))) -> 200 | AX9: =IF(AND(OR(AG9="ab",AG9="ml"),OR(AI9="ab",AI9="ml"),OR(AN9="ab",AN9="ml")),"AB",IF(AND(OR(AG9="ab",AG9="ml"),OR(AN9="ab",AN9="ml"),OR(AR9="ab",AR9="ml")),"AB",IF(AND(OR(AI9="ab",AI9="ml"),OR(AN9="ab",AN9="ml"),OR(AR9="ab",AR9="ml")),"AB",""))) ->  | AY9: =IF(OR(B9="NSO",B9="",AR9=""),"",IF(OR(AX9="AB",AR9="ab"),"AB",IF(AR9="ML","RE",IF(AND(AU9>=36%*AW9,AR9>=$AR$7*20%),"P",IF(AND(AU9>=34%*AW9,AR9>=$AR$7*20%),"G2",IF(AND(AU9>=31%*AW9,AR9>=$AR$7*20%),"G1",IF(AU9>=25%*AW9,"S","F"))))))) -> P | AZ9: =IF(OR(AY9="",AY9=0,AY9="S",AY9="RE",AY9="F",AY9="AB"),AY9,IF(AU9>=75%*AW9,"D",IF(AU9>=60%*AW9,"I",IF(AU9>=48%*AW9,"II",IF(AU9>=36%*AW9,"III",AY9))))) -> II | BA9: =IF(AU9="","",IF(OR(AY9="",AY9=0,AY9="S",AY9="RE",AY9="F",AY9="AB"),"",IF(AU9>=86%*AW9,"A",IF(AU9>=71%*AW9,"B",IF(AU9>=51%*AW9,"C",IF(AU9>=31%*AW9,"D","E")))))) -> C | BB9: =IF(OR($E9="",$G9=""),"",IF(AND($E$3=6),'Marks Entry 6th'!AF8,IF(AND($E$3=7),'Marks Entry 7th'!AF8,""))) -> संस्कृत (71) | BC9: =IF(OR($E9="",$G9=""),"",IF(AND($E$3=6),'Marks Entry 6th'!AG8,IF(AND($E$3=7),'Marks Entry 7th'!AG8,""))) -> AB | BD9: =IF(OR($E9="",$G9=""),"",IF(AND($E$3=6),'Marks Entry 6th'!AH8,IF(AND($E$3=7),'Marks Entry 7th'!AH8,""))) -> AB | BE9: =IF(OR($E9="",$G9=""),"",IF(AND($E$3=6),'Marks Entry 6th'!AI8,IF(AND($E$3=7),'Marks Entry 7th'!AI8,""))) -> 4 | BF9: =IF(OR($E9="",$G9=""),"",IF(AND($E$3=6),'Marks Entry 6th'!AJ8,IF(AND($E$3=7),'Marks Entry 7th'!AJ8,""))) -> 4 | BG9: =IF(OR($E9="",$G9=""),"",IF(AND($E$3=6),'Marks Entry 6th'!AK8,IF(AND($E$3=7),'Marks Entry 7th'!AK8,""))) -> 4 | BH9: =IF(OR($E9="",$G9=""),"",IF(AND($E$3=6),'Marks Entry 6th'!AL8,IF(AND($E$3=7),'Marks Entry 7th'!AL8,""))) -> 5 | BI9: =IF(AND(BC9="",BD9="",BE9="",BF9="",BG9="",BH9=""),"",SUM(BC9:BH9)) -> 17 | BJ9: =IF(OR($E9="",$G9=""),"",IF(AND($E$3=6),'Marks Entry 6th'!AM8,IF(AND($E$3=7),'Marks Entry 7th'!AM8,""))) -> 44 | BK9: =IF(OR($E9="",$G9=""),"",IF(AND($E$3=6),'Marks Entry 6th'!AN8,IF(AND($E$3=7),'Marks Entry 7th'!AN8,""))) -> 15 | BL9: =IF(AND(BJ9="",BK9=""),"",IF(AND(BJ9="NA",BK9="NA"),"NA",IF(AND(BJ9="AB",BK9="AB"),"AB",IF(AND(BJ9="ML",BK9="ML"),"ML",SUM(BJ9:BK9))))) -> 59 | BM9: =IF(AND(BI9="NA",BL9="NA"),"NA",IF(AND(BI9="AB",BL9="AB"),"AB",SUM(BI9,BL9))) -> 76 | BN9: =IF(OR($E9="",$G9=""),"",IF(AND($E$3=6),'Marks Entry 6th'!AO8,IF(AND($E$3=7),'Marks Entry 7th'!AO8,""))) -> 46 | BO9: =IF(OR($E9="",$G9=""),"",IF(AND($E$3=6),'Marks Entry 6th'!AP8,IF(AND($E$3=7),'Marks Entry 7th'!AP8,""))) -> 9 | BP9: =IF(AND(BN9="",BO9=""),"",IF(AND(BN9="NA",BO9="NA"),"NA",IF(AND(BN9="AB",BO9="AB"),"AB",IF(AND(BN9="ML",BO9="ML"),"ML",SUM(BN9:BO9))))) -> 55 | BQ9: =IF(BP9="","",IF(AND(BM9="AB",BP9="AB"),"AB",SUM(BM9,BP9))) -> 131 | BR9: =COUNTIF(BC9:BF9,"NA")*5+(COUNTIF(BC9:BF9,"ML")*5)+(COUNTIF(BJ9,"ML")*$BJ$7)+(COUNTIF(BN9,"ML")*$BN$7) -> 0 | BS9: =IF(OR($B9="NSO",$B9=0,$B9=""),"",IF(AND(BC9="",BE9="",BJ9="",BN9=""),"",IF(AND(BE9="",BC9="",BD9="",BF9=""),20-BR9,IF(AND(BJ9="",BK9=""),$BL$7-BR9,IF(AND(BN9="",BO9=""),$BP$7-BR9,$BQ$7-BR9))))) -> 200 | BT9: =IF(AND(OR(BC9="ab",BC9="ml"),OR(BE9="ab",BE9="ml"),OR(BJ9="ab",BJ9="ml")),"AB",IF(AND(OR(BC9="ab",BC9="ml"),OR(BJ9="ab",BJ9="ml"),OR(BN9="ab",BN9="ml")),"AB",IF(AND(OR(BE9="ab",BE9="ml"),OR(BJ9="ab",BJ9="ml"),OR(BN9="ab",BN9="ml")),"AB",""))) ->  | BU9: =IF(OR($B9="NSO",$B9="",BN9=""),"",IF(OR(BT9="AB",BN9="ab"),"AB",IF(BN9="ML","RE",IF(AND(BQ9>=36%*BS9,BN9>=$BN$7*20%),"P",IF(AND(BQ9>=34%*BS9,BN9>=$BN$7*20%),"G2",IF(AND(BQ9>=31%*BS9,BN9>=$BN$7*20%),"G1",IF(BQ9>=25%*BS9,"S","F"))))))) -> P | BV9: =IF(OR(BU9="",BU9=0,BU9="S",BU9="RE",BU9="F",BU9="AB"),BU9,IF(BQ9>=75%*BS9,"D",IF(BQ9>=60%*BS9,"I",IF(BQ9>=48%*BS9,"II",IF(BQ9>=36%*BS9,"III",BU9))))) -> I | BW9: =IF(BQ9="","",IF(OR(BU9="",BU9=0,BU9="S",BU9="RE",BU9="F",BU9="AB"),"",IF(BQ9>=86%*BS9,"A",IF(BQ9>=71%*BS9,"B",IF(BQ9>=51%*BS9,"C",IF(BQ9>=31%*BS9,"D","E")))))) -> C | BX9: =IF(OR($E9="",$G9=""),"",IF(AND($E$3=6),'Marks Entry 6th'!AQ8,IF(AND($E$3=7),'Marks Entry 7th'!AQ8,""))) -> 4 | BY9: =IF(OR($E9="",$G9=""),"",IF(AND($E$3=6),'Marks Entry 6th'!AR8,IF(AND($E$3=7),'Marks Entry 7th'!AR8,""))) -> 4 | BZ9: =IF(OR($E9="",$G9=""),"",IF(AND($E$3=6),'Marks Entry 6th'!AS8,IF(AND($E$3=7),'Marks Entry 7th'!AS8,""))) -> 4 | CA9: =IF(OR($E9="",$G9=""),"",IF(AND($E$3=6),'Marks Entry 6th'!AT8,IF(AND($E$3=7),'Marks Entry 7th'!AT8,""))) -> 4 | CB9: =IF(OR($E9="",$G9=""),"",IF(AND($E$3=6),'Marks Entry 6th'!AU8,IF(AND($E$3=7),'Marks Entry 7th'!AU8,""))) -> 4 | CC9: =IF(OR($E9="",$G9=""),"",IF(AND($E$3=6),'Marks Entry 6th'!AV8,IF(AND($E$3=7),'Marks Entry 7th'!AV8,""))) -> 5 | CD9: =IF(AND(BX9="",BY9="",BZ9="",CA9="",CB9="",CC9=""),"",SUM(BX9:CC9)) -> 25 | CE9: =IF(OR($E9="",$G9=""),"",IF(AND($E$3=6),'Marks Entry 6th'!AW8,IF(AND($E$3=7),'Marks Entry 7th'!AW8,""))) -> 31 | CF9: =IF(OR($E9="",$G9=""),"",IF(AND($E$3=6),'Marks Entry 6th'!AX8,IF(AND($E$3=7),'Marks Entry 7th'!AX8,""))) -> 11 | CG9: =IF(AND(CE9="",CF9=""),"",IF(AND(CE9="NA",CF9="NA"),"NA",IF(AND(CE9="AB",CF9="AB"),"AB",IF(AND(CE9="ML",CF9="ML"),"ML",SUM(CE9:CF9))))) -> 42 | CH9: =IF(AND(CD9="NA",CG9="NA"),"NA",IF(AND(CD9="AB",CG9="AB"),"AB",SUM(CD9,CG9))) -> 67 | CI9: =IF(OR($E9="",$G9=""),"",IF(AND($E$3=6),'Marks Entry 6th'!AY8,IF(AND($E$3=7),'Marks Entry 7th'!AY8,""))) -> 31 | CJ9: =IF(OR($E9="",$G9=""),"",IF(AND($E$3=6),'Marks Entry 6th'!AZ8,IF(AND($E$3=7),'Marks Entry 7th'!AZ8,""))) -> 4 | CK9: =IF(AND(CI9="",CJ9=""),"",IF(AND(CI9="NA",CJ9="NA"),"NA",IF(AND(CI9="AB",CJ9="AB"),"AB",IF(AND(CI9="ML",CJ9="ML"),"ML",SUM(CI9:CJ9))))) -> 35 | CL9: =IF(CK9="","",IF(AND(CH9="AB",CK9="AB"),"AB",SUM(CH9,CK9))) -> 102 | CM9: =COUNTIF(BX9:CA9,"NA")*5+(COUNTIF(BX9:CA9,"ML")*5)+(COUNTIF(CE9,"ML")*$CE$7)+(COUNTIF(CI9,"ML")*$CI$7) -> 0 | CN9: =IF(OR($B9="NSO",$B9=0,$B9=""),"",IF(AND(BX9="",BZ9="",CE9="",CI9=""),"",IF(AND(BZ9="",BX9="",BY9="",CA9=""),20-CM9,IF(AND(CE9="",CF9=""),$CG$7-CM9,IF(AND(CI9="",CJ9=""),$CK$7-CM9,$CL$7-CM9))))) -> 200 | CO9: =IF(AND(OR(BX9="ab",BX9="ml"),OR(BZ9="ab",BZ9="ml"),OR(CE9="ab",CE9="ml")),"AB",IF(AND(OR(BX9="ab",BX9="ml"),OR(CE9="ab",CE9="ml"),OR(CI9="ab",CI9="ml")),"AB",IF(AND(OR(BZ9="ab",BZ9="ml"),OR(CE9="ab",CE9="ml"),OR(CI9="ab",CI9="ml")),"AB",""))) ->  | CP9: =IF(OR($B9="NSO",$B9="",CI9=""),"",IF(OR(CO9="AB",CI9="ab"),"AB",IF(CI9="ML","RE",IF(AND(CL9>=36%*CN9,CI9>=$CI$7*20%),"P",IF(AND(CL9>=34%*CN9,CI9>=$CI$7*20%),"G2",IF(AND(CL9>=31%*CN9,CI9>=$CI$7*20%),"G1",IF(CL9>=25%*CN9,"S","F"))))))) -> P | CQ9: =IF(OR(CP9="",CP9=0,CP9="S",CP9="RE",CP9="F",CP9="AB"),CP9,IF(CL9>=75%*CN9,"D",IF(CL9>=60%*CN9,"I",IF(CL9>=48%*CN9,"II",IF(CL9>=36%*CN9,"III",CP9))))) -> II | CR9: =IF(CL9="","",IF(OR(CP9="",CP9=0,CP9="S",CP9="RE",CP9="F",CP9="AB"),"",IF(CL9>=86%*CN9,"A",IF(CL9>=71%*CN9,"B",IF(CL9>=51%*CN9,"C",IF(CL9>=31%*CN9,"D","E")))))) -> C | CS9: =IF(OR($E9="",$G9=""),"",IF(AND($E$3=6),'Marks Entry 6th'!BA8,IF(AND($E$3=7),'Marks Entry 7th'!BA8,""))) -> 5 | CT9: =IF(OR($E9="",$G9=""),"",IF(AND($E$3=6),'Marks Entry 6th'!BB8,IF(AND($E$3=7),'Marks Entry 7th'!BB8,""))) -> 5 | CU9: =IF(OR($E9="",$G9=""),"",IF(AND($E$3=6),'Marks Entry 6th'!BC8,IF(AND($E$3=7),'Marks Entry 7th'!BC8,""))) -> 5 | CV9: =IF(OR($E9="",$G9=""),"",IF(AND($E$3=6),'Marks Entry 6th'!BD8,IF(AND($E$3=7),'Marks Entry 7th'!BD8,""))) -> 5 | CW9: =IF(OR($E9="",$G9=""),"",IF(AND($E$3=6),'Marks Entry 6th'!BE8,IF(AND($E$3=7),'Marks Entry 7th'!BE8,""))) -> 4 | CX9: =IF(OR($E9="",$G9=""),"",IF(AND($E$3=6),'Marks Entry 6th'!BF8,IF(AND($E$3=7),'Marks Entry 7th'!BF8,""))) -> 4 | CY9: =IF(AND(CS9="",CT9="",CU9="",CV9="",CW9="",CX9=""),"",SUM(CS9:CX9)) -> 28 | CZ9: =IF(OR($E9="",$G9=""),"",IF(AND($E$3=6),'Marks Entry 6th'!BG8,IF(AND($E$3=7),'Marks Entry 7th'!BG8,""))) -> 14 | DA9: =IF(OR($E9="",$G9=""),"",IF(AND($E$3=6),'Marks Entry 6th'!BH8,IF(AND($E$3=7),'Marks Entry 7th'!BH8,""))) -> 9 | DB9: =IF(AND(CZ9="",DA9=""),"",IF(AND(CZ9="NA",DA9="NA"),"NA",IF(AND(CZ9="AB",DA9="AB"),"AB",IF(AND(CZ9="ML",DA9="ML"),"ML",SUM(CZ9:DA9))))) -> 23 | DC9: =IF(AND(CY9="NA",DB9="NA"),"NA",IF(AND(CY9="AB",DB9="AB"),"AB",SUM(CY9,DB9))) -> 51 | DD9: =IF(OR($E9="",$G9=""),"",IF(AND($E$3=6),'Marks Entry 6th'!BI8,IF(AND($E$3=7),'Marks Entry 7th'!BI8,""))) -> 14 | DE9: =IF(OR($E9="",$G9=""),"",IF(AND($E$3=6),'Marks Entry 6th'!BJ8,IF(AND($E$3=7),'Marks Entry 7th'!BJ8,""))) -> 4 | DF9: =IF(AND(DD9="",DE9=""),"",IF(AND(DD9="NA",DE9="NA"),"NA",IF(AND(DD9="AB",DE9="AB"),"AB",IF(AND(DD9="ML",DE9="ML"),"ML",SUM(DD9:DE9))))) -> 18 | DG9: =IF(DF9="","",IF(AND(DC9="AB",DF9="AB"),"AB",SUM(DC9,DF9))) -> 69 | DH9: =COUNTIF(CS9:CV9,"NA")*5+(COUNTIF(CS9:CV9,"ML")*5)+(COUNTIF(CZ9,"ML")*$CZ$7)+(COUNTIF(DD9,"ML")*$DD$7) -> 0 | DI9: =IF(OR($B9="NSO",$B9=0,$B9=""),"",IF(AND(CS9="",CU9="",CZ9="",DD9=""),"",IF(AND(CU9="",CS9="",CT9="",CV9=""),20-DH9,IF(AND(CZ9="",DA9=""),$DB$7-DH9,IF(AND(DD9="",DE9=""),$DF$7-DH9,$DG$7-DH9))))) -> 200 | DJ9: =IF(AND(OR(CS9="ab",CS9="ml"),OR(CU9="ab",CU9="ml"),OR(CZ9="ab",CZ9="ml")),"AB",IF(AND(OR(CS9="ab",CS9="ml"),OR(CZ9="ab",CZ9="ml"),OR(DD9="ab",DD9="ml")),"AB",IF(AND(OR(CU9="ab",CU9="ml"),OR(CZ9="ab",CZ9="ml"),OR(DD9="ab",DD9="ml")),"AB",""))) ->  | DK9: =IF(OR($B9="NSO",$B9="",DD9=""),"",IF(OR(DJ9="AB",DD9="ab"),"AB",IF(DD9="ML","RE",IF(AND(DG9>=36%*DI9,DD9>=$DD$7*20%),"P",IF(AND(DG9>=34%*DI9,DD9>=$DD$7*20%),"G2",IF(AND(DG9>=31%*DI9,DD9>=$DD$7*20%),"G1",IF(DG9>=25%*DI9,"S","F"))))))) -> G2 | DL9: =IF(OR(DK9="",DK9=0,DK9="S",DK9="RE",DK9="F",DK9="AB"),DK9,IF(DG9>=75%*DI9,"D",IF(DG9>=60%*DI9,"I",IF(DG9>=48%*DI9,"II",IF(DG9>=36%*DI9,"III",DK9))))) -> G2 | DM9: =IF(DG9="","",IF(OR(DK9="",DK9=0,DK9="S",DK9="RE",DK9="F",DK9="AB"),"",IF(DG9>=86%*DI9,"A",IF(DG9>=71%*DI9,"B",IF(DG9>=51%*DI9,"C",IF(DG9>=31%*DI9,"D","E")))))) -> D | DN9: =IF(OR($E9="",$G9=""),"",IF(AND($E$3=6),'Marks Entry 6th'!BK8,IF(AND($E$3=7),'Marks Entry 7th'!BK8,""))) -> 5 | DO9: =IF(OR($E9="",$G9=""),"",IF(AND($E$3=6),'Marks Entry 6th'!BL8,IF(AND($E$3=7),'Marks Entry 7th'!BL8,""))) -> 5 | DP9: =IF(OR($E9="",$G9=""),"",IF(AND($E$3=6),'Marks Entry 6th'!BM8,IF(AND($E$3=7),'Marks Entry 7th'!BM8,""))) -> 4 | DQ9: =IF(OR($E9="",$G9=""),"",IF(AND($E$3=6),'Marks Entry 6th'!BN8,IF(AND($E$3=7),'Marks Entry 7th'!BN8,""))) -> 4 | DR9: =IF(OR($E9="",$G9=""),"",IF(AND($E$3=6),'Marks Entry 6th'!BO8,IF(AND($E$3=7),'Marks Entry 7th'!BO8,""))) -> 3 | DS9: =IF(OR($E9="",$G9=""),"",IF(AND($E$3=6),'Marks Entry 6th'!BP8,IF(AND($E$3=7),'Marks Entry 7th'!BP8,""))) -> 3 | DT9: =IF(AND(DN9="",DO9="",DP9="",DQ9="",DR9="",DS9=""),"",SUM(DN9:DS9)) -> 24 | DU9: =IF(OR($E9="",$G9=""),"",IF(AND($E$3=6),'Marks Entry 6th'!BQ8,IF(AND($E$3=7),'Marks Entry 7th'!BQ8,""))) -> 42 | DV9: =IF(OR($E9="",$G9=""),"",IF(AND($E$3=6),'Marks Entry 6th'!BR8,IF(AND($E$3=7),'Marks Entry 7th'!BR8,""))) -> 11 | DW9: =IF(AND(DU9="",DV9=""),"",IF(AND(DU9="NA",DV9="NA"),"NA",IF(AND(DU9="AB",DV9="AB"),"AB",IF(AND(DU9="ML",DV9="ML"),"ML",SUM(DU9:DV9))))) -> 53 | DX9: =IF(AND(DT9="NA",DW9="NA"),"NA",IF(AND(DT9="AB",DW9="AB"),"AB",SUM(DT9,DW9))) -> 77 | DY9: =IF(OR($E9="",$G9=""),"",IF(AND($E$3=6),'Marks Entry 6th'!BS8,IF(AND($E$3=7),'Marks Entry 7th'!BS8,""))) -> 66 | DZ9: =IF(OR($E9="",$G9=""),"",IF(AND($E$3=6),'Marks Entry 6th'!BT8,IF(AND($E$3=7),'Marks Entry 7th'!BT8,""))) -> 18 | EA9: =IF(AND(DY9="",DZ9=""),"",IF(AND(DY9="NA",DZ9="NA"),"NA",IF(AND(DY9="AB",DZ9="AB"),"AB",IF(AND(DY9="ML",DZ9="ML"),"ML",SUM(DY9:DZ9))))) -> 84 | EB9: =IF(EA9="","",IF(AND(DX9="AB",EA9="AB"),"AB",SUM(DX9,EA9))) -> 161 | EC9: =COUNTIF(DN9:DQ9,"NA")*5+(COUNTIF(DN9:DQ9,"ML")*5)+(COUNTIF(DU9,"ML")*$DU$7)+(COUNTIF(DY9,"ML")*$DY$7) -> 0 | ED9: =IF(OR($B9="NSO",$B9=0,$B9=""),"",IF(AND(DN9="",DP9="",DU9="",DY9=""),"",IF(AND(DP9="",DN9="",DO9="",DQ9=""),20-EC9,IF(AND(DU9="",DV9=""),$DW$7-EC9,IF(AND(DY9="",DZ9=""),$EA$7-EC9,$EB$7-EC9))))) -> 200 | EE9: =IF(AND(OR(DN9="ab",DN9="ml"),OR(DP9="ab",DP9="ml"),OR(DU9="ab",DU9="ml")),"AB",IF(AND(OR(DN9="ab",DN9="ml"),OR(DU9="ab",DU9="ml"),OR(DY9="ab",DY9="ml")),"AB",IF(AND(OR(DP9="ab",DP9="ml"),OR(DU9="ab",DU9="ml"),OR(DY9="ab",DY9="ml")),"AB",""))) ->  | EF9: =IF(OR($B9="NSO",$B9="",DY9=""),"",IF(OR(EE9="AB",DY9="ab"),"AB",IF(DY9="ML","RE",IF(AND(EB9>=36%*ED9,DY9>=$DY$7*20%),"P",IF(AND(EB9>=34%*ED9,DY9>=$DY$7*20%),"G2",IF(AND(EB9>=31%*ED9,DY9>=$DY$7*20%),"G1",IF(EB9>=25%*ED9,"S","F"))))))) -> P | EG9: =IF(OR(EF9="",EF9=0,EF9="S",EF9="RE",EF9="F",EF9="AB"),EF9,IF(EB9>=75%*ED9,"D",IF(EB9>=60%*ED9,"I",IF(EB9>=48%*ED9,"II",IF(EB9>=36%*ED9,"III",EF9))))) -> D | EH9: =IF(EB9="","",IF(OR(EF9="",EF9=0,EF9="S",EF9="RE",EF9="F",EF9="AB"),"",IF(EB9>=86%*ED9,"A",IF(EB9>=71%*ED9,"B",IF(EB9>=51%*ED9,"C",IF(EB9>=31%*ED9,"D","E")))))) -> B | EI9: =IF(OR($E9="",$G9=""),"",IF(AND($E$3=6),'Marks Entry 6th'!BU8,IF(AND($E$3=7),'Marks Entry 7th'!BU8,""))) -> 18 | EJ9: =IF(OR($E9="",$G9=""),"",IF(AND($E$3=6),'Marks Entry 6th'!BV8,IF(AND($E$3=7),'Marks Entry 7th'!BV8,""))) -> 18 | EK9: =IF(OR($E9="",$G9=""),"",IF(AND($E$3=6),'Marks Entry 6th'!BW8,IF(AND($E$3=7),'Marks Entry 7th'!BW8,""))) -> 14 | EL9: =IF(OR($E9="",$G9=""),"",IF(AND($E$3=6),'Marks Entry 6th'!BX8,IF(AND($E$3=7),'Marks Entry 7th'!BX8,""))) -> 24 | EM9: =IF(OR($E9="",$G9=""),"",IF(AND($E$3=6),'Marks Entry 6th'!BY8,IF(AND($E$3=7),'Marks Entry 7th'!BY8,""))) -> 19 | EN9: =IF(AND(EI9="",EJ9="",EK9="",EL9="",EM9=""),"",SUM(EI9:EM9)) -> 93 | EO9: =COUNTIF(EI9,"ML")*$EI$7+COUNTIF(EJ9,"ML")*$EJ$7+COUNTIF(EK9,"ML")*$EK$7+COUNTIF(EL9,"ML")*$EL$7+COUNTIF(EM9,"ML")*$EM$7 -> 0 | EP9: =IF(OR($B9="NSO",$B9="",EN9="",EN9=0),"",IF(AND(EI9="",EJ9="",EK9="",EL9="",EM9=""),"",IF(AND(EJ9="",EI9=""),$EI$7-EO9,IF(EM9="",($EI$7+$EJ$7)-EO9,$EN$7-EO9)))) -> 100 | EQ9: =IF(OR($B9="NSO",$B9="",EN9="",EN9=0),"",IF(OR(EI9="AB",EK9="AB",EL9="AB",EM9="AB",EJ9="AB"),"AB",IF(EN9>=36%*EP9,"P","S"))) -> P | ER9: =IF(EN9="","",IF(OR(EQ9="",EQ9=0,EQ9="S",EQ9="RE",EQ9="F",EQ9="AB"),"",IF(EN9>=91%*EP9,"A+",IF(EN9>=76%*EP9,"A",IF(EN9>=61%*EP9,"B",IF(EN9>=41%*EP9,"C","D")))))) -> A+ | ES9: =IF(OR($E9="",$G9=""),"",IF(AND($E$3=6),'Marks Entry 6th'!BZ8,IF(AND($E$3=7),'Marks Entry 7th'!BZ8,""))) -> 11 | ET9: =IF(OR($E9="",$G9=""),"",IF(AND($E$3=6),'Marks Entry 6th'!CA8,IF(AND($E$3=7),'Marks Entry 7th'!CA8,""))) -> 16 | EU9: =IF(OR($E9="",$G9=""),"",IF(AND($E$3=6),'Marks Entry 6th'!CB8,IF(AND($E$3=7),'Marks Entry 7th'!CB8,""))) -> 13 | EV9: =IF(OR($E9="",$G9=""),"",IF(AND($E$3=6),'Marks Entry 6th'!CC8,IF(AND($E$3=7),'Marks Entry 7th'!CC8,""))) -> 17 | EW9: =IF(OR($E9="",$G9=""),"",IF(AND($E$3=6),'Marks Entry 6th'!CD8,IF(AND($E$3=7),'Marks Entry 7th'!CD8,""))) -> 20 | EX9: =IF(AND(ES9="",ET9="",EU9="",EV9="",EW9=""),"",SUM(ES9:EW9)) -> 77 | EY9: =COUNTIF(ES9,"ML")*$ES$7+COUNTIF(ET9,"ML")*$ET$7+COUNTIF(EU9,"ML")*$EU$7+COUNTIF(EV9,"ML")*$EV$7+COUNTIF(EW9,"ML")*$EW$7 -> 0 | EZ9: =IF(OR($B9="NSO",$B9="",EX9="",EX9=0),"",IF(AND(ES9="",ET9="",EU9="",EV9="",EW9=""),"",IF(AND(ET9="",ES9=""),$ES$7-EY9,IF(EW9="",($ES$7+$ET$7)-EY9,$EX$7-EY9)))) -> 100 | FA9: =IF(OR($B9="NSO",$B9="",EX9="",EX9=0),"",IF(OR(ES9="AB",EU9="AB",EV9="AB",EW9="AB",ET9="AB"),"AB",IF(EX9>=36%*EZ9,"P","S"))) -> P | FB9: =IF(EX9="","",IF(OR(FA9="",FA9=0,FA9="S",FA9="RE",FA9="F",FA9="AB"),"",IF(EX9>=91%*EZ9,"A+",IF(EX9>=76%*EZ9,"A",IF(EX9>=61%*EZ9,"B",IF(EX9>=41%*EZ9,"C","D")))))) -> A | FC9: =IF(OR($E9="",$G9=""),"",IF(AND($E$3=6),'Marks Entry 6th'!CE8,IF(AND($E$3=7),'Marks Entry 7th'!CE8,""))) -> 15 | FD9: =IF(OR($E9="",$G9=""),"",IF(AND($E$3=6),'Marks Entry 6th'!CF8,IF(AND($E$3=7),'Marks Entry 7th'!CF8,""))) -> 16 | FE9: =IF(OR($E9="",$G9=""),"",IF(AND($E$3=6),'Marks Entry 6th'!CG8,IF(AND($E$3=7),'Marks Entry 7th'!CG8,""))) -> 21 | FF9: =IF(OR($E9="",$G9=""),"",IF(AND($E$3=6),'Marks Entry 6th'!CH8,IF(AND($E$3=7),'Marks Entry 7th'!CH8,""))) -> 21 | FG9: =IF(OR($E9="",$G9=""),"",IF(AND($E$3=6),'Marks Entry 6th'!CI8,IF(AND($E$3=7),'Marks Entry 7th'!CI8,""))) -> 21 | FH9: =IF(AND(FC9="",FD9="",FE9="",FF9="",FG9=""),"",SUM(FC9:FG9)) -> 94 | FI9: =COUNTIF(FC9,"ML")*$FC$7+COUNTIF(FD9,"ML")*$FD$7+COUNTIF(FE9,"ML")*$FE$7+COUNTIF(FF9,"ML")*$FF$7+COUNTIF(FG9,"ML")*$FG$7 -> 0 | FJ9: =IF(OR($B9="NSO",$B9="",FH9="",FH9=0),"",IF(AND(FC9="",FD9="",FE9="",FF9="",FG9=""),"",IF(AND(FD9="",FC9=""),$FC$7-FI9,IF(FG9="",($FC$7+$FD$7)-FI9,$FH$7-FI9)))) -> 100 | FK9: =IF(OR($B9="NSO",$B9="",FH9="",FH9=0),"",IF(OR(FC9="AB",FE9="AB",FF9="AB",FG9="AB",FD9="AB"),"AB",IF(FH9>=36%*FJ9,"P","S"))) -> P | FL9: =IF(FH9="","",IF(OR(FK9="",FK9=0,FK9="S",FK9="RE",FK9="F",FK9="AB"),"",IF(FH9>=91%*FJ9,"A+",IF(FH9>=76%*FJ9,"A",IF(FH9>=61%*FJ9,"B",IF(FH9>=41%*FJ9,"C","D")))))) -> A+ | FM9: =IF(OR($E9="",$G9=""),"",IF(AND('Marks Entry 6th'!CJ8="",'Marks Entry 7th'!CJ8=""),"",IF(AND($E$3=6),'Marks Entry 6th'!CJ8,IF(AND($E$3=7),'Marks Entry 7th'!CJ8,"")))) -> 30 | FN9: =IF(OR($E9="",$G9=""),"",IF(AND('Marks Entry 6th'!CK8="",'Marks Entry 7th'!CK8=""),"",IF(AND($E$3=6),'Marks Entry 6th'!CK8,IF(AND($E$3=7),'Marks Entry 7th'!CK8,"")))) -> 32 | FO9: =IF(AND(FM9="",FN9=""),"",SUM(FM9:FN9)) -> 62 | FP9: =IF(FO9="","",IF(OR(FO9="",FO9=0,FO9="RE",FO9="AB"),"",IF(FO9>=91%*$FO$7,"A+",IF(FO9>=76%*$FO$7,"A",IF(FO9>=61%*$FO$7,"B",IF(FO9>=341%*$FO$7,"C","D")))))) -> B | FQ9: =IF(OR($E9="",$G9=""),"",IF(AND('Marks Entry 6th'!CL8="",'Marks Entry 7th'!CL8=""),"",IF(AND($E$3=6),'Marks Entry 6th'!CL8,IF(AND($E$3=7),'Marks Entry 7th'!CL8,"")))) -> 40 | FR9: =IF(OR($E9="",$G9=""),"",IF(AND('Marks Entry 6th'!CM8="",'Marks Entry 7th'!CM8=""),"",IF(AND($E$3=6),'Marks Entry 6th'!CM8,IF(AND($E$3=7),'Marks Entry 7th'!CM8,"")))) -> 41 | FS9: =IF(AND(FQ9="",FR9=""),"",SUM(FQ9:FR9)) -> 81 | FT9: =IF(FS9="","",IF(OR(FS9="",FS9=0,FS9="RE",FS9="AB"),"",IF(FS9>=91%*$FS$7,"A+",IF(FS9>=76%*$FS$7,"A",IF(FS9>=61%*$FS$7,"B",IF(FS9>=41%*$FS$7,"C","D")))))) -> A | FU9: =IF($E$3="","",IF(OR(E9="",G9=""),"",IF(AND(Z9="AB",AU9="AB",BQ9="AB",CL9="AB",DG9="AB",EB9="AB"),"AB",SUM(Z9,AU9,BQ9,CL9,DG9,EB9)))) -> 703 | FV9: =IFERROR(IF(FU9="","",FU9*100/SUM(AB9,AW9,BS9,CN9,DI9,ED9)),"") -> 58.58 % | FW9: =IFERROR(IF(FV9="","",IF(AND(FV9>=60),"I",IF(AND(FV9>=48),"II",IF(AND(FV9>=36),"III","")))),"") -> II | FX9: =IFERROR(IF(FU9="","",IF(OR(B9="",G9="",FV9=""),"",IF(FV9>=86,"A",IF(FV9>=71,"B",IF(FV9>=51,"C",IF(FV9>=31,"D","E")))))),"") -> C | FY9: =IFERROR(IF(FV9="","",SUMPRODUCT((FV9<$FV$8:$FV$207)/COUNTIF($FV$8:$FV$207,$FV$8:$FV$207))),"") -> 11 | FZ9: =IFERROR(IF(B9="NSO","NSO",IF(OR(D9="",G9="",F9=""),"",IF(AND(FV9>=36,'Master sheet'!$D$11="Hindi"),"कक्षा क्रमोन्नत",IF(AND(FV9>=36,'Master sheet'!$D$11="English"),"Promoted",IF(AND(FV9<36,'Master sheet'!$D$11="Hindi"),"पुनः परीक्षा","Re-Exam"))))),"") -> कक्षा क्रमोन्नत | GA9: =IF(OR($E9="",$G9=""),"",IF(AND($E$3=6,'Marks Entry 6th'!CN8=""),"",IF(AND($E$3=7,'Marks Entry 7th'!CN8=""),"",IF(AND($E$3=6),'Marks Entry 6th'!CN8,IF(AND($E$3=7),'Marks Entry 7th'!CN8,""))))) -> 220 | GB9: =IF(OR($E9="",$G9=""),"",IF(AND($E$3=6,'Marks Entry 6th'!CO8=""),"",IF(AND($E$3=7,'Marks Entry 7th'!CO8=""),"",IF(AND($E$3=6),'Marks Entry 6th'!CO8,IF(AND($E$3=7),'Marks Entry 7th'!CO8,""))))) -> 168 | GK9: =IF(AND($E$3=6),'Marks Entry 6th'!I8,IF(AND($E$3=7),'Marks Entry 7th'!I8,"")) -> 702 | GL9: =SUM(AB9,AW9,BS9,CN9,DI9,ED9) -> 1200
A10: 3 | B10: =IF(OR(GK10=0,GK10=""),"",IF(AND($E$3=6),'Marks Entry 6th'!I9,IF(AND($E$3=7),'Marks Entry 7th'!I9,""))) -> 703 | C10: =IF(OR(B10=0,B10=""),"",IF(AND($E$3=6,'Marks Entry 6th'!B9=""),"",IF(AND($E$3=7,'Marks Entry 7th'!B9=""),"",IF(AND($E$3=6,'Marks Entry 6th'!B9),'Marks Entry 6th'!B9,IF(AND($E$3=7),'Marks Entry 7th'!B9,""))))) -> 7 | D10: =IF(OR(B10=0,B10=""),"",IF(AND($E$3=6,'Marks Entry 6th'!C9=""),"",IF(AND($E$3=7,'Marks Entry 7th'!C9=""),"",IF(AND($E$3=6),'Marks Entry 6th'!C9,IF(AND($E$3=7),'Marks Entry 7th'!C9,""))))) -> A | E10: =IF(OR(B10=0,B10=""),"",IF(AND($E$3=6,'Marks Entry 6th'!E9=""),"",IF(AND($E$3=7,'Marks Entry 7th'!E9=""),"",IF(AND($E$3=6),'Marks Entry 6th'!E9,IF(AND($E$3=7),'Marks Entry 7th'!E9,""))))) -> 2015-12-10 | F10: =IF(OR(B10=0,B10=""),"",IF(AND($E$3=6,'Marks Entry 6th'!D9=""),"",IF(AND($E$3=7,'Marks Entry 7th'!D9=""),"",IF(AND($E$3=6),'Marks Entry 6th'!D9,IF(AND($E$3=7),'Marks Entry 7th'!D9,""))))) -> 934 | G10: =IF(OR(B10=0,B10=""),"",IF(AND($E$3=6,'Marks Entry 6th'!F9=""),"",IF(AND($E$3=7,'Marks Entry 7th'!F9=""),"",IF(AND($E$3=6),UPPER('Marks Entry 6th'!F9),IF(AND($E$3=7),UPPER('Marks Entry 7th'!F9),""))))) -> ARMAN HUSSAIN | H10: =IF(OR(B10=0,B10=""),"",IF(AND($E$3=6,'Marks Entry 6th'!G9=""),"",IF(AND($E$3=7,'Marks Entry 7th'!G9=""),"",IF(AND($E$3=6),UPPER('Marks Entry 6th'!G9),IF(AND($E$3=7),UPPER('Marks Entry 7th'!G9),""))))) -> AARIF HUSSAIN | I10: =IF(OR(B10=0,B10=""),"",IF(AND($E$3=6,'Marks Entry 6th'!H9=""),"",IF(AND($E$3=7,'Marks Entry 7th'!H9=""),"",IF(AND($E$3=6),UPPER('Marks Entry 6th'!H9),IF(AND($E$3=7),UPPER('Marks Entry 7th'!H9),""))))) -> SALMA BANO | J10: =IF(OR(B10=0,B10=""),"",IF(AND($E$3=6,'Marks Entry 6th'!J9=""),"",IF(AND($E$3=7,'Marks Entry 7th'!J9=""),"",IF(AND($E$3=6),'Marks Entry 6th'!J9,IF(AND($E$3=7),'Marks Entry 7th'!J9,""))))) -> M | K10: =IF(OR(B10=0,B10=""),"",IF(AND($E$3=6,'Marks Entry 6th'!K9=""),"",IF(AND($E$3=7,'Marks Entry 7th'!K9=""),"",IF(AND($E$3=6),'Marks Entry 6th'!K9,IF(AND($E$3=7),'Marks Entry 7th'!K9,""))))) -> OBC | L10: =IF(OR($E10="",$G10=""),"",IF(AND($E$3=6),'Marks Entry 6th'!L9,IF(AND($E$3=7),'Marks Entry 7th'!L9,""))) -> 4 | M10: =IF(OR($E10="",$G10=""),"",IF(AND($E$3=6),'Marks Entry 6th'!M9,IF(AND($E$3=7),'Marks Entry 7th'!M9,""))) -> 5 | N10: =IF(OR($E10="",$G10=""),"",IF(AND($E$3=6),'Marks Entry 6th'!N9,IF(AND($E$3=7),'Marks Entry 7th'!N9,""))) -> 5 | O10: =IF(OR($E10="",$G10=""),"",IF(AND($E$3=6),'Marks Entry 6th'!O9,IF(AND($E$3=7),'Marks Entry 7th'!O9,""))) -> 5 | P10: =IF(OR($E10="",$G10=""),"",IF(AND($E$3=6),'Marks Entry 6th'!P9,IF(AND($E$3=7),'Marks Entry 7th'!P9,""))) -> 5 | Q10: =IF(OR($E10="",$G10=""),"",IF(AND($E$3=6),'Marks Entry 6th'!Q9,IF(AND($E$3=7),'Marks Entry 7th'!Q9,""))) -> 3 | R10: 27 | S10: =IF(OR($E10="",$G10=""),"",IF(AND($E$3=6),'Marks Entry 6th'!R9,IF(AND($E$3=7),'Marks Entry 7th'!R9,""))) -> 38 | T10: =IF(OR($E10="",$G10=""),"",IF(AND($E$3=6),'Marks Entry 6th'!S9,IF(AND($E$3=7),'Marks Entry 7th'!S9,""))) -> 12 | U10: 50 | V10: 77 | W10: =IF(OR($E10="",$G10=""),"",IF(AND($E$3=6),'Marks Entry 6th'!T9,IF(AND($E$3=7),'Marks Entry 7th'!T9,""))) -> 37 | X10: =IF(OR($E10="",$G10=""),"",IF(AND($E$3=6),'Marks Entry 6th'!U9,IF(AND($E$3=7),'Marks Entry 7th'!U9,""))) -> 11 | Y10: 48 | Z10: 125 | AA10: 0 | AB10: 200 | AD10: P | AE10: I | AF10: C | AG10: =IF(OR($E10="",$G10=""),"",IF(AND($E$3=6),'Marks Entry 6th'!V9,IF(AND($E$3=7),'Marks Entry 7th'!V9,""))) -> 3 | AH10: =IF(OR($E10="",$G10=""),"",IF(AND($E$3=6),'Marks Entry 6th'!W9,IF(AND($E$3=7),'Marks Entry 7th'!W9,""))) -> 4 | AI10: =IF(OR($E10="",$G10=""),"",IF(AND($E$3=6),'Marks Entry 6th'!X9,IF(AND($E$3=7),'Marks Entry 7th'!X9,""))) -> 2 | AJ10: =IF(OR($E10="",$G10=""),"",IF(AND($E$3=6),'Marks Entry 6th'!Y9,IF(AND($E$3=7),'Marks Entry 7th'!Y9,""))) -> 5 | AK10: =IF(OR($E10="",$G10=""),"",IF(AND($E$3=6),'Marks Entry 6th'!Z9,IF(AND($E$3=7),'Marks Entry 7th'!Z9,""))) -> 4 | AL10: =IF(OR($E10="",$G10=""),"",IF(AND($E$3=6),'Marks Entry 6th'!AA9,IF(AND($E$3=7),'Marks Entry 7th'!AA9,""))) -> 5 | AM10: 23 | AN10: =IF(OR($E10="",$G10=""),"",IF(AND($E$3=6),'Marks Entry 6th'!AB9,IF(AND($E$3=7),'Marks Entry 7th'!AB9,""))) -> 40 | AO10: =IF(OR($E10="",$G10=""),"",IF(AND($E$3=6),'Marks Entry 6th'!AC9,IF(AND($E$3=7),'Marks Entry 7th'!AC9,""))) -> 11 | AP10: 51 | AQ10: 74 | AR10: =IF(OR($E10="",$G10=""),"",IF(AND($E$3=6),'Marks Entry 6th'!AD9,IF(AND($E$3=7),'Marks Entry 7th'!AD9,""))) -> 37 | AS10: =IF(OR($E10="",$G10=""),"",IF(AND($E$3=6),'Marks Entry 6th'!AE9,IF(AND($E$3=7),'Marks Entry 7th'!AE9,""))) -> 8 | AT10: 45 | AU10: 119 | AV10: 0 | AW10: 200 | AY10: P | AZ10: II | BA10: C | BB10: =IF(OR($E10="",$G10=""),"",IF(AND($E$3=6),'Marks Entry 6th'!AF9,IF(AND($E$3=7),'Marks Entry 7th'!AF9,""))) -> उर्दू (72) | BC10: =IF(OR($E10="",$G10=""),"",IF(AND($E$3=6),'Marks Entry 6th'!AG9,IF(AND($E$3=7),'Marks Entry 7th'!AG9,""))) -> 3 | BD10: =IF(OR($E10="",$G10=""),"",IF(AND($E$3=6),'Marks Entry 6th'!AH9,IF(AND($E$3=7),'Marks Entry 7th'!AH9,""))) -> 3 | BE10: =IF(OR($E10="",$G10=""),"",IF(AND($E$3=6),'Marks Entry 6th'!AI9,IF(AND($E$3=7),'Marks Entry 7th'!AI9,""))) -> 4 | BF10: =IF(OR($E10="",$G10=""),"",IF(AND($E$3=6),'Marks Entry 6th'!AJ9,IF(AND($E$3=7),'Marks Entry 7th'!AJ9,""))) -> 4 | BG10: =IF(OR($E10="",$G10=""),"",IF(AND($E$3=6),'Marks Entry 6th'!AK9,IF(AND($E$3=7),'Marks Entry 7th'!AK9,""))) -> 5 | BH10: =IF(OR($E10="",$G10=""),"",IF(AND($E$3=6),'Marks Entry 6th'!AL9,IF(AND($E$3=7),'Marks Entry 7th'!AL9,""))) -> 5 | BI10: 24 | BJ10: =IF(OR($E10="",$G10=""),"",IF(AND($E$3=6),'Marks Entry 6th'!AM9,IF(AND($E$3=7),'Marks Entry 7th'!AM9,""))) -> 42 | BK10: =IF(OR($E10="",$G10=""),"",IF(AND($E$3=6),'Marks Entry 6th'!AN9,IF(AND($E$3=7),'Marks Entry 7th'!AN9,""))) -> 14 | BL10: 56 | BM10: 80 | BN10: =IF(OR($E10="",$G10=""),"",IF(AND($E$3=6),'Marks Entry 6th'!AO9,IF(AND($E$3=7),'Marks Entry 7th'!AO9,""))) -> 41 | BO10: =IF(OR($E10="",$G10=""),"",IF(AND($E$3=6),'Marks Entry 6th'!AP9,IF(AND($E$3=7),'Marks Entry 7th'!AP9,""))) -> 8 | BP10: 49 | BQ10: 129 | BR10: 0 | BS10: 200 | BU10: P | BV10: I | BW10: C | BX10: =IF(OR($E10="",$G10=""),"",IF(AND($E$3=6),'Marks Entry 6th'!AQ9,IF(AND($E$3=7),'Marks Entry 7th'!AQ9,""))) -> 4 | BY10: =IF(OR($E10="",$G10=""),"",IF(AND($E$3=6),'Marks Entry 6th'!AR9,IF(AND($E$3=7),'Marks Entry 7th'!AR9,""))) -> 5 | BZ10: =IF(OR($E10="",$G10=""),"",IF(AND($E$3=6),'Marks Entry 6th'!AS9,IF(AND($E$3=7),'Marks Entry 7th'!AS9,""))) -> 4 | CA10: =IF(OR($E10="",$G10=""),"",IF(AND($E$3=6),'Marks Entry 6th'!AT9,IF(AND($E$3=7),'Marks Entry 7th'!AT9,""))) -> 5 | CB10: =IF(OR($E10="",$G10=""),"",IF(AND($E$3=6),'Marks Entry 6th'!AU9,IF(AND($E$3=7),'Marks Entry 7th'!AU9,""))) -> 4 | CC10: =IF(OR($E10="",$G10=""),"",IF(AND($E$3=6),'Marks Entry 6th'!AV9,IF(AND($E$3=7),'Marks Entry 7th'!AV9,""))) -> 5 | CD10: 27 | CE10: =IF(OR($E10="",$G10=""),"",IF(AND($E$3=6),'Marks Entry 6th'!AW9,IF(AND($E$3=7),'Marks Entry 7th'!AW9,""))) -> 31 | CF10: =IF(OR($E10="",$G10=""),"",IF(AND($E$3=6),'Marks Entry 6th'!AX9,IF(AND($E$3=7),'Marks Entry 7th'!AX9,""))) -> 12 | CG10: 43 | CH10: 70 | CI10: =IF(OR($E10="",$G10=""),"",IF(AND($E$3=6),'Marks Entry 6th'!AY9,IF(AND($E$3=7),'Marks Entry 7th'!AY9,""))) -> 55 | CJ10: =IF(OR($E10="",$G10=""),"",IF(AND($E$3=6),'Marks Entry 6th'!AZ9,IF(AND($E$3=7),'Marks Entry 7th'!AZ9,""))) -> 8 | CK10: 63 | CL10: 133 | CM10: 0 | CN10: 200 | CP10: P | CQ10: I | CR10: C | CS10: =IF(OR($E10="",$G10=""),"",IF(AND($E$3=6),'Marks Entry 6th'!BA9,IF(AND($E$3=7),'Marks Entry 7th'!BA9,""))) -> 5 | CT10: =IF(OR($E10="",$G10=""),"",IF(AND($E$3=6),'Marks Entry 6th'!BB9,IF(AND($E$3=7),'Marks Entry 7th'!BB9,""))) -> 5 | CU10: =IF(OR($E10="",$G10=""),"",IF(AND($E$3=6),'Marks Entry 6th'!BC9,IF(AND($E$3=7),'Marks Entry 7th'!BC9,""))) -> 5 | CV10: =IF(OR($E10="",$G10=""),"",IF(AND($E$3=6),'Marks Entry 6th'!BD9,IF(AND($E$3=7),'Marks Entry 7th'!BD9,""))) -> 5 | CW10: =IF(OR($E10="",$G10=""),"",IF(AND($E$3=6),'Marks Entry 6th'!BE9,IF(AND($E$3=7),'Marks Entry 7th'!BE9,""))) -> 4 | CX10: =IF(OR($E10="",$G10=""),"",IF(AND($E$3=6),'Marks Entry 6th'!BF9,IF(AND($E$3=7),'Marks Entry 7th'!BF9,""))) -> 4 | CY10: 28 | CZ10: =IF(OR($E10="",$G10=""),"",IF(AND($E$3=6),'Marks Entry 6th'!BG9,IF(AND($E$3=7),'Marks Entry 7th'!BG9,""))) -> 23 | DA10: =IF(OR($E10="",$G10=""),"",IF(AND($E$3=6),'Marks Entry 6th'!BH9,IF(AND($E$3=7),'Marks Entry 7th'!BH9,""))) -> 10 | DB10: 33 | DC10: 61 | DD10: =IF(OR($E10="",$G10=""),"",IF(AND($E$3=6),'Marks Entry 6th'!BI9,IF(AND($E$3=7),'Marks Entry 7th'!BI9,""))) -> 58 | DE10: =IF(OR($E10="",$G10=""),"",IF(AND($E$3=6),'Marks Entry 6th'!BJ9,IF(AND($E$3=7),'Marks Entry 7th'!BJ9,""))) -> 18 | DF10: 76 | DG10: 137 | DH10: 0 | DI10: 200 | DK10: P | DL10: I | DM10: C | DN10: =IF(OR($E10="",$G10=""),"",IF(AND($E$3=6),'Marks Entry 6th'!BK9,IF(AND($E$3=7),'Marks Entry 7th'!BK9,""))) -> 5 | DO10: =IF(OR($E10="",$G10=""),"",IF(AND($E$3=6),'Marks Entry 6th'!BL9,IF(AND($E$3=7),'Marks Entry 7th'!BL9,""))) -> 5 | DP10: =IF(OR($E10="",$G10=""),"",IF(AND($E$3=6),'Marks Entry 6th'!BM9,IF(AND($E$3=7),'Marks Entry 7th'!BM9,""))) -> 4 | DQ10: =IF(OR($E10="",$G10=""),"",IF(AND($E$3=6),'Marks Entry 6th'!BN9,IF(AND($E$3=7),'Marks Entry 7th'!BN9,""))) -> 4 | DR10: =IF(OR($E10="",$G10=""),"",IF(AND($E$3=6),'Marks Entry 6th'!BO9,IF(AND($E$3=7),'Marks Entry 7th'!BO9,""))) -> 3 | DS10: =IF(OR($E10="",$G10=""),"",IF(AND($E$3=6),'Marks Entry 6th'!BP9,IF(AND($E$3=7),'Marks Entry 7th'!BP9,""))) -> 3 | DT10: 24 | DU10: =IF(OR($E10="",$G10=""),"",IF(AND($E$3=6),'Marks Entry 6th'!BQ9,IF(AND($E$3=7),'Marks Entry 7th'!BQ9,""))) -> 42 | DV10: =IF(OR($E10="",$G10=""),"",IF(AND($E$3=6),'Marks Entry 6th'!BR9,IF(AND($E$3=7),'Marks Entry 7th'!BR9,""))) -> 12 | DW10: 54 | DX10: 78 | DY10: =IF(OR($E10="",$G10=""),"",IF(AND($E$3=6),'Marks Entry 6th'!BS9,IF(AND($E$3=7),'Marks Entry 7th'!BS9,""))) -> 66 | DZ10: =IF(OR($E10="",$G10=""),"",IF(AND($E$3=6),'Marks Entry 6th'!BT9,IF(AND($E$3=7),'Marks Entry 7th'!BT9,""))) -> 18 | EA10: 84 | EB10: 162 | EC10: 0 | ED10: 200 | EF10: P | EG10: D | EH10: B | EI10: =IF(OR($E10="",$G10=""),"",IF(AND($E$3=6),'Marks Entry 6th'!BU9,IF(AND($E$3=7),'Marks Entry 7th'!BU9,""))) -> 19 | EJ10: =IF(OR($E10="",$G10=""),"",IF(AND($E$3=6),'Marks Entry 6th'!BV9,IF(AND($E$3=7),'Marks Entry 7th'!BV9,""))) -> 18 | EK10: =IF(OR($E10="",$G10=""),"",IF(AND($E$3=6),'Marks Entry 6th'!BW9,IF(AND($E$3=7),'Marks Entry 7th'!BW9,""))) -> 15 | EL10: =IF(OR($E10="",$G10=""),"",IF(AND($E$3=6),'Marks Entry 6th'!BX9,IF(AND($E$3=7),'Marks Entry 7th'!BX9,""))) -> 24 | EM10: =IF(OR($E10="",$G10=""),"",IF(AND($E$3=6),'Marks Entry 6th'!BY9,IF(AND($E$3=7),'Marks Entry 7th'!BY9,""))) -> 19 | EN10: 95 | EO10: 0 | EP10: 100 | EQ10: P | ER10: A+ | ES10: =IF(OR($E10="",$G10=""),"",IF(AND($E$3=6),'Marks Entry 6th'!BZ9,IF(AND($E$3=7),'Marks Entry 7th'!BZ9,""))) -> 11 | ET10: =IF(OR($E10="",$G10=""),"",IF(AND($E$3=6),'Marks Entry 6th'!CA9,IF(AND($E$3=7),'Marks Entry 7th'!CA9,""))) -> 16 | EU10: =IF(OR($E10="",$G10=""),"",IF(AND($E$3=6),'Marks Entry 6th'!CB9,IF(AND($E$3=7),'Marks Entry 7th'!CB9,""))) -> 14 | EV10: =IF(OR($E10="",$G10=""),"",IF(AND($E$3=6),'Marks Entry 6th'!CC9,IF(AND($E$3=7),'Marks Entry 7th'!CC9,""))) -> 17 | EW10: =IF(OR($E10="",$G10=""),"",IF(AND($E$3=6),'Marks Entry 6th'!CD9,IF(AND($E$3=7),'Marks Entry 7th'!CD9,""))) -> 20 | EX10: 78 | EY10: 0 | EZ10: 100 | FA10: P | FB10: A | FC10: =IF(OR($E10="",$G10=""),"",IF(AND($E$3=6),'Marks Entry 6th'!CE9,IF(AND($E$3=7),'Marks Entry 7th'!CE9,""))) -> 14 | FD10: =IF(OR($E10="",$G10=""),"",IF(AND($E$3=6),'Marks Entry 6th'!CF9,IF(AND($E$3=7),'Marks Entry 7th'!CF9,""))) -> 15 | FE10: =IF(OR($E10="",$G10=""),"",IF(AND($E$3=6),'Marks Entry 6th'!CG9,IF(AND($E$3=7),'Marks Entry 7th'!CG9,""))) -> 21 | FF10: =IF(OR($E10="",$G10=""),"",IF(AND($E$3=6),'Marks Entry 6th'!CH9,IF(AND($E$3=7),'Marks Entry 7th'!CH9,""))) -> 21 | FG10: =IF(OR($E10="",$G10=""),"",IF(AND($E$3=6),'Marks Entry 6th'!CI9,IF(AND($E$3=7),'Marks Entry 7th'!CI9,""))) -> 21 | FH10: 92 | FI10: 0 | FJ10: 100 | FK10: P | FL10: A+ | FM10: =IF(OR($E10="",$G10=""),"",IF(AND('Marks Entry 6th'!CJ9="",'Marks Entry 7th'!CJ9=""),"",IF(AND($E$3=6),'Marks Entry 6th'!CJ9,IF(AND($E$3=7),'Marks Entry 7th'!CJ9,"")))) -> 41 | FN10: =IF(OR($E10="",$G10=""),"",IF(AND('Marks Entry 6th'!CK9="",'Marks Entry 7th'!CK9=""),"",IF(AND($E$3=6),'Marks Entry 6th'!CK9,IF(AND($E$3=7),'Marks Entry 7th'!CK9,"")))) -> 42 | FO10: 83 | FP10: A | FQ10: =IF(OR($E10="",$G10=""),"",IF(AND('Marks Entry 6th'!CL9="",'Marks Entry 7th'!CL9=""),"",IF(AND($E$3=6),'Marks Entry 6th'!CL9,IF(AND($E$3=7),'Marks Entry 7th'!CL9,"")))) -> 43 | FR10: =IF(OR($E10="",$G10=""),"",IF(AND('Marks Entry 6th'!CM9="",'Marks Entry 7th'!CM9=""),"",IF(AND($E$3=6),'Marks Entry 6th'!CM9,IF(AND($E$3=7),'Marks Entry 7th'!CM9,"")))) -> 44 | FS10: 87 | FT10: A | FU10: 805 | FV10: 67.08 % | FW10: I | FX10: C | FY10: 7 | FZ10: =IFERROR(IF(B10="NSO","NSO",IF(OR(D10="",G10="",F10=""),"",IF(AND(FV10>=36,'Master sheet'!$D$11="Hindi"),"कक्षा क्रमोन्नत",IF(AND(FV10>=36,'Master sheet'!$D$11="English"),"Promoted",IF(AND(FV10<36,'Master sheet'!$D$11="Hindi"),"पुनः परीक्षा","Re-Exam"))))),"") -> कक्षा क्रमोन्नत | GA10: =IF(OR($E10="",$G10=""),"",IF(AND($E$3=6,'Marks Entry 6th'!CN9=""),"",IF(AND($E$3=7,'Marks Entry 7th'!CN9=""),"",IF(AND($E$3=6),'Marks Entry 6th'!CN9,IF(AND($E$3=7),'Marks Entry 7th'!CN9,""))))) -> 360 | GB10: =IF(OR($E10="",$G10=""),"",IF(AND($E$3=6,'Marks Entry 6th'!CO9=""),"",IF(AND($E$3=7,'Marks Entry 7th'!CO9=""),"",IF(AND($E$3=6),'Marks Entry 6th'!CO9,IF(AND($E$3=7),'Marks Entry 7th'!CO9,""))))) -> 160 | GK10: =IF(AND($E$3=6),'Marks Entry 6th'!I9,IF(AND($E$3=7),'Marks Entry 7th'!I9,"")) -> 703 | GL10: 1200
